Workbook

Sheet Reg Proposal
B27: 2023-01-31
B30: Attachment 5.11.n: Newcastle Region program NPV model
B34: Ausgrid’s 2024-29 Regulatory Proposal

Sheet Cover
C9: Ausgrid FY25-29 Australian Energy Regulator Reset (Draft Submission)
C10: Proposed Non-Network Property Expenditure – Newcastle Region Program Cost-Benefit Analysis
C12: Description: | D12: Newcastle Region Program
C15: Date: | D15: 2022-12-22

Sheet Contents
A1: =Cover!C10 -> Proposed Non-Network Property Expenditure – Newcastle Region Program Cost-Benefit Analysis
A2: =RIGHT(CELL("filename",A1),LEN(CELL("filename",A1))-FIND("]",CELL("filename",A1))) -> Contents
A3: =_xlfn.SHEET() -> 3
B5: No. | C5: Worksheet | D5: Description
B6: 1 | C6: Cover | D6: Model cover worksheet
B7: =B6+1 -> 2 | C7: Contents | D7: Contains list of worksheets and a description
B8: =B7+1 -> 3 | C8: Information | D8: Contains the model schematic and a style guide
B9: 4 | C9: General assumptions | D9: Assumption worksheet with model information, assumptions, timing and constants
B10: 5 | C10: General assumptions - calculations | D10: Calculations sheet to calculate escalation factors - to be used to convert $ values into base year
B11: 6 | C11: Benefit categories | D11: Explanation of benefit categories and sub-categories
B12: 7 | C12: PB_summary_O | D12: Summary of findings, graphical and table format
B13: 8 | C13: PB_cost_A | D13: Program Brief: cost assumptions for all options
B14: 9 | C14: PB_benefits_A | D14: Program Brief: benefit assumptions for all options
B15: 10 | C15: PB_Input | D15: Input sheet for Ausgrid NPV model
B16: 11 | C16: Ausgrid_NPV_model>> | D16: Description of Ausgrid NPV Model and how it interacts with this model
B17: 12 | C17: NOTES | D17: Ausgrid model notes
B18: 13 | C18: QuickCalc | D18: Simplified input tab for NPV model calculations
B19: 14 | C19: Input | D19: Detailed input tab for NPV model calculations
B20: 15 | C20: Output_charts | D20: Summary of findings, graphical format
B21: 16 | C21: Output_tables | D21: Summary of findings, table format
B22: 17 | C22: Reference>> | D22: Blank
B23: 18 | C23: User guide | D23: User guide to Ausgrid NPV model
B24: 19 | C24: MODELoverview | D24: Provides an overview of the model logic (for information only)
B25: 20 | C25: NPVoverview | D25: Provides an overview of the NPV methodology used in the model (for information only)
B26: 21 | C26: Calculations>> | D26: Blank
B27: 22 | C27: Calcs | D27: Calculations underpinned by the inputs and assumptions entered in the model (for review purposes only)
B28: 23 | C28: Assumptions | D28: Assumptions entered by the finance team (for review purposes only and can only be edited post discussions with finance)
B29: 24 | C29: EBSS_CESS | D29: Supports calculation of EBSS and CESS (for review purposes only)

Sheet Information
A1: =Cover!C10 -> Proposed Non-Network Property Expenditure – Newcastle Region Program Cost-Benefit Analysis
A2: =RIGHT(CELL("filename",A1),LEN(CELL("filename",A1))-FIND("]",CELL("filename",A1))) -> Information
A3: =_xlfn.SHEET() -> 4
A5: =$A$3&"."&COUNTA($A$3:A4) -> 4.1 | B5: Model schematic
A40: =$A$3&"."&COUNTA($A$3:A34) -> 4.2 | B40: Style guide
B42: Assumption/input cell
B43: Implicit assumption cell
B44: List value
B45: Calculation cell
B46: [Guidance note]
B47: Cells that contain checks

Sheet Gen_A
A1: =Cover!C10 -> Proposed Non-Network Property Expenditure – Newcastle Region Program Cost-Benefit Analysis
A2: =RIGHT(CELL("filename",A1),LEN(CELL("filename",A1))-FIND("]",CELL("filename",A1))) -> Gen_A
A3: =_xlfn.SHEET() -> 5
B5: Assumption | C5: Units | D5: Value
A7: =$A$3&"."&COUNTA($A$3:A6) -> 5.1 | B7: Model timing
B9: Model start date | C9: Date | D9: 2023-07-01
B10: Model end date | C10: Date | D10: 2032-06-30
A12: =$A$3&"."&COUNTA($A$3:A11) -> 5.2 | B12: General assumptions
B14: Base year for real cashflows | C14: Date | D14: FY24
B15: Discount rate | C15: % p.a | D15: 0.0344
B17: Formula to get from raw data to AER view | C17: text
B19: % of capex that is 'Direct Labour' | D19: 0.05
B20: % of capex that is 'Materials' | D20: 0.8
B21: % of capex that is 'Contracted Services' | D21: 0.15
B22: % of capex that is 'Indirect Labour / Overheads' | D22: 0
B23: % of capex that is 'Other' | D23: 0
B25: % of opex that is 'Direct Labour' | D25: 0
B26: % of opex that is 'Materials' | D26: 0
B27: % of opex that is 'Contracted Services' | D27: 0
B28: % of opex that is 'Indirect Labour / Overheads' | D28: 0
B29: % of opex that is 'Other' | D29: 1
B31: FY23 % of full stack capex that is SCS only | C31: % | D31: 0.9541
B32: FY24 % of full stack capex that is SCS only | C32: % | D32: 0.9541
B33: FY25 % of full stack capex that is SCS only | C33: % | D33: 0.9208
B34: FY26 % of full stack capex that is SCS only | C34: % | D34: 0.9208
B35: FY27 % of full stack capex that is SCS only | C35: % | D35: 0.9208
B36: FY28 % of full stack capex that is SCS only | C36: % | D36: 0.9208
B37: FY29 % of full stack capex that is SCS only | C37: % | D37: 0.9208
B38: FY30 % of full stack capex that is SCS only | C38: % | D38: 0.9208
B39: FY31 % of full stack capex that is SCS only | C39: % | D39: 0.9208
B40: FY32 % of full stack capex that is SCS only | C40: % | D40: 0.9208
B42: FY23 % of full stack opex that is SCS only | C42: % | D42: 0.9541
B43: FY24 % of full stack opex that is SCS only | C43: % | D43: 0.9541
B44: FY25 % of full stack opex that is SCS only | C44: % | D44: 0.9208
B45: FY26 % of full stack opex that is SCS only | C45: % | D45: 0.9208
B46: FY27 % of full stack opex that is SCS only | C46: % | D46: 0.9208
B47: FY28 % of full stack opex that is SCS only | C47: % | D47: 0.9208
B48: FY29 % of full stack opex that is SCS only | C48: % | D48: 0.9208
B49: FY30 % of full stack opex that is SCS only | C49: % | D49: 0.9208
B50: FY31 % of full stack opex that is SCS only | C50: % | D50: 0.9208
B51: FY32 % of full stack opex that is SCS only | C51: % | D51: 0.9208
B53: % of capex forecast (direct + indirect) costs that are indirect | C53: % | D53: 0
B54: % of opex forecast (direct + indirect) costs that are indirect | C54: % | D54: 0
B56: Direct labour as a % of direct costs | C56: % | D56: 0
B58: CPI FY16 - actual | C58: % p.a | D58: 0.01508366722
B59: CPI FY17 - actual | C59: % p.a | D59: 0.01276990945
B60: CPI FY18 - actual | C60: % p.a | D60: 0.01948647409
B61: CPI FY19 - actual | C61: % p.a | D61: 0.01911400944
B62: CPI FY20 - actual | C62: % p.a | D62: 0.01840490798
B63: CPI FY21 - actual | C63: % p.a | D63: 0.008605851979
B64: CPI FY22 - forecast | C64: % p.a | D64: 0.03498293515
B65: CPI FY23 - forecast | C65: % p.a | D65: 0.08
B66: CPI FY24 - forecast | C66: % p.a | D66: 0.0475
B67: CPI FY25 - forecast | C67: % p.a | D67: 0.02874658261
B68: CPI FY26 - forecast | C68: % p.a | D68: 0.02874658261
B69: CPI FY27 - forecast | C69: % p.a | D69: 0.02874658261
B70: CPI FY28 - forecast | C70: % p.a | D70: 0.02874658261
B71: CPI FY29 - forecast | C71: % p.a | D71: 0.02874658261
B73: Real cost escalator forecast (applies to labour only) - This is only applied for AER view. Not Ausgrid internal data view. Raw data does not have any real escalators included
B74: 2023-06-01 | C74: % p.a | D74: -0.03961193782
B75: 2024-06-01 | C75: % p.a | D75: -0.002281035548
B76: 2025-06-01 | C76: % p.a | D76: 0.01402827985
B77: 2026-06-01 | C77: % p.a | D77: 0.01245766389
B78: 2027-06-01 | C78: % p.a | D78: 0.006634271053
B79: 2028-06-01 | C79: % p.a | D79: 0.005015929052
B80: 2029-06-01 | C80: % p.a | D80: 0.007061266653
B82: Cost reductions (opex) risk weighting | C82: % | D82: 1
A84: =$A$3&"."&COUNTA($A$3:A83) -> 5.3 | B84: Benefits assumptions
B86: Likelihood of events
B87: Twice a year | C87: # | D87: 2
B88: Once a year | C88: # | D88: 1
B89: Once every two years | C89: # | D89: 0.5
B90: Once every five years | C90: # | D90: 0.2
B92: Labour rates
B93: Median Australian earnings | C93: $FY24/hr | D93: =(1209/31.4)*Gen_A_Calcs!$J$29 -> 43.55865287
B94: Ausgrid average labour rate | C94: $FY24/hr | D94: =(166583/1583)*Gen_A_Calcs!$K$29 -> 110.2310123
B95: Ausgrid ICT Specialist labour rate | C95: $FY24/hr | D95: =((1.3*850)*Gen_A_Calcs!$J$29)/8 -> 156.2608125
B97: Ausgrid facts and numbers
B98: Ausgrid network electricity consumption per annum | C98: kWhr/yr | D98: 24962185000
B99: Ausgrid network electricity consumption per hour | C99: kWhr/hr | D99: =D98/(24*365) -> 2849564.498
B100: Ausgrid number of zone substations | C100: # | D100: 181
B101: Avg electricity consumption per zone substation per hour | C101: kWhr/hr | D101: =D99/D100 -> 15743.45026
B102: Avg electricity consumption per customer per hour | C102: kWhr/hr | D102: =D99/D104 -> 1.594152147
B104: Ausgrid # customers - Total | C104: # NMIs | D104: 1787511
B105: Ausgrid # customers - Sydney S&W | C105: # NMIs | D105: 527937
B106: Ausgrid # customers - Sydney CBD&E | C106: # NMIs | D106: 357133
B107: Ausgrid # customers - Sydney N&CC | C107: # NMIs | D107: 524403
B108: Ausgrid # customers - Newcastle & Hunter | C108: # NMIs | D108: 377685
B109: Ausgrid # customers - Other | C109: # NMIs | D109: 353
B111: Ausgrid average VCR | C111: FY24$/kWh | D111: =(D112*D115)+(D113*D116)+(D114*D117) -> 43.55039144
B112: 2021 AER NSW residential VCR | C112: FY24$/kWh | D112: =26.82*Gen_A_Calcs!$I$29 -> 31.40289954
B113: Business customer VCR, average | C113: FY24$/kWh | D113: =(AVERAGE(39.28,46.18,66.16))*Gen_A_Calcs!$I$29 -> 59.17608287
B114: Very large business customers, average | C114: FY24$/kWh | D114: =AVERAGE(10.93,122.39,20.6,36.47) -> 47.5975
B115: Ausgrid customers - % residential | C115: % | D115: 0.35
B116: Ausgrid customers - % small, non-res | C116: % | D116: 0.14
B117: Ausgrid customers - % large, non-res | C117: % | D117: 0.51
B119: Ausgrid number of permanent/labour hire/ contracted services employees (excluing PLUS ES & Third Party Supplier) | C119: # | D119: 3963
B120: Ausgrid employees using IT systems | C120: # | D120: 3963
B121: Ausgrid employees using SAP ECC6 | C121: # | D121: 2744
B122: Ausgrid employees using SAP 4/HANA | C122: # | D122: 423
B123: Ausgrid employees using MBS | C123: # | D123: 727
B124: Ausgrid employees using WebGIS | C124: # | D124: 2416
B125: Ausgrid employees using GIS Core | C125: # | D125: 262
B127: Safety risk monetization framework
B128: None | C128: FY24$ | D128: 0
B129: Insignificant | C129: FY24$ | D129: =447*Gen_A_Calcs!$F$29 -> 547.8772137
B130: Minor | C130: FY24$ | D130: =4469*Gen_A_Calcs!$F$29 -> 5477.546461
B131: Moderate | C131: FY24$ | D131: =44693*Gen_A_Calcs!$F$29 -> 54779.14164
B132: Major | C132: FY24$ | D132: =446929*Gen_A_Calcs!$F$29 -> 547790.1907
B133: Severe | C133: FY24$ | D133: =4469292*Gen_A_Calcs!$F$29 -> 5477904.359
B135: Environment risk monetization framework
B136: None | C136: FY24$ | D136: 0
B137: Insignificant | C137: FY24$ | D137: =10193*Gen_A_Calcs!$F$29 -> 12493.31642
B138: Minor | C138: FY24$ | D138: =101931*Gen_A_Calcs!$F$29 -> 124934.3899
B139: Moderate | C139: FY24$ | D139: =1019312*Gen_A_Calcs!$F$29 -> 1249346.35
B140: Major | C140: FY24$ | D140: =4558501*Gen_A_Calcs!$F$29 -> 5587245.697
B141: Severe | C141: FY24$ | D141: =10193119*Gen_A_Calcs!$F$29 -> 12493462.27
B143: Fire risk monetization framework
B144: None | C144: FY24$ | D144: 0
B145: Insignificant | C145: FY24$ | D145: =6600*Gen_A_Calcs!$E$29 -> 8247.097312
B146: Minor | C146: FY24$ | D146: =66000*Gen_A_Calcs!$E$29 -> 82470.97312
B147: Moderate | C147: FY24$ | D147: =660000*Gen_A_Calcs!$E$29 -> 824709.7312
B148: Major | C148: FY24$ | D148: =6600000*Gen_A_Calcs!$E$29 -> 8247097.312
B149: Severe | C149: FY24$ | D149: =66000000*Gen_A_Calcs!$E$29 -> 82470973.12
A154: =$A$3&"."&COUNTA($A$3:A85) -> 5.4 | B154: Model labelling and constants
B156: Options
B157: Option 1 | C157: Text | D157: Option 1
B158: Option 2 | C158: Text | D158: Option 2
B159: Option 3 | C159: Text | D159: Option 3
B161: Constants | F161: [Implicit assumptions; user may not change]
B162: Days per year | C162: # | D162: 365.25
B163: Months per year | C163: # | D163: 12
B164: Hours per day | C164: # | D164: 24
B165: Start month financial year | C165: # | D165: 7
B166: End month financial year | C166: # | D166: 6
B167: Thousand | C167: # | D167: =10^3 -> 1000 | F167: [Thousand]
B168: Million | C168: # | D168: =10^6 -> 1000000 | F168: [Million]
B169: Billion | C169: # | D169: =10^9 -> 1000000000 | F169: [Billion]

Sheet Gen_A_Calcs
A1: =Cover!C10 -> Proposed Non-Network Property Expenditure – Newcastle Region Program Cost-Benefit Analysis
A2: =RIGHT(CELL("filename",A1),LEN(CELL("filename",A1))-FIND("]",CELL("filename",A1))) -> Gen_A_Calcs
A3: =_xlfn.SHEET() -> 6
AD4: Yes | AE4: No
A5: =$A$3&"."&COUNTA($A$3:A4) -> 6.1 | B5: Calculating an index to convert $ values into base year
B7: Assumption | C7: Units | D7: Value
B8: CPI FY16 - actual | C8: % p.a | D8: =Gen_A!D58 -> 0.01508366722
B9: CPI FY17 - actual | C9: % p.a | D9: =Gen_A!D59 -> 0.01276990945
B10: CPI FY18 - actual | C10: % p.a | D10: =Gen_A!D60 -> 0.01948647409
B11: CPI FY19 - actual | C11: % p.a | D11: =Gen_A!D61 -> 0.01911400944
B12: CPI FY20 - actual | C12: % p.a | D12: =Gen_A!D62 -> 0.01840490798
B13: CPI FY21 - actual | C13: % p.a | D13: =Gen_A!D63 -> 0.008605851979
B14: CPI FY22 - forecast | C14: % p.a | D14: =Gen_A!D64 -> 0.03498293515
B15: CPI FY23 - forecast | C15: % p.a | D15: =Gen_A!D65 -> 0.08
B16: CPI FY24 - forecast | C16: % p.a | D16: =Gen_A!D66 -> 0.0475
B18: Use this table to convert from Real FYXX (year in row 18) to Real FYXX (year in column B)
C19: FY15 | D19: FY16 | E19: FY17 | F19: FY18 | G19: FY19 | H19: FY20 | I19: FY21 | J19: FY22 | K19: FY23 | L19: FY24
B20: FY15 | C20: 1
B21: FY16 | C21: =C20*(1+$D$8) -> 1.015083667 | D21: 1
B22: FY17 | C22: =C21*(1+$D$9) -> 1.028046194 | D22: =D21*(1+$D$9) -> 1.012769909 | E22: 1
B23: FY18 | C23: =C22*(1+$D$10) -> 1.048079189 | D23: =D22*(1+$D$10) -> 1.032505224 | E23: =E22*(1+$D$10) -> 1.019486474 | F23: 1
B24: FY19 | C24: =C23*(1+$D$11) -> 1.068112185 | D24: =D23*(1+$D$11) -> 1.052240539 | E24: =E23*(1+$D$11) -> 1.038972948 | F24: =F23*(1+$D$11) -> 1.019114009 | G24: 1
B25: FY20 | C25: =C24*(1+$D$12) -> 1.087770691 | D25: =D24*(1+$D$12) -> 1.071606929 | E25: =E24*(1+$D$12) -> 1.05809515 | F25: =F24*(1+$D$12) -> 1.037870709 | G25: =G24*(1+$D$12) -> 1.018404908 | H25: 1
B26: FY21 | C26: =C25*(1+$D$13) -> 1.097131885 | D26: =D25*(1+$D$13) -> 1.08082902 | E26: 1.06720096 | F26: 1.046802471 | G26: 1.02716915 | H26: 1.008605852 | I26: 1
B27: FY22 | C27: =C26*(1+$D$14) -> 1.135512778 | D27: =D26*(1+$D$14) -> 1.118639591 | E27: 1.104534782 | F27: 1.083422694 | G27: 1.063102542 | H27: 1.043889845 | I27: 1.034982935 | J27: 1
B28: FY23 | C28: =C27*(1+$D$15) -> 1.226353801 | D28: =D27*(1+$D$15) -> 1.208130758 | E28: 1.192897564 | F28: 1.170096509 | G28: 1.148150745 | H28: 1.127401033 | I28: 1.11778157 | J28: 1.08 | K28: 1
B29: FY24 | C29: =C28*(1+$D$16) -> 1.284605606 | D29: =D28*(1+$D$16) -> 1.265516969 | E29: 1.249560199 | F29: 1.225676093 | G29: 1.202687905 | H29: =H28*(1+$D$16) -> 1.180952582 | I29: 1.170876195 | J29: 1.1313 | K29: 1.0475 | L29: 1
B33: Assumption | C33: Units | D33: Value
B34: Real cost escalator, labour only, Jun-23 | C34: % p.a | D34: =Gen_A!D74 -> -0.03961193782
B35: Real cost escalator, labour only, Jun-24 | C35: % p.a | D35: =Gen_A!D75 -> -0.002281035548
B36: Real cost escalator, labour only, Jun-25 | C36: % p.a | D36: =Gen_A!D76 -> 0.01402827985
B37: Real cost escalator, labour only, Jun-26 | C37: % p.a | D37: =Gen_A!D77 -> 0.01245766389
B38: Real cost escalator, labour only, Jun-27 | C38: % p.a | D38: =Gen_A!D78 -> 0.006634271053
B39: Real cost escalator, labour only, Jun-28 | C39: % p.a | D39: =Gen_A!D79 -> 0.005015929052
B40: Real cost escalator, labour only, Jun-29 | C40: % p.a | D40: =Gen_A!D80 -> 0.007061266653
B42: Use this table to convert labour component (excluding real escalation ) to labour component (including real escalation)
C43: FY23 | D43: FY24 | E43: FY25 | F43: FY26 | G43: FY27 | H43: FY28 | I43: FY29 | J43: FY30 | K43: FY31 | L43: FY32
B44: Labour Escalation Factor | C44: =1*(1+$D34) -> 0.9603880622 | D44: =C44*(1+$D35) -> 0.9581973829 | E44: =D44*(1+$D36) -> 0.9716392439 | F44: =E44*(1+$D37) -> 0.983743599 | G44: =F44*(1+$D38) -> 0.9902700207 | H44: =G44*(1+$D39) -> 0.9952371449 | I44: =H44*(1+$D40) -> 1.00226478 | J44: 1.00226478 | K44: 1.00226478 | L44: 1.00226478
B46: Assumption | C46: Units | D46: Capex Value | E46: Opex Value
B47: FY23 % of full stack that is SCS only | C47: % | D47: =Gen_A!D31 -> 0.9541 | E47: =Gen_A!D42 -> 0.9541
B48: FY24 % of full stack that is SCS only | C48: % | D48: =Gen_A!D32 -> 0.9541 | E48: =Gen_A!D43 -> 0.9541
B49: FY25 % of full stack that is SCS only | C49: % | D49: =Gen_A!D33 -> 0.9208 | E49: =Gen_A!D44 -> 0.9208
B50: FY26 % of full stack that is SCS only | C50: % | D50: =Gen_A!D34 -> 0.9208 | E50: =Gen_A!D45 -> 0.9208
B51: FY27 % of full stack that is SCS only | C51: % | D51: =Gen_A!D35 -> 0.9208 | E51: =Gen_A!D46 -> 0.9208
B52: FY28 % of full stack that is SCS only | C52: % | D52: =Gen_A!D36 -> 0.9208 | E52: =Gen_A!D47 -> 0.9208
B53: FY29 % of full stack that is SCS only | C53: % | D53: =Gen_A!D37 -> 0.9208 | E53: =Gen_A!D48 -> 0.9208
B54: FY30 % of full stack that is SCS only | C54: % | D54: =Gen_A!D38 -> 0.9208 | E54: =Gen_A!D49 -> 0.9208
B55: FY31 % of full stack that is SCS only | C55: % | D55: =Gen_A!D39 -> 0.9208 | E55: =Gen_A!D50 -> 0.9208
B56: FY32 % of full stack that is SCS only | C56: % | D56: =Gen_A!D40 -> 0.9208 | E56: =Gen_A!D51 -> 0.9208
C58: =PB_cost_A!W7 -> FY23 | D58: =PB_cost_A!X7 -> FY24 | E58: =PB_cost_A!Y7 -> FY25 | F58: =PB_cost_A!Z7 -> FY26 | G58: =PB_cost_A!AA7 -> FY27 | H58: =PB_cost_A!AB7 -> FY28 | I58: =PB_cost_A!AC7 -> FY29 | J58: =PB_cost_A!AD7 -> FY30 | K58: =PB_cost_A!AE7 -> FY31 | L58: =PB_cost_A!AF7 -> FY32
B59: Capex | C59: =D47 -> 0.9541 | D59: =D48 -> 0.9541 | E59: =D49 -> 0.9208 | F59: =D50 -> 0.9208 | G59: =D51 -> 0.9208 | H59: =D52 -> 0.9208 | I59: =D53 -> 0.9208 | J59: =D54 -> 0.9208 | K59: =D55 -> 0.9208 | L59: =D56 -> 0.9208
B60: Opex | C60: =E47 -> 0.9541 | D60: =E48 -> 0.9541 | E60: =E49 -> 0.9208 | F60: =E50 -> 0.9208 | G60: =E51 -> 0.9208 | H60: =E52 -> 0.9208 | I60: =E53 -> 0.9208 | J60: =E54 -> 0.9208 | K60: =E55 -> 0.9208 | L60: =E56 -> 0.9208
B63: Capex/Opex Allocation Assumptions | C63: Units | D63: Capex | E63: Opex
B64: Direct labour | C64: % | D64: =Gen_A!D19 -> 0.05 | E64: =Gen_A!D25 -> 0
B65: Materials | C65: % | D65: =Gen_A!D20 -> 0.8 | E65: =Gen_A!D26 -> 0
B66: Contracted services | C66: % | D66: =Gen_A!D21 -> 0.15 | E66: =Gen_A!D27 -> 0
B67: Indirect labour / overheads | C67: % | D67: =Gen_A!D22 -> 0 | E67: =Gen_A!D28 -> 0
B68: Other | C68: % | D68: =Gen_A!D23 -> 0 | E68: =Gen_A!D29 -> 1

Sheet Benefit_Categories
A1: =Cover!C10 -> Proposed Non-Network Property Expenditure – Newcastle Region Program Cost-Benefit Analysis
A2: =RIGHT(CELL("filename",A1),LEN(CELL("filename",A1))-FIND("]",CELL("filename",A1))) -> Benefit_Categories
A3: =_xlfn.SHEET() -> 7
A5: =$A$3&"."&COUNTA($A$3:A4) -> 7.1 | B5: Benefit categories
B7: Benefit category | C7: Description | D7: Quantification approach | E7: Benefit sub-categories | F7: Description
B8: Operational benefits to Ausgrid and / or customers | C8: Direct improvements in the operations and / or services supplied by Ausgrid as a result of an investment. These benefits are typically reflected in reduced costs (efficiencies), such as direct cost savings for Ausgrid in delivering SCS or time savings for customers. | D8: • Cost savings are quantified through: → Cost build up (e.g. hours of labour saved times average cost of labour per hour); and / or → Benchmarks (e.g. typical % costs savings for similar projects or external benchmarks) • Customer time savings are quantified based on value of time saved (e.g. minutes saved times average wages ($ / minute)) | E8: Cost reductions | F8: A direct and measurable cost reduction (CapEx/OpEx) as a result of an investment
E9: Customer time saved | F9: Customer experience improvements (measured as a reduction in customer time spent)
B10: IT risk benefits | C10: Changes in risks relating to IT systems and functionality as a result of an investment. For example, a reduction in the risk that an IT system will fail. | D10: • For some risk based benefits (for example safety) we will use a risk monetization framework which allocates a monetory cost to the associated risk level. • Risk based benefits are quantified by estimating the change in the expected cost of the risk, where the expected cost of the risk is estimated as the likelihood of the risk (%) times the consequence of the risk ($) → For example, assume a risk has a consequence of $10 million and 10% chance (i.e. likelihood) of occurring without the project. With the project, the consequence does not change but the likelihood falls to 8%. → The quantified risk benefit is then the change in likelihood times consequence, which is (10% - 8%) x $10m = $200,000 • The consequence costs may comprise different elements, such as: → Loss of supply, which is measured using an estimate of the unserved energy and the value of customer reliability (VCR) for Ausgrid’s distribution area → Rectification costs, which are measure using an estimate of the resource effort required (e.g. hours time $/hour for ICT resources) → Employee utilisation costs, which is quantified based on average wages times number of employees impacted times amount of time | E10: System outages | F10: Any change to the risk of a system outage occurring as a result of an investment
E12: System functionality | F12: Any change to the risk of a system functioning as required as a result of an investment. For example, changing from customized to standard system would result in a reduction in IT costs to change system functionality in response to regulatory change
B13: Enterprise risk benefits | C13: Changes in risks relating to Ausgrid’s ability to perform tasks required by regulation or contract as a result of an investment. For example, a reduction in the risk that Ausgrid will not meet compliance obligations under the SOCI Act. | E13: Compliance & contractual risks | F13: Any change to the risk of Ausgrid being able to act in accordance with industry laws and regulations or contractual obligations as a result of an investment
B14: Community risk benefits | C14: Changes in risks to the community at large as a result of an investment. For example, a reduction in safety risks for the general public. | E14: Reliable electricity supply risks | F14: Any change to the risk of supplying electricity to customers as a result of an investment. Reliable electricity supply is vital to the community and using AER’s values of customer reliability (VCR), we seek to quantify this
E15: Safety risks | F15: Any change to health and safety risks of any person (Ausgrid employee or public) as a result of an investment
E16: Environmental/ bushfire risks | F16: Any change to the environmental/bushire risks of any person (Ausgrid employee or public) as a result of an investment

Sheet PB_summary_O
A1: =Cover!C10 -> Proposed Non-Network Property Expenditure – Newcastle Region Program Cost-Benefit Analysis
A2: =RIGHT(CELL("filename",A1),LEN(CELL("filename",A1))-FIND("]",CELL("filename",A1))) -> PB_summary_O
A3: =_xlfn.SHEET() -> 8
A5: =$A$3&"."&COUNTA($A$3:A4) -> 8.1 | B5: Project Brief cost-benefit analysis summary, all options
C7: Option 1 | D7: Option 2 | H7: Notes on the output charts: Ausgrid's NPV model and methodology, which is used to assess internal business cases, is used here for consistency.
B8: Option name
B9: Option description
B11: Present value cost | C11: -6955038.842 | D11: -41146833.05
B12: Present value benefit | C12: 0 | D12: 100822529.1
B13: Net present value (NPV) [To market] | C13: -6955038.842 | D13: 59675696.08
B15: Preferred option
B16: Preference rationale
A18: =$A$3&"."&COUNTA($A$3:A17) -> 8.2 | B18: Project Brief cost-benefit analysis output chart, option 1
B20: Total NPV (customers & shareholders)
A36: =$A$3&"."&COUNTA($A$3:A35) -> 8.3 | B36: Project Brief cost-benefit analysis output chart, option 2
B38: Total NPV (customers & shareholders)

Sheet PB_benefit_A
A1: =Cover!C10 -> Proposed Non-Network Property Expenditure – Newcastle Region Program Cost-Benefit Analysis
A2: =RIGHT(CELL("filename",A1),LEN(CELL("filename",A1))-FIND("]",CELL("filename",A1))) -> PB_benefit_A
A3: =_xlfn.SHEET() -> 9
A5: =$A$3&"."&COUNTA($A$3:A4) -> 9.1 | B5: Project Brief 1 benefit assumptions for option 1
B7: Benefit category: Operational benefits to Ausgrid and / or customers | I7: Capex/Opex/Productivity | S7: Quantity of units | AD7: Cost reduction/ value of customer time saved
B8: Benefit sub-category | C8: Description | D8: More detail/source | J8: Unit description | K8: Unit rate | L8: Units | S8: FY23 | T8: FY24 | U8: FY25 | V8: FY26 | W8: FY27 | X8: FY28 | Y8: FY29 | Z8: FY30 | AA8: FY31 | AB8: FY32 | AD8: FY23 | AE8: FY24 | AF8: FY25 | AG8: FY26 | AH8: FY27 | AI8: FY28 | AJ8: FY29 | AK8: FY30 | AL8: FY31 | AM8: FY32
B10: Cost reductions Capex total | AD10: =SUMIFS(AD$9:AD$9,$I$9:$I$9,"Capex") -> 0 | AE10: 0 | AF10: 0 | AG10: 0 | AH10: 0 | AI10: 0 | AJ10: 0 | AK10: 0 | AL10: 0 | AM10: 0
B11: Cost reductions Opex total | AD11: =SUMIFS(AD$9:AD$9,$I$9:$I$9,"Opex")*Gen_A!$D$82 -> 0 | AE11: =SUMIFS(AE$9:AE$9,$I$9:$I$9,"Opex")*Gen_A!$D$82 -> 0 | AF11: =SUMIFS(AF$9:AF$9,$I$9:$I$9,"Opex")*Gen_A!$D$82 -> 0 | AG11: =SUMIFS(AG$9:AG$9,$I$9:$I$9,"Opex")*Gen_A!$D$82 -> 0 | AH11: =SUMIFS(AH$9:AH$9,$I$9:$I$9,"Opex")*Gen_A!$D$82 -> 0 | AI11: =SUMIFS(AI$9:AI$9,$I$9:$I$9,"Opex")*Gen_A!$D$82 -> 0 | AJ11: =SUMIFS(AJ$9:AJ$9,$I$9:$I$9,"Opex")*Gen_A!$D$82 -> 0 | AK11: =SUMIFS(AK$9:AK$9,$I$9:$I$9,"Opex")*Gen_A!$D$82 -> 0 | AL11: =SUMIFS(AL$9:AL$9,$I$9:$I$9,"Opex")*Gen_A!$D$82 -> 0 | AM11: =SUMIFS(AM$9:AM$9,$I$9:$I$9,"Opex")*Gen_A!$D$82 -> 0
B12: Cost reductions Productivity total | AD12: =SUMIFS(AD$9:AD$9,$I$9:$I$9,"Productivity") -> 0 | AE12: 0 | AF12: 0 | AG12: 0 | AH12: 0 | AI12: 0 | AJ12: 0 | AK12: 0 | AL12: 0 | AM12: 0
B15: Customer time saved total | AD15: =SUM(AD14:AD14) -> 0 | AE15: 0 | AF15: 0 | AG15: 0 | AH15: 0 | AI15: 0 | AJ15: 0 | AK15: 0 | AL15: 0 | AM15: 0
B17: Benefit category: IT risks | I17: Capex/Opex/Productivity | S17: Quantity of units | AD17: IT risk cost
B18: Benefit sub-category | C18: Description | D18: More detail/source | J18: Unit description | K18: Unit rate | L18: Units | S18: FY23 | T18: FY24 | U18: FY25 | V18: FY26 | W18: FY27 | X18: FY28 | Y18: FY29 | Z18: FY30 | AA18: FY31 | AB18: FY32 | AD18: FY23 | AE18: FY24 | AF18: FY25 | AG18: FY26 | AH18: FY27 | AI18: FY28 | AJ18: FY29 | AK18: FY30 | AL18: FY31 | AM18: FY32
AD20: =SUM(AD19:AD19) -> 0 | AE20: 0 | AF20: 0 | AG20: 0 | AH20: 0 | AI20: 0 | AJ20: 0 | AK20: 0 | AL20: 0 | AM20: 0
B22: Benefit category: Enterprise risks | I22: Capex/Opex/Productivity | S22: Quantity of units | AD22: Compliance risk cost
B23: Benefit sub-category | C23: Description | D23: More detail/source | J23: Unit description | K23: Unit rate | L23: Units | S23: FY23 | T23: FY24 | U23: FY25 | V23: FY26 | W23: FY27 | X23: FY28 | Y23: FY29 | Z23: FY30 | AA23: FY31 | AB23: FY32 | AD23: FY23 | AE23: FY24 | AF23: FY25 | AG23: FY26 | AH23: FY27 | AI23: FY28 | AJ23: FY29 | AK23: FY30 | AL23: FY31 | AM23: FY32
AD25: =SUM(AD24:AD24) -> 0 | AE25: 0 | AF25: 0 | AG25: 0 | AH25: 0 | AI25: 0 | AJ25: 0 | AK25: 0 | AL25: 0 | AM25: 0
B27: Benefit category: community risks | I27: Capex/Opex/Productivity | S27: Quantity of units | AD27: Community risk cost
B28: Benefit sub-category | C28: Description | D28: More detail/source | J28: Unit description | K28: Unit rate | L28: Units | S28: FY23 | T28: FY24 | U28: FY25 | V28: FY26 | W28: FY27 | X28: FY28 | Y28: FY29 | Z28: FY30 | AA28: FY31 | AB28: FY32 | AD28: FY23 | AE28: FY24 | AF28: FY25 | AG28: FY26 | AH28: FY27 | AI28: FY28 | AJ28: FY29 | AK28: FY30 | AL28: FY31 | AM28: FY32
AD30: =SUM(AD29:AD29) -> 0 | AE30: 0 | AF30: 0 | AG30: 0 | AH30: 0 | AI30: 0 | AJ30: 0 | AK30: 0 | AL30: 0 | AM30: 0
A32: =$A$3&"."&COUNTA($A$3:A30) -> 9.2 | B32: Project Brief 1 benefit assumptions for option 2
B33: Note that for risk-related benefits, option 1 is the baseline and the benefits are relative to the baseline
B34: Benefit category: Operational benefits to Ausgrid and / or customers | I34: Capex/Opex/Productivity | J34: Escalation to Real FY24 Dollars | S34: Quantity of units | AD34: Cost reduction/ value of customer time saved
B35: Benefit sub-category | C35: Description | D35: More detail/source | K35: Unit rate | L35: Units | S35: FY23 | T35: FY24 | U35: FY25 | V35: FY26 | W35: FY27 | X35: FY28 | Y35: FY29 | Z35: FY30 | AA35: FY31 | AB35: FY32 | AD35: FY23 | AE35: FY24 | AF35: FY25 | AG35: FY26 | AH35: FY27 | AI35: FY28 | AJ35: FY29 | AK35: FY30 | AL35: FY31 | AM35: FY32
B36: Cash inflow | C36: Site Acquisition | D36: N/A | I36: Capex | J36: =Gen_A_Calcs!$I$29 -> 1.170876195 | AD36: 0 | AE36: 0 | AF36: 0 | AG36: 0 | AH36: 0 | AI36: 0 | AJ36: 0 | AK36: 0 | AL36: 0 | AM36: 0
B37: Cost reductions | C37: Opex (excl. Land Tax, Council Rates) | D37: Wallsend Admin | I37: Opex | J37: =Gen_A_Calcs!$I$29 -> 1.170876195 | AD37: 0 | AE37: 0 | AF37: 0 | AG37: 0 | AH37: 1015463.455 | AI37: 1015463.455 | AJ37: 1015463.455 | AK37: 1015463.455 | AL37: 1015463.455 | AM37: 1015463.455
B38: Cost reductions | C38: Opex (excl. Land Tax, Council Rates) | D38: Wallsend Depot | I38: Opex | J38: =Gen_A_Calcs!$I$29 -> 1.170876195 | AD38: 0 | AE38: 0 | AF38: 0 | AG38: 0 | AH38: 720069.4465 | AI38: 720069.4465 | AJ38: 720069.4465 | AK38: 720069.4465 | AL38: 720069.4465 | AM38: 720069.4465
B39: Cost reductions | C39: Opex (excl. Land Tax, Council Rates) | D39: Beresfield Depot (new Depot) | I39: Opex | J39: =Gen_A_Calcs!$I$29 -> 1.170876195 | AD39: 0 | AE39: 0 | AF39: 0 | AG39: 0 | AH39: 0 | AI39: 0 | AJ39: 0 | AK39: 0 | AL39: 0 | AM39: 0
B40: Cost reductions | C40: Opex (excl. Land Tax, Council Rates) | D40: Newcastle South Depot | I40: Opex | J40: =Gen_A_Calcs!$I$29 -> 1.170876195 | AD40: 0 | AE40: 0 | AF40: 0 | AG40: 0 | AH40: 0 | AI40: 0 | AJ40: 0 | AK40: 0 | AL40: 0 | AM40: 0
B41: Cost reductions | C41: Land Tax + Council Rates | D41: Wallsend Admin | I41: Opex | J41: =Gen_A_Calcs!$I$29 -> 1.170876195 | AD41: 0 | AE41: 0 | AF41: 0 | AG41: 0 | AH41: 0 | AI41: 129624.5462 | AJ41: 131514.5823 | AK41: 133439.1859 | AL41: 135391.9545 | AM41: 137373.3002
B42: Cost reductions | C42: Land Tax + Council Rates | D42: Wallsend Depot | I42: Opex | J42: =Gen_A_Calcs!$I$29 -> 1.170876195 | AD42: 0 | AE42: 0 | AF42: 0 | AG42: 0 | AH42: 0 | AI42: 182266.0216 | AJ42: 184923.6152 | AK42: 187629.8144 | AL42: 190375.6166 | AM42: 193161.6012
B43: Cash inflow | C43: Major Capital Works | D43: Construct Beresfield Depot Addition | I43: Capex | J43: =Gen_A_Calcs!$I$29 -> 1.170876195 | AD43: 0 | AE43: 0 | AF43: 0 | AG43: 0 | AH43: 0 | AI43: 0 | AJ43: 0 | AK43: 0 | AL43: 0 | AM43: 0
B44: Cash inflow | C44: Major Capital Works | D44: Construct Fitout Newcastle Corporate Project | I44: Capex | J44: =Gen_A_Calcs!$I$29 -> 1.170876195 | AD44: 0 | AE44: 0 | AF44: 0 | AG44: 0 | AH44: 0 | AI44: 0 | AJ44: 0 | AK44: 0 | AL44: 0 | AM44: 0
B45: Cash inflow | C45: Major Capital Works | D45: Construct Newcastle South Depot | I45: Capex | J45: =Gen_A_Calcs!$I$29 -> 1.170876195 | AD45: 0 | AE45: 0 | AF45: 0 | AG45: 0 | AH45: 0 | AI45: 0 | AJ45: 0 | AK45: 0 | AL45: 0 | AM45: 0
B46: Cash inflow | C46: Major Capital Works | D46: Relocate Newcastle Control Room | I46: Capex | J46: =Gen_A_Calcs!$I$29 -> 1.170876195 | AD46: 0 | AE46: 0 | AF46: 0 | AG46: 0 | AH46: 0 | AI46: 0 | AJ46: 0 | AK46: 0 | AL46: 0 | AM46: 0
B47: Cash inflow | C47: Ongoing Capital Works | D47: Existing Wallsend Admin | I47: Capex | J47: =Gen_A_Calcs!$I$29 -> 1.170876195 | AD47: 0 | AE47: 0 | AF47: 0 | AG47: 0 | AH47: 0 | AI47: 0 | AJ47: 0 | AK47: 0 | AL47: 0 | AM47: 0
B48: Cash inflow | C48: Ongoing Capital Works | D48: Existing Wallsend Depot | I48: Capex | J48: =Gen_A_Calcs!$I$29 -> 1.170876195 | AD48: 0 | AE48: 0 | AF48: 0 | AG48: 0 | AH48: 0 | AI48: 0 | AJ48: 0 | AK48: 0 | AL48: 0 | AM48: 0
B49: Cash inflow | C49: Ongoing Capital Works | D49: Additional Beresfield Depot | I49: Capex | J49: =Gen_A_Calcs!$I$29 -> 1.170876195 | AD49: 0 | AE49: 0 | AF49: 0 | AG49: 0 | AH49: 0 | AI49: 0 | AJ49: 0 | AK49: 0 | AL49: 0 | AM49: 0
B50: Cash inflow | C50: Ongoing Capital Works | D50: Newcastle Corporate Project | I50: Capex | J50: =Gen_A_Calcs!$I$29 -> 1.170876195 | AD50: 0 | AE50: 0 | AF50: 0 | AG50: 0 | AH50: 0 | AI50: 0 | AJ50: 0 | AK50: 0 | AL50: 0 | AM50: 0
B51: Cash inflow | C51: Ongoing Capital Works | D51: Newcastle South Depot | I51: Capex | J51: =Gen_A_Calcs!$I$29 -> 1.170876195 | AD51: 0 | AE51: 0 | AF51: 0 | AG51: 0 | AH51: 0 | AI51: 0 | AJ51: 0 | AK51: 0 | AL51: 0 | AM51: 0
B52: Cash inflow | C52: Rental Cost | D52: Newcastle Corporate Project (net rent) | I52: Capex | J52: =Gen_A_Calcs!$I$29 -> 1.170876195 | AD52: 0 | AE52: 0 | AF52: 0 | AG52: 0 | AH52: 0 | AI52: 0 | AJ52: 0 | AK52: 0 | AL52: 0 | AM52: 0
B53: Cash inflow | C53: Rental Cost | D53: Newcastle Corporate Project (outgoings) | I53: Capex | J53: =Gen_A_Calcs!$I$29 -> 1.170876195 | AD53: 0 | AE53: 0 | AF53: 0 | AG53: 0 | AH53: 0 | AI53: 0 | AJ53: 0 | AK53: 0 | AL53: 0 | AM53: 0
B54: Cash inflow | C54: Rental Cost | D54: Newcastle Corporate Project (incentive) | I54: Capex | J54: =Gen_A_Calcs!$I$29 -> 1.170876195 | AD54: 0 | AE54: 0 | AF54: 0 | AG54: 0 | AH54: 0 | AI54: 0 | AJ54: 0 | AK54: 0 | AL54: 0 | AM54: 0
B55: Cash inflow | C55: Relocation Costs | D55: Relocation Costs | I55: Capex | J55: =Gen_A_Calcs!$I$29 -> 1.170876195 | AD55: 0 | AE55: 0 | AF55: 0 | AG55: 0 | AH55: 0 | AI55: 0 | AJ55: 0 | AK55: 0 | AL55: 0 | AM55: 0
B56: Cash inflow | C56: Divestment Values | D56: Wallsend Admin | I56: Capex | J56: =Gen_A_Calcs!$I$29 -> 1.170876195 | AD56: 0 | AE56: 0 | AF56: 0 | AG56: 0 | AH56: 0 | AJ56: 0 | AK56: 0 | AL56: 0 | AM56: 0
B57: Cash inflow | C57: Divestment Values | D57: Wallsend Depot | I57: Capex | J57: =Gen_A_Calcs!$I$29 -> 1.170876195 | AD57: 0 | AE57: 0 | AF57: 0 | AG57: 0 | AH57: 0 | AJ57: 0 | AK57: 0 | AL57: 0 | AM57: 0
B58: Cost reductions Capex total | AD58: =SUMIFS(AD$36:AD$57,$I$36:$I$57,"Capex") -> 0 | AE58: 0 | AF58: 0 | AG58: 0 | AH58: 0 | AJ58: 0 | AK58: 0 | AL58: 0 | AM58: 0
B59: Cost reductions Opex total | AD59: =SUMIFS(AD$36:AD$57,$I$36:$I$57,"Opex")*Gen_A!$D$82 -> 0 | AE59: =SUMIFS(AE$36:AE$57,$I$36:$I$57,"Opex")*Gen_A!$D$82 -> 0 | AF59: =SUMIFS(AF$36:AF$57,$I$36:$I$57,"Opex")*Gen_A!$D$82 -> 0 | AG59: =SUMIFS(AG$36:AG$57,$I$36:$I$57,"Opex")*Gen_A!$D$82 -> 0 | AH59: =SUMIFS(AH$36:AH$57,$I$36:$I$57,"Opex")*Gen_A!$D$82 -> 1735532.902 | AI59: =SUMIFS(AI$36:AI$57,$I$36:$I$57,"Opex")*Gen_A!$D$82 -> 2047423.47 | AJ59: =SUMIFS(AJ$36:AJ$57,$I$36:$I$57,"Opex")*Gen_A!$D$82 -> 2051971.099 | AK59: =SUMIFS(AK$36:AK$57,$I$36:$I$57,"Opex")*Gen_A!$D$82 -> 2056601.902 | AL59: =SUMIFS(AL$36:AL$57,$I$36:$I$57,"Opex")*Gen_A!$D$82 -> 2061300.473 | AM59: =SUMIFS(AM$36:AM$57,$I$36:$I$57,"Opex")*Gen_A!$D$82 -> 2066067.803
B60: Cost reductions Productivity total | AD60: =SUMIFS(AD$36:AD$57,$I$36:$I$57,"Productivity") -> 0 | AE60: 0 | AF60: 0 | AG60: 0 | AH60: 0 | AI60: 0 | AJ60: 0 | AK60: 0 | AL60: 0 | AM60: 0
B63: Customer time saved total | AD63: =SUM(AD62:AD62) -> 0 | AE63: 0 | AF63: 0 | AG63: 0 | AH63: 0 | AI63: 0 | AJ63: 0 | AK63: 0 | AL63: 0 | AM63: 0
B65: Benefit category: IT risks | I65: Capex/Opex/Productivity | J65: Escalation to Real FY24 Dollars | S65: Quantity of units | AD65: IT risk cost
B66: Benefit sub-category | C66: Description | D66: More detail/source | K66: Unit rate | L66: Units | S66: FY23 | T66: FY24 | U66: FY25 | V66: FY26 | W66: FY27 | X66: FY28 | Y66: FY29 | Z66: FY30 | AA66: FY31 | AB66: FY32 | AD66: FY23 | AE66: FY24 | AF66: FY25 | AG66: FY26 | AH66: FY27 | AI66: FY28 | AJ66: FY29 | AK66: FY30 | AL66: FY31 | AM66: FY32
AD68: =SUM(AD67:AD67) -> 0 | AE68: 0 | AF68: 0 | AG68: 0 | AH68: 0 | AI68: 0 | AJ68: 0 | AK68: 0 | AL68: 0 | AM68: 0
B70: Benefit category: Enterprise risks | I70: Capex/Opex/Productivity | J70: Escalation to Real FY24 Dollars | S70: Quantity of units | AD70: Compliance risk cost
B71: Benefit sub-category | C71: Description | D71: More detail/source | K71: Unit rate | L71: Units | S71: FY23 | T71: FY24 | U71: FY25 | V71: FY26 | W71: FY27 | X71: FY28 | Y71: FY29 | Z71: FY30 | AA71: FY31 | AB71: FY32 | AD71: FY23 | AE71: FY24 | AF71: FY25 | AG71: FY26 | AH71: FY27 | AI71: FY28 | AJ71: FY29 | AK71: FY30 | AL71: FY31 | AM71: FY32
AD73: =SUM(AD72:AD72) -> 0 | AE73: 0 | AF73: 0 | AG73: 0 | AH73: 0 | AI73: 0 | AJ73: 0 | AK73: 0 | AL73: 0 | AM73: 0
B75: Benefit category: community risks | I75: Capex/Opex/Productivity | J75: Escalation to Real FY24 Dollars | S75: Quantity of units | AD75: Community risk benefit (relative to option 1, an improvement will yield a positive result)
B76: Benefit sub-category | C76: Description | D76: More detail/source | K76: Unit rate | L76: Units | S76: FY23 | T76: FY24 | U76: FY25 | V76: FY26 | W76: FY27 | X76: FY28 | Y76: FY29 | Z76: FY30 | AA76: FY31 | AB76: FY32 | AD76: FY23 | AE76: FY24 | AF76: FY25 | AG76: FY26 | AH76: FY27 | AI76: FY28 | AJ76: FY29 | AK76: FY30 | AL76: FY31 | AM76: FY32
B77: Safety risks | C77: Injury Reduction | D77: Probabilistic Benefits Breakdown Document | AI77: 93295.45455 | AJ77: 93295.45455 | AK77: 93295.45455 | AL77: 93295.45455 | AM77: 93295.45455
B78: Safety risks | C78: Asbestos Management | D78: Probabilistic Benefits Breakdown Document | AI78: 400000 | AJ78: 400000 | AK78: 400000 | AL78: 400000 | AM78: 400000
B79: Environmental risks | C79: Pest Control | D79: Probabilistic Benefits Breakdown Document | AI79: 2647.619048 | AJ79: 2647.619048 | AK79: 2647.619048 | AL79: 2647.619048 | AM79: 2647.619048
AD80: =SUM(AD77:AD79) -> 0 | AE80: =SUM(AE77:AE79) -> 0 | AF80: 0 | AG80: 0 | AH80: 0 | AI80: 495943.0736 | AJ80: 495943.0736 | AK80: 495943.0736 | AL80: 495943.0736 | AM80: 495943.0736

Sheet PB_cost_A
A1: Proposed ICT Expenditure – Program Brief Cost-Benefit Analysis
A2: =RIGHT(CELL("filename",A1),LEN(CELL("filename",A1))-FIND("]",CELL("filename",A1))) -> PB_cost_A
A3: =_xlfn.SHEET() -> 10
L6: FY21 dollars, direct and indirect, full stack costs | W6: Real FY24 dollars, SCS only, direct costs only, includes real labour escalators
B7: Option | C7: Cost category | D7: Capex/Opex | E7: Cost group | F7: Cost name | G7: Category Allocation % | H7: Indirect Cost % | I7: Direct Labour % | J7: Real to Real Translation Factor | L7: FY 23 | M7: FY 24 | N7: FY 25 | O7: FY 26 | P7: FY 27 | Q7: FY 28 | R7: FY 29 | S7: FY 30 | T7: FY 31 | U7: FY 32 | W7: FY23 | X7: FY24 | Y7: FY25 | Z7: FY26 | AA7: FY27 | AB7: FY28 | AC7: FY29 | AD7: FY30 | AE7: FY31 | AF7: FY32
A8: =$A$3&"."&COUNTA($A$3:A4) -> 10.1 | B8: Project Brief 1 cost assumptions, Option 1
B9: 1 | C9: Total | D9: Capex | E9: Total
B10: 1 | C10: Direct labour | D10: Capex | E10: Total
B11: 1 | C11: Materials | D11: Capex | E11: Total
B12: 1 | C12: Contracted services | D12: Capex | E12: Total
B13: 1 | C13: Indirect labour / overheads | D13: Capex | E13: Total | L13: =IF($C13="Total",SUMIFS(L$23:L$74,$D$23:$D$74,$D13),SUMIFS(L$23:L$74,$D$23:$D$74,$D13,$C$23:$C$74,$C13)) -> 0 | M13: 0 | N13: 0 | O13: 0 | P13: 0 | Q13: 0 | R13: 0 | S13: 0 | T13: 0 | U13: 0 | W13: =IF($C13="Total",SUMIFS(W$23:W$74,$D$23:$D$74,$D13),SUMIFS(W$23:W$74,$D$23:$D$74,$D13,$C$23:$C$74,$C13)) -> 0 | X13: 0 | Y13: 0 | Z13: 0 | AA13: 0 | AB13: 0 | AC13: 0 | AD13: 0 | AE13: 0 | AF13: 0
B14: 1 | C14: Other | D14: Capex | E14: Total | L14: 0 | M14: 0 | N14: 0 | O14: 0 | P14: 0 | Q14: 0 | R14: 0 | S14: 0 | T14: 0 | U14: 0 | W14: 0 | X14: 0 | Y14: 0 | Z14: 0 | AA14: 0 | AB14: 0 | AC14: 0 | AD14: 0 | AE14: 0 | AF14: 0
B16: 1 | C16: Total | D16: Opex | E16: Total | L16: =IF($C16="Total",SUMIFS(L$23:L$74,$D$23:$D$74,$D16),SUMIFS(L$23:L$74,$D$23:$D$74,$D16,$C$23:$C$74,$C16)) -> 0 | M16: 0 | N16: 0 | O16: 0 | P16: 0 | Q16: 0 | R16: 0 | S16: 0 | T16: 0 | U16: 0 | W16: =IF($C16="Total",SUMIFS(W$23:W$74,$D$23:$D$74,$D16),SUMIFS(W$23:W$74,$D$23:$D$74,$D16,$C$23:$C$74,$C16)) -> 0 | X16: 0 | Y16: 0 | Z16: 0 | AA16: 0 | AB16: 0 | AC16: 0 | AD16: 0 | AE16: 0 | AF16: 0
B17: 1 | C17: Direct labour | D17: Opex | E17: Total | L17: 0 | M17: 0 | N17: 0 | O17: 0 | P17: 0 | Q17: 0 | R17: 0 | S17: 0 | T17: 0 | U17: 0 | W17: 0 | X17: 0 | Y17: 0 | Z17: 0 | AA17: 0 | AB17: 0 | AC17: 0 | AD17: 0 | AE17: 0 | AF17: 0
B18: 1 | C18: Materials | D18: Opex | E18: Total | L18: 0 | M18: 0 | N18: 0 | O18: 0 | P18: 0 | Q18: 0 | R18: 0 | S18: 0 | T18: 0 | U18: 0 | W18: 0 | X18: 0 | Y18: 0 | Z18: 0 | AA18: 0 | AB18: 0 | AC18: 0 | AD18: 0 | AE18: 0 | AF18: 0
B19: 1 | C19: Contracted services | D19: Opex | E19: Total | L19: 0 | M19: 0 | N19: 0 | O19: 0 | P19: 0 | Q19: 0 | R19: 0 | S19: 0 | T19: 0 | U19: 0 | W19: 0 | X19: 0 | Y19: 0 | Z19: 0 | AA19: 0 | AB19: 0 | AC19: 0 | AD19: 0 | AE19: 0 | AF19: 0
B20: 1 | C20: Indirect labour / overheads | D20: Opex | E20: Total | L20: 0 | M20: 0 | N20: 0 | O20: 0 | P20: 0 | Q20: 0 | R20: 0 | S20: 0 | T20: 0 | U20: 0 | W20: 0 | X20: 0 | Y20: 0 | Z20: 0 | AA20: 0 | AB20: 0 | AC20: 0 | AD20: 0 | AE20: 0 | AF20: 0
B21: 1 | C21: Other | D21: Opex | E21: Total | L21: 0 | M21: 0 | N21: 0 | O21: 0 | P21: 0 | Q21: 0 | R21: 0 | S21: 0 | T21: 0 | U21: 0 | W21: 0 | X21: 0 | Y21: 0 | Z21: 0 | AA21: 0 | AB21: 0 | AC21: 0 | AD21: 0 | AE21: 0 | AF21: 0
B23: 1 | C23: =Gen_A_Calcs!B64 -> Direct labour | D23: Opex | E23: Opex (excl. Land Tax, Council Rates) | F23: Wallsend Admin | G23: 0 | H23: 0 | I23: 0 | J23: 1.170876195 | L23: 0 | M23: 0 | N23: 0 | O23: 0 | P23: 0 | Q23: 0 | R23: 0 | S23: 0 | T23: 0 | U23: 0 | W23: 0 | X23: 0 | Y23: 0 | Z23: 0 | AA23: 0 | AB23: 0 | AC23: 0 | AD23: 0 | AE23: 0 | AF23: 0
B24: 1 | C24: =Gen_A_Calcs!B65 -> Materials | D24: Opex | E24: Opex (excl. Land Tax, Council Rates) | F24: Wallsend Admin | G24: 0 | H24: 0 | I24: 0 | J24: 1.170876195 | L24: 0 | M24: 0 | N24: 0 | O24: 0 | P24: 0 | Q24: 0 | R24: 0 | S24: 0 | T24: 0 | U24: 0 | W24: 0 | X24: 0 | Y24: 0 | Z24: 0 | AA24: 0 | AB24: 0 | AC24: 0 | AD24: 0 | AE24: 0 | AF24: 0
B25: 1 | C25: =Gen_A_Calcs!B66 -> Contracted services | D25: Opex | E25: Opex (excl. Land Tax, Council Rates) | F25: Wallsend Admin | G25: 0 | H25: 0 | I25: 0 | J25: 1.170876195 | L25: 0 | M25: 0 | N25: 0 | O25: 0 | P25: 0 | Q25: 0 | R25: 0 | S25: 0 | T25: 0 | U25: 0 | W25: 0 | X25: 0 | Y25: 0 | Z25: 0 | AA25: 0 | AB25: 0 | AC25: 0 | AD25: 0 | AE25: 0 | AF25: 0
B26: 1 | C26: =Gen_A_Calcs!B67 -> Indirect labour / overheads | D26: Opex | E26: Opex (excl. Land Tax, Council Rates) | F26: Wallsend Admin | G26: 0 | H26: 0 | I26: 0 | J26: 1.170876195 | L26: 0 | M26: 0 | N26: 0 | O26: 0 | P26: 0 | Q26: 0 | R26: 0 | S26: 0 | T26: 0 | U26: 0 | W26: 0 | X26: 0 | Y26: 0 | Z26: 0 | AA26: 0 | AB26: 0 | AC26: 0 | AD26: 0 | AE26: 0 | AF26: 0
B27: 1 | C27: =Gen_A_Calcs!B68 -> Other | D27: Opex | E27: Opex (excl. Land Tax, Council Rates) | F27: Wallsend Admin | G27: 1 | H27: 0 | I27: 0 | J27: 1.170876195 | L27: 0 | M27: 0 | N27: 0 | O27: 0 | P27: 0 | Q27: 0 | R27: 0 | S27: 0 | T27: 0 | U27: 0 | W27: 0 | X27: 0 | Y27: 0 | Z27: 0 | AA27: 0 | AB27: 0 | AC27: 0 | AD27: 0 | AE27: 0 | AF27: 0
B28: 1 | C28: =C23 -> Direct labour | D28: Opex | E28: Opex (excl. Land Tax, Council Rates) | F28: Wallsend Depot | G28: 0 | H28: 0 | I28: 0 | J28: 1.170876195 | L28: 0 | M28: 0 | N28: 0 | O28: 0 | P28: 0 | Q28: 0 | R28: 0 | S28: 0 | T28: 0 | U28: 0 | W28: 0 | X28: 0 | Y28: 0 | Z28: 0 | AA28: 0 | AB28: 0 | AC28: 0 | AD28: 0 | AE28: 0 | AF28: 0
B29: 1 | C29: =C24 -> Materials | D29: Opex | E29: Opex (excl. Land Tax, Council Rates) | F29: Wallsend Depot | G29: 0 | H29: 0 | I29: 0 | J29: 1.170876195 | L29: 0 | M29: 0 | N29: 0 | O29: 0 | P29: 0 | Q29: 0 | R29: 0 | S29: 0 | T29: 0 | U29: 0 | W29: 0 | X29: 0 | Y29: 0 | Z29: 0 | AA29: 0 | AB29: 0 | AC29: 0 | AD29: 0 | AE29: 0 | AF29: 0
B30: 1 | C30: Contracted services | D30: Opex | E30: Opex (excl. Land Tax, Council Rates) | F30: Wallsend Depot | G30: 0 | H30: 0 | I30: 0 | J30: 1.170876195 | L30: 0 | M30: 0 | N30: 0 | O30: 0 | P30: 0 | Q30: 0 | R30: 0 | S30: 0 | T30: 0 | U30: 0 | W30: 0 | X30: 0 | Y30: 0 | Z30: 0 | AA30: 0 | AB30: 0 | AC30: 0 | AD30: 0 | AE30: 0 | AF30: 0
B31: 1 | C31: Indirect labour / overheads | D31: Opex | E31: Opex (excl. Land Tax, Council Rates) | F31: Wallsend Depot | G31: 0 | H31: 0 | I31: 0 | J31: 1.170876195 | L31: 0 | M31: 0 | N31: 0 | O31: 0 | P31: 0 | Q31: 0 | R31: 0 | S31: 0 | T31: 0 | U31: 0 | W31: 0 | X31: 0 | Y31: 0 | Z31: 0 | AA31: 0 | AB31: 0 | AC31: 0 | AD31: 0 | AE31: 0 | AF31: 0
B32: 1 | C32: Other | D32: Opex | E32: Opex (excl. Land Tax, Council Rates) | F32: Wallsend Depot | G32: 1 | H32: 0 | I32: 0 | J32: 1.170876195 | L32: 0 | M32: 0 | N32: 0 | O32: 0 | P32: 0 | Q32: 0 | R32: 0 | S32: 0 | T32: 0 | U32: 0 | W32: 0 | X32: 0 | Y32: 0 | Z32: 0 | AA32: 0 | AB32: 0 | AC32: 0 | AD32: 0 | AE32: 0 | AF32: 0
B33: 1 | C33: Direct labour | D33: Opex | E33: Land Tax + Council Rates | F33: Wallsend Admin | G33: 0 | H33: 0 | I33: 0 | J33: 1.170876195 | L33: 0 | M33: 0 | N33: 0 | O33: 0 | P33: 0 | Q33: 0 | R33: 0 | S33: 0 | T33: 0 | U33: 0 | W33: 0 | X33: 0 | Y33: 0 | Z33: 0 | AA33: 0 | AB33: 0 | AC33: 0 | AD33: 0 | AE33: 0 | AF33: 0
B34: 1 | C34: Materials | D34: Opex | E34: Land Tax + Council Rates | F34: Wallsend Admin | G34: 0 | H34: 0 | I34: 0 | J34: 1.170876195 | L34: 0 | M34: 0 | N34: 0 | O34: 0 | P34: 0 | Q34: 0 | R34: 0 | S34: 0 | T34: 0 | U34: 0 | W34: 0 | X34: 0 | Y34: 0 | Z34: 0 | AA34: 0 | AB34: 0 | AC34: 0 | AD34: 0 | AE34: 0 | AF34: 0
B35: 1 | C35: Contracted services | D35: Opex | E35: Land Tax + Council Rates | F35: Wallsend Admin | G35: 0 | H35: 0 | I35: 0 | J35: 1.170876195 | L35: 0 | M35: 0 | N35: 0 | O35: 0 | P35: 0 | Q35: 0 | R35: 0 | S35: 0 | T35: 0 | U35: 0 | W35: 0 | X35: 0 | Y35: 0 | Z35: 0 | AA35: 0 | AB35: 0 | AC35: 0 | AD35: 0 | AE35: 0 | AF35: 0
B36: 1 | C36: Indirect labour / overheads | D36: Opex | E36: Land Tax + Council Rates | F36: Wallsend Admin | G36: 0 | H36: 0 | I36: 0 | J36: 1.170876195 | L36: 0 | M36: 0 | N36: 0 | O36: 0 | P36: 0 | Q36: 0 | R36: 0 | S36: 0 | T36: 0 | U36: 0 | W36: 0 | X36: 0 | Y36: 0 | Z36: 0 | AA36: 0 | AB36: 0 | AC36: 0 | AD36: 0 | AE36: 0 | AF36: 0
B37: 1 | C37: Other | D37: Opex | E37: Land Tax + Council Rates | F37: Wallsend Admin | G37: 1 | H37: 0 | I37: 0 | J37: 1.170876195 | L37: 0 | M37: 0 | N37: 0 | O37: 0 | P37: 0 | Q37: 0 | R37: 0 | S37: 0 | T37: 0 | U37: 0 | W37: 0 | X37: 0 | Y37: 0 | Z37: 0 | AA37: 0 | AB37: 0 | AC37: 0 | AD37: 0 | AE37: 0 | AF37: 0
B38: 1 | C38: Direct labour | D38: Opex | E38: Land Tax + Council Rates | F38: Wallsend Depot | G38: 0 | H38: 0 | I38: 0 | J38: 1.170876195 | L38: 0 | M38: 0 | N38: 0 | O38: 0 | P38: 0 | Q38: 0 | R38: 0 | S38: 0 | T38: 0 | U38: 0 | W38: 0 | X38: 0 | Y38: 0 | Z38: 0 | AA38: 0 | AB38: 0 | AC38: 0 | AD38: 0 | AE38: 0 | AF38: 0
B39: 1 | C39: Materials | D39: Opex | E39: Land Tax + Council Rates | F39: Wallsend Depot | G39: 0 | H39: 0 | I39: 0 | J39: 1.170876195 | L39: 0 | M39: 0 | N39: 0 | O39: 0 | P39: 0 | Q39: 0 | R39: 0 | S39: 0 | T39: 0 | U39: 0 | W39: 0 | X39: 0 | Y39: 0 | Z39: 0 | AA39: 0 | AB39: 0 | AC39: 0 | AD39: 0 | AE39: 0 | AF39: 0
B40: 1 | C40: Contracted services | D40: Opex | E40: Land Tax + Council Rates | F40: Wallsend Depot | G40: 0 | H40: 0 | I40: 0 | J40: 1.170876195 | L40: 0 | M40: 0 | N40: 0 | O40: 0 | P40: 0 | Q40: 0 | R40: 0 | S40: 0 | T40: 0 | U40: 0 | W40: 0 | X40: 0 | Y40: 0 | Z40: 0 | AA40: 0 | AB40: 0 | AC40: 0 | AD40: 0 | AE40: 0 | AF40: 0
B41: 1 | C41: Indirect labour / overheads | D41: Opex | E41: Land Tax + Council Rates | F41: Wallsend Depot | G41: 0 | H41: 0 | I41: 0 | J41: 1.170876195 | L41: 0 | M41: 0 | N41: 0 | O41: 0 | P41: 0 | Q41: 0 | R41: 0 | S41: 0 | T41: 0 | U41: 0 | W41: 0 | X41: 0 | Y41: 0 | Z41: 0 | AA41: 0 | AB41: 0 | AC41: 0 | AD41: 0 | AE41: 0 | AF41: 0
B42: 1 | C42: Other | D42: Opex | E42: Land Tax + Council Rates | F42: Wallsend Depot | G42: 1 | H42: 0 | I42: 0 | J42: 1.170876195 | L42: 0 | M42: 0 | N42: 0 | O42: 0 | P42: 0 | Q42: 0 | R42: 0 | S42: 0 | T42: 0 | U42: 0 | W42: 0 | X42: 0 | Y42: 0 | Z42: 0 | AA42: 0 | AB42: 0 | AC42: 0 | AD42: 0 | AE42: 0 | AF42: 0
B43: 1 | C43: Direct labour | D43: Capex | E43: Major Capital Works | F43: Refurbish Wallsend Admin | G43: 0.05 | H43: 0 | I43: 0 | J43: 1.1313 | L43: 0 | O43: 0 | P43: 0 | Q43: 0 | R43: 0 | S43: 0 | T43: 0 | U43: 0 | W43: 0 | Z43: 0 | AA43: 0 | AB43: 0 | AC43: 0 | AD43: 0 | AE43: 0 | AF43: 0
B44: 1 | C44: Materials | D44: Capex | E44: Major Capital Works | F44: Refurbish Wallsend Admin | G44: 0.8 | H44: 0 | I44: 0 | J44: 1.1313 | L44: 0 | O44: 0 | P44: 0 | Q44: 0 | R44: 0 | S44: 0 | T44: 0 | U44: 0 | W44: 0 | Z44: 0 | AA44: 0 | AB44: 0 | AC44: 0 | AD44: 0 | AE44: 0 | AF44: 0
B45: 1 | C45: Contracted services | D45: Capex | E45: Major Capital Works | F45: Refurbish Wallsend Admin | G45: 0.15 | H45: 0 | I45: 0 | J45: 1.1313 | L45: 0 | O45: 0 | P45: 0 | Q45: 0 | R45: 0 | S45: 0 | T45: 0 | U45: 0 | W45: 0 | Z45: 0 | AA45: 0 | AB45: 0 | AC45: 0 | AD45: 0 | AE45: 0 | AF45: 0
B46: 1 | C46: Indirect labour / overheads | D46: Capex | E46: Major Capital Works | F46: Refurbish Wallsend Admin | G46: 0 | H46: 0 | I46: 0 | J46: 1.1313 | L46: 0 | M46: 0 | N46: 0 | O46: 0 | P46: 0 | Q46: 0 | R46: 0 | S46: 0 | T46: 0 | U46: 0 | W46: 0 | X46: 0 | Y46: 0 | Z46: 0 | AA46: 0 | AB46: 0 | AC46: 0 | AD46: 0 | AE46: 0 | AF46: 0
B47: 1 | C47: Other | D47: Capex | E47: Major Capital Works | F47: Refurbish Wallsend Admin | G47: 0 | H47: 0 | I47: 0 | J47: 1.1313 | L47: 0 | M47: 0 | N47: 0 | O47: 0 | P47: 0 | Q47: 0 | R47: 0 | S47: 0 | T47: 0 | U47: 0 | W47: 0 | X47: 0 | Y47: 0 | Z47: 0 | AA47: 0 | AB47: 0 | AC47: 0 | AD47: 0 | AE47: 0 | AF47: 0
B48: 1 | C48: Direct labour | D48: Capex | E48: Major Capital Works | F48: Refurbish Wallsend Depot | G48: 0.05 | H48: 0 | I48: 0 | J48: 1.1313 | L48: 0 | O48: 0 | P48: 0 | Q48: 0 | R48: 0 | S48: 0 | T48: 0 | U48: 0 | W48: 0 | Z48: 0 | AA48: 0 | AB48: 0 | AC48: 0 | AD48: 0 | AE48: 0 | AF48: 0
B49: 1 | C49: Materials | D49: Capex | E49: Major Capital Works | F49: Refurbish Wallsend Depot | G49: 0.8 | H49: 0 | I49: 0 | J49: 1.1313 | L49: 0 | O49: 0 | P49: 0 | Q49: 0 | R49: 0 | S49: 0 | T49: 0 | U49: 0 | W49: 0 | Z49: 0 | AA49: 0 | AB49: 0 | AC49: 0 | AD49: 0 | AE49: 0 | AF49: 0
B50: 1 | C50: Contracted services | D50: Capex | E50: Major Capital Works | F50: Refurbish Wallsend Depot | G50: 0.15 | H50: 0 | I50: 0 | J50: 1.1313 | L50: 0 | O50: 0 | P50: 0 | Q50: 0 | R50: 0 | S50: 0 | T50: 0 | U50: 0 | W50: 0 | Z50: 0 | AA50: 0 | AB50: 0 | AC50: 0 | AD50: 0 | AE50: 0 | AF50: 0
B51: 1 | C51: Indirect labour / overheads | D51: Capex | E51: Major Capital Works | F51: Refurbish Wallsend Depot | G51: 0 | H51: 0 | I51: 0 | J51: 1.1313 | L51: 0 | M51: 0 | N51: 0 | O51: 0 | P51: 0 | Q51: 0 | R51: 0 | S51: 0 | T51: 0 | U51: 0 | W51: 0 | X51: 0 | Y51: 0 | Z51: 0 | AA51: 0 | AB51: 0 | AC51: 0 | AD51: 0 | AE51: 0 | AF51: 0
B52: 1 | C52: Other | D52: Capex | E52: Major Capital Works | F52: Refurbish Wallsend Depot | G52: 0 | H52: 0 | I52: 0 | J52: 1.1313 | L52: 0 | M52: 0 | N52: 0 | O52: 0 | P52: 0 | Q52: 0 | R52: 0 | S52: 0 | T52: 0 | U52: 0 | W52: 0 | X52: 0 | Y52: 0 | Z52: 0 | AA52: 0 | AB52: 0 | AC52: 0 | AD52: 0 | AE52: 0 | AF52: 0
B53: 1 | C53: Direct labour | D53: Capex | E53: Ongoing Capital Works | F53: Existing Wallsend Admin | G53: 0.05 | H53: 0 | I53: 0 | J53: 1.1313
B54: 1 | C54: Materials | D54: Capex | E54: Ongoing Capital Works | F54: Existing Wallsend Admin | G54: 0.8 | H54: 0 | I54: 0 | J54: 1.1313
B55: 1 | C55: Contracted services | D55: Capex | E55: Ongoing Capital Works | F55: Existing Wallsend Admin | G55: 0.15 | H55: 0 | I55: 0 | J55: 1.1313
B56: 1 | C56: Indirect labour / overheads | D56: Capex | E56: Ongoing Capital Works | F56: Existing Wallsend Admin | G56: 0 | H56: 0 | I56: 0 | J56: 1.1313 | L56: 0 | M56: 0 | N56: 0 | O56: 0 | P56: 0 | Q56: 0 | R56: 0 | S56: 0 | T56: 0 | U56: 0 | W56: 0 | X56: 0 | Y56: 0 | Z56: 0 | AA56: 0 | AB56: 0 | AC56: 0 | AD56: 0 | AE56: 0 | AF56: 0
B57: 1 | C57: Other | D57: Capex | E57: Ongoing Capital Works | F57: Existing Wallsend Admin | G57: 0 | H57: 0 | I57: 0 | J57: 1.1313 | L57: 0 | M57: 0 | N57: 0 | O57: 0 | P57: 0 | Q57: 0 | R57: 0 | S57: 0 | T57: 0 | U57: 0 | W57: 0 | X57: 0 | Y57: 0 | Z57: 0 | AA57: 0 | AB57: 0 | AC57: 0 | AD57: 0 | AE57: 0 | AF57: 0
B58: 1 | C58: Direct labour | D58: Capex | E58: Ongoing Capital Works | F58: Existing Wallsend Depot | G58: 0.05 | H58: 0 | I58: 0 | J58: 1.1313
B59: 1 | C59: Materials | D59: Capex | E59: Ongoing Capital Works | F59: Existing Wallsend Depot | G59: 0.8 | H59: 0 | I59: 0 | J59: 1.1313
B60: 1 | C60: Contracted services | D60: Capex | E60: Ongoing Capital Works | F60: Existing Wallsend Depot | G60: 0.15 | H60: 0 | I60: 0 | J60: 1.1313
B61: 1 | C61: Indirect labour / overheads | D61: Capex | E61: Ongoing Capital Works | F61: Existing Wallsend Depot | G61: 0 | H61: 0 | I61: 0 | J61: 1.1313 | L61: 0 | M61: 0 | N61: 0 | O61: 0 | P61: 0 | Q61: 0 | R61: 0 | S61: 0 | T61: 0 | U61: 0 | W61: 0 | X61: 0 | Y61: 0 | Z61: 0 | AA61: 0 | AB61: 0 | AC61: 0 | AD61: 0 | AE61: 0 | AF61: 0
B62: 1 | C62: Other | D62: Capex | E62: Ongoing Capital Works | F62: Existing Wallsend Depot | G62: 0 | H62: 0 | I62: 0 | J62: 1.1313 | L62: 0 | M62: 0 | N62: 0 | O62: 0 | P62: 0 | Q62: 0 | R62: 0 | S62: 0 | T62: 0 | U62: 0 | W62: 0 | X62: 0 | Y62: 0 | Z62: 0 | AA62: 0 | AB62: 0 | AC62: 0 | AD62: 0 | AE62: 0 | AF62: 0
B63: 1 | C63: Direct labour | D63: Capex | E63: Relocation Costs | F63: N/A | G63: 0.05 | H63: 0 | I63: 0 | J63: 1.1313 | L63: 0 | M63: 0 | N63: 0 | O63: 0 | P63: 0 | Q63: 0 | R63: 0 | S63: 0 | T63: 0 | U63: 0 | W63: 0 | X63: 0 | Y63: 0 | Z63: 0 | AA63: 0 | AB63: 0 | AC63: 0 | AD63: 0 | AE63: 0 | AF63: 0
B64: 1 | C64: Materials | D64: Capex | E64: Relocation Costs | F64: N/A | G64: 0.8 | H64: 0 | I64: 0 | J64: 1.1313 | L64: 0 | M64: 0 | N64: 0 | O64: 0 | P64: 0 | Q64: 0 | R64: 0 | S64: 0 | T64: 0 | U64: 0 | W64: 0 | X64: 0 | Y64: 0 | Z64: 0 | AA64: 0 | AB64: 0 | AC64: 0 | AD64: 0 | AE64: 0 | AF64: 0
B65: 1 | C65: Contracted services | D65: Capex | E65: Relocation Costs | F65: N/A | G65: 0.15 | H65: 0 | I65: 0 | J65: 1.1313 | L65: 0 | M65: 0 | N65: 0 | O65: 0 | P65: 0 | Q65: 0 | R65: 0 | S65: 0 | T65: 0 | U65: 0 | W65: 0 | X65: 0 | Y65: 0 | Z65: 0 | AA65: 0 | AB65: 0 | AC65: 0 | AD65: 0 | AE65: 0 | AF65: 0
B66: 1 | C66: Indirect labour / overheads | D66: Capex | E66: Relocation Costs | F66: N/A | G66: 0 | H66: 0 | I66: 0 | J66: 1.1313 | L66: 0 | M66: 0 | N66: 0 | O66: 0 | P66: 0 | Q66: 0 | R66: 0 | S66: 0 | T66: 0 | U66: 0 | W66: 0 | X66: 0 | Y66: 0 | Z66: 0 | AA66: 0 | AB66: 0 | AC66: 0 | AD66: 0 | AE66: 0 | AF66: 0
B67: 1 | C67: Other | D67: Capex | E67: Relocation Costs | F67: N/A | G67: 0 | H67: 0 | I67: 0 | J67: 1.1313 | L67: 0 | M67: 0 | N67: 0 | O67: 0 | P67: 0 | Q67: 0 | R67: 0 | S67: 0 | T67: 0 | U67: 0 | W67: 0 | X67: 0 | Y67: 0 | Z67: 0 | AA67: 0 | AB67: 0 | AC67: 0 | AD67: 0 | AE67: 0 | AF67: 0
B68: 1 | C68: Direct labour | D68: Capex | E68: Divestment Values | F68: N/A | G68: 0.05 | H68: 0 | I68: 0 | J68: 1.1313 | L68: 0 | M68: 0 | N68: 0 | O68: 0 | P68: 0 | Q68: 0 | R68: 0 | S68: 0 | T68: 0 | U68: 0 | W68: 0 | X68: 0 | Y68: 0 | Z68: 0 | AA68: 0 | AB68: 0 | AC68: 0 | AD68: 0 | AE68: 0 | AF68: 0
B69: 1 | C69: Materials | D69: Capex | E69: Divestment Values | F69: N/A | G69: 0.8 | H69: 0 | I69: 0 | J69: 1.1313 | L69: 0 | M69: 0 | N69: 0 | O69: 0 | P69: 0 | Q69: 0 | R69: 0 | S69: 0 | T69: 0 | U69: 0 | W69: 0 | X69: 0 | Y69: 0 | Z69: 0 | AA69: 0 | AB69: 0 | AC69: 0 | AD69: 0 | AE69: 0 | AF69: 0
B70: 1 | C70: Contracted services | D70: Capex | E70: Divestment Values | F70: N/A | G70: 0.15 | H70: 0 | I70: 0 | J70: 1.1313 | L70: 0 | M70: 0 | N70: 0 | O70: 0 | P70: 0 | Q70: 0 | R70: 0 | S70: 0 | T70: 0 | U70: 0 | W70: 0 | X70: 0 | Y70: 0 | Z70: 0 | AA70: 0 | AB70: 0 | AC70: 0 | AD70: 0 | AE70: 0 | AF70: 0
B71: 1 | C71: Indirect labour / overheads | D71: Capex | E71: Divestment Values | F71: N/A | G71: 0 | H71: 0 | I71: 0 | J71: 1.1313 | L71: 0 | M71: 0 | N71: 0 | O71: 0 | P71: 0 | Q71: 0 | R71: 0 | S71: 0 | T71: 0 | U71: 0 | W71: 0 | X71: 0 | Y71: 0 | Z71: 0 | AA71: 0 | AB71: 0 | AC71: 0 | AD71: 0 | AE71: 0 | AF71: 0
B72: 1 | C72: Other | D72: Capex | E72: Divestment Values | F72: N/A | G72: 0 | H72: 0 | I72: 0 | J72: 1.1313 | L72: 0 | M72: 0 | N72: 0 | O72: 0 | P72: 0 | Q72: 0 | R72: 0 | S72: 0 | T72: 0 | U72: 0 | W72: 0 | X72: 0 | Y72: 0 | Z72: 0 | AA72: 0 | AB72: 0 | AC72: 0 | AD72: 0 | AE72: 0 | AF72: 0
B73: 1
A76: =$A$3&"."&COUNTA($A$3:A75) -> 10.2 | B76: Project Brief 1 cost assumptions, Option 2
L78: FY21 dollars, direct and indirect, full stack costs | W78: Real FY24 dollars, SCS only, direct costs only, includes real labour escalators
B79: =B7 -> Option | C79: Cost category | D79: Capex/Opex | E79: Cost group | F79: Cost name | G79: Category Allocation % | H79: Indirect Cost % | I79: Direct Labour % | J79: Real to Real Translation Factor | L79: FY23 | M79: FY24 | N79: FY25 | O79: FY26 | P79: FY27 | Q79: FY28 | R79: FY29 | S79: FY30 | T79: FY31 | U79: FY32 | W79: FY23 | X79: FY24 | Y79: FY25 | Z79: FY26 | AA79: FY27 | AB79: FY28 | AC79: FY29 | AD79: FY30 | AE79: FY31 | AF79: FY32
B80: 2 | C80: Total | D80: Capex | E80: Total
B81: 2 | C81: Direct labour | D81: Capex | E81: Total
B82: 2 | C82: Materials | D82: Capex | E82: Total
B83: 2 | C83: Contracted services | D83: Capex | E83: Total
B84: 2 | C84: Indirect labour / overheads | D84: Capex | E84: Total | L84: =IF($C84="Total",SUMIFS(L$94:L$193,$D$94:$D$193,$D84),SUMIFS(L$94:L$193,$D$94:$D$193,$D84,$C$94:$C$193,$C84)) -> 0 | M84: 0 | N84: 0 | O84: 0 | P84: 0 | Q84: 0 | R84: 0 | S84: 0 | T84: 0 | U84: 0 | W84: =IF($C84="Total",SUMIFS(W$94:W$193,$D$94:$D$193,$D84),SUMIFS(W$94:W$193,$D$94:$D$193,$D84,$C$94:$C$193,$C84)) -> 0 | X84: 0 | Y84: 0 | Z84: 0 | AA84: 0 | AB84: 0 | AC84: 0 | AD84: 0 | AE84: 0 | AF84: 0
B85: 2 | C85: Other | D85: Capex | E85: Total | L85: 0 | M85: 0 | N85: 0 | O85: 0 | P85: 0 | Q85: 0 | R85: 0 | S85: 0 | T85: 0 | U85: 0 | W85: 0 | X85: 0 | Y85: 0 | Z85: 0 | AA85: 0 | AB85: 0 | AC85: 0 | AD85: 0 | AE85: 0 | AF85: 0
B87: 2 | C87: Total | D87: Opex | E87: Total | L87: 0 | M87: 0 | N87: 0 | O87: 0 | P87: 315701.8699 | Q87: 315701.8699 | R87: 315701.8699 | S87: 315701.8699 | T87: 315701.8699 | U87: 315701.8699 | W87: 0 | X87: 0 | Y87: 0 | Z87: 0 | AA87: 340371.698 | AB87: 340371.698 | AC87: 340371.698 | AD87: 340371.698 | AE87: 340371.698 | AF87: 340371.698
B88: 2 | C88: Direct labour | D88: Opex | E88: Total | L88: 0 | M88: 0 | N88: 0 | O88: 0 | P88: 0 | Q88: 0 | R88: 0 | S88: 0 | T88: 0 | U88: 0 | W88: 0 | X88: 0 | Y88: 0 | Z88: 0 | AA88: 0 | AB88: 0 | AC88: 0 | AD88: 0 | AE88: 0 | AF88: 0
B89: 2 | C89: Materials | D89: Opex | E89: Total | L89: 0 | M89: 0 | N89: 0 | O89: 0 | P89: 0 | Q89: 0 | R89: 0 | S89: 0 | T89: 0 | U89: 0 | W89: 0 | X89: 0 | Y89: 0 | Z89: 0 | AA89: 0 | AB89: 0 | AC89: 0 | AD89: 0 | AE89: 0 | AF89: 0
B90: 2 | C90: Contracted services | D90: Opex | E90: Total | L90: 0 | M90: 0 | N90: 0 | O90: 0 | P90: 0 | Q90: 0 | R90: 0 | S90: 0 | T90: 0 | U90: 0 | W90: 0 | X90: 0 | Y90: 0 | Z90: 0 | AA90: 0 | AB90: 0 | AC90: 0 | AD90: 0 | AE90: 0 | AF90: 0
B91: 2 | C91: Indirect labour / overheads | D91: Opex | E91: Total | L91: 0 | M91: 0 | N91: 0 | O91: 0 | P91: 0 | Q91: 0 | R91: 0 | S91: 0 | T91: 0 | U91: 0 | W91: 0 | X91: 0 | Y91: 0 | Z91: 0 | AA91: 0 | AB91: 0 | AC91: 0 | AD91: 0 | AE91: 0 | AF91: 0
B92: 2 | C92: Other | D92: Opex | E92: Total | L92: 0 | M92: 0 | N92: 0 | O92: 0 | P92: 315701.8699 | Q92: 315701.8699 | R92: 315701.8699 | S92: 315701.8699 | T92: 315701.8699 | U92: 315701.8699 | W92: 0 | X92: 0 | Y92: 0 | Z92: 0 | AA92: 340371.698 | AB92: 340371.698 | AC92: 340371.698 | AD92: 340371.698 | AE92: 340371.698 | AF92: 340371.698
B94: 2 | C94: =Gen_A_Calcs!B64 -> Direct labour | D94: Capex | E94: Site Acquisition | F94: N/A | G94: 0.05 | H94: 0 | I94: 0 | J94: 1.1313 | L94: 0 | M94: 0 | N94: 0 | O94: 0 | P94: 0 | Q94: 0 | R94: 0 | S94: 0 | T94: 0 | U94: 0 | W94: 0 | X94: 0 | Y94: 0 | Z94: 0 | AA94: 0 | AB94: 0 | AC94: 0 | AD94: 0 | AE94: 0 | AF94: 0
B95: 2 | C95: =Gen_A_Calcs!B65 -> Materials | D95: Capex | E95: Site Acquisition | F95: N/A | G95: 0.8 | H95: 0 | I95: 0 | J95: 1.1313 | L95: 0 | M95: 0 | N95: 0 | O95: 0 | P95: 0 | Q95: 0 | R95: 0 | S95: 0 | T95: 0 | U95: 0 | W95: 0 | X95: 0 | Y95: 0 | Z95: 0 | AA95: 0 | AB95: 0 | AC95: 0 | AD95: 0 | AE95: 0 | AF95: 0
B96: 2 | C96: =Gen_A_Calcs!B66 -> Contracted services | D96: Capex | E96: Site Acquisition | F96: N/A | G96: 0.15 | H96: 0 | I96: 0 | J96: 1.1313 | L96: 0 | M96: 0 | N96: 0 | O96: 0 | P96: 0 | Q96: 0 | R96: 0 | S96: 0 | T96: 0 | U96: 0 | W96: 0 | X96: 0 | Y96: 0 | Z96: 0 | AA96: 0 | AB96: 0 | AC96: 0 | AD96: 0 | AE96: 0 | AF96: 0
B97: 2 | C97: =Gen_A_Calcs!B67 -> Indirect labour / overheads | D97: Capex | E97: Site Acquisition | F97: N/A | G97: 0 | H97: 0 | I97: 0 | J97: 1.1313 | L97: 0 | M97: 0 | N97: 0 | O97: 0 | P97: 0 | Q97: 0 | R97: 0 | S97: 0 | T97: 0 | U97: 0 | W97: 0 | X97: 0 | Y97: 0 | Z97: 0 | AA97: 0 | AB97: 0 | AC97: 0 | AD97: 0 | AE97: 0 | AF97: 0
B98: 2 | C98: =Gen_A_Calcs!B68 -> Other | D98: Capex | E98: Site Acquisition | F98: N/A | G98: 0 | H98: 0 | I98: 0 | J98: 1.1313 | L98: 0 | M98: 0 | N98: 0 | O98: 0 | P98: 0 | Q98: 0 | R98: 0 | S98: 0 | T98: 0 | U98: 0 | W98: 0 | X98: 0 | Y98: 0 | Z98: 0 | AA98: 0 | AB98: 0 | AC98: 0 | AD98: 0 | AE98: 0 | AF98: 0
B99: 2 | C99: =C94 -> Direct labour | D99: Opex | E99: Opex (excl. Land Tax, Council Rates) | F99: Wallsend Admin | G99: 0 | H99: 0 | I99: 0 | J99: 1.170876195 | L99: 0 | M99: 0 | N99: 0 | O99: 0 | P99: 0 | Q99: 0 | R99: 0 | S99: 0 | T99: 0 | U99: 0 | W99: 0 | X99: 0 | Y99: 0 | Z99: 0 | AA99: 0 | AB99: 0 | AC99: 0 | AD99: 0 | AE99: 0 | AF99: 0
B100: 2 | C100: =C95 -> Materials | D100: Opex | E100: Opex (excl. Land Tax, Council Rates) | F100: Wallsend Admin | G100: 0 | H100: 0 | I100: 0 | J100: 1.170876195 | L100: 0 | M100: 0 | N100: 0 | O100: 0 | P100: 0 | Q100: 0 | R100: 0 | S100: 0 | T100: 0 | U100: 0 | W100: 0 | X100: 0 | Y100: 0 | Z100: 0 | AA100: 0 | AB100: 0 | AC100: 0 | AD100: 0 | AE100: 0 | AF100: 0
B101: 2 | C101: Contracted services | D101: Opex | E101: Opex (excl. Land Tax, Council Rates) | F101: Wallsend Admin | G101: 0 | H101: 0 | I101: 0 | J101: 1.170876195 | L101: 0 | M101: 0 | N101: 0 | O101: 0 | P101: 0 | Q101: 0 | R101: 0 | S101: 0 | T101: 0 | U101: 0 | W101: 0 | X101: 0 | Y101: 0 | Z101: 0 | AA101: 0 | AB101: 0 | AC101: 0 | AD101: 0 | AE101: 0 | AF101: 0
B102: 2 | C102: Indirect labour / overheads | D102: Opex | E102: Opex (excl. Land Tax, Council Rates) | F102: Wallsend Admin | G102: 0 | H102: 0 | I102: 0 | J102: 1.170876195 | L102: 0 | M102: 0 | N102: 0 | O102: 0 | P102: 0 | Q102: 0 | R102: 0 | S102: 0 | T102: 0 | U102: 0 | W102: 0 | X102: 0 | Y102: 0 | Z102: 0 | AA102: 0 | AB102: 0 | AC102: 0 | AD102: 0 | AE102: 0 | AF102: 0
B103: 2 | C103: Other | D103: Opex | E103: Opex (excl. Land Tax, Council Rates) | F103: Wallsend Admin | G103: 1 | H103: 0 | I103: 0 | J103: 1.170876195 | L103: 0 | M103: 0 | N103: 0 | O103: 0 | P103: 0 | Q103: 0 | R103: 0 | S103: 0 | T103: 0 | U103: 0 | W103: 0 | X103: 0 | Y103: 0 | Z103: 0 | AA103: 0 | AB103: 0 | AC103: 0 | AD103: 0 | AE103: 0 | AF103: 0
B104: 2 | C104: Direct labour | D104: Opex | E104: Opex (excl. Land Tax, Council Rates) | F104: Wallsend Admin | G104: 0 | H104: 0 | I104: 0 | J104: 1.170876195 | L104: 0 | M104: 0 | N104: 0 | O104: 0 | P104: 0 | Q104: 0 | R104: 0 | S104: 0 | T104: 0 | U104: 0 | W104: 0 | X104: 0 | Y104: 0 | Z104: 0 | AA104: 0 | AB104: 0 | AC104: 0 | AD104: 0 | AE104: 0 | AF104: 0
B105: 2 | C105: Materials | D105: Opex | E105: Opex (excl. Land Tax, Council Rates) | F105: Wallsend Depot | G105: 0 | H105: 0 | I105: 0 | J105: 1.170876195 | L105: 0 | M105: 0 | N105: 0 | O105: 0 | P105: 0 | Q105: 0 | R105: 0 | S105: 0 | T105: 0 | U105: 0 | W105: 0 | X105: 0 | Y105: 0 | Z105: 0 | AA105: 0 | AB105: 0 | AC105: 0 | AD105: 0 | AE105: 0 | AF105: 0
B106: 2 | C106: Contracted services | D106: Opex | E106: Opex (excl. Land Tax, Council Rates) | F106: Wallsend Depot | G106: 0 | H106: 0 | I106: 0 | J106: 1.170876195 | L106: 0 | M106: 0 | N106: 0 | O106: 0 | P106: 0 | Q106: 0 | R106: 0 | S106: 0 | T106: 0 | U106: 0 | W106: 0 | X106: 0 | Y106: 0 | Z106: 0 | AA106: 0 | AB106: 0 | AC106: 0 | AD106: 0 | AE106: 0 | AF106: 0
B107: 2 | C107: Indirect labour / overheads | D107: Opex | E107: Opex (excl. Land Tax, Council Rates) | F107: Wallsend Depot | G107: 0 | H107: 0 | I107: 0 | J107: 1.170876195 | L107: 0 | M107: 0 | N107: 0 | O107: 0 | P107: 0 | Q107: 0 | R107: 0 | S107: 0 | T107: 0 | U107: 0 | W107: 0 | X107: 0 | Y107: 0 | Z107: 0 | AA107: 0 | AB107: 0 | AC107: 0 | AD107: 0 | AE107: 0 | AF107: 0
B108: 2 | C108: Other | D108: Opex | E108: Opex (excl. Land Tax, Council Rates) | F108: Wallsend Depot | G108: 1 | H108: 0 | I108: 0 | J108: 1.170876195 | L108: 0 | M108: 0 | N108: 0 | O108: 0 | P108: 0 | Q108: 0 | R108: 0 | S108: 0 | T108: 0 | U108: 0 | W108: 0 | X108: 0 | Y108: 0 | Z108: 0 | AA108: 0 | AB108: 0 | AC108: 0 | AD108: 0 | AE108: 0 | AF108: 0
B109: 2 | C109: Direct labour | D109: Opex | E109: Opex (excl. Land Tax, Council Rates) | F109: Beresfield Depot (new Depot) | G109: 0 | H109: 0 | I109: 0 | J109: 1.170876195 | L109: 0 | M109: 0 | N109: 0 | O109: 0 | P109: 0 | Q109: 0 | R109: 0 | S109: 0 | T109: 0 | U109: 0 | W109: 0 | X109: 0 | Y109: 0 | Z109: 0 | AA109: 0 | AB109: 0 | AC109: 0 | AD109: 0 | AE109: 0 | AF109: 0
B110: 2 | C110: Materials | D110: Opex | E110: Opex (excl. Land Tax, Council Rates) | F110: Beresfield Depot (new Depot) | G110: 0 | H110: 0 | I110: 0 | J110: 1.170876195 | L110: 0 | M110: 0 | N110: 0 | O110: 0 | P110: 0 | Q110: 0 | R110: 0 | S110: 0 | T110: 0 | U110: 0 | W110: 0 | X110: 0 | Y110: 0 | Z110: 0 | AA110: 0 | AB110: 0 | AC110: 0 | AD110: 0 | AE110: 0 | AF110: 0
B111: 2 | C111: Contracted services | D111: Opex | E111: Opex (excl. Land Tax, Council Rates) | F111: Beresfield Depot (new Depot) | G111: 0 | H111: 0 | I111: 0 | J111: 1.170876195 | L111: 0 | M111: 0 | N111: 0 | O111: 0 | P111: 0 | Q111: 0 | R111: 0 | S111: 0 | T111: 0 | U111: 0 | W111: 0 | X111: 0 | Y111: 0 | Z111: 0 | AA111: 0 | AB111: 0 | AC111: 0 | AD111: 0 | AE111: 0 | AF111: 0
B112: 2 | C112: Indirect labour / overheads | D112: Opex | E112: Opex (excl. Land Tax, Council Rates) | F112: Beresfield Depot (new Depot) | G112: 0 | H112: 0 | I112: 0 | J112: 1.170876195 | L112: 0 | M112: 0 | N112: 0 | O112: 0 | P112: 0 | Q112: 0 | R112: 0 | S112: 0 | T112: 0 | U112: 0 | W112: 0 | X112: 0 | Y112: 0 | Z112: 0 | AA112: 0 | AB112: 0 | AC112: 0 | AD112: 0 | AE112: 0 | AF112: 0
B113: 2 | C113: Other | D113: Opex | E113: Opex (excl. Land Tax, Council Rates) | F113: Beresfield Depot (new Depot) | G113: 1 | H113: 0 | I113: 0 | J113: 1.170876195 | L113: 0 | M113: 0 | N113: 0 | O113: 0 | P113: 151504.0689 | Q113: 151504.0689 | R113: 151504.0689 | S113: 151504.0689 | T113: 151504.0689 | U113: 151504.0689 | W113: 0 | X113: 0 | Y113: 0 | Z113: 0 | AA113: 163343.0211 | AB113: 163343.0211 | AC113: 163343.0211 | AD113: 163343.0211 | AE113: 163343.0211 | AF113: 163343.0211
B114: 2 | C114: Direct labour | D114: Opex | E114: Opex (excl. Land Tax, Council Rates) | F114: Newcastle South Depot | G114: 0 | H114: 0 | I114: 0 | J114: 1.170876195 | L114: 0 | M114: 0 | N114: 0 | O114: 0 | P114: 0 | Q114: 0 | R114: 0 | S114: 0 | T114: 0 | U114: 0 | W114: 0 | X114: 0 | Y114: 0 | Z114: 0 | AA114: 0 | AB114: 0 | AC114: 0 | AD114: 0 | AE114: 0 | AF114: 0
B115: 2 | C115: Materials | D115: Opex | E115: Opex (excl. Land Tax, Council Rates) | F115: Newcastle South Depot | G115: 0 | H115: 0 | I115: 0 | J115: 1.170876195 | L115: 0 | M115: 0 | N115: 0 | O115: 0 | P115: 0 | Q115: 0 | R115: 0 | S115: 0 | T115: 0 | U115: 0 | W115: 0 | X115: 0 | Y115: 0 | Z115: 0 | AA115: 0 | AB115: 0 | AC115: 0 | AD115: 0 | AE115: 0 | AF115: 0
B116: 2 | C116: Contracted services | D116: Opex | E116: Opex (excl. Land Tax, Council Rates) | F116: Newcastle South Depot | G116: 0 | H116: 0 | I116: 0 | J116: 1.170876195 | L116: 0 | M116: 0 | N116: 0 | O116: 0 | P116: 0 | Q116: 0 | R116: 0 | S116: 0 | T116: 0 | U116: 0 | W116: 0 | X116: 0 | Y116: 0 | Z116: 0 | AA116: 0 | AB116: 0 | AC116: 0 | AD116: 0 | AE116: 0 | AF116: 0
B117: 2 | C117: Indirect labour / overheads | D117: Opex | E117: Opex (excl. Land Tax, Council Rates) | F117: Newcastle South Depot | G117: 0 | H117: 0 | I117: 0 | J117: 1.170876195 | L117: 0 | M117: 0 | N117: 0 | O117: 0 | P117: 0 | Q117: 0 | R117: 0 | S117: 0 | T117: 0 | U117: 0 | W117: 0 | X117: 0 | Y117: 0 | Z117: 0 | AA117: 0 | AB117: 0 | AC117: 0 | AD117: 0 | AE117: 0 | AF117: 0
B118: 2 | C118: Other | D118: Opex | E118: Opex (excl. Land Tax, Council Rates) | F118: Newcastle South Depot | G118: 1 | H118: 0 | I118: 0 | J118: 1.170876195 | L118: 0 | M118: 0 | N118: 0 | O118: 0 | P118: 164197.801 | Q118: 164197.801 | R118: 164197.801 | S118: 164197.801 | T118: 164197.801 | U118: 164197.801 | W118: 0 | X118: 0 | Y118: 0 | Z118: 0 | AA118: 177028.6769 | AB118: 177028.6769 | AC118: 177028.6769 | AD118: 177028.6769 | AE118: 177028.6769 | AF118: 177028.6769
B119: 2 | C119: Direct labour | D119: Opex | E119: Land Tax + Council Rates | F119: Wallsend Admin | G119: 0 | H119: 0 | I119: 0 | J119: 1.170876195 | L119: 0 | M119: 0 | N119: 0 | O119: 0 | P119: 0 | Q119: 0 | R119: 0 | S119: 0 | T119: 0 | U119: 0 | W119: 0 | X119: 0 | Y119: 0 | Z119: 0 | AA119: 0 | AB119: 0 | AC119: 0 | AD119: 0 | AE119: 0 | AF119: 0
B120: 2 | C120: Materials | D120: Opex | E120: Land Tax + Council Rates | F120: Wallsend Admin | G120: 0 | H120: 0 | I120: 0 | J120: 1.170876195 | L120: 0 | M120: 0 | N120: 0 | O120: 0 | P120: 0 | Q120: 0 | R120: 0 | S120: 0 | T120: 0 | U120: 0 | W120: 0 | X120: 0 | Y120: 0 | Z120: 0 | AA120: 0 | AB120: 0 | AC120: 0 | AD120: 0 | AE120: 0 | AF120: 0
B121: 2 | C121: Contracted services | D121: Opex | E121: Land Tax + Council Rates | F121: Wallsend Admin | G121: 0 | H121: 0 | I121: 0 | J121: 1.170876195 | L121: 0 | M121: 0 | N121: 0 | O121: 0 | P121: 0 | Q121: 0 | R121: 0 | S121: 0 | T121: 0 | U121: 0 | W121: 0 | X121: 0 | Y121: 0 | Z121: 0 | AA121: 0 | AB121: 0 | AC121: 0 | AD121: 0 | AE121: 0 | AF121: 0
B122: 2 | C122: Indirect labour / overheads | D122: Opex | E122: Land Tax + Council Rates | F122: Wallsend Admin | G122: 0 | H122: 0 | I122: 0 | J122: 1.170876195 | L122: 0 | M122: 0 | N122: 0 | O122: 0 | P122: 0 | Q122: 0 | R122: 0 | S122: 0 | T122: 0 | U122: 0 | W122: 0 | X122: 0 | Y122: 0 | Z122: 0 | AA122: 0 | AB122: 0 | AC122: 0 | AD122: 0 | AE122: 0 | AF122: 0
B123: 2 | C123: Other | D123: Opex | E123: Land Tax + Council Rates | F123: Wallsend Admin | G123: 1 | H123: 0 | I123: 0 | J123: 1.170876195 | L123: 0 | M123: 0 | N123: 0 | O123: 0 | P123: 0 | Q123: 0 | R123: 0 | S123: 0 | T123: 0 | U123: 0 | W123: 0 | X123: 0 | Y123: 0 | Z123: 0 | AA123: 0 | AB123: 0 | AC123: 0 | AD123: 0 | AE123: 0 | AF123: 0
B124: 2 | C124: Direct labour | D124: Opex | E124: Land Tax + Council Rates | F124: Wallsend Depot | G124: 0 | H124: 0 | I124: 0 | J124: 1.170876195 | L124: 0 | M124: 0 | N124: 0 | O124: 0 | P124: 0 | Q124: 0 | R124: 0 | S124: 0 | T124: 0 | U124: 0 | W124: 0 | X124: 0 | Y124: 0 | Z124: 0 | AA124: 0 | AB124: 0 | AC124: 0 | AD124: 0 | AE124: 0 | AF124: 0
B125: 2 | C125: Materials | D125: Opex | E125: Land Tax + Council Rates | F125: Wallsend Depot | G125: 0 | H125: 0 | I125: 0 | J125: 1.170876195 | L125: 0 | M125: 0 | N125: 0 | O125: 0 | P125: 0 | Q125: 0 | R125: 0 | S125: 0 | T125: 0 | U125: 0 | W125: 0 | X125: 0 | Y125: 0 | Z125: 0 | AA125: 0 | AB125: 0 | AC125: 0 | AD125: 0 | AE125: 0 | AF125: 0
B126: 2 | C126: Contracted services | D126: Opex | E126: Land Tax + Council Rates | F126: Wallsend Depot | G126: 0 | H126: 0 | I126: 0 | J126: 1.170876195 | L126: 0 | M126: 0 | N126: 0 | O126: 0 | P126: 0 | Q126: 0 | R126: 0 | S126: 0 | T126: 0 | U126: 0 | W126: 0 | X126: 0 | Y126: 0 | Z126: 0 | AA126: 0 | AB126: 0 | AC126: 0 | AD126: 0 | AE126: 0 | AF126: 0
B127: 2 | C127: Indirect labour / overheads | D127: Opex | E127: Land Tax + Council Rates | F127: Wallsend Depot | G127: 0 | H127: 0 | I127: 0 | J127: 1.170876195 | L127: 0 | M127: 0 | N127: 0 | O127: 0 | P127: 0 | Q127: 0 | R127: 0 | S127: 0 | T127: 0 | U127: 0 | W127: 0 | X127: 0 | Y127: 0 | Z127: 0 | AA127: 0 | AB127: 0 | AC127: 0 | AD127: 0 | AE127: 0 | AF127: 0
B128: 2 | C128: Other | D128: Opex | E128: Land Tax + Council Rates | F128: Wallsend Depot | G128: 1 | H128: 0 | I128: 0 | J128: 1.170876195 | L128: 0 | M128: 0 | N128: 0 | O128: 0 | P128: 0 | Q128: 0 | R128: 0 | S128: 0 | T128: 0 | U128: 0 | W128: 0 | X128: 0 | Y128: 0 | Z128: 0 | AA128: 0 | AB128: 0 | AC128: 0 | AD128: 0 | AE128: 0 | AF128: 0
B129: 2 | C129: Direct labour | D129: Capex | E129: Major Capital Works | F129: Construct Beresfield Depot Addition | G129: 0.05 | H129: 0 | I129: 0 | J129: 1.1313 | N129: 0 | O129: 0 | P129: 0 | Q129: 0 | R129: 0 | S129: 0 | T129: 0 | U129: 0 | Y129: 0 | Z129: 0 | AA129: 0 | AB129: 0 | AC129: 0 | AD129: 0 | AE129: 0 | AF129: 0
B130: 2 | C130: Materials | D130: Capex | E130: Major Capital Works | F130: Construct Beresfield Depot Addition | G130: 0.8 | H130: 0 | I130: 0 | J130: 1.1313 | N130: 0 | O130: 0 | P130: 0 | Q130: 0 | R130: 0 | S130: 0 | T130: 0 | U130: 0 | Y130: 0 | Z130: 0 | AA130: 0 | AB130: 0 | AC130: 0 | AD130: 0 | AE130: 0 | AF130: 0
B131: 2 | C131: Contracted services | D131: Capex | E131: Major Capital Works | F131: Construct Beresfield Depot Addition | G131: 0.15 | H131: 0 | I131: 0 | J131: 1.1313 | N131: 0 | O131: 0 | P131: 0 | Q131: 0 | R131: 0 | S131: 0 | T131: 0 | U131: 0 | Y131: 0 | Z131: 0 | AA131: 0 | AB131: 0 | AC131: 0 | AD131: 0 | AE131: 0 | AF131: 0
B132: 2 | C132: Indirect labour / overheads | D132: Capex | E132: Major Capital Works | F132: Construct Beresfield Depot Addition | G132: 0 | H132: 0 | I132: 0 | J132: 1.1313 | L132: 0 | M132: 0 | N132: 0 | O132: 0 | P132: 0 | Q132: 0 | R132: 0 | S132: 0 | T132: 0 | U132: 0 | W132: 0 | X132: 0 | Y132: 0 | Z132: 0 | AA132: 0 | AB132: 0 | AC132: 0 | AD132: 0 | AE132: 0 | AF132: 0
B133: 2 | C133: Other | D133: Capex | E133: Major Capital Works | F133: Construct Beresfield Depot Addition | G133: 0 | H133: 0 | I133: 0 | J133: 1.1313 | L133: 0 | M133: 0 | N133: 0 | O133: 0 | P133: 0 | Q133: 0 | R133: 0 | S133: 0 | T133: 0 | U133: 0 | W133: 0 | X133: 0 | Y133: 0 | Z133: 0 | AA133: 0 | AB133: 0 | AC133: 0 | AD133: 0 | AE133: 0 | AF133: 0
B134: 2 | C134: Direct labour | D134: Capex | E134: Major Capital Works | F134: Construct Fitout Newcastle Corporate Project | G134: 0.05 | H134: 0 | I134: 0 | J134: 1.1313 | L134: 0 | M134: 0 | N134: 0 | O134: 0 | P134: 0 | Q134: 0 | R134: 0 | S134: 0 | T134: 0 | U134: 0 | W134: 0 | X134: 0 | Y134: 0 | Z134: 0 | AA134: 0 | AB134: 0 | AC134: 0 | AD134: 0 | AE134: 0 | AF134: 0
B135: 2 | C135: Materials | D135: Capex | E135: Major Capital Works | F135: Construct Fitout Newcastle Corporate Project | G135: 0.8 | H135: 0 | I135: 0 | J135: 1.1313 | L135: 0 | M135: 0 | N135: 0 | O135: 0 | P135: 0 | Q135: 0 | R135: 0 | S135: 0 | T135: 0 | U135: 0 | W135: 0 | X135: 0 | Y135: 0 | Z135: 0 | AA135: 0 | AB135: 0 | AC135: 0 | AD135: 0 | AE135: 0 | AF135: 0
B136: 2 | C136: Contracted services | D136: Capex | E136: Major Capital Works | F136: Construct Fitout Newcastle Corporate Project | G136: 0.15 | H136: 0 | I136: 0 | J136: 1.1313 | L136: 0 | M136: 0 | N136: 0 | O136: 0 | P136: 0 | Q136: 0 | R136: 0 | S136: 0 | T136: 0 | U136: 0 | W136: 0 | X136: 0 | Y136: 0 | Z136: 0 | AA136: 0 | AB136: 0 | AC136: 0 | AD136: 0 | AE136: 0 | AF136: 0
B137: 2 | C137: Indirect labour / overheads | D137: Capex | E137: Major Capital Works | F137: Construct Fitout Newcastle Corporate Project | G137: 0 | H137: 0 | I137: 0 | J137: 1.1313 | L137: 0 | M137: 0 | N137: 0 | O137: 0 | P137: 0 | Q137: 0 | R137: 0 | S137: 0 | T137: 0 | U137: 0 | W137: 0 | X137: 0 | Y137: 0 | Z137: 0 | AA137: 0 | AB137: 0 | AC137: 0 | AD137: 0 | AE137: 0 | AF137: 0
B138: 2 | C138: Other | D138: Capex | E138: Major Capital Works | F138: Construct Fitout Newcastle Corporate Project | G138: 0 | H138: 0 | I138: 0 | J138: 1.1313 | L138: 0 | M138: 0 | N138: 0 | O138: 0 | P138: 0 | Q138: 0 | R138: 0 | S138: 0 | T138: 0 | U138: 0 | W138: 0 | X138: 0 | Y138: 0 | Z138: 0 | AA138: 0 | AB138: 0 | AC138: 0 | AD138: 0 | AE138: 0 | AF138: 0
B139: 2 | C139: Direct labour | D139: Capex | E139: Major Capital Works | F139: Construct Newcastle South Depot | G139: 0.05 | H139: 0 | I139: 0 | J139: 1.1313 | L139: 0 | O139: 0 | P139: 0 | Q139: 0 | R139: 0 | S139: 0 | T139: 0 | U139: 0 | W139: 0 | Z139: 0 | AA139: 0 | AB139: 0 | AC139: 0 | AD139: 0 | AE139: 0 | AF139: 0
B140: 2 | C140: Materials | D140: Capex | E140: Major Capital Works | F140: Construct Newcastle South Depot | G140: 0.8 | H140: 0 | I140: 0 | J140: 1.1313 | L140: 0 | O140: 0 | P140: 0 | Q140: 0 | R140: 0 | S140: 0 | T140: 0 | U140: 0 | W140: 0 | Z140: 0 | AA140: 0 | AB140: 0 | AC140: 0 | AD140: 0 | AE140: 0 | AF140: 0
B141: 2 | C141: Contracted services | D141: Capex | E141: Major Capital Works | F141: Construct Newcastle South Depot | G141: 0.15 | H141: 0 | I141: 0 | J141: 1.1313 | L141: 0 | O141: 0 | P141: 0 | Q141: 0 | R141: 0 | S141: 0 | T141: 0 | U141: 0 | W141: 0 | Z141: 0 | AA141: 0 | AB141: 0 | AC141: 0 | AD141: 0 | AE141: 0 | AF141: 0
B142: 2 | C142: Indirect labour / overheads | D142: Capex | E142: Major Capital Works | F142: Construct Newcastle South Depot | G142: 0 | H142: 0 | I142: 0 | J142: 1.1313 | L142: 0 | M142: 0 | N142: 0 | O142: 0 | P142: 0 | Q142: 0 | R142: 0 | S142: 0 | T142: 0 | U142: 0 | W142: 0 | X142: 0 | Y142: 0 | Z142: 0 | AA142: 0 | AB142: 0 | AC142: 0 | AD142: 0 | AE142: 0 | AF142: 0
B143: 2 | C143: Other | D143: Capex | E143: Major Capital Works | F143: Construct Newcastle South Depot | G143: 0 | H143: 0 | I143: 0 | J143: 1.1313 | L143: 0 | M143: 0 | N143: 0 | O143: 0 | P143: 0 | Q143: 0 | R143: 0 | S143: 0 | T143: 0 | U143: 0 | W143: 0 | X143: 0 | Y143: 0 | Z143: 0 | AA143: 0 | AB143: 0 | AC143: 0 | AD143: 0 | AE143: 0 | AF143: 0
B144: 2 | C144: Direct labour | D144: Capex | E144: Major Capital Works | F144: Relocate Newcastle Control Room | G144: 0.05 | H144: 0 | I144: 0 | J144: 1.1313 | L144: 0 | M144: 0 | P144: 0 | Q144: 0 | R144: 0 | S144: 0 | T144: 0 | U144: 0 | W144: 0 | X144: 0 | AA144: 0 | AB144: 0 | AC144: 0 | AD144: 0 | AE144: 0 | AF144: 0
B145: 2 | C145: Materials | D145: Capex | E145: Major Capital Works | F145: Relocate Newcastle Control Room | G145: 0.8 | H145: 0 | I145: 0 | J145: 1.1313 | L145: 0 | M145: 0 | P145: 0 | Q145: 0 | R145: 0 | S145: 0 | T145: 0 | U145: 0 | W145: 0 | X145: 0 | AA145: 0 | AB145: 0 | AC145: 0 | AD145: 0 | AE145: 0 | AF145: 0
B146: 2 | C146: Contracted services | D146: Capex | E146: Major Capital Works | F146: Relocate Newcastle Control Room | G146: 0.15 | H146: 0 | I146: 0 | J146: 1.1313 | L146: 0 | M146: 0 | P146: 0 | Q146: 0 | R146: 0 | S146: 0 | T146: 0 | U146: 0 | W146: 0 | X146: 0 | AA146: 0 | AB146: 0 | AC146: 0 | AD146: 0 | AE146: 0 | AF146: 0
B147: 2 | C147: Indirect labour / overheads | D147: Capex | E147: Major Capital Works | F147: Relocate Newcastle Control Room | G147: 0 | H147: 0 | I147: 0 | J147: 1.1313 | L147: 0 | M147: 0 | N147: 0 | O147: 0 | P147: 0 | Q147: 0 | R147: 0 | S147: 0 | T147: 0 | U147: 0 | W147: 0 | X147: 0 | Y147: 0 | Z147: 0 | AA147: 0 | AB147: 0 | AC147: 0 | AD147: 0 | AE147: 0 | AF147: 0
B148: 2 | C148: Other | D148: Capex | E148: Major Capital Works | F148: Relocate Newcastle Control Room | G148: 0 | H148: 0 | I148: 0 | J148: 1.1313 | L148: 0 | M148: 0 | N148: 0 | O148: 0 | P148: 0 | Q148: 0 | R148: 0 | S148: 0 | T148: 0 | U148: 0 | W148: 0 | X148: 0 | Y148: 0 | Z148: 0 | AA148: 0 | AB148: 0 | AC148: 0 | AD148: 0 | AE148: 0 | AF148: 0
B149: 2 | C149: Direct labour | D149: Capex | E149: Ongoing Capital Works | F149: Existing Wallsend Admin | G149: 0.05 | H149: 0 | I149: 0 | J149: 1.1313 | P149: 0 | Q149: 0 | R149: 0 | S149: 0 | T149: 0 | U149: 0 | AA149: 0 | AB149: 0 | AC149: 0 | AD149: 0 | AE149: 0 | AF149: 0
B150: 2 | C150: Materials | D150: Capex | E150: Ongoing Capital Works | F150: Existing Wallsend Admin | G150: 0.8 | H150: 0 | I150: 0 | J150: 1.1313 | P150: 0 | Q150: 0 | R150: 0 | S150: 0 | T150: 0 | U150: 0 | AA150: 0 | AB150: 0 | AC150: 0 | AD150: 0 | AE150: 0 | AF150: 0
B151: 2 | C151: Contracted services | D151: Capex | E151: Ongoing Capital Works | F151: Existing Wallsend Admin | G151: 0.15 | H151: 0 | I151: 0 | J151: 1.1313 | P151: 0 | Q151: 0 | R151: 0 | S151: 0 | T151: 0 | U151: 0 | AA151: 0 | AB151: 0 | AC151: 0 | AD151: 0 | AE151: 0 | AF151: 0
B152: 2 | C152: Indirect labour / overheads | D152: Capex | E152: Ongoing Capital Works | F152: Existing Wallsend Admin | G152: 0 | H152: 0 | I152: 0 | J152: 1.1313 | L152: 0 | M152: 0 | N152: 0 | O152: 0 | P152: 0 | Q152: 0 | R152: 0 | S152: 0 | T152: 0 | U152: 0 | W152: 0 | X152: 0 | Y152: 0 | Z152: 0 | AA152: 0 | AB152: 0 | AC152: 0 | AD152: 0 | AE152: 0 | AF152: 0
B153: 2 | C153: Other | D153: Capex | E153: Ongoing Capital Works | F153: Existing Wallsend Admin | G153: 0 | H153: 0 | I153: 0 | J153: 1.1313 | L153: 0 | M153: 0 | N153: 0 | O153: 0 | P153: 0 | Q153: 0 | R153: 0 | S153: 0 | T153: 0 | U153: 0 | W153: 0 | X153: 0 | Y153: 0 | Z153: 0 | AA153: 0 | AB153: 0 | AC153: 0 | AD153: 0 | AE153: 0 | AF153: 0
B154: 2 | C154: Direct labour | D154: Capex | E154: Ongoing Capital Works | F154: Existing Wallsend Depot | G154: 0.05 | H154: 0 | I154: 0 | J154: 1.1313 | P154: 0 | Q154: 0 | R154: 0 | S154: 0 | T154: 0 | U154: 0 | AA154: 0 | AB154: 0 | AC154: 0 | AD154: 0 | AE154: 0 | AF154: 0
B155: 2 | C155: Materials | D155: Capex | E155: Ongoing Capital Works | F155: Existing Wallsend Depot | G155: 0.8 | H155: 0 | I155: 0 | J155: 1.1313 | P155: 0 | Q155: 0 | R155: 0 | S155: 0 | T155: 0 | U155: 0 | AA155: 0 | AB155: 0 | AC155: 0 | AD155: 0 | AE155: 0 | AF155: 0
B156: 2 | C156: Contracted services | D156: Capex | E156: Ongoing Capital Works | F156: Existing Wallsend Depot | G156: 0.15 | H156: 0 | I156: 0 | J156: 1.1313 | P156: 0 | Q156: 0 | R156: 0 | S156: 0 | T156: 0 | U156: 0 | AA156: 0 | AB156: 0 | AC156: 0 | AD156: 0 | AE156: 0 | AF156: 0
B157: 2 | C157: Indirect labour / overheads | D157: Capex | E157: Ongoing Capital Works | F157: Existing Wallsend Depot | G157: 0 | H157: 0 | I157: 0 | J157: 1.1313 | L157: 0 | M157: 0 | N157: 0 | O157: 0 | P157: 0 | Q157: 0 | R157: 0 | S157: 0 | T157: 0 | U157: 0 | W157: 0 | X157: 0 | Y157: 0 | Z157: 0 | AA157: 0 | AB157: 0 | AC157: 0 | AD157: 0 | AE157: 0 | AF157: 0
B158: 2 | C158: Other | D158: Capex | E158: Ongoing Capital Works | F158: Existing Wallsend Depot | G158: 0 | H158: 0 | I158: 0 | J158: 1.1313 | L158: 0 | M158: 0 | N158: 0 | O158: 0 | P158: 0 | Q158: 0 | R158: 0 | S158: 0 | T158: 0 | U158: 0 | W158: 0 | X158: 0 | Y158: 0 | Z158: 0 | AA158: 0 | AB158: 0 | AC158: 0 | AD158: 0 | AE158: 0 | AF158: 0
B159: 2 | C159: Direct labour | D159: Capex | E159: Ongoing Capital Works | F159: Additional Beresfield Depot | G159: 0.05 | H159: 0 | I159: 0 | J159: 1.1313 | L159: 0 | M159: 0 | N159: 0 | O159: 0 | W159: 0 | X159: 0 | Y159: 0 | Z159: 0
B160: 2 | C160: Materials | D160: Capex | E160: Ongoing Capital Works | F160: Additional Beresfield Depot | G160: 0.8 | H160: 0 | I160: 0 | J160: 1.1313 | L160: 0 | M160: 0 | N160: 0 | O160: 0 | W160: 0 | X160: 0 | Y160: 0 | Z160: 0
B161: 2 | C161: Contracted services | D161: Capex | E161: Ongoing Capital Works | F161: Additional Beresfield Depot | G161: 0.15 | H161: 0 | I161: 0 | J161: 1.1313 | L161: 0 | M161: 0 | N161: 0 | O161: 0 | W161: 0 | X161: 0 | Y161: 0 | Z161: 0
B162: 2 | C162: Indirect labour / overheads | D162: Capex | E162: Ongoing Capital Works | F162: Additional Beresfield Depot | G162: 0 | H162: 0 | I162: 0 | J162: 1.1313 | L162: 0 | M162: 0 | N162: 0 | O162: 0 | P162: 0 | Q162: 0 | R162: 0 | S162: 0 | T162: 0 | U162: 0 | W162: 0 | X162: 0 | Y162: 0 | Z162: 0 | AA162: 0 | AB162: 0 | AC162: 0 | AD162: 0 | AE162: 0 | AF162: 0
B163: 2 | C163: Other | D163: Capex | E163: Ongoing Capital Works | F163: Additional Beresfield Depot | G163: 0 | H163: 0 | I163: 0 | J163: 1.1313 | L163: 0 | M163: 0 | N163: 0 | O163: 0 | P163: 0 | Q163: 0 | R163: 0 | S163: 0 | T163: 0 | U163: 0 | W163: 0 | X163: 0 | Y163: 0 | Z163: 0 | AA163: 0 | AB163: 0 | AC163: 0 | AD163: 0 | AE163: 0 | AF163: 0
B164: 2 | C164: =C159 -> Direct labour | D164: Capex | E164: Ongoing Capital Works | F164: Newcastle Corporate Project | G164: 0.05 | H164: 0 | I164: 0 | J164: 1.1313 | L164: 0 | M164: 0 | N164: 0 | O164: 0 | W164: 0 | X164: 0 | Y164: 0 | Z164: 0
B165: 2 | C165: Materials | D165: Capex | E165: Ongoing Capital Works | F165: Newcastle Corporate Project | G165: 0.8 | H165: 0 | I165: 0 | J165: 1.1313 | L165: 0 | M165: 0 | N165: 0 | O165: 0 | W165: 0 | X165: 0 | Y165: 0 | Z165: 0
B166: 2 | C166: Contracted services | D166: Capex | E166: Ongoing Capital Works | F166: Newcastle Corporate Project | G166: 0.15 | H166: 0 | I166: 0 | J166: 1.1313 | L166: 0 | M166: 0 | N166: 0 | O166: 0 | W166: 0 | X166: 0 | Y166: 0 | Z166: 0
B167: 2 | C167: Indirect labour / overheads | D167: Capex | E167: Ongoing Capital Works | F167: Newcastle Corporate Project | G167: 0 | H167: 0 | I167: 0 | J167: 1.1313 | L167: 0 | M167: 0 | N167: 0 | O167: 0 | P167: 0 | Q167: 0 | R167: 0 | S167: 0 | T167: 0 | U167: 0 | W167: 0 | X167: 0 | Y167: 0 | Z167: 0 | AA167: 0 | AB167: 0 | AC167: 0 | AD167: 0 | AE167: 0 | AF167: 0
B168: 2 | C168: Other | D168: Capex | E168: Ongoing Capital Works | F168: Newcastle Corporate Project | G168: 0 | H168: 0 | I168: 0 | J168: 1.1313 | L168: 0 | M168: 0 | N168: 0 | O168: 0 | P168: 0 | Q168: 0 | R168: 0 | S168: 0 | T168: 0 | U168: 0 | W168: 0 | X168: 0 | Y168: 0 | Z168: 0 | AA168: 0 | AB168: 0 | AC168: 0 | AD168: 0 | AE168: 0 | AF168: 0
B169: 2 | C169: Direct labour | D169: Capex | E169: Ongoing Capital Works | F169: Newcastle South Depot | G169: 0.05 | H169: 0 | I169: 0 | J169: 1.1313 | L169: 0 | M169: 0 | N169: 0 | O169: 0 | W169: 0 | X169: 0 | Y169: 0 | Z169: 0
B170: 2 | C170: Materials | D170: Capex | E170: Ongoing Capital Works | F170: Newcastle South Depot | G170: 0.8 | H170: 0 | I170: 0 | J170: 1.1313 | L170: 0 | M170: 0 | N170: 0 | O170: 0 | W170: 0 | X170: 0 | Y170: 0 | Z170: 0
B171: 2 | C171: Contracted services | D171: Capex | E171: Ongoing Capital Works | F171: Newcastle South Depot | G171: 0.15 | H171: 0 | I171: 0 | J171: 1.1313 | L171: 0 | M171: 0 | N171: 0 | O171: 0 | W171: 0 | X171: 0 | Y171: 0 | Z171: 0
B172: 2 | C172: Indirect labour / overheads | D172: Capex | E172: Ongoing Capital Works | F172: Newcastle South Depot | G172: 0 | H172: 0 | I172: 0 | J172: 1.1313 | L172: 0 | M172: 0 | N172: 0 | O172: 0 | P172: 0 | Q172: 0 | R172: 0 | S172: 0 | T172: 0 | U172: 0 | W172: 0 | X172: 0 | Y172: 0 | Z172: 0 | AA172: 0 | AB172: 0 | AC172: 0 | AD172: 0 | AE172: 0 | AF172: 0
B173: 2 | C173: Other | D173: Capex | E173: Ongoing Capital Works | F173: Newcastle South Depot | G173: 0 | H173: 0 | I173: 0 | J173: 1.1313 | L173: 0 | M173: 0 | N173: 0 | O173: 0 | P173: 0 | Q173: 0 | R173: 0 | S173: 0 | T173: 0 | U173: 0 | W173: 0 | X173: 0 | Y173: 0 | Z173: 0 | AA173: 0 | AB173: 0 | AC173: 0 | AD173: 0 | AE173: 0 | AF173: 0
B174: 2 | C174: =C169 -> Direct labour | D174: Capex | E174: Rental Cost | F174: Net Rental Cost | G174: 0.05 | H174: 0 | I174: 0 | J174: 1.1313 | L174: 0 | M174: 0 | W174: 0 | X174: 0
B175: 2 | C175: =C170 -> Materials | D175: Capex | E175: Rental Cost | F175: Net Rental Cost | G175: 0.8 | H175: 0 | I175: 0 | J175: 1.1313 | L175: 0 | M175: 0 | W175: 0 | X175: 0
B176: 2 | C176: Contracted services | D176: Capex | E176: Rental Cost | F176: Net Rental Cost | G176: 0.15 | H176: 0 | I176: 0 | J176: 1.1313 | L176: 0 | M176: 0 | W176: 0 | X176: 0
B177: 2 | C177: Indirect labour / overheads | D177: Capex | E177: Rental Cost | F177: Net Rental Cost | G177: 0 | H177: 0 | I177: 0 | J177: 1.1313 | L177: 0 | M177: 0 | N177: 0 | O177: 0 | P177: 0 | Q177: 0 | R177: 0 | S177: 0 | T177: 0 | U177: 0 | W177: 0 | X177: 0 | Y177: 0 | Z177: 0 | AA177: 0 | AB177: 0 | AC177: 0 | AD177: 0 | AE177: 0 | AF177: 0
B178: 2 | C178: Other | D178: Capex | E178: Rental Cost | F178: Net Rental Cost | G178: 0 | H178: 0 | I178: 0 | J178: 1.1313 | L178: 0 | M178: 0 | N178: 0 | O178: 0 | P178: 0 | Q178: 0 | R178: 0 | S178: 0 | T178: 0 | U178: 0 | W178: 0 | X178: 0 | Y178: 0 | Z178: 0 | AA178: 0 | AB178: 0 | AC178: 0 | AD178: 0 | AE178: 0 | AF178: 0
B179: 2 | C179: =C174 -> Direct labour | D179: Capex | E179: Relocation Costs | F179: Relocation Costs | G179: 0.05 | H179: 0 | I179: 0 | J179: 1.1313 | L179: 0 | M179: 0 | N179: 0 | P179: 0 | Q179: 0 | R179: 0 | S179: 0 | T179: 0 | U179: 0 | W179: 0 | X179: 0 | Y179: 0 | AA179: 0 | AB179: 0 | AC179: 0 | AD179: 0 | AE179: 0 | AF179: 0
B180: 2 | C180: =C175 -> Materials | D180: Capex | E180: Relocation Costs | F180: Relocation Costs | G180: 0.8 | H180: 0 | I180: 0 | J180: 1.1313 | L180: 0 | M180: 0 | N180: 0 | P180: 0 | Q180: 0 | R180: 0 | S180: 0 | T180: 0 | U180: 0 | W180: 0 | X180: 0 | Y180: 0 | AA180: 0 | AB180: 0 | AC180: 0 | AD180: 0 | AE180: 0 | AF180: 0
B181: 2 | C181: Contracted services | D181: Capex | E181: Relocation Costs | F181: Relocation Costs | G181: 0.15 | H181: 0 | I181: 0 | J181: 1.1313 | L181: 0 | M181: 0 | N181: 0 | P181: 0 | Q181: 0 | R181: 0 | S181: 0 | T181: 0 | U181: 0 | W181: 0 | X181: 0 | Y181: 0 | AA181: 0 | AB181: 0 | AC181: 0 | AD181: 0 | AE181: 0 | AF181: 0
B182: 2 | C182: Indirect labour / overheads | D182: Capex | E182: Relocation Costs | F182: Relocation Costs | G182: 0 | H182: 0 | I182: 0 | J182: 1.1313 | L182: 0 | M182: 0 | N182: 0 | O182: 0 | P182: 0 | Q182: 0 | R182: 0 | S182: 0 | T182: 0 | U182: 0 | W182: 0 | X182: 0 | Y182: 0 | Z182: 0 | AA182: 0 | AB182: 0 | AC182: 0 | AD182: 0 | AE182: 0 | AF182: 0
B183: 2 | C183: Other | D183: Capex | E183: Relocation Costs | F183: Relocation Costs | G183: 0 | H183: 0 | I183: 0 | J183: 1.1313 | L183: 0 | M183: 0 | N183: 0 | O183: 0 | P183: 0 | Q183: 0 | R183: 0 | S183: 0 | T183: 0 | U183: 0 | W183: 0 | X183: 0 | Y183: 0 | Z183: 0 | AA183: 0 | AB183: 0 | AC183: 0 | AD183: 0 | AE183: 0 | AF183: 0
B184: 2 | C184: Direct labour | D184: Capex | E184: Divestment Values | F184: Wallsend Admin | G184: 0.05 | H184: 0 | I184: 0 | J184: 1.1313 | L184: 0 | M184: 0 | N184: 0 | O184: 0 | P184: 0 | Q184: 0 | R184: 0 | S184: 0 | T184: 0 | U184: 0 | W184: 0 | X184: 0 | Y184: 0 | Z184: 0 | AA184: 0 | AB184: 0 | AC184: 0 | AD184: 0 | AE184: 0 | AF184: 0
B185: 2 | C185: Materials | D185: Capex | E185: Divestment Values | F185: Wallsend Admin | G185: 0.8 | H185: 0 | I185: 0 | J185: 1.1313 | L185: 0 | M185: 0 | N185: 0 | O185: 0 | P185: 0 | Q185: 0 | R185: 0 | S185: 0 | T185: 0 | U185: 0 | W185: 0 | X185: 0 | Y185: 0 | Z185: 0 | AA185: 0 | AB185: 0 | AC185: 0 | AD185: 0 | AE185: 0 | AF185: 0
B186: 2 | C186: Contracted services | D186: Capex | E186: Divestment Values | F186: Wallsend Admin | G186: 0.15 | H186: 0 | I186: 0 | J186: 1.1313 | L186: 0 | M186: 0 | N186: 0 | O186: 0 | P186: 0 | Q186: 0 | R186: 0 | S186: 0 | T186: 0 | U186: 0 | W186: 0 | X186: 0 | Y186: 0 | Z186: 0 | AA186: 0 | AB186: 0 | AC186: 0 | AD186: 0 | AE186: 0 | AF186: 0
B187: 2 | C187: Indirect labour / overheads | D187: Capex | E187: Divestment Values | F187: Wallsend Admin | G187: 0 | H187: 0 | I187: 0 | J187: 1.1313 | L187: 0 | M187: 0 | N187: 0 | O187: 0 | P187: 0 | Q187: 0 | R187: 0 | S187: 0 | T187: 0 | U187: 0 | W187: 0 | X187: 0 | Y187: 0 | Z187: 0 | AA187: 0 | AB187: 0 | AC187: 0 | AD187: 0 | AE187: 0 | AF187: 0
B188: 2 | C188: Other | D188: Capex | E188: Divestment Values | F188: Wallsend Admin | G188: 0 | H188: 0 | I188: 0 | J188: 1.1313 | L188: 0 | M188: 0 | N188: 0 | O188: 0 | P188: 0 | Q188: 0 | R188: 0 | S188: 0 | T188: 0 | U188: 0 | W188: 0 | X188: 0 | Y188: 0 | Z188: 0 | AA188: 0 | AB188: 0 | AC188: 0 | AD188: 0 | AE188: 0 | AF188: 0
B189: 2 | C189: Direct labour | D189: Capex | E189: Divestment Values | F189: Wallsend Depot | G189: 0.05 | H189: 0 | I189: 0 | J189: 1.1313 | L189: 0 | M189: 0 | N189: 0 | O189: 0 | P189: 0 | Q189: 0 | R189: 0 | S189: 0 | T189: 0 | U189: 0 | W189: 0 | X189: 0 | Y189: 0 | Z189: 0 | AA189: 0 | AB189: 0 | AC189: 0 | AD189: 0 | AE189: 0 | AF189: 0
B190: 2 | C190: Materials | D190: Capex | E190: Divestment Values | F190: Wallsend Depot | G190: 0.8 | H190: 0 | I190: 0 | J190: 1.1313 | L190: 0 | M190: 0 | N190: 0 | O190: 0 | P190: 0 | Q190: 0 | R190: 0 | S190: 0 | T190: 0 | U190: 0 | W190: 0 | X190: 0 | Y190: 0 | Z190: 0 | AA190: 0 | AB190: 0 | AC190: 0 | AD190: 0 | AE190: 0 | AF190: 0
B191: 2 | C191: Contracted services | D191: Capex | E191: Divestment Values | F191: Wallsend Depot | G191: 0.15 | H191: 0 | I191: 0 | J191: 1.1313 | L191: 0 | M191: 0 | N191: 0 | O191: 0 | P191: 0 | Q191: 0 | R191: 0 | S191: 0 | T191: 0 | U191: 0 | W191: 0 | X191: 0 | Y191: 0 | Z191: 0 | AA191: 0 | AB191: 0 | AC191: 0 | AD191: 0 | AE191: 0 | AF191: 0
B192: 2 | C192: Indirect labour / overheads | D192: Capex | E192: Divestment Values | F192: Wallsend Depot | G192: 0 | H192: 0 | I192: 0 | J192: 1.1313 | L192: 0 | M192: 0 | N192: 0 | O192: 0 | P192: 0 | Q192: 0 | R192: 0 | S192: 0 | T192: 0 | U192: 0 | W192: 0 | X192: 0 | Y192: 0 | Z192: 0 | AA192: 0 | AB192: 0 | AC192: 0 | AD192: 0 | AE192: 0 | AF192: 0
B193: 2 | C193: Other | D193: Capex | E193: Divestment Values | F193: Wallsend Depot | G193: 0 | H193: 0 | I193: 0 | J193: 1.1313 | L193: 0 | M193: 0 | N193: 0 | O193: 0 | P193: 0 | Q193: 0 | R193: 0 | S193: 0 | T193: 0 | U193: 0 | W193: 0 | X193: 0 | Y193: 0 | Z193: 0 | AA193: 0 | AB193: 0 | AC193: 0 | AD193: 0 | AE193: 0 | AF193: 0
E195: =SUM(E174:E193,E129:E148,E94:E98) -> 0
A196: =$A$3&"."&COUNTA($A$3:A79) -> 10.3 | B196: Project Brief 1 cost assumptions, Option 3
L198: FY21 dollars, direct and indirect, full stack costs | W198: Real FY24 dollars, SCS only, direct costs only, includes real labour escalators
B199: =B7 -> Option | C199: Cost category | D199: Capex/Opex | E199: Cost group | F199: Cost name | G199: Category Allocation % | H199: Indirect Cost % | I199: Direct Labour % | J199: Real to Real Translation Factor | L199: FY23 | M199: FY24 | N199: FY25 | O199: FY26 | P199: FY27 | Q199: FY28 | R199: FY29 | S199: FY30 | T199: FY31 | U199: FY32 | W199: FY23 | X199: FY24 | Y199: FY25 | Z199: FY26 | AA199: FY27 | AB199: FY28 | AC199: FY29 | AD199: FY30 | AE199: FY31 | AF199: FY32
B200: 3 | C200: Total | D200: Capex | E200: Total | L200: =IF($C200="Total",SUMIFS(L$214:L$215,$D$214:$D$215,$D200),SUMIFS(L$214:L$215,$D$214:$D$215,$D200,$C$214:$C$215,$C200)) -> 0 | M200: 0 | N200: 0 | O200: 0 | P200: 0 | Q200: 0 | R200: 0 | S200: 0 | T200: 0 | U200: 0 | W200: =IF($C200="Total",SUMIFS(W$214:W$215,$D$214:$D$215,$D200),SUMIFS(W$214:W$215,$D$214:$D$215,$D200,$C$214:$C$215,$C200)) -> 0 | X200: 0 | Y200: 0 | Z200: 0 | AA200: 0 | AB200: 0 | AC200: 0 | AD200: 0 | AE200: 0 | AF200: 0
B201: 3 | C201: Direct labour | D201: Capex | E201: Total | L201: 0 | M201: 0 | N201: 0 | O201: 0 | P201: 0 | Q201: 0 | R201: 0 | S201: 0 | T201: 0 | U201: 0 | W201: 0 | X201: 0 | Y201: 0 | Z201: 0 | AA201: 0 | AB201: 0 | AC201: 0 | AD201: 0 | AE201: 0 | AF201: 0
B202: 3 | C202: Materials | D202: Capex | E202: Total | L202: 0 | M202: 0 | N202: 0 | O202: 0 | P202: 0 | Q202: 0 | R202: 0 | S202: 0 | T202: 0 | U202: 0 | W202: 0 | X202: 0 | Y202: 0 | Z202: 0 | AA202: 0 | AB202: 0 | AC202: 0 | AD202: 0 | AE202: 0 | AF202: 0
B203: 3 | C203: Contracted services | D203: Capex | E203: Total | L203: 0 | M203: 0 | N203: 0 | O203: 0 | P203: 0 | Q203: 0 | R203: 0 | S203: 0 | T203: 0 | U203: 0 | W203: 0 | X203: 0 | Y203: 0 | Z203: 0 | AA203: 0 | AB203: 0 | AC203: 0 | AD203: 0 | AE203: 0 | AF203: 0
B204: 3 | C204: Indirect labour / overheads | D204: Capex | E204: Total | L204: 0 | M204: 0 | N204: 0 | O204: 0 | P204: 0 | Q204: 0 | R204: 0 | S204: 0 | T204: 0 | U204: 0 | W204: 0 | X204: 0 | Y204: 0 | Z204: 0 | AA204: 0 | AB204: 0 | AC204: 0 | AD204: 0 | AE204: 0 | AF204: 0
B205: 3 | C205: Other | D205: Capex | E205: Total | L205: 0 | M205: 0 | N205: 0 | O205: 0 | P205: 0 | Q205: 0 | R205: 0 | S205: 0 | T205: 0 | U205: 0 | W205: 0 | X205: 0 | Y205: 0 | Z205: 0 | AA205: 0 | AB205: 0 | AC205: 0 | AD205: 0 | AE205: 0 | AF205: 0
B207: 3 | C207: Total | D207: Opex | E207: Total | L207: =IF($C207="Total",SUMIFS(L$214:L$215,$D$214:$D$215,$D207),SUMIFS(L$214:L$215,$D$214:$D$215,$D207,$C$214:$C$215,$C207)) -> 0 | M207: 0 | N207: 0 | O207: 0 | P207: 0 | Q207: 0 | R207: 0 | S207: 0 | T207: 0 | U207: 0 | W207: =IF($C207="Total",SUMIFS(W$214:W$215,$D$214:$D$215,$D207),SUMIFS(W$214:W$215,$D$214:$D$215,$D207,$C$214:$C$215,$C207)) -> 0 | X207: 0 | Y207: 0 | Z207: 0 | AA207: 0 | AB207: 0 | AC207: 0 | AD207: 0 | AE207: 0 | AF207: 0
B208: 3 | C208: Direct labour | D208: Opex | E208: Total | L208: 0 | M208: 0 | N208: 0 | O208: 0 | P208: 0 | Q208: 0 | R208: 0 | S208: 0 | T208: 0 | U208: 0 | W208: 0 | X208: 0 | Y208: 0 | Z208: 0 | AA208: 0 | AB208: 0 | AC208: 0 | AD208: 0 | AE208: 0 | AF208: 0
B209: 3 | C209: Materials | D209: Opex | E209: Total | L209: 0 | M209: 0 | N209: 0 | O209: 0 | P209: 0 | Q209: 0 | R209: 0 | S209: 0 | T209: 0 | U209: 0 | W209: 0 | X209: 0 | Y209: 0 | Z209: 0 | AA209: 0 | AB209: 0 | AC209: 0 | AD209: 0 | AE209: 0 | AF209: 0
B210: 3 | C210: Contracted services | D210: Opex | E210: Total | L210: 0 | M210: 0 | N210: 0 | O210: 0 | P210: 0 | Q210: 0 | R210: 0 | S210: 0 | T210: 0 | U210: 0 | W210: 0 | X210: 0 | Y210: 0 | Z210: 0 | AA210: 0 | AB210: 0 | AC210: 0 | AD210: 0 | AE210: 0 | AF210: 0
B211: 3 | C211: Indirect labour / overheads | D211: Opex | E211: Total | L211: 0 | M211: 0 | N211: 0 | O211: 0 | P211: 0 | Q211: 0 | R211: 0 | S211: 0 | T211: 0 | U211: 0 | W211: 0 | X211: 0 | Y211: 0 | Z211: 0 | AA211: 0 | AB211: 0 | AC211: 0 | AD211: 0 | AE211: 0 | AF211: 0
B212: 3 | C212: Other | D212: Opex | E212: Total | L212: 0 | M212: 0 | N212: 0 | O212: 0 | P212: 0 | Q212: 0 | R212: 0 | S212: 0 | T212: 0 | U212: 0 | W212: 0 | X212: 0 | Y212: 0 | Z212: 0 | AA212: 0 | AB212: 0 | AC212: 0 | AD212: 0 | AE212: 0 | AF212: 0

Sheet PB_Input
A1: =Cover!C10 -> Proposed Non-Network Property Expenditure – Newcastle Region Program Cost-Benefit Analysis
A2: =RIGHT(CELL("filename",A1),LEN(CELL("filename",A1))-FIND("]",CELL("filename",A1))) -> PB_Input
A3: =_xlfn.SHEET() -> 11
A5: =$A$3&"."&COUNTA($A$3:A4) -> 11.1 | B5: Option 1 Input Sheet for Ausgrid NPV Model
Y7: QuickCalc
B8: Category | C8: Category name in Ausgrid NPV model | D8: Description | F8: FY23 | G8: FY24 | H8: FY25 | I8: FY26 | J8: FY27 | K8: FY28 | L8: FY29 | M8: FY30 | N8: FY31 | O8: FY32 | Y8: Reference
B9: Capex | C9: Capex cost | D9: Capital expenditure | F9: =-PB_cost_A!W9 -> 0 | G9: =-PB_cost_A!X9 -> 0 | H9: =-PB_cost_A!Y9 -> 0 | I9: =-PB_cost_A!Z9 -> 0 | J9: =-PB_cost_A!AA9 -> 0 | K9: =-PB_cost_A!AB9 -> 0 | L9: =-PB_cost_A!AC9 -> 0 | M9: =-PB_cost_A!AD9 -> 0 | N9: =-PB_cost_A!AE9 -> 0 | O9: =-PB_cost_A!AF9 -> 0 | Y9: to row 22
B10: Capex benefit | C10: Capex benefits | D10: Reductions in capex (entered as positive) | F10: =+PB_benefit_A!AD10 -> 0 | G10: =+PB_benefit_A!AE10 -> 0 | H10: =+PB_benefit_A!AF10 -> 0 | I10: =+PB_benefit_A!AG10 -> 0 | J10: =+PB_benefit_A!AH10 -> 0 | K10: =+PB_benefit_A!AI10 -> 0 | L10: =+PB_benefit_A!AJ10 -> 0 | M10: =+PB_benefit_A!AK10 -> 0 | N10: =+PB_benefit_A!AL10 -> 0 | O10: =+PB_benefit_A!AM10 -> 0 | Y10: to row 24
B11: One-off opex | C11: Investment opex | D11: One off opex, no perpetuity impact | F11: =-PB_cost_A!W16 -> 0 | G11: =-PB_cost_A!X16 -> 0 | H11: =-PB_cost_A!Y16 -> 0 | I11: =-PB_cost_A!Z16 -> 0 | J11: =-PB_cost_A!AA16 -> 0 | K11: =-PB_cost_A!AB16 -> 0 | L11: =-PB_cost_A!AC16 -> 0 | M11: =-PB_cost_A!AD16 -> 0 | N11: =-PB_cost_A!AE16 -> 0 | O11: =-PB_cost_A!AF16 -> 0 | Y11: to row 28
B12: New opex | C12: n/a | F12: =-PB_cost_A!W16 -> 0 | G12: =-PB_cost_A!X16 -> 0 | H12: =-PB_cost_A!Y16 -> 0 | I12: =-PB_cost_A!Z16 -> 0 | J12: =-PB_cost_A!AA16 -> 0 | K12: =-PB_cost_A!AB16 -> 0 | L12: =-PB_cost_A!AC16 -> 0 | M12: =-PB_cost_A!AD16 -> 0 | N12: =-PB_cost_A!AE16 -> 0 | O12: =-PB_cost_A!AF16 -> 0
B13: Opex cost reduction | C13: n/a | F13: =+PB_benefit_A!AD11 -> 0 | G13: =+PB_benefit_A!AE11 -> 0 | H13: =+PB_benefit_A!AF11 -> 0 | I13: =+PB_benefit_A!AG11 -> 0 | J13: =+PB_benefit_A!AH11 -> 0 | K13: =+PB_benefit_A!AI11 -> 0 | L13: =+PB_benefit_A!AJ11 -> 0 | M13: =+PB_benefit_A!AK11 -> 0 | N13: =+PB_benefit_A!AL11 -> 0 | O13: =+PB_benefit_A!AM11 -> 0
B14: Ongoing opex productivity benefit | C14: n/a | D14: Include here if these are ongoing (below if one-off) | F14: =+PB_benefit_A!AD12 -> 0 | G14: =+PB_benefit_A!AE12 -> 0 | H14: =+PB_benefit_A!AF12 -> 0 | I14: =+PB_benefit_A!AG12 -> 0 | J14: =+PB_benefit_A!AH12 -> 0 | K14: =+PB_benefit_A!AI12 -> 0 | L14: =+PB_benefit_A!AJ12 -> 0 | M14: =+PB_benefit_A!AK12 -> 0 | N14: =+PB_benefit_A!AL12 -> 0 | O14: =+PB_benefit_A!AM12 -> 0
B15: Opex | C15: Total ongoing opex | F15: =SUM(F12:F14) -> 0 | G15: =SUM(G12:G14) -> 0 | H15: 0 | I15: 0 | J15: 0 | K15: 0 | L15: 0 | M15: 0 | N15: 0 | O15: 0 | Y15: to row 29
B17: One off opex productivity benefits | C17: Decrease in Opex Costs | D17: Include here if one off (and not running into perpetuity) | Y17: to row 51
B18: Note that for risk-related benefits, Option 1 is used as the baseline and as such risk-related benefits for Option 1 should generally be zero
B19: Customer time saved | D19: For time based customer benefits | F19: =PB_benefit_A!AD15 -> 0 | G19: =PB_benefit_A!AE15 -> 0 | H19: =PB_benefit_A!AF15 -> 0 | I19: =PB_benefit_A!AG15 -> 0 | J19: =PB_benefit_A!AH15 -> 0 | K19: =PB_benefit_A!AI15 -> 0 | L19: =PB_benefit_A!AJ15 -> 0 | M19: =PB_benefit_A!AK15 -> 0 | N19: =PB_benefit_A!AL15 -> 0 | O19: =PB_benefit_A!AM15 -> 0
B20: Reliable electricity supply risks | D20: For VCR based customer risk
B21: Total | C21: Customer value | F21: =SUM(F19:F20) -> 0 | G21: =SUM(G19:G20) -> 0 | H21: 0 | I21: 0 | J21: 0 | K21: 0 | L21: 0 | M21: 0 | N21: 0 | O21: 0 | Y21: to row 56
B23: Compliance & contractual risks | C23: Fines and penalties | F23: 0 | G23: 0 | H23: 0 | I23: 0 | J23: 0 | K23: 0 | L23: 0 | M23: 0 | N23: 0 | O23: 0 | Y23: to row 44
B24: Safety risks | C24: Safety risk | F24: 0 | G24: 0 | H24: 0 | I24: 0 | J24: 0 | K24: 0 | L24: 0 | M24: 0 | N24: 0 | O24: 0 | Y24: to row 31
B25: Environmental risks | C25: Environment risk | F25: 0 | G25: 0 | H25: 0 | I25: 0 | J25: 0 | K25: 0 | L25: 0 | M25: 0 | N25: 0 | O25: 0 | Y25: to row 33
B26: Protective Security risks | C26: Protective Security risks | F26: 0 | G26: 0 | H26: 0 | I26: 0 | J26: 0 | K26: 0 | L26: 0 | M26: 0 | N26: 0 | O26: 0 | Y26: to row 32
A28: =$A$3&"."&COUNTA($A$3:A27) -> 11.2 | B28: Option 2 Input Sheet for Ausgrid NPV Model
B31: Category | C31: Category name in Ausgrid NPV model | D31: Description | F31: FY23 | G31: FY24 | H31: FY25 | I31: FY26 | J31: FY27 | K31: FY28 | L31: FY29 | M31: FY30 | N31: FY31 | O31: FY32 | P31: FY33 | Q31: FY34 | R31: FY35 | S31: FY36 | T31: FY37 | U31: FY38 | V31: FY39 | W31: FY40 | X31: FY41
B32: Capex | C32: Capex cost | D32: Capital expenditure | Y32: to row 22
B33: Capex benefit | C33: Capex benefits | D33: Reductions in capex (entered as positive) | F33: =+PB_benefit_A!AD58 -> 0 | G33: =+PB_benefit_A!AE58 -> 0 | H33: =+PB_benefit_A!AF58 -> 0 | I33: =+PB_benefit_A!AG58 -> 0 | J33: =+PB_benefit_A!AH58 -> 0 | L33: =+PB_benefit_A!AJ58 -> 0 | M33: =+PB_benefit_A!AK58 -> 0 | N33: =+PB_benefit_A!AL58 -> 0 | O33: =+PB_benefit_A!AM58 -> 0 | Y33: to row 24
B34: One-off opex | C34: Investment opex | D34: One off opex, no perpetuity impact | F34: =-PB_cost_A!W87 -> 0 | G34: =-PB_cost_A!X87 -> 0 | H34: =-PB_cost_A!Y87 -> 0 | I34: =-PB_cost_A!Z87 -> 0 | Y34: to row 28
B35: New opex | C35: n/a
B36: Opex cost reduction | C36: n/a | F36: =+PB_benefit_A!AD59 -> 0 | G36: =+PB_benefit_A!AE59 -> 0 | H36: =+PB_benefit_A!AF59 -> 0 | I36: =+PB_benefit_A!AG59 -> 0 | J36: =+PB_benefit_A!AH59 -> 1735532.902 | K36: =+PB_benefit_A!AI59 -> 2047423.47 | L36: =+PB_benefit_A!AJ59 -> 2051971.099 | M36: =+PB_benefit_A!AK59 -> 2056601.902 | N36: =+PB_benefit_A!AL59 -> 2061300.473 | O36: =+PB_benefit_A!AM59 -> 2066067.803
B37: Ongoing opex productivity benefit | C37: n/a | D37: Include here if these are ongoing (below if one-off) | F37: =+PB_benefit_A!AD60 -> 0 | G37: =+PB_benefit_A!AE60 -> 0 | H37: =+PB_benefit_A!AF60 -> 0 | I37: =+PB_benefit_A!AG60 -> 0 | J37: =+PB_benefit_A!AH60 -> 0 | K37: =+PB_benefit_A!AI60 -> 0 | L37: =+PB_benefit_A!AJ60 -> 0 | M37: =+PB_benefit_A!AK60 -> 0 | N37: =+PB_benefit_A!AL60 -> 0 | O37: =+PB_benefit_A!AM60 -> 0
B38: Opex | C38: Total ongoing opex benefits | F38: =SUM(F35:F37) -> 0 | G38: =SUM(G35:G37) -> 0 | H38: =SUM(H35:H37) -> 0 | I38: =SUM(I35:I37) -> 0 | J38: =SUM(J35:J37) -> 1735532.902 | K38: =SUM(K35:K37) -> 2047423.47 | L38: =SUM(L35:L37) -> 2051971.099 | M38: =SUM(M35:M37) -> 2056601.902 | N38: =SUM(N35:N37) -> 2061300.473 | O38: =SUM(O35:O37) -> 2066067.803 | Y38: to row 29
B40: One off opex productitity benefits | C40: Decrease in Opex Costs | D40: Include here if one off (and not running into perpetuity) | Y40: to row 51
B42: Customer time saved | D42: For time based customer benefit | F42: =PB_benefit_A!AD63 -> 0 | G42: =PB_benefit_A!AE63 -> 0 | H42: =PB_benefit_A!AF63 -> 0 | I42: =PB_benefit_A!AG63 -> 0 | J42: =PB_benefit_A!AH63 -> 0 | K42: =PB_benefit_A!AI63 -> 0 | L42: =PB_benefit_A!AJ63 -> 0 | M42: =PB_benefit_A!AK63 -> 0 | N42: =PB_benefit_A!AL63 -> 0 | O42: =PB_benefit_A!AM63 -> 0
B43: Reliable electricity supply risks | D43: For VCR based customer benefit (relative to Base Case)
B44: Total | C44: Customer value | F44: =SUM(F42:F43) -> 0 | G44: 0 | H44: 0 | I44: 0 | J44: 0 | K44: 0 | L44: 0 | M44: 0 | N44: 0 | O44: 0 | Y44: to row 56
B46: Compliance & contractual risks | C46: Fines and penalties | F46: =PB_benefit_A!AD73 -> 0 | G46: =PB_benefit_A!AE73 -> 0 | H46: =PB_benefit_A!AF73 -> 0 | I46: =PB_benefit_A!AG73 -> 0 | J46: =PB_benefit_A!AH73 -> 0 | K46: =PB_benefit_A!AI73 -> 0 | L46: =PB_benefit_A!AJ73 -> 0 | M46: =PB_benefit_A!AK73 -> 0 | N46: =PB_benefit_A!AL73 -> 0 | O46: =PB_benefit_A!AM73 -> 0 | Y46: to row 44
B47: Safety risks | C47: Safety risk | F47: =SUM(PB_benefit_A!AD77:AD78) -> 0 | G47: =SUM(PB_benefit_A!AE77:AE78) -> 0 | H47: =SUM(PB_benefit_A!AF77:AF78) -> 0 | I47: =SUM(PB_benefit_A!AG77:AG78) -> 0 | J47: =SUM(PB_benefit_A!AH77:AH78) -> 0 | K47: =SUM(PB_benefit_A!AI77:AI78) -> 493295.4545 | L47: =SUM(PB_benefit_A!AJ77:AJ78) -> 493295.4545 | M47: =SUM(PB_benefit_A!AK77:AK78) -> 493295.4545 | N47: =SUM(PB_benefit_A!AL77:AL78) -> 493295.4545 | O47: =SUM(PB_benefit_A!AM77:AM78) -> 493295.4545 | Y47: to row 31
B48: Environmental risks | C48: Environment risk | F48: =PB_benefit_A!AD79 -> 0 | G48: =PB_benefit_A!AE79 -> 0 | H48: =PB_benefit_A!AF79 -> 0 | I48: =PB_benefit_A!AG79 -> 0 | J48: =PB_benefit_A!AH79 -> 0 | K48: =PB_benefit_A!AI79 -> 2647.619048 | L48: =PB_benefit_A!AJ79 -> 2647.619048 | M48: =PB_benefit_A!AK79 -> 2647.619048 | N48: =PB_benefit_A!AL79 -> 2647.619048 | O48: =PB_benefit_A!AM79 -> 2647.619048 | Y48: to row 33
B49: Protective Security risks | C49: Protective Security risks | Y49: to row 32

Sheet Ausgrid NPV Model>>

Sheet Output_tables
A1: Ausgrid investment evaluation model
B2: =RIGHT(CELL("filename",A1),LEN(CELL("filename",A1))-FIND("]",CELL("filename",A1))) -> Output_tables
D4: Legend | E4: Input | F4: Calculation | G4: Select | H4: Internal | I4: Assumptions | J4: Instructions | K4: Change in formula pattern
D7: Index | F7: 0 | G7: =F7+1 -> 1 | H7: =G7+1 -> 2 | I7: 3 | J7: 4 | K7: 5 | L7: 6 | M7: 7 | N7: 8 | O7: 9 | P7: 10 | Q7: 11 | R7: 12 | S7: 13 | T7: 14 | U7: 15 | V7: 16 | W7: 17 | X7: 18 | Y7: 19 | Z7: 20 | AA7: 21 | AB7: 22 | AC7: 23 | AD7: 24 | AE7: 25 | AF7: 26 | AG7: 27 | AH7: 28 | AI7: 29 | AJ7: 30 | AK7: 31 | AL7: 32 | AM7: 33 | AN7: 34 | AO7: 35 | AP7: 36 | AQ7: 37 | AR7: 38 | AS7: 39 | AT7: 40 | AU7: 41 | AV7: 42 | AW7: 43 | AX7: 44 | AY7: 45 | AZ7: 46 | BA7: 47 | BB7: 48 | BC7: 49 | BD7: 50
D8: Shareholder discount factor | F8: =INDEX(Calcs!$R$15:$BP$20,6,MATCH(Output_tables!F$7,Calcs!$R$15:$BP$15,0)) -> 1 | G8: =INDEX(Calcs!$R$15:$BP$20,6,MATCH(Output_tables!G$7,Calcs!$R$15:$BP$15,0)) -> 0.9667440062 | H8: =INDEX(Calcs!$R$15:$BP$20,6,MATCH(Output_tables!H$7,Calcs!$R$15:$BP$15,0)) -> 0.9345939735 | I8: =INDEX(Calcs!$R$15:$BP$20,6,MATCH(Output_tables!I$7,Calcs!$R$15:$BP$15,0)) -> 0.9035131221 | J8: =INDEX(Calcs!$R$15:$BP$20,6,MATCH(Output_tables!J$7,Calcs!$R$15:$BP$15,0)) -> 0.8734658953 | K8: =INDEX(Calcs!$R$15:$BP$20,6,MATCH(Output_tables!K$7,Calcs!$R$15:$BP$15,0)) -> 0.8444179189 | L8: =INDEX(Calcs!$R$15:$BP$20,6,MATCH(Output_tables!L$7,Calcs!$R$15:$BP$15,0)) -> 0.8163359618 | M8: =INDEX(Calcs!$R$15:$BP$20,6,MATCH(Output_tables!M$7,Calcs!$R$15:$BP$15,0)) -> 0.7891878981 | N8: =INDEX(Calcs!$R$15:$BP$20,6,MATCH(Output_tables!N$7,Calcs!$R$15:$BP$15,0)) -> 0.7629426703 | O8: =INDEX(Calcs!$R$15:$BP$20,6,MATCH(Output_tables!O$7,Calcs!$R$15:$BP$15,0)) -> 0.7375702535 | P8: =INDEX(Calcs!$R$15:$BP$20,6,MATCH(Output_tables!P$7,Calcs!$R$15:$BP$15,0)) -> 0.7130416217 | Q8: =INDEX(Calcs!$R$15:$BP$20,6,MATCH(Output_tables!Q$7,Calcs!$R$15:$BP$15,0)) -> 0.689328714 | R8: =INDEX(Calcs!$R$15:$BP$20,6,MATCH(Output_tables!R$7,Calcs!$R$15:$BP$15,0)) -> 0.6664044025 | S8: =INDEX(Calcs!$R$15:$BP$20,6,MATCH(Output_tables!S$7,Calcs!$R$15:$BP$15,0)) -> 0.6442424618 | T8: =INDEX(Calcs!$R$15:$BP$20,6,MATCH(Output_tables!T$7,Calcs!$R$15:$BP$15,0)) -> 0.6228175385 | U8: =INDEX(Calcs!$R$15:$BP$20,6,MATCH(Output_tables!U$7,Calcs!$R$15:$BP$15,0)) -> 0.6021051223 | V8: =INDEX(Calcs!$R$15:$BP$20,6,MATCH(Output_tables!V$7,Calcs!$R$15:$BP$15,0)) -> 0.5820815181 | W8: =INDEX(Calcs!$R$15:$BP$20,6,MATCH(Output_tables!W$7,Calcs!$R$15:$BP$15,0)) -> 0.5627238187 | X8: =INDEX(Calcs!$R$15:$BP$20,6,MATCH(Output_tables!X$7,Calcs!$R$15:$BP$15,0)) -> 0.5440098789 | Y8: =INDEX(Calcs!$R$15:$BP$20,6,MATCH(Output_tables!Y$7,Calcs!$R$15:$BP$15,0)) -> 0.5259182897 | Z8: =INDEX(Calcs!$R$15:$BP$20,6,MATCH(Output_tables!Z$7,Calcs!$R$15:$BP$15,0)) -> 0.5084283543 | AA8: =INDEX(Calcs!$R$15:$BP$20,6,MATCH(Output_tables!AA$7,Calcs!$R$15:$BP$15,0)) -> 0.4915200641 | AB8: =INDEX(Calcs!$R$15:$BP$20,6,MATCH(Output_tables!AB$7,Calcs!$R$15:$BP$15,0)) -> 0.4751740759 | AC8: =INDEX(Calcs!$R$15:$BP$20,6,MATCH(Output_tables!AC$7,Calcs!$R$15:$BP$15,0)) -> 0.4593716898 | AD8: =INDEX(Calcs!$R$15:$BP$20,6,MATCH(Output_tables!AD$7,Calcs!$R$15:$BP$15,0)) -> 0.4440948277 | AE8: =INDEX(Calcs!$R$15:$BP$20,6,MATCH(Output_tables!AE$7,Calcs!$R$15:$BP$15,0)) -> 0.4293260129 | AF8: =INDEX(Calcs!$R$15:$BP$20,6,MATCH(Output_tables!AF$7,Calcs!$R$15:$BP$15,0)) -> 0.4150483496 | AG8: =INDEX(Calcs!$R$15:$BP$20,6,MATCH(Output_tables!AG$7,Calcs!$R$15:$BP$15,0)) -> 0.4012455043 | AH8: =INDEX(Calcs!$R$15:$BP$20,6,MATCH(Output_tables!AH$7,Calcs!$R$15:$BP$15,0)) -> 0.3879016863 | AI8: =INDEX(Calcs!$R$15:$BP$20,6,MATCH(Output_tables!AI$7,Calcs!$R$15:$BP$15,0)) -> 0.3750016302 | AJ8: =INDEX(Calcs!$R$15:$BP$20,6,MATCH(Output_tables!AJ$7,Calcs!$R$15:$BP$15,0)) -> 0.3625305783 | AK8: =INDEX(Calcs!$R$15:$BP$20,6,MATCH(Output_tables!AK$7,Calcs!$R$15:$BP$15,0)) -> 0.3504742636 | AL8: =INDEX(Calcs!$R$15:$BP$20,6,MATCH(Output_tables!AL$7,Calcs!$R$15:$BP$15,0)) -> 0.3388188937 | AM8: =INDEX(Calcs!$R$15:$BP$20,6,MATCH(Output_tables!AM$7,Calcs!$R$15:$BP$15,0)) -> 0.3275511347 | AN8: =INDEX(Calcs!$R$15:$BP$20,6,MATCH(Output_tables!AN$7,Calcs!$R$15:$BP$15,0)) -> 0.3166580962 | AO8: =INDEX(Calcs!$R$15:$BP$20,6,MATCH(Output_tables!AO$7,Calcs!$R$15:$BP$15,0)) -> 0.3061273165 | AP8: =INDEX(Calcs!$R$15:$BP$20,6,MATCH(Output_tables!AP$7,Calcs!$R$15:$BP$15,0)) -> 0.2959467483 | AQ8: =INDEX(Calcs!$R$15:$BP$20,6,MATCH(Output_tables!AQ$7,Calcs!$R$15:$BP$15,0)) -> 0.2861047451 | AR8: =INDEX(Calcs!$R$15:$BP$20,6,MATCH(Output_tables!AR$7,Calcs!$R$15:$BP$15,0)) -> 0.2765900475 | AS8: =INDEX(Calcs!$R$15:$BP$20,6,MATCH(Output_tables!AS$7,Calcs!$R$15:$BP$15,0)) -> 0.2673917706 | AT8: =INDEX(Calcs!$R$15:$BP$20,6,MATCH(Output_tables!AT$7,Calcs!$R$15:$BP$15,0)) -> 0.2584993915 | AU8: =INDEX(Calcs!$R$15:$BP$20,6,MATCH(Output_tables!AU$7,Calcs!$R$15:$BP$15,0)) -> 0.2499027373 | AV8: =INDEX(Calcs!$R$15:$BP$20,6,MATCH(Output_tables!AV$7,Calcs!$R$15:$BP$15,0)) -> 0.2415919734 | AW8: =INDEX(Calcs!$R$15:$BP$20,6,MATCH(Output_tables!AW$7,Calcs!$R$15:$BP$15,0)) -> 0.2335575923 | AX8: =INDEX(Calcs!$R$15:$BP$20,6,MATCH(Output_tables!AX$7,Calcs!$R$15:$BP$15,0)) -> 0.2257904024 | AY8: =INDEX(Calcs!$R$15:$BP$20,6,MATCH(Output_tables!AY$7,Calcs!$R$15:$BP$15,0)) -> 0.2182815182 | AZ8: =INDEX(Calcs!$R$15:$BP$20,6,MATCH(Output_tables!AZ$7,Calcs!$R$15:$BP$15,0)) -> 0.2110223494 | BA8: =INDEX(Calcs!$R$15:$BP$20,6,MATCH(Output_tables!BA$7,Calcs!$R$15:$BP$15,0)) -> 0.2040045914 | BB8: =INDEX(Calcs!$R$15:$BP$20,6,MATCH(Output_tables!BB$7,Calcs!$R$15:$BP$15,0)) -> 0.197220216 | BC8: =INDEX(Calcs!$R$15:$BP$20,6,MATCH(Output_tables!BC$7,Calcs!$R$15:$BP$15,0)) -> 0.1906614617 | BD8: =INDEX(Calcs!$R$15:$BP$20,6,MATCH(Output_tables!BD$7,Calcs!$R$15:$BP$15,0)) -> 0.1843208253
B10: Investment overview and details
C15: Cash flow summary
D17: Note: Sunk costs not shown/included in cash flow summary table as pre-date current year
D18: Note: When copy and pasting into business cases, only use the 5 year period outlined for simplicity (i.e. do not copy the pattern fill section of the table)
D19: Note: Capex benefits include return on/of capital
D21: Item ($M) | E21: Total | F21: ="FY"&RIGHT(Assumptions!$L$19+F7,2) -> FY23 | G21: ="FY"&RIGHT(Assumptions!$L$19+G7,2) -> FY24 | H21: ="FY"&RIGHT(Assumptions!$L$19+H7,2) -> FY25 | I21: ="FY"&RIGHT(Assumptions!$L$19+I7,2) -> FY26 | J21: ="FY"&RIGHT(Assumptions!$L$19+J7,2) -> FY27 | K21: ="FY"&RIGHT(Assumptions!$L$19+K7,2) -> FY28 | L21: ="FY"&RIGHT(Assumptions!$L$19+L7,2) -> FY29 | M21: ="FY"&RIGHT(Assumptions!$L$19+M7,2) -> FY30 | N21: ="FY"&RIGHT(Assumptions!$L$19+N7,2) -> FY31 | O21: ="FY"&RIGHT(Assumptions!$L$19+O7,2) -> FY32 | P21: ="FY"&RIGHT(Assumptions!$L$19+P7,2) -> FY33 | Q21: ="FY"&RIGHT(Assumptions!$L$19+Q7,2) -> FY34 | R21: ="FY"&RIGHT(Assumptions!$L$19+R7,2) -> FY35 | S21: ="FY"&RIGHT(Assumptions!$L$19+S7,2) -> FY36 | T21: ="FY"&RIGHT(Assumptions!$L$19+T7,2) -> FY37 | U21: ="FY"&RIGHT(Assumptions!$L$19+U7,2) -> FY38 | V21: ="FY"&RIGHT(Assumptions!$L$19+V7,2) -> FY39 | W21: ="FY"&RIGHT(Assumptions!$L$19+W7,2) -> FY40 | X21: ="FY"&RIGHT(Assumptions!$L$19+X7,2) -> FY41 | Y21: ="FY"&RIGHT(Assumptions!$L$19+Y7,2) -> FY42 | Z21: ="FY"&RIGHT(Assumptions!$L$19+Z7,2) -> FY43 | AA21: ="FY"&RIGHT(Assumptions!$L$19+AA7,2) -> FY44 | AB21: ="FY"&RIGHT(Assumptions!$L$19+AB7,2) -> FY45 | AC21: ="FY"&RIGHT(Assumptions!$L$19+AC7,2) -> FY46 | AD21: ="FY"&RIGHT(Assumptions!$L$19+AD7,2) -> FY47 | AE21: ="FY"&RIGHT(Assumptions!$L$19+AE7,2) -> FY48 | AF21: ="FY"&RIGHT(Assumptions!$L$19+AF7,2) -> FY49 | AG21: ="FY"&RIGHT(Assumptions!$L$19+AG7,2) -> FY50 | AH21: ="FY"&RIGHT(Assumptions!$L$19+AH7,2) -> FY51 | AI21: ="FY"&RIGHT(Assumptions!$L$19+AI7,2) -> FY52 | AJ21: ="FY"&RIGHT(Assumptions!$L$19+AJ7,2) -> FY53 | AK21: ="FY"&RIGHT(Assumptions!$L$19+AK7,2) -> FY54 | AL21: ="FY"&RIGHT(Assumptions!$L$19+AL7,2) -> FY55 | AM21: ="FY"&RIGHT(Assumptions!$L$19+AM7,2) -> FY56 | AN21: ="FY"&RIGHT(Assumptions!$L$19+AN7,2) -> FY57 | AO21: ="FY"&RIGHT(Assumptions!$L$19+AO7,2) -> FY58 | AP21: ="FY"&RIGHT(Assumptions!$L$19+AP7,2) -> FY59 | AQ21: ="FY"&RIGHT(Assumptions!$L$19+AQ7,2) -> FY60 | AR21: ="FY"&RIGHT(Assumptions!$L$19+AR7,2) -> FY61 | AS21: ="FY"&RIGHT(Assumptions!$L$19+AS7,2) -> FY62 | AT21: ="FY"&RIGHT(Assumptions!$L$19+AT7,2) -> FY63 | AU21: ="FY"&RIGHT(Assumptions!$L$19+AU7,2) -> FY64 | AV21: ="FY"&RIGHT(Assumptions!$L$19+AV7,2) -> FY65 | AW21: ="FY"&RIGHT(Assumptions!$L$19+AW7,2) -> FY66 | AX21: ="FY"&RIGHT(Assumptions!$L$19+AX7,2) -> FY67 | AY21: ="FY"&RIGHT(Assumptions!$L$19+AY7,2) -> FY68 | AZ21: ="FY"&RIGHT(Assumptions!$L$19+AZ7,2) -> FY69 | BA21: ="FY"&RIGHT(Assumptions!$L$19+BA7,2) -> FY70 | BB21: ="FY"&RIGHT(Assumptions!$L$19+BB7,2) -> FY71 | BC21: ="FY"&RIGHT(Assumptions!$L$19+BC7,2) -> FY72 | BD21: ="FY"&RIGHT(Assumptions!$L$19+BD7,2) -> FY73
D22: Capex cost | P22: =Calcs!AB304 -> 0 | Q22: =Calcs!AC304 -> 0 | R22: =Calcs!AD304 -> 0 | S22: =Calcs!AE304 -> 0 | T22: =Calcs!AF304 -> 0 | U22: =Calcs!AG304 -> 0 | V22: =Calcs!AH304 -> 0 | W22: =Calcs!AI304 -> 0 | X22: =Calcs!AJ304 -> 0 | Y22: =Calcs!AK304 -> 0 | Z22: =Calcs!AL304 -> 0 | AA22: =Calcs!AM304 -> 0 | AB22: =Calcs!AN304 -> 0 | AC22: =Calcs!AO304 -> 0 | AD22: =Calcs!AP304 -> 0 | AE22: =Calcs!AQ304 -> 0 | AF22: =Calcs!AR304 -> 0 | AG22: =Calcs!AS304 -> 0 | AH22: =Calcs!AT304 -> 0 | AI22: =Calcs!AU304 -> 0 | AJ22: =Calcs!AV304 -> 0 | AK22: =Calcs!AW304 -> 0 | AL22: =Calcs!AX304 -> 0 | AM22: =Calcs!AY304 -> 0 | AN22: =Calcs!AZ304 -> 0 | AO22: =Calcs!BA304 -> 0 | AP22: =Calcs!BB304 -> 0 | AQ22: =Calcs!BC304 -> 0 | AR22: =Calcs!BD304 -> 0 | AS22: =Calcs!BE304 -> 0 | AT22: =Calcs!BF304 -> 0 | AU22: =Calcs!BG304 -> 0 | AV22: =Calcs!BH304 -> 0 | AW22: =Calcs!BI304 -> 0 | AX22: =Calcs!BJ304 -> 0 | AY22: =Calcs!BK304 -> 0 | AZ22: =Calcs!BL304 -> 0 | BA22: =Calcs!BM304 -> 0 | BB22: =Calcs!BN304 -> 0 | BC22: =Calcs!BO304 -> 0 | BD22: =Calcs!BP304 -> 0
D23: Future capex cost | E23: =SUM(F23:J23) -> 0 | F23: =Calcs!R309 -> 0 | G23: =Calcs!S309 -> 0 | H23: =Calcs!T309 -> 0 | I23: =Calcs!U309 -> 0 | J23: =Calcs!V309 -> 0 | K23: =Calcs!W309 -> 0 | L23: =Calcs!X309 -> 0 | M23: =Calcs!Y309 -> 0 | N23: =Calcs!Z309 -> 0 | O23: =Calcs!AA309 -> 0 | P23: =Calcs!AB309 -> 0 | Q23: =Calcs!AC309 -> 0 | R23: =Calcs!AD309 -> 0 | S23: =Calcs!AE309 -> 0 | T23: =Calcs!AF309 -> 0 | U23: =Calcs!AG309 -> 0 | V23: =Calcs!AH309 -> 0 | W23: =Calcs!AI309 -> 0 | X23: =Calcs!AJ309 -> 0 | Y23: =Calcs!AK309 -> 0 | Z23: =Calcs!AL309 -> 0 | AA23: =Calcs!AM309 -> 0 | AB23: =Calcs!AN309 -> 0 | AC23: =Calcs!AO309 -> 0 | AD23: =Calcs!AP309 -> 0 | AE23: =Calcs!AQ309 -> 0 | AF23: =Calcs!AR309 -> 0 | AG23: =Calcs!AS309 -> 0 | AH23: =Calcs!AT309 -> 0 | AI23: =Calcs!AU309 -> 0 | AJ23: =Calcs!AV309 -> 0 | AK23: =Calcs!AW309 -> 0 | AL23: =Calcs!AX309 -> 0 | AM23: =Calcs!AY309 -> 0 | AN23: =Calcs!AZ309 -> 0 | AO23: =Calcs!BA309 -> 0 | AP23: =Calcs!BB309 -> 0 | AQ23: =Calcs!BC309 -> 0 | AR23: =Calcs!BD309 -> 0 | AS23: =Calcs!BE309 -> 0 | AT23: =Calcs!BF309 -> 0 | AU23: =Calcs!BG309 -> 0 | AV23: =Calcs!BH309 -> 0 | AW23: =Calcs!BI309 -> 0 | AX23: =Calcs!BJ309 -> 0 | AY23: =Calcs!BK309 -> 0 | AZ23: =Calcs!BL309 -> 0 | BA23: =Calcs!BM309 -> 0 | BB23: =Calcs!BN309 -> 0 | BC23: =Calcs!BO309 -> 0 | BD23: =Calcs!BP309 -> 0
D24: Investment opex | E24: -71478.05658 | F24: =Calcs!R331 -> 0 | G24: =Calcs!S331 -> 0 | H24: =Calcs!T331 -> 0 | I24: =Calcs!U331 -> 0 | J24: =Calcs!V331 -> -71478.05658 | K24: =Calcs!W331 -> -71478.05658 | L24: =Calcs!X331 -> -71478.05658 | M24: =Calcs!Y331 -> -71478.05658 | N24: =Calcs!Z331 -> -71478.05658 | O24: =Calcs!AA331 -> -71478.05658 | P24: =Calcs!AB331 -> 0 | Q24: =Calcs!AC331 -> 0 | R24: =Calcs!AD331 -> 0 | S24: =Calcs!AE331 -> 0 | T24: =Calcs!AF331 -> 0 | U24: =Calcs!AG331 -> 0 | V24: =Calcs!AH331 -> 0 | W24: =Calcs!AI331 -> 0 | X24: =Calcs!AJ331 -> 0 | Y24: =Calcs!AK331 -> 0 | Z24: =Calcs!AL331 -> 0 | AA24: =Calcs!AM331 -> 0 | AB24: =Calcs!AN331 -> 0 | AC24: =Calcs!AO331 -> 0 | AD24: =Calcs!AP331 -> 0 | AE24: =Calcs!AQ331 -> 0 | AF24: =Calcs!AR331 -> 0 | AG24: =Calcs!AS331 -> 0 | AH24: =Calcs!AT331 -> 0 | AI24: =Calcs!AU331 -> 0 | AJ24: =Calcs!AV331 -> 0 | AK24: =Calcs!AW331 -> 0 | AL24: =Calcs!AX331 -> 0 | AM24: =Calcs!AY331 -> 0 | AN24: =Calcs!AZ331 -> 0 | AO24: =Calcs!BA331 -> 0 | AP24: =Calcs!BB331 -> 0 | AQ24: =Calcs!BC331 -> 0 | AR24: =Calcs!BD331 -> 0 | AS24: =Calcs!BE331 -> 0 | AT24: =Calcs!BF331 -> 0 | AU24: =Calcs!BG331 -> 0 | AV24: =Calcs!BH331 -> 0 | AW24: =Calcs!BI331 -> 0 | AX24: =Calcs!BJ331 -> 0 | AY24: =Calcs!BK331 -> 0 | AZ24: =Calcs!BL331 -> 0 | BA24: =Calcs!BM331 -> 0 | BB24: =Calcs!BN331 -> 0 | BC24: =Calcs!BO331 -> 0 | BD24: =Calcs!BP331 -> 0
D25: Ongoing opex (EBSS impact) | E25: 1735532.902 | F25: =Calcs!R335 -> 0 | G25: =Calcs!S335 -> 0 | H25: =Calcs!T335 -> 0 | I25: =Calcs!U335 -> 0 | J25: =Calcs!V335 -> 1735532.902 | K25: =Calcs!W335 -> 2047423.47 | L25: =Calcs!X335 -> 2051971.099 | M25: =Calcs!Y335 -> 2056601.902 | N25: =Calcs!Z335 -> 2061300.473 | O25: =Calcs!AA335 -> 2061300.473 | P25: =Calcs!AB335 -> 0 | Q25: =Calcs!AC335 -> 0 | R25: =Calcs!AD335 -> 0 | S25: =Calcs!AE335 -> 0 | T25: =Calcs!AF335 -> 0 | U25: =Calcs!AG335 -> 0 | V25: =Calcs!AH335 -> 0 | W25: =Calcs!AI335 -> 0 | X25: =Calcs!AJ335 -> 0 | Y25: =Calcs!AK335 -> 0 | Z25: =Calcs!AL335 -> 0 | AA25: =Calcs!AM335 -> 0 | AB25: =Calcs!AN335 -> 0 | AC25: =Calcs!AO335 -> 0 | AD25: =Calcs!AP335 -> 0 | AE25: =Calcs!AQ335 -> 0 | AF25: =Calcs!AR335 -> 0 | AG25: =Calcs!AS335 -> 0 | AH25: =Calcs!AT335 -> 0 | AI25: =Calcs!AU335 -> 0 | AJ25: =Calcs!AV335 -> 0 | AK25: =Calcs!AW335 -> 0 | AL25: =Calcs!AX335 -> 0 | AM25: =Calcs!AY335 -> 0 | AN25: =Calcs!AZ335 -> 0 | AO25: =Calcs!BA335 -> 0 | AP25: =Calcs!BB335 -> 0 | AQ25: =Calcs!BC335 -> 0 | AR25: =Calcs!BD335 -> 0 | AS25: =Calcs!BE335 -> 0 | AT25: =Calcs!BF335 -> 0 | AU25: =Calcs!BG335 -> 0 | AV25: =Calcs!BH335 -> 0 | AW25: =Calcs!BI335 -> 0 | AX25: =Calcs!BJ335 -> 0 | AY25: =Calcs!BK335 -> 0 | AZ25: =Calcs!BL335 -> 0 | BA25: =Calcs!BM335 -> 0 | BB25: =Calcs!BN335 -> 0 | BC25: =Calcs!BO335 -> 0 | BD25: =Calcs!BP335 -> 0
D26: Regulated revenue - ACS revenue | E26: 0 | F26: =Calcs!R324 -> 0 | G26: =Calcs!S324 -> 0 | H26: =Calcs!T324 -> 0 | I26: =Calcs!U324 -> 0 | J26: =Calcs!V324 -> 0 | K26: =Calcs!W324 -> 0 | L26: =Calcs!X324 -> 0 | M26: =Calcs!Y324 -> 0 | N26: =Calcs!Z324 -> 0 | O26: =Calcs!AA324 -> 0 | P26: =Calcs!AB324 -> 0 | Q26: =Calcs!AC324 -> 0 | R26: =Calcs!AD324 -> 0 | S26: =Calcs!AE324 -> 0 | T26: =Calcs!AF324 -> 0 | U26: =Calcs!AG324 -> 0 | V26: =Calcs!AH324 -> 0 | W26: =Calcs!AI324 -> 0 | X26: =Calcs!AJ324 -> 0 | Y26: =Calcs!AK324 -> 0 | Z26: =Calcs!AL324 -> 0 | AA26: =Calcs!AM324 -> 0 | AB26: =Calcs!AN324 -> 0 | AC26: =Calcs!AO324 -> 0 | AD26: =Calcs!AP324 -> 0 | AE26: =Calcs!AQ324 -> 0 | AF26: =Calcs!AR324 -> 0 | AG26: =Calcs!AS324 -> 0 | AH26: =Calcs!AT324 -> 0 | AI26: =Calcs!AU324 -> 0 | AJ26: =Calcs!AV324 -> 0 | AK26: =Calcs!AW324 -> 0 | AL26: =Calcs!AX324 -> 0 | AM26: =Calcs!AY324 -> 0 | AN26: =Calcs!AZ324 -> 0 | AO26: =Calcs!BA324 -> 0 | AP26: =Calcs!BB324 -> 0 | AQ26: =Calcs!BC324 -> 0 | AR26: =Calcs!BD324 -> 0 | AS26: =Calcs!BE324 -> 0 | AT26: =Calcs!BF324 -> 0 | AU26: =Calcs!BG324 -> 0 | AV26: =Calcs!BH324 -> 0 | AW26: =Calcs!BI324 -> 0 | AX26: =Calcs!BJ324 -> 0 | AY26: =Calcs!BK324 -> 0 | AZ26: =Calcs!BL324 -> 0 | BA26: =Calcs!BM324 -> 0 | BB26: =Calcs!BN324 -> 0 | BC26: =Calcs!BO324 -> 0 | BD26: =Calcs!BP324 -> 0
D27: Regulated revenue - Incentive schemes (CESS, STPIS, DMIS) | E27: 0 | F27: =Calcs!R334+Calcs!R337+Calcs!R338+Calcs!R339+Calcs!R312 -> 0 | G27: =Calcs!S334+Calcs!S337+Calcs!S338+Calcs!S339+Calcs!S312 -> 0 | H27: =Calcs!T334+Calcs!T337+Calcs!T338+Calcs!T339+Calcs!T312 -> 0 | I27: =Calcs!U334+Calcs!U337+Calcs!U338+Calcs!U339+Calcs!U312 -> 0 | J27: =Calcs!V334+Calcs!V337+Calcs!V338+Calcs!V339+Calcs!V312 -> 0 | K27: =Calcs!W334+Calcs!W337+Calcs!W338+Calcs!W339+Calcs!W312 -> 0 | L27: =Calcs!X334+Calcs!X337+Calcs!X338+Calcs!X339+Calcs!X312 -> 0 | M27: =Calcs!Y334+Calcs!Y337+Calcs!Y338+Calcs!Y339+Calcs!Y312 -> 0 | N27: =Calcs!Z334+Calcs!Z337+Calcs!Z338+Calcs!Z339+Calcs!Z312 -> 0 | O27: =Calcs!AA334+Calcs!AA337+Calcs!AA338+Calcs!AA339+Calcs!AA312 -> 0 | P27: =Calcs!AB334+Calcs!AB337+Calcs!AB338+Calcs!AB339+Calcs!AB312 -> 0 | Q27: =Calcs!AC334+Calcs!AC337+Calcs!AC338+Calcs!AC339+Calcs!AC312 -> 0 | R27: =Calcs!AD334+Calcs!AD337+Calcs!AD338+Calcs!AD339+Calcs!AD312 -> 0 | S27: =Calcs!AE334+Calcs!AE337+Calcs!AE338+Calcs!AE339+Calcs!AE312 -> 0 | T27: =Calcs!AF334+Calcs!AF337+Calcs!AF338+Calcs!AF339+Calcs!AF312 -> 0 | U27: =Calcs!AG334+Calcs!AG337+Calcs!AG338+Calcs!AG339+Calcs!AG312 -> 0 | V27: =Calcs!AH334+Calcs!AH337+Calcs!AH338+Calcs!AH339+Calcs!AH312 -> 0 | W27: =Calcs!AI334+Calcs!AI337+Calcs!AI338+Calcs!AI339+Calcs!AI312 -> 0 | X27: =Calcs!AJ334+Calcs!AJ337+Calcs!AJ338+Calcs!AJ339+Calcs!AJ312 -> 0 | Y27: =Calcs!AK334+Calcs!AK337+Calcs!AK338+Calcs!AK339+Calcs!AK312 -> 0 | Z27: =Calcs!AL334+Calcs!AL337+Calcs!AL338+Calcs!AL339+Calcs!AL312 -> 0 | AA27: =Calcs!AM334+Calcs!AM337+Calcs!AM338+Calcs!AM339+Calcs!AM312 -> 0 | AB27: =Calcs!AN334+Calcs!AN337+Calcs!AN338+Calcs!AN339+Calcs!AN312 -> 0 | AC27: =Calcs!AO334+Calcs!AO337+Calcs!AO338+Calcs!AO339+Calcs!AO312 -> 0 | AD27: =Calcs!AP334+Calcs!AP337+Calcs!AP338+Calcs!AP339+Calcs!AP312 -> 0 | AE27: =Calcs!AQ334+Calcs!AQ337+Calcs!AQ338+Calcs!AQ339+Calcs!AQ312 -> 0 | AF27: =Calcs!AR334+Calcs!AR337+Calcs!AR338+Calcs!AR339+Calcs!AR312 -> 0 | AG27: =Calcs!AS334+Calcs!AS337+Calcs!AS338+Calcs!AS339+Calcs!AS312 -> 0 | AH27: =Calcs!AT334+Calcs!AT337+Calcs!AT338+Calcs!AT339+Calcs!AT312 -> 0 | AI27: =Calcs!AU334+Calcs!AU337+Calcs!AU338+Calcs!AU339+Calcs!AU312 -> 0 | AJ27: =Calcs!AV334+Calcs!AV337+Calcs!AV338+Calcs!AV339+Calcs!AV312 -> 0 | AK27: =Calcs!AW334+Calcs!AW337+Calcs!AW338+Calcs!AW339+Calcs!AW312 -> 0 | AL27: =Calcs!AX334+Calcs!AX337+Calcs!AX338+Calcs!AX339+Calcs!AX312 -> 0 | AM27: =Calcs!AY334+Calcs!AY337+Calcs!AY338+Calcs!AY339+Calcs!AY312 -> 0 | AN27: =Calcs!AZ334+Calcs!AZ337+Calcs!AZ338+Calcs!AZ339+Calcs!AZ312 -> 0 | AO27: =Calcs!BA334+Calcs!BA337+Calcs!BA338+Calcs!BA339+Calcs!BA312 -> 0 | AP27: =Calcs!BB334+Calcs!BB337+Calcs!BB338+Calcs!BB339+Calcs!BB312 -> 0 | AQ27: =Calcs!BC334+Calcs!BC337+Calcs!BC338+Calcs!BC339+Calcs!BC312 -> 0 | AR27: =Calcs!BD334+Calcs!BD337+Calcs!BD338+Calcs!BD339+Calcs!BD312 -> 0 | AS27: =Calcs!BE334+Calcs!BE337+Calcs!BE338+Calcs!BE339+Calcs!BE312 -> 0 | AT27: =Calcs!BF334+Calcs!BF337+Calcs!BF338+Calcs!BF339+Calcs!BF312 -> 0 | AU27: =Calcs!BG334+Calcs!BG337+Calcs!BG338+Calcs!BG339+Calcs!BG312 -> 0 | AV27: =Calcs!BH334+Calcs!BH337+Calcs!BH338+Calcs!BH339+Calcs!BH312 -> 0 | AW27: =Calcs!BI334+Calcs!BI337+Calcs!BI338+Calcs!BI339+Calcs!BI312 -> 0 | AX27: =Calcs!BJ334+Calcs!BJ337+Calcs!BJ338+Calcs!BJ339+Calcs!BJ312 -> 0 | AY27: =Calcs!BK334+Calcs!BK337+Calcs!BK338+Calcs!BK339+Calcs!BK312 -> 0 | AZ27: =Calcs!BL334+Calcs!BL337+Calcs!BL338+Calcs!BL339+Calcs!BL312 -> 0 | BA27: =Calcs!BM334+Calcs!BM337+Calcs!BM338+Calcs!BM339+Calcs!BM312 -> 0 | BB27: =Calcs!BN334+Calcs!BN337+Calcs!BN338+Calcs!BN339+Calcs!BN312 -> 0 | BC27: =Calcs!BO334+Calcs!BO337+Calcs!BO338+Calcs!BO339+Calcs!BO312 -> 0 | BD27: =Calcs!BP334+Calcs!BP337+Calcs!BP338+Calcs!BP339+Calcs!BP312 -> 0
D28: Unregulated revenue - Shareholder | E28: 0 | F28: =Calcs!R328 -> 0 | G28: =Calcs!S328 -> 0 | H28: =Calcs!T328 -> 0 | I28: =Calcs!U328 -> 0 | J28: =Calcs!V328 -> 0 | K28: =Calcs!W328 -> 0 | L28: =Calcs!X328 -> 0 | M28: =Calcs!Y328 -> 0 | N28: =Calcs!Z328 -> 0 | O28: =Calcs!AA328 -> 0 | P28: =Calcs!AB328 -> 0 | Q28: =Calcs!AC328 -> 0 | R28: =Calcs!AD328 -> 0 | S28: =Calcs!AE328 -> 0 | T28: =Calcs!AF328 -> 0 | U28: =Calcs!AG328 -> 0 | V28: =Calcs!AH328 -> 0 | W28: =Calcs!AI328 -> 0 | X28: =Calcs!AJ328 -> 0 | Y28: =Calcs!AK328 -> 0 | Z28: =Calcs!AL328 -> 0 | AA28: =Calcs!AM328 -> 0 | AB28: =Calcs!AN328 -> 0 | AC28: =Calcs!AO328 -> 0 | AD28: =Calcs!AP328 -> 0 | AE28: =Calcs!AQ328 -> 0 | AF28: =Calcs!AR328 -> 0 | AG28: =Calcs!AS328 -> 0 | AH28: =Calcs!AT328 -> 0 | AI28: =Calcs!AU328 -> 0 | AJ28: =Calcs!AV328 -> 0 | AK28: =Calcs!AW328 -> 0 | AL28: =Calcs!AX328 -> 0 | AM28: =Calcs!AY328 -> 0 | AN28: =Calcs!AZ328 -> 0 | AO28: =Calcs!BA328 -> 0 | AP28: =Calcs!BB328 -> 0 | AQ28: =Calcs!BC328 -> 0 | AR28: =Calcs!BD328 -> 0 | AS28: =Calcs!BE328 -> 0 | AT28: =Calcs!BF328 -> 0 | AU28: =Calcs!BG328 -> 0 | AV28: =Calcs!BH328 -> 0 | AW28: =Calcs!BI328 -> 0 | AX28: =Calcs!BJ328 -> 0 | AY28: =Calcs!BK328 -> 0 | AZ28: =Calcs!BL328 -> 0 | BA28: =Calcs!BM328 -> 0 | BB28: =Calcs!BN328 -> 0 | BC28: =Calcs!BO328 -> 0 | BD28: =Calcs!BP328 -> 0
D29: Regulatory revenue - Return on capital | E29: 0 | F29: =Calcs!R315 -> 0 | G29: =Calcs!S315 -> 0 | H29: =Calcs!T315 -> 0 | I29: =Calcs!U315 -> 0 | J29: =Calcs!V315 -> 0 | K29: =Calcs!W315 -> 0 | L29: =Calcs!X315 -> 0 | M29: =Calcs!Y315 -> 0 | N29: =Calcs!Z315 -> 0 | O29: =Calcs!AA315 -> 0 | P29: =Calcs!AB315 -> 0 | Q29: =Calcs!AC315 -> 0 | R29: =Calcs!AD315 -> 0 | S29: =Calcs!AE315 -> 0 | T29: =Calcs!AF315 -> 0 | U29: =Calcs!AG315 -> 0 | V29: =Calcs!AH315 -> 0 | W29: =Calcs!AI315 -> 0 | X29: =Calcs!AJ315 -> 0 | Y29: =Calcs!AK315 -> 0 | Z29: =Calcs!AL315 -> 0 | AA29: =Calcs!AM315 -> 0 | AB29: =Calcs!AN315 -> 0 | AC29: =Calcs!AO315 -> 0 | AD29: =Calcs!AP315 -> 0 | AE29: =Calcs!AQ315 -> 0 | AF29: =Calcs!AR315 -> 0 | AG29: =Calcs!AS315 -> 0 | AH29: =Calcs!AT315 -> 0 | AI29: =Calcs!AU315 -> 0 | AJ29: =Calcs!AV315 -> 0 | AK29: =Calcs!AW315 -> 0 | AL29: =Calcs!AX315 -> 0 | AM29: =Calcs!AY315 -> 0 | AN29: =Calcs!AZ315 -> 0 | AO29: =Calcs!BA315 -> 0 | AP29: =Calcs!BB315 -> 0 | AQ29: =Calcs!BC315 -> 0 | AR29: =Calcs!BD315 -> 0 | AS29: =Calcs!BE315 -> 0 | AT29: =Calcs!BF315 -> 0 | AU29: =Calcs!BG315 -> 0 | AV29: =Calcs!BH315 -> 0 | AW29: =Calcs!BI315 -> 0 | AX29: =Calcs!BJ315 -> 0 | AY29: =Calcs!BK315 -> 0 | AZ29: =Calcs!BL315 -> 0 | BA29: =Calcs!BM315 -> 0 | BB29: =Calcs!BN315 -> 0 | BC29: =Calcs!BO315 -> 0 | BD29: =Calcs!BP315 -> 0
D30: Regulatory revenue - Return of capital | E30: 0 | F30: =Calcs!R318 -> 0 | G30: =Calcs!S318 -> 0 | H30: =Calcs!T318 -> 0 | I30: =Calcs!U318 -> 0 | J30: =Calcs!V318 -> 0 | K30: =Calcs!W318 -> 0 | L30: =Calcs!X318 -> 0 | M30: =Calcs!Y318 -> 0 | N30: =Calcs!Z318 -> 0 | O30: =Calcs!AA318 -> 0 | P30: =Calcs!AB318 -> 0 | Q30: =Calcs!AC318 -> 0 | R30: =Calcs!AD318 -> 0 | S30: =Calcs!AE318 -> 0 | T30: =Calcs!AF318 -> 0 | U30: =Calcs!AG318 -> 0 | V30: =Calcs!AH318 -> 0 | W30: =Calcs!AI318 -> 0 | X30: =Calcs!AJ318 -> 0 | Y30: =Calcs!AK318 -> 0 | Z30: =Calcs!AL318 -> 0 | AA30: =Calcs!AM318 -> 0 | AB30: =Calcs!AN318 -> 0 | AC30: =Calcs!AO318 -> 0 | AD30: =Calcs!AP318 -> 0 | AE30: =Calcs!AQ318 -> 0 | AF30: =Calcs!AR318 -> 0 | AG30: =Calcs!AS318 -> 0 | AH30: =Calcs!AT318 -> 0 | AI30: =Calcs!AU318 -> 0 | AJ30: =Calcs!AV318 -> 0 | AK30: =Calcs!AW318 -> 0 | AL30: =Calcs!AX318 -> 0 | AM30: =Calcs!AY318 -> 0 | AN30: =Calcs!AZ318 -> 0 | AO30: =Calcs!BA318 -> 0 | AP30: =Calcs!BB318 -> 0 | AQ30: =Calcs!BC318 -> 0 | AR30: =Calcs!BD318 -> 0 | AS30: =Calcs!BE318 -> 0 | AT30: =Calcs!BF318 -> 0 | AU30: =Calcs!BG318 -> 0 | AV30: =Calcs!BH318 -> 0 | AW30: =Calcs!BI318 -> 0 | AX30: =Calcs!BJ318 -> 0 | AY30: =Calcs!BK318 -> 0 | AZ30: =Calcs!BL318 -> 0 | BA30: =Calcs!BM318 -> 0 | BB30: =Calcs!BN318 -> 0 | BC30: =Calcs!BO318 -> 0 | BD30: =Calcs!BP318 -> 0
D31: Regulatory revenue - Terminal value of total capex | E31: 0 | F31: =Calcs!R321 -> 0 | G31: =Calcs!S321 -> 0 | H31: =Calcs!T321 -> 0 | I31: =Calcs!U321 -> 0 | J31: =Calcs!V321 -> 0 | K31: =Calcs!W321 -> 0 | L31: =Calcs!X321 -> 0 | M31: =Calcs!Y321 -> 0 | N31: =Calcs!Z321 -> 0 | O31: =Calcs!AA321 -> 0 | P31: =Calcs!AB321 -> 0 | Q31: =Calcs!AC321 -> 0 | R31: =Calcs!AD321 -> 0 | S31: =Calcs!AE321 -> 0 | T31: =Calcs!AF321 -> 0 | U31: =Calcs!AG321 -> 0 | V31: =Calcs!AH321 -> 0 | W31: =Calcs!AI321 -> 0 | X31: =Calcs!AJ321 -> 0 | Y31: =Calcs!AK321 -> 0 | Z31: =Calcs!AL321 -> 0 | AA31: =Calcs!AM321 -> 0 | AB31: =Calcs!AN321 -> 0 | AC31: =Calcs!AO321 -> 0 | AD31: =Calcs!AP321 -> 0 | AE31: =Calcs!AQ321 -> 0 | AF31: =Calcs!AR321 -> 0 | AG31: =Calcs!AS321 -> 0 | AH31: =Calcs!AT321 -> 0 | AI31: =Calcs!AU321 -> 0 | AJ31: =Calcs!AV321 -> 0 | AK31: =Calcs!AW321 -> 0 | AL31: =Calcs!AX321 -> 0 | AM31: =Calcs!AY321 -> 0 | AN31: =Calcs!AZ321 -> 0 | AO31: =Calcs!BA321 -> 0 | AP31: =Calcs!BB321 -> 0 | AQ31: =Calcs!BC321 -> 0 | AR31: =Calcs!BD321 -> 0 | AS31: =Calcs!BE321 -> 0 | AT31: =Calcs!BF321 -> 0 | AU31: =Calcs!BG321 -> 0 | AV31: =Calcs!BH321 -> 0 | AW31: =Calcs!BI321 -> 0 | AX31: =Calcs!BJ321 -> 0 | AY31: =Calcs!BK321 -> 0 | AZ31: =Calcs!BL321 -> 0 | BA31: =Calcs!BM321 -> 0 | BB31: =Calcs!BN321 -> 0 | BC31: =Calcs!BO321 -> 0 | BD31: =Calcs!BP321 -> 0
D32: Net cashflow | P32: =SUM(P22:P31) -> 0 | Q32: 0 | R32: 0 | S32: 0 | T32: 0 | U32: 0 | V32: 0 | W32: 0 | X32: 0 | Y32: 0 | Z32: 0 | AA32: 0 | AB32: 0 | AC32: 0 | AD32: 0 | AE32: 0 | AF32: 0 | AG32: 0 | AH32: 0 | AI32: 0 | AJ32: 0 | AK32: 0 | AL32: 0 | AM32: 0 | AN32: 0 | AO32: 0 | AP32: 0 | AQ32: 0 | AR32: 0 | AS32: 0 | AT32: 0 | AU32: 0 | AV32: 0 | AW32: 0 | AX32: 0 | AY32: 0 | AZ32: 0 | BA32: 0 | BB32: 0 | BC32: 0 | BD32: 0
D34: NPV (life of project) | E34: =SUMPRODUCT(F32:BC32,F8:BC8) -> 0
D35: Check | E35: =E34=Output_charts!Q22 -> FALSE
C37: Capex summary
D39: Note: Sunk costs not shown/included in capex summary table as pre-date current year
D40: Note: When copy and pasting into business cases, only use the 5 year period outlined for simplicity (i.e. do not copy the pattern fill section of the table)
D41: Note: Capex benefits include return on/of capital
D43: Item ($M) | E43: Total | F43: ="FY"&RIGHT(Assumptions!$L$19+F7,2) -> FY23 | G43: ="FY"&RIGHT(Assumptions!$L$19+G7,2) -> FY24 | H43: ="FY"&RIGHT(Assumptions!$L$19+H7,2) -> FY25 | I43: ="FY"&RIGHT(Assumptions!$L$19+I7,2) -> FY26 | J43: ="FY"&RIGHT(Assumptions!$L$19+J7,2) -> FY27 | K43: ="FY"&RIGHT(Assumptions!$L$19+K7,2) -> FY28 | L43: ="FY"&RIGHT(Assumptions!$L$19+L7,2) -> FY29 | M43: ="FY"&RIGHT(Assumptions!$L$19+M7,2) -> FY30 | N43: ="FY"&RIGHT(Assumptions!$L$19+N7,2) -> FY31 | O43: ="FY"&RIGHT(Assumptions!$L$19+O7,2) -> FY32 | P43: ="FY"&RIGHT(Assumptions!$L$19+P7,2) -> FY33 | Q43: ="FY"&RIGHT(Assumptions!$L$19+Q7,2) -> FY34 | R43: ="FY"&RIGHT(Assumptions!$L$19+R7,2) -> FY35 | S43: ="FY"&RIGHT(Assumptions!$L$19+S7,2) -> FY36 | T43: ="FY"&RIGHT(Assumptions!$L$19+T7,2) -> FY37 | U43: ="FY"&RIGHT(Assumptions!$L$19+U7,2) -> FY38 | V43: ="FY"&RIGHT(Assumptions!$L$19+V7,2) -> FY39 | W43: ="FY"&RIGHT(Assumptions!$L$19+W7,2) -> FY40 | X43: ="FY"&RIGHT(Assumptions!$L$19+X7,2) -> FY41 | Y43: ="FY"&RIGHT(Assumptions!$L$19+Y7,2) -> FY42 | Z43: ="FY"&RIGHT(Assumptions!$L$19+Z7,2) -> FY43 | AA43: ="FY"&RIGHT(Assumptions!$L$19+AA7,2) -> FY44 | AB43: ="FY"&RIGHT(Assumptions!$L$19+AB7,2) -> FY45 | AC43: ="FY"&RIGHT(Assumptions!$L$19+AC7,2) -> FY46 | AD43: ="FY"&RIGHT(Assumptions!$L$19+AD7,2) -> FY47 | AE43: ="FY"&RIGHT(Assumptions!$L$19+AE7,2) -> FY48 | AF43: ="FY"&RIGHT(Assumptions!$L$19+AF7,2) -> FY49 | AG43: ="FY"&RIGHT(Assumptions!$L$19+AG7,2) -> FY50 | AH43: ="FY"&RIGHT(Assumptions!$L$19+AH7,2) -> FY51 | AI43: ="FY"&RIGHT(Assumptions!$L$19+AI7,2) -> FY52 | AJ43: ="FY"&RIGHT(Assumptions!$L$19+AJ7,2) -> FY53 | AK43: ="FY"&RIGHT(Assumptions!$L$19+AK7,2) -> FY54 | AL43: ="FY"&RIGHT(Assumptions!$L$19+AL7,2) -> FY55 | AM43: ="FY"&RIGHT(Assumptions!$L$19+AM7,2) -> FY56 | AN43: ="FY"&RIGHT(Assumptions!$L$19+AN7,2) -> FY57 | AO43: ="FY"&RIGHT(Assumptions!$L$19+AO7,2) -> FY58 | AP43: ="FY"&RIGHT(Assumptions!$L$19+AP7,2) -> FY59 | AQ43: ="FY"&RIGHT(Assumptions!$L$19+AQ7,2) -> FY60 | AR43: ="FY"&RIGHT(Assumptions!$L$19+AR7,2) -> FY61 | AS43: ="FY"&RIGHT(Assumptions!$L$19+AS7,2) -> FY62 | AT43: ="FY"&RIGHT(Assumptions!$L$19+AT7,2) -> FY63 | AU43: ="FY"&RIGHT(Assumptions!$L$19+AU7,2) -> FY64 | AV43: ="FY"&RIGHT(Assumptions!$L$19+AV7,2) -> FY65 | AW43: ="FY"&RIGHT(Assumptions!$L$19+AW7,2) -> FY66 | AX43: ="FY"&RIGHT(Assumptions!$L$19+AX7,2) -> FY67 | AY43: ="FY"&RIGHT(Assumptions!$L$19+AY7,2) -> FY68 | AZ43: ="FY"&RIGHT(Assumptions!$L$19+AZ7,2) -> FY69 | BA43: ="FY"&RIGHT(Assumptions!$L$19+BA7,2) -> FY70 | BB43: ="FY"&RIGHT(Assumptions!$L$19+BB7,2) -> FY71 | BC43: ="FY"&RIGHT(Assumptions!$L$19+BC7,2) -> FY72 | BD43: ="FY"&RIGHT(Assumptions!$L$19+BD7,2) -> FY73
D44: Direct labour | E44: =SUM(F44:J44) -> 0 | F44: =SUMIF(Input!$D$70:$BP$107,Output_tables!$D44,Input!R$70:R$107) -> 0 | G44: =SUMIF(Input!$D$70:$BP$107,Output_tables!$D44,Input!S$70:S$107) -> 0 | H44: =SUMIF(Input!$D$70:$BP$107,Output_tables!$D44,Input!T$70:T$107) -> 0 | I44: =SUMIF(Input!$D$70:$BP$107,Output_tables!$D44,Input!U$70:U$107) -> 0 | J44: =SUMIF(Input!$D$70:$BP$107,Output_tables!$D44,Input!V$70:V$107) -> 0 | K44: =SUMIF(Input!$D$70:$BP$107,Output_tables!$D44,Input!W$70:W$107) -> 0 | L44: =SUMIF(Input!$D$70:$BP$107,Output_tables!$D44,Input!X$70:X$107) -> 0 | M44: =SUMIF(Input!$D$70:$BP$107,Output_tables!$D44,Input!Y$70:Y$107) -> 0 | N44: =SUMIF(Input!$D$70:$BP$107,Output_tables!$D44,Input!Z$70:Z$107) -> 0 | O44: =SUMIF(Input!$D$70:$BP$107,Output_tables!$D44,Input!AA$70:AA$107) -> 0 | P44: =SUMIF(Input!$D$70:$BP$107,Output_tables!$D44,Input!AB$70:AB$107) -> 0 | Q44: =SUMIF(Input!$D$70:$BP$107,Output_tables!$D44,Input!AC$70:AC$107) -> 0 | R44: =SUMIF(Input!$D$70:$BP$107,Output_tables!$D44,Input!AD$70:AD$107) -> 0 | S44: =SUMIF(Input!$D$70:$BP$107,Output_tables!$D44,Input!AE$70:AE$107) -> 0 | T44: =SUMIF(Input!$D$70:$BP$107,Output_tables!$D44,Input!AF$70:AF$107) -> 0 | U44: =SUMIF(Input!$D$70:$BP$107,Output_tables!$D44,Input!AG$70:AG$107) -> 0 | V44: =SUMIF(Input!$D$70:$BP$107,Output_tables!$D44,Input!AH$70:AH$107) -> 0 | W44: =SUMIF(Input!$D$70:$BP$107,Output_tables!$D44,Input!AI$70:AI$107) -> 0 | X44: =SUMIF(Input!$D$70:$BP$107,Output_tables!$D44,Input!AJ$70:AJ$107) -> 0 | Y44: =SUMIF(Input!$D$70:$BP$107,Output_tables!$D44,Input!AK$70:AK$107) -> 0 | Z44: =SUMIF(Input!$D$70:$BP$107,Output_tables!$D44,Input!AL$70:AL$107) -> 0 | AA44: =SUMIF(Input!$D$70:$BP$107,Output_tables!$D44,Input!AM$70:AM$107) -> 0 | AB44: =SUMIF(Input!$D$70:$BP$107,Output_tables!$D44,Input!AN$70:AN$107) -> 0 | AC44: =SUMIF(Input!$D$70:$BP$107,Output_tables!$D44,Input!AO$70:AO$107) -> 0 | AD44: =SUMIF(Input!$D$70:$BP$107,Output_tables!$D44,Input!AP$70:AP$107) -> 0 | AE44: =SUMIF(Input!$D$70:$BP$107,Output_tables!$D44,Input!AQ$70:AQ$107) -> 0 | AF44: =SUMIF(Input!$D$70:$BP$107,Output_tables!$D44,Input!AR$70:AR$107) -> 0 | AG44: =SUMIF(Input!$D$70:$BP$107,Output_tables!$D44,Input!AS$70:AS$107) -> 0 | AH44: =SUMIF(Input!$D$70:$BP$107,Output_tables!$D44,Input!AT$70:AT$107) -> 0 | AI44: =SUMIF(Input!$D$70:$BP$107,Output_tables!$D44,Input!AU$70:AU$107) -> 0 | AJ44: =SUMIF(Input!$D$70:$BP$107,Output_tables!$D44,Input!AV$70:AV$107) -> 0 | AK44: =SUMIF(Input!$D$70:$BP$107,Output_tables!$D44,Input!AW$70:AW$107) -> 0 | AL44: =SUMIF(Input!$D$70:$BP$107,Output_tables!$D44,Input!AX$70:AX$107) -> 0 | AM44: =SUMIF(Input!$D$70:$BP$107,Output_tables!$D44,Input!AY$70:AY$107) -> 0 | AN44: =SUMIF(Input!$D$70:$BP$107,Output_tables!$D44,Input!AZ$70:AZ$107) -> 0 | AO44: =SUMIF(Input!$D$70:$BP$107,Output_tables!$D44,Input!BA$70:BA$107) -> 0 | AP44: =SUMIF(Input!$D$70:$BP$107,Output_tables!$D44,Input!BB$70:BB$107) -> 0 | AQ44: =SUMIF(Input!$D$70:$BP$107,Output_tables!$D44,Input!BC$70:BC$107) -> 0 | AR44: =SUMIF(Input!$D$70:$BP$107,Output_tables!$D44,Input!BD$70:BD$107) -> 0 | AS44: =SUMIF(Input!$D$70:$BP$107,Output_tables!$D44,Input!BE$70:BE$107) -> 0 | AT44: =SUMIF(Input!$D$70:$BP$107,Output_tables!$D44,Input!BF$70:BF$107) -> 0 | AU44: =SUMIF(Input!$D$70:$BP$107,Output_tables!$D44,Input!BG$70:BG$107) -> 0 | AV44: =SUMIF(Input!$D$70:$BP$107,Output_tables!$D44,Input!BH$70:BH$107) -> 0 | AW44: =SUMIF(Input!$D$70:$BP$107,Output_tables!$D44,Input!BI$70:BI$107) -> 0 | AX44: =SUMIF(Input!$D$70:$BP$107,Output_tables!$D44,Input!BJ$70:BJ$107) -> 0 | AY44: =SUMIF(Input!$D$70:$BP$107,Output_tables!$D44,Input!BK$70:BK$107) -> 0 | AZ44: =SUMIF(Input!$D$70:$BP$107,Output_tables!$D44,Input!BL$70:BL$107) -> 0 | BA44: =SUMIF(Input!$D$70:$BP$107,Output_tables!$D44,Input!BM$70:BM$107) -> 0 | BB44: =SUMIF(Input!$D$70:$BP$107,Output_tables!$D44,Input!BN$70:BN$107) -> 0 | BC44: =SUMIF(Input!$D$70:$BP$107,Output_tables!$D44,Input!BO$70:BO$107) -> 0 | BD44: =SUMIF(Input!$D$70:$BP$107,Output_tables!$D44,Input!BP$70:BP$107) -> 0
D45: Materials | E45: =SUM(F45:J45) -> 0 | F45: =SUMIF(Input!$D$70:$BP$107,Output_tables!$D45,Input!R$70:R$107) -> 0 | G45: =SUMIF(Input!$D$70:$BP$107,Output_tables!$D45,Input!S$70:S$107) -> 0 | H45: =SUMIF(Input!$D$70:$BP$107,Output_tables!$D45,Input!T$70:T$107) -> 0 | I45: =SUMIF(Input!$D$70:$BP$107,Output_tables!$D45,Input!U$70:U$107) -> 0 | J45: =SUMIF(Input!$D$70:$BP$107,Output_tables!$D45,Input!V$70:V$107) -> 0 | K45: =SUMIF(Input!$D$70:$BP$107,Output_tables!$D45,Input!W$70:W$107) -> 0 | L45: =SUMIF(Input!$D$70:$BP$107,Output_tables!$D45,Input!X$70:X$107) -> 0 | M45: =SUMIF(Input!$D$70:$BP$107,Output_tables!$D45,Input!Y$70:Y$107) -> 0 | N45: =SUMIF(Input!$D$70:$BP$107,Output_tables!$D45,Input!Z$70:Z$107) -> 0 | O45: =SUMIF(Input!$D$70:$BP$107,Output_tables!$D45,Input!AA$70:AA$107) -> 0 | P45: =SUMIF(Input!$D$70:$BP$107,Output_tables!$D45,Input!AB$70:AB$107) -> 0 | Q45: =SUMIF(Input!$D$70:$BP$107,Output_tables!$D45,Input!AC$70:AC$107) -> 0 | R45: =SUMIF(Input!$D$70:$BP$107,Output_tables!$D45,Input!AD$70:AD$107) -> 0 | S45: =SUMIF(Input!$D$70:$BP$107,Output_tables!$D45,Input!AE$70:AE$107) -> 0 | T45: =SUMIF(Input!$D$70:$BP$107,Output_tables!$D45,Input!AF$70:AF$107) -> 0 | U45: =SUMIF(Input!$D$70:$BP$107,Output_tables!$D45,Input!AG$70:AG$107) -> 0 | V45: =SUMIF(Input!$D$70:$BP$107,Output_tables!$D45,Input!AH$70:AH$107) -> 0 | W45: =SUMIF(Input!$D$70:$BP$107,Output_tables!$D45,Input!AI$70:AI$107) -> 0 | X45: =SUMIF(Input!$D$70:$BP$107,Output_tables!$D45,Input!AJ$70:AJ$107) -> 0 | Y45: =SUMIF(Input!$D$70:$BP$107,Output_tables!$D45,Input!AK$70:AK$107) -> 0 | Z45: =SUMIF(Input!$D$70:$BP$107,Output_tables!$D45,Input!AL$70:AL$107) -> 0 | AA45: =SUMIF(Input!$D$70:$BP$107,Output_tables!$D45,Input!AM$70:AM$107) -> 0 | AB45: =SUMIF(Input!$D$70:$BP$107,Output_tables!$D45,Input!AN$70:AN$107) -> 0 | AC45: =SUMIF(Input!$D$70:$BP$107,Output_tables!$D45,Input!AO$70:AO$107) -> 0 | AD45: =SUMIF(Input!$D$70:$BP$107,Output_tables!$D45,Input!AP$70:AP$107) -> 0 | AE45: =SUMIF(Input!$D$70:$BP$107,Output_tables!$D45,Input!AQ$70:AQ$107) -> 0 | AF45: =SUMIF(Input!$D$70:$BP$107,Output_tables!$D45,Input!AR$70:AR$107) -> 0 | AG45: =SUMIF(Input!$D$70:$BP$107,Output_tables!$D45,Input!AS$70:AS$107) -> 0 | AH45: =SUMIF(Input!$D$70:$BP$107,Output_tables!$D45,Input!AT$70:AT$107) -> 0 | AI45: =SUMIF(Input!$D$70:$BP$107,Output_tables!$D45,Input!AU$70:AU$107) -> 0 | AJ45: =SUMIF(Input!$D$70:$BP$107,Output_tables!$D45,Input!AV$70:AV$107) -> 0 | AK45: =SUMIF(Input!$D$70:$BP$107,Output_tables!$D45,Input!AW$70:AW$107) -> 0 | AL45: =SUMIF(Input!$D$70:$BP$107,Output_tables!$D45,Input!AX$70:AX$107) -> 0 | AM45: =SUMIF(Input!$D$70:$BP$107,Output_tables!$D45,Input!AY$70:AY$107) -> 0 | AN45: =SUMIF(Input!$D$70:$BP$107,Output_tables!$D45,Input!AZ$70:AZ$107) -> 0 | AO45: =SUMIF(Input!$D$70:$BP$107,Output_tables!$D45,Input!BA$70:BA$107) -> 0 | AP45: =SUMIF(Input!$D$70:$BP$107,Output_tables!$D45,Input!BB$70:BB$107) -> 0 | AQ45: =SUMIF(Input!$D$70:$BP$107,Output_tables!$D45,Input!BC$70:BC$107) -> 0 | AR45: =SUMIF(Input!$D$70:$BP$107,Output_tables!$D45,Input!BD$70:BD$107) -> 0 | AS45: =SUMIF(Input!$D$70:$BP$107,Output_tables!$D45,Input!BE$70:BE$107) -> 0 | AT45: =SUMIF(Input!$D$70:$BP$107,Output_tables!$D45,Input!BF$70:BF$107) -> 0 | AU45: =SUMIF(Input!$D$70:$BP$107,Output_tables!$D45,Input!BG$70:BG$107) -> 0 | AV45: =SUMIF(Input!$D$70:$BP$107,Output_tables!$D45,Input!BH$70:BH$107) -> 0 | AW45: =SUMIF(Input!$D$70:$BP$107,Output_tables!$D45,Input!BI$70:BI$107) -> 0 | AX45: =SUMIF(Input!$D$70:$BP$107,Output_tables!$D45,Input!BJ$70:BJ$107) -> 0 | AY45: =SUMIF(Input!$D$70:$BP$107,Output_tables!$D45,Input!BK$70:BK$107) -> 0 | AZ45: =SUMIF(Input!$D$70:$BP$107,Output_tables!$D45,Input!BL$70:BL$107) -> 0 | BA45: =SUMIF(Input!$D$70:$BP$107,Output_tables!$D45,Input!BM$70:BM$107) -> 0 | BB45: =SUMIF(Input!$D$70:$BP$107,Output_tables!$D45,Input!BN$70:BN$107) -> 0 | BC45: =SUMIF(Input!$D$70:$BP$107,Output_tables!$D45,Input!BO$70:BO$107) -> 0 | BD45: =SUMIF(Input!$D$70:$BP$107,Output_tables!$D45,Input!BP$70:BP$107) -> 0
D46: Contracted services | E46: =SUM(F46:J46) -> 0 | F46: =SUMIF(Input!$D$70:$BP$107,Output_tables!$D46,Input!R$70:R$107) -> 0 | G46: =SUMIF(Input!$D$70:$BP$107,Output_tables!$D46,Input!S$70:S$107) -> 0 | H46: =SUMIF(Input!$D$70:$BP$107,Output_tables!$D46,Input!T$70:T$107) -> 0 | I46: =SUMIF(Input!$D$70:$BP$107,Output_tables!$D46,Input!U$70:U$107) -> 0 | J46: =SUMIF(Input!$D$70:$BP$107,Output_tables!$D46,Input!V$70:V$107) -> 0 | K46: =SUMIF(Input!$D$70:$BP$107,Output_tables!$D46,Input!W$70:W$107) -> 0 | L46: =SUMIF(Input!$D$70:$BP$107,Output_tables!$D46,Input!X$70:X$107) -> 0 | M46: =SUMIF(Input!$D$70:$BP$107,Output_tables!$D46,Input!Y$70:Y$107) -> 0 | N46: =SUMIF(Input!$D$70:$BP$107,Output_tables!$D46,Input!Z$70:Z$107) -> 0 | O46: =SUMIF(Input!$D$70:$BP$107,Output_tables!$D46,Input!AA$70:AA$107) -> 0 | P46: =SUMIF(Input!$D$70:$BP$107,Output_tables!$D46,Input!AB$70:AB$107) -> 0 | Q46: =SUMIF(Input!$D$70:$BP$107,Output_tables!$D46,Input!AC$70:AC$107) -> 0 | R46: =SUMIF(Input!$D$70:$BP$107,Output_tables!$D46,Input!AD$70:AD$107) -> 0 | S46: =SUMIF(Input!$D$70:$BP$107,Output_tables!$D46,Input!AE$70:AE$107) -> 0 | T46: =SUMIF(Input!$D$70:$BP$107,Output_tables!$D46,Input!AF$70:AF$107) -> 0 | U46: =SUMIF(Input!$D$70:$BP$107,Output_tables!$D46,Input!AG$70:AG$107) -> 0 | V46: =SUMIF(Input!$D$70:$BP$107,Output_tables!$D46,Input!AH$70:AH$107) -> 0 | W46: =SUMIF(Input!$D$70:$BP$107,Output_tables!$D46,Input!AI$70:AI$107) -> 0 | X46: =SUMIF(Input!$D$70:$BP$107,Output_tables!$D46,Input!AJ$70:AJ$107) -> 0 | Y46: =SUMIF(Input!$D$70:$BP$107,Output_tables!$D46,Input!AK$70:AK$107) -> 0 | Z46: =SUMIF(Input!$D$70:$BP$107,Output_tables!$D46,Input!AL$70:AL$107) -> 0 | AA46: =SUMIF(Input!$D$70:$BP$107,Output_tables!$D46,Input!AM$70:AM$107) -> 0 | AB46: =SUMIF(Input!$D$70:$BP$107,Output_tables!$D46,Input!AN$70:AN$107) -> 0 | AC46: =SUMIF(Input!$D$70:$BP$107,Output_tables!$D46,Input!AO$70:AO$107) -> 0 | AD46: =SUMIF(Input!$D$70:$BP$107,Output_tables!$D46,Input!AP$70:AP$107) -> 0 | AE46: =SUMIF(Input!$D$70:$BP$107,Output_tables!$D46,Input!AQ$70:AQ$107) -> 0 | AF46: =SUMIF(Input!$D$70:$BP$107,Output_tables!$D46,Input!AR$70:AR$107) -> 0 | AG46: =SUMIF(Input!$D$70:$BP$107,Output_tables!$D46,Input!AS$70:AS$107) -> 0 | AH46: =SUMIF(Input!$D$70:$BP$107,Output_tables!$D46,Input!AT$70:AT$107) -> 0 | AI46: =SUMIF(Input!$D$70:$BP$107,Output_tables!$D46,Input!AU$70:AU$107) -> 0 | AJ46: =SUMIF(Input!$D$70:$BP$107,Output_tables!$D46,Input!AV$70:AV$107) -> 0 | AK46: =SUMIF(Input!$D$70:$BP$107,Output_tables!$D46,Input!AW$70:AW$107) -> 0 | AL46: =SUMIF(Input!$D$70:$BP$107,Output_tables!$D46,Input!AX$70:AX$107) -> 0 | AM46: =SUMIF(Input!$D$70:$BP$107,Output_tables!$D46,Input!AY$70:AY$107) -> 0 | AN46: =SUMIF(Input!$D$70:$BP$107,Output_tables!$D46,Input!AZ$70:AZ$107) -> 0 | AO46: =SUMIF(Input!$D$70:$BP$107,Output_tables!$D46,Input!BA$70:BA$107) -> 0 | AP46: =SUMIF(Input!$D$70:$BP$107,Output_tables!$D46,Input!BB$70:BB$107) -> 0 | AQ46: =SUMIF(Input!$D$70:$BP$107,Output_tables!$D46,Input!BC$70:BC$107) -> 0 | AR46: =SUMIF(Input!$D$70:$BP$107,Output_tables!$D46,Input!BD$70:BD$107) -> 0 | AS46: =SUMIF(Input!$D$70:$BP$107,Output_tables!$D46,Input!BE$70:BE$107) -> 0 | AT46: =SUMIF(Input!$D$70:$BP$107,Output_tables!$D46,Input!BF$70:BF$107) -> 0 | AU46: =SUMIF(Input!$D$70:$BP$107,Output_tables!$D46,Input!BG$70:BG$107) -> 0 | AV46: =SUMIF(Input!$D$70:$BP$107,Output_tables!$D46,Input!BH$70:BH$107) -> 0 | AW46: =SUMIF(Input!$D$70:$BP$107,Output_tables!$D46,Input!BI$70:BI$107) -> 0 | AX46: =SUMIF(Input!$D$70:$BP$107,Output_tables!$D46,Input!BJ$70:BJ$107) -> 0 | AY46: =SUMIF(Input!$D$70:$BP$107,Output_tables!$D46,Input!BK$70:BK$107) -> 0 | AZ46: =SUMIF(Input!$D$70:$BP$107,Output_tables!$D46,Input!BL$70:BL$107) -> 0 | BA46: =SUMIF(Input!$D$70:$BP$107,Output_tables!$D46,Input!BM$70:BM$107) -> 0 | BB46: =SUMIF(Input!$D$70:$BP$107,Output_tables!$D46,Input!BN$70:BN$107) -> 0 | BC46: =SUMIF(Input!$D$70:$BP$107,Output_tables!$D46,Input!BO$70:BO$107) -> 0 | BD46: =SUMIF(Input!$D$70:$BP$107,Output_tables!$D46,Input!BP$70:BP$107) -> 0
D47: Indirect labour / overheads | E47: =SUM(F47:J47) -> 0 | F47: =SUMIF(Input!$D$70:$BP$107,Output_tables!$D47,Input!R$70:R$107) -> 0 | G47: =SUMIF(Input!$D$70:$BP$107,Output_tables!$D47,Input!S$70:S$107) -> 0 | H47: =SUMIF(Input!$D$70:$BP$107,Output_tables!$D47,Input!T$70:T$107) -> 0 | I47: =SUMIF(Input!$D$70:$BP$107,Output_tables!$D47,Input!U$70:U$107) -> 0 | J47: =SUMIF(Input!$D$70:$BP$107,Output_tables!$D47,Input!V$70:V$107) -> 0 | K47: =SUMIF(Input!$D$70:$BP$107,Output_tables!$D47,Input!W$70:W$107) -> 0 | L47: =SUMIF(Input!$D$70:$BP$107,Output_tables!$D47,Input!X$70:X$107) -> 0 | M47: =SUMIF(Input!$D$70:$BP$107,Output_tables!$D47,Input!Y$70:Y$107) -> 0 | N47: =SUMIF(Input!$D$70:$BP$107,Output_tables!$D47,Input!Z$70:Z$107) -> 0 | O47: =SUMIF(Input!$D$70:$BP$107,Output_tables!$D47,Input!AA$70:AA$107) -> 0 | P47: =SUMIF(Input!$D$70:$BP$107,Output_tables!$D47,Input!AB$70:AB$107) -> 0 | Q47: =SUMIF(Input!$D$70:$BP$107,Output_tables!$D47,Input!AC$70:AC$107) -> 0 | R47: =SUMIF(Input!$D$70:$BP$107,Output_tables!$D47,Input!AD$70:AD$107) -> 0 | S47: =SUMIF(Input!$D$70:$BP$107,Output_tables!$D47,Input!AE$70:AE$107) -> 0 | T47: =SUMIF(Input!$D$70:$BP$107,Output_tables!$D47,Input!AF$70:AF$107) -> 0 | U47: =SUMIF(Input!$D$70:$BP$107,Output_tables!$D47,Input!AG$70:AG$107) -> 0 | V47: =SUMIF(Input!$D$70:$BP$107,Output_tables!$D47,Input!AH$70:AH$107) -> 0 | W47: =SUMIF(Input!$D$70:$BP$107,Output_tables!$D47,Input!AI$70:AI$107) -> 0 | X47: =SUMIF(Input!$D$70:$BP$107,Output_tables!$D47,Input!AJ$70:AJ$107) -> 0 | Y47: =SUMIF(Input!$D$70:$BP$107,Output_tables!$D47,Input!AK$70:AK$107) -> 0 | Z47: =SUMIF(Input!$D$70:$BP$107,Output_tables!$D47,Input!AL$70:AL$107) -> 0 | AA47: =SUMIF(Input!$D$70:$BP$107,Output_tables!$D47,Input!AM$70:AM$107) -> 0 | AB47: =SUMIF(Input!$D$70:$BP$107,Output_tables!$D47,Input!AN$70:AN$107) -> 0 | AC47: =SUMIF(Input!$D$70:$BP$107,Output_tables!$D47,Input!AO$70:AO$107) -> 0 | AD47: =SUMIF(Input!$D$70:$BP$107,Output_tables!$D47,Input!AP$70:AP$107) -> 0 | AE47: =SUMIF(Input!$D$70:$BP$107,Output_tables!$D47,Input!AQ$70:AQ$107) -> 0 | AF47: =SUMIF(Input!$D$70:$BP$107,Output_tables!$D47,Input!AR$70:AR$107) -> 0 | AG47: =SUMIF(Input!$D$70:$BP$107,Output_tables!$D47,Input!AS$70:AS$107) -> 0 | AH47: =SUMIF(Input!$D$70:$BP$107,Output_tables!$D47,Input!AT$70:AT$107) -> 0 | AI47: =SUMIF(Input!$D$70:$BP$107,Output_tables!$D47,Input!AU$70:AU$107) -> 0 | AJ47: =SUMIF(Input!$D$70:$BP$107,Output_tables!$D47,Input!AV$70:AV$107) -> 0 | AK47: =SUMIF(Input!$D$70:$BP$107,Output_tables!$D47,Input!AW$70:AW$107) -> 0 | AL47: =SUMIF(Input!$D$70:$BP$107,Output_tables!$D47,Input!AX$70:AX$107) -> 0 | AM47: =SUMIF(Input!$D$70:$BP$107,Output_tables!$D47,Input!AY$70:AY$107) -> 0 | AN47: =SUMIF(Input!$D$70:$BP$107,Output_tables!$D47,Input!AZ$70:AZ$107) -> 0 | AO47: =SUMIF(Input!$D$70:$BP$107,Output_tables!$D47,Input!BA$70:BA$107) -> 0 | AP47: =SUMIF(Input!$D$70:$BP$107,Output_tables!$D47,Input!BB$70:BB$107) -> 0 | AQ47: =SUMIF(Input!$D$70:$BP$107,Output_tables!$D47,Input!BC$70:BC$107) -> 0 | AR47: =SUMIF(Input!$D$70:$BP$107,Output_tables!$D47,Input!BD$70:BD$107) -> 0 | AS47: =SUMIF(Input!$D$70:$BP$107,Output_tables!$D47,Input!BE$70:BE$107) -> 0 | AT47: =SUMIF(Input!$D$70:$BP$107,Output_tables!$D47,Input!BF$70:BF$107) -> 0 | AU47: =SUMIF(Input!$D$70:$BP$107,Output_tables!$D47,Input!BG$70:BG$107) -> 0 | AV47: =SUMIF(Input!$D$70:$BP$107,Output_tables!$D47,Input!BH$70:BH$107) -> 0 | AW47: =SUMIF(Input!$D$70:$BP$107,Output_tables!$D47,Input!BI$70:BI$107) -> 0 | AX47: =SUMIF(Input!$D$70:$BP$107,Output_tables!$D47,Input!BJ$70:BJ$107) -> 0 | AY47: =SUMIF(Input!$D$70:$BP$107,Output_tables!$D47,Input!BK$70:BK$107) -> 0 | AZ47: =SUMIF(Input!$D$70:$BP$107,Output_tables!$D47,Input!BL$70:BL$107) -> 0 | BA47: =SUMIF(Input!$D$70:$BP$107,Output_tables!$D47,Input!BM$70:BM$107) -> 0 | BB47: =SUMIF(Input!$D$70:$BP$107,Output_tables!$D47,Input!BN$70:BN$107) -> 0 | BC47: =SUMIF(Input!$D$70:$BP$107,Output_tables!$D47,Input!BO$70:BO$107) -> 0 | BD47: =SUMIF(Input!$D$70:$BP$107,Output_tables!$D47,Input!BP$70:BP$107) -> 0
D48: Other | P48: =SUMIF(Input!$D$70:$BP$107,Output_tables!$D48,Input!AB$70:AB$107) -> 0 | Q48: =SUMIF(Input!$D$70:$BP$107,Output_tables!$D48,Input!AC$70:AC$107) -> 0 | R48: =SUMIF(Input!$D$70:$BP$107,Output_tables!$D48,Input!AD$70:AD$107) -> 0 | S48: =SUMIF(Input!$D$70:$BP$107,Output_tables!$D48,Input!AE$70:AE$107) -> 0 | T48: =SUMIF(Input!$D$70:$BP$107,Output_tables!$D48,Input!AF$70:AF$107) -> 0 | U48: =SUMIF(Input!$D$70:$BP$107,Output_tables!$D48,Input!AG$70:AG$107) -> 0 | V48: =SUMIF(Input!$D$70:$BP$107,Output_tables!$D48,Input!AH$70:AH$107) -> 0 | W48: =SUMIF(Input!$D$70:$BP$107,Output_tables!$D48,Input!AI$70:AI$107) -> 0 | X48: =SUMIF(Input!$D$70:$BP$107,Output_tables!$D48,Input!AJ$70:AJ$107) -> 0 | Y48: =SUMIF(Input!$D$70:$BP$107,Output_tables!$D48,Input!AK$70:AK$107) -> 0 | Z48: =SUMIF(Input!$D$70:$BP$107,Output_tables!$D48,Input!AL$70:AL$107) -> 0 | AA48: =SUMIF(Input!$D$70:$BP$107,Output_tables!$D48,Input!AM$70:AM$107) -> 0 | AB48: =SUMIF(Input!$D$70:$BP$107,Output_tables!$D48,Input!AN$70:AN$107) -> 0 | AC48: =SUMIF(Input!$D$70:$BP$107,Output_tables!$D48,Input!AO$70:AO$107) -> 0 | AD48: =SUMIF(Input!$D$70:$BP$107,Output_tables!$D48,Input!AP$70:AP$107) -> 0 | AE48: =SUMIF(Input!$D$70:$BP$107,Output_tables!$D48,Input!AQ$70:AQ$107) -> 0 | AF48: =SUMIF(Input!$D$70:$BP$107,Output_tables!$D48,Input!AR$70:AR$107) -> 0 | AG48: =SUMIF(Input!$D$70:$BP$107,Output_tables!$D48,Input!AS$70:AS$107) -> 0 | AH48: =SUMIF(Input!$D$70:$BP$107,Output_tables!$D48,Input!AT$70:AT$107) -> 0 | AI48: =SUMIF(Input!$D$70:$BP$107,Output_tables!$D48,Input!AU$70:AU$107) -> 0 | AJ48: =SUMIF(Input!$D$70:$BP$107,Output_tables!$D48,Input!AV$70:AV$107) -> 0 | AK48: =SUMIF(Input!$D$70:$BP$107,Output_tables!$D48,Input!AW$70:AW$107) -> 0 | AL48: =SUMIF(Input!$D$70:$BP$107,Output_tables!$D48,Input!AX$70:AX$107) -> 0 | AM48: =SUMIF(Input!$D$70:$BP$107,Output_tables!$D48,Input!AY$70:AY$107) -> 0 | AN48: =SUMIF(Input!$D$70:$BP$107,Output_tables!$D48,Input!AZ$70:AZ$107) -> 0 | AO48: =SUMIF(Input!$D$70:$BP$107,Output_tables!$D48,Input!BA$70:BA$107) -> 0 | AP48: =SUMIF(Input!$D$70:$BP$107,Output_tables!$D48,Input!BB$70:BB$107) -> 0 | AQ48: =SUMIF(Input!$D$70:$BP$107,Output_tables!$D48,Input!BC$70:BC$107) -> 0 | AR48: =SUMIF(Input!$D$70:$BP$107,Output_tables!$D48,Input!BD$70:BD$107) -> 0 | AS48: =SUMIF(Input!$D$70:$BP$107,Output_tables!$D48,Input!BE$70:BE$107) -> 0 | AT48: =SUMIF(Input!$D$70:$BP$107,Output_tables!$D48,Input!BF$70:BF$107) -> 0 | AU48: =SUMIF(Input!$D$70:$BP$107,Output_tables!$D48,Input!BG$70:BG$107) -> 0 | AV48: =SUMIF(Input!$D$70:$BP$107,Output_tables!$D48,Input!BH$70:BH$107) -> 0 | AW48: =SUMIF(Input!$D$70:$BP$107,Output_tables!$D48,Input!BI$70:BI$107) -> 0 | AX48: =SUMIF(Input!$D$70:$BP$107,Output_tables!$D48,Input!BJ$70:BJ$107) -> 0 | AY48: =SUMIF(Input!$D$70:$BP$107,Output_tables!$D48,Input!BK$70:BK$107) -> 0 | AZ48: =SUMIF(Input!$D$70:$BP$107,Output_tables!$D48,Input!BL$70:BL$107) -> 0 | BA48: =SUMIF(Input!$D$70:$BP$107,Output_tables!$D48,Input!BM$70:BM$107) -> 0 | BB48: =SUMIF(Input!$D$70:$BP$107,Output_tables!$D48,Input!BN$70:BN$107) -> 0 | BC48: =SUMIF(Input!$D$70:$BP$107,Output_tables!$D48,Input!BO$70:BO$107) -> 0 | BD48: =SUMIF(Input!$D$70:$BP$107,Output_tables!$D48,Input!BP$70:BP$107) -> 0
D49: Contingency | E49: =SUM(F49:J49) -> 0 | F49: =SUMIF(Input!$D$70:$BP$107,Output_tables!$D49,Input!R$70:R$107) -> 0 | G49: =SUMIF(Input!$D$70:$BP$107,Output_tables!$D49,Input!S$70:S$107) -> 0 | H49: =SUMIF(Input!$D$70:$BP$107,Output_tables!$D49,Input!T$70:T$107) -> 0 | I49: =SUMIF(Input!$D$70:$BP$107,Output_tables!$D49,Input!U$70:U$107) -> 0 | J49: =SUMIF(Input!$D$70:$BP$107,Output_tables!$D49,Input!V$70:V$107) -> 0 | K49: =SUMIF(Input!$D$70:$BP$107,Output_tables!$D49,Input!W$70:W$107) -> 0 | L49: =SUMIF(Input!$D$70:$BP$107,Output_tables!$D49,Input!X$70:X$107) -> 0 | M49: =SUMIF(Input!$D$70:$BP$107,Output_tables!$D49,Input!Y$70:Y$107) -> 0 | N49: =SUMIF(Input!$D$70:$BP$107,Output_tables!$D49,Input!Z$70:Z$107) -> 0 | O49: =SUMIF(Input!$D$70:$BP$107,Output_tables!$D49,Input!AA$70:AA$107) -> 0 | P49: =SUMIF(Input!$D$70:$BP$107,Output_tables!$D49,Input!AB$70:AB$107) -> 0 | Q49: =SUMIF(Input!$D$70:$BP$107,Output_tables!$D49,Input!AC$70:AC$107) -> 0 | R49: =SUMIF(Input!$D$70:$BP$107,Output_tables!$D49,Input!AD$70:AD$107) -> 0 | S49: =SUMIF(Input!$D$70:$BP$107,Output_tables!$D49,Input!AE$70:AE$107) -> 0 | T49: =SUMIF(Input!$D$70:$BP$107,Output_tables!$D49,Input!AF$70:AF$107) -> 0 | U49: =SUMIF(Input!$D$70:$BP$107,Output_tables!$D49,Input!AG$70:AG$107) -> 0 | V49: =SUMIF(Input!$D$70:$BP$107,Output_tables!$D49,Input!AH$70:AH$107) -> 0 | W49: =SUMIF(Input!$D$70:$BP$107,Output_tables!$D49,Input!AI$70:AI$107) -> 0 | X49: =SUMIF(Input!$D$70:$BP$107,Output_tables!$D49,Input!AJ$70:AJ$107) -> 0 | Y49: =SUMIF(Input!$D$70:$BP$107,Output_tables!$D49,Input!AK$70:AK$107) -> 0 | Z49: =SUMIF(Input!$D$70:$BP$107,Output_tables!$D49,Input!AL$70:AL$107) -> 0 | AA49: =SUMIF(Input!$D$70:$BP$107,Output_tables!$D49,Input!AM$70:AM$107) -> 0 | AB49: =SUMIF(Input!$D$70:$BP$107,Output_tables!$D49,Input!AN$70:AN$107) -> 0 | AC49: =SUMIF(Input!$D$70:$BP$107,Output_tables!$D49,Input!AO$70:AO$107) -> 0 | AD49: =SUMIF(Input!$D$70:$BP$107,Output_tables!$D49,Input!AP$70:AP$107) -> 0 | AE49: =SUMIF(Input!$D$70:$BP$107,Output_tables!$D49,Input!AQ$70:AQ$107) -> 0 | AF49: =SUMIF(Input!$D$70:$BP$107,Output_tables!$D49,Input!AR$70:AR$107) -> 0 | AG49: =SUMIF(Input!$D$70:$BP$107,Output_tables!$D49,Input!AS$70:AS$107) -> 0 | AH49: =SUMIF(Input!$D$70:$BP$107,Output_tables!$D49,Input!AT$70:AT$107) -> 0 | AI49: =SUMIF(Input!$D$70:$BP$107,Output_tables!$D49,Input!AU$70:AU$107) -> 0 | AJ49: =SUMIF(Input!$D$70:$BP$107,Output_tables!$D49,Input!AV$70:AV$107) -> 0 | AK49: =SUMIF(Input!$D$70:$BP$107,Output_tables!$D49,Input!AW$70:AW$107) -> 0 | AL49: =SUMIF(Input!$D$70:$BP$107,Output_tables!$D49,Input!AX$70:AX$107) -> 0 | AM49: =SUMIF(Input!$D$70:$BP$107,Output_tables!$D49,Input!AY$70:AY$107) -> 0 | AN49: =SUMIF(Input!$D$70:$BP$107,Output_tables!$D49,Input!AZ$70:AZ$107) -> 0 | AO49: =SUMIF(Input!$D$70:$BP$107,Output_tables!$D49,Input!BA$70:BA$107) -> 0 | AP49: =SUMIF(Input!$D$70:$BP$107,Output_tables!$D49,Input!BB$70:BB$107) -> 0 | AQ49: =SUMIF(Input!$D$70:$BP$107,Output_tables!$D49,Input!BC$70:BC$107) -> 0 | AR49: =SUMIF(Input!$D$70:$BP$107,Output_tables!$D49,Input!BD$70:BD$107) -> 0 | AS49: =SUMIF(Input!$D$70:$BP$107,Output_tables!$D49,Input!BE$70:BE$107) -> 0 | AT49: =SUMIF(Input!$D$70:$BP$107,Output_tables!$D49,Input!BF$70:BF$107) -> 0 | AU49: =SUMIF(Input!$D$70:$BP$107,Output_tables!$D49,Input!BG$70:BG$107) -> 0 | AV49: =SUMIF(Input!$D$70:$BP$107,Output_tables!$D49,Input!BH$70:BH$107) -> 0 | AW49: =SUMIF(Input!$D$70:$BP$107,Output_tables!$D49,Input!BI$70:BI$107) -> 0 | AX49: =SUMIF(Input!$D$70:$BP$107,Output_tables!$D49,Input!BJ$70:BJ$107) -> 0 | AY49: =SUMIF(Input!$D$70:$BP$107,Output_tables!$D49,Input!BK$70:BK$107) -> 0 | AZ49: =SUMIF(Input!$D$70:$BP$107,Output_tables!$D49,Input!BL$70:BL$107) -> 0 | BA49: =SUMIF(Input!$D$70:$BP$107,Output_tables!$D49,Input!BM$70:BM$107) -> 0 | BB49: =SUMIF(Input!$D$70:$BP$107,Output_tables!$D49,Input!BN$70:BN$107) -> 0 | BC49: =SUMIF(Input!$D$70:$BP$107,Output_tables!$D49,Input!BO$70:BO$107) -> 0 | BD49: =SUMIF(Input!$D$70:$BP$107,Output_tables!$D49,Input!BP$70:BP$107) -> 0
D50: Total invested capex | P50: =SUM(P44:P49) -> 0 | Q50: 0 | R50: 0 | S50: 0 | T50: 0 | U50: 0 | V50: 0 | W50: 0 | X50: 0 | Y50: 0 | Z50: 0 | AA50: 0 | AB50: 0 | AC50: 0 | AD50: 0 | AE50: 0 | AF50: 0 | AG50: 0 | AH50: 0 | AI50: 0 | AJ50: 0 | AK50: 0 | AL50: 0 | AM50: 0 | AN50: 0 | AO50: 0 | AP50: 0 | AQ50: 0 | AR50: 0 | AS50: 0 | AT50: 0 | AU50: 0 | AV50: 0 | AW50: 0 | AX50: 0 | AY50: 0 | AZ50: 0 | BA50: 0 | BB50: 0 | BC50: 0 | BD50: 0
D51: Capex benefits | E51: =SUM(F51:J51) -> 0 | F51: =Calcs!R390 -> 0 | G51: =Calcs!S390 -> 0 | H51: =Calcs!T390 -> 0 | I51: =Calcs!U390 -> 0 | J51: =Calcs!V390 -> 0 | L51: =Calcs!X390 -> 0 | M51: =Calcs!Y390 -> 0 | N51: =Calcs!Z390 -> 0 | O51: =Calcs!AA390 -> 0 | P51: =Calcs!AB390 -> 0 | Q51: =Calcs!AC390 -> 0 | R51: =Calcs!AD390 -> 0 | S51: =Calcs!AE390 -> 0 | T51: =Calcs!AF390 -> 0 | U51: =Calcs!AG390 -> 0 | V51: =Calcs!AH390 -> 0 | W51: =Calcs!AI390 -> 0 | X51: =Calcs!AJ390 -> 0 | Y51: =Calcs!AK390 -> 0 | Z51: =Calcs!AL390 -> 0 | AA51: =Calcs!AM390 -> 0 | AB51: =Calcs!AN390 -> 0 | AC51: =Calcs!AO390 -> 0 | AD51: =Calcs!AP390 -> 0 | AE51: =Calcs!AQ390 -> 0 | AF51: =Calcs!AR390 -> 0 | AG51: =Calcs!AS390 -> 0 | AH51: =Calcs!AT390 -> 0 | AI51: =Calcs!AU390 -> 0 | AJ51: =Calcs!AV390 -> 0 | AK51: =Calcs!AW390 -> 0 | AL51: =Calcs!AX390 -> 0 | AM51: =Calcs!AY390 -> 0 | AN51: =Calcs!AZ390 -> 0 | AO51: =Calcs!BA390 -> 0 | AP51: =Calcs!BB390 -> 0 | AQ51: =Calcs!BC390 -> 0 | AR51: =Calcs!BD390 -> 0 | AS51: =Calcs!BE390 -> 0 | AT51: =Calcs!BF390 -> 0 | AU51: =Calcs!BG390 -> 0 | AV51: =Calcs!BH390 -> 0 | AW51: =Calcs!BI390 -> 0 | AX51: =Calcs!BJ390 -> 0 | AY51: =Calcs!BK390 -> 0 | AZ51: =Calcs!BL390 -> 0 | BA51: =Calcs!BM390 -> 0 | BB51: =Calcs!BN390 -> 0 | BC51: =Calcs!BO390 -> 0 | BD51: =Calcs!BP390 -> 0
D52: Net capex | P52: =SUM(P50:P51) -> 0 | Q52: 0 | R52: 0 | S52: 0 | T52: 0 | U52: 0 | V52: 0 | W52: 0 | X52: 0 | Y52: 0 | Z52: 0 | AA52: 0 | AB52: 0 | AC52: 0 | AD52: 0 | AE52: 0 | AF52: 0 | AG52: 0 | AH52: 0 | AI52: 0 | AJ52: 0 | AK52: 0 | AL52: 0 | AM52: 0 | AN52: 0 | AO52: 0 | AP52: 0 | AQ52: 0 | AR52: 0 | AS52: 0 | AT52: 0 | AU52: 0 | AV52: 0 | AW52: 0 | AX52: 0 | AY52: 0 | AZ52: 0 | BA52: 0 | BB52: 0 | BC52: 0 | BD52: 0
C54: Opex summary
D56: Note: When copy and pasting into business cases, only use the 5 year period outlined for simplicity (i.e. do not copy the pattern fill section of the table)
D58: Item ($M) | E58: Total | F58: ="FY"&RIGHT(Assumptions!$L$19+F7,2) -> FY23 | G58: ="FY"&RIGHT(Assumptions!$L$19+G7,2) -> FY24 | H58: ="FY"&RIGHT(Assumptions!$L$19+H7,2) -> FY25 | I58: ="FY"&RIGHT(Assumptions!$L$19+I7,2) -> FY26 | J58: ="FY"&RIGHT(Assumptions!$L$19+J7,2) -> FY27 | K58: ="FY"&RIGHT(Assumptions!$L$19+K7,2) -> FY28 | L58: ="FY"&RIGHT(Assumptions!$L$19+L7,2) -> FY29 | M58: ="FY"&RIGHT(Assumptions!$L$19+M7,2) -> FY30 | N58: ="FY"&RIGHT(Assumptions!$L$19+N7,2) -> FY31 | O58: ="FY"&RIGHT(Assumptions!$L$19+O7,2) -> FY32 | P58: ="FY"&RIGHT(Assumptions!$L$19+P7,2) -> FY33 | Q58: ="FY"&RIGHT(Assumptions!$L$19+Q7,2) -> FY34 | R58: ="FY"&RIGHT(Assumptions!$L$19+R7,2) -> FY35 | S58: ="FY"&RIGHT(Assumptions!$L$19+S7,2) -> FY36 | T58: ="FY"&RIGHT(Assumptions!$L$19+T7,2) -> FY37 | U58: ="FY"&RIGHT(Assumptions!$L$19+U7,2) -> FY38 | V58: ="FY"&RIGHT(Assumptions!$L$19+V7,2) -> FY39 | W58: ="FY"&RIGHT(Assumptions!$L$19+W7,2) -> FY40 | X58: ="FY"&RIGHT(Assumptions!$L$19+X7,2) -> FY41 | Y58: ="FY"&RIGHT(Assumptions!$L$19+Y7,2) -> FY42 | Z58: ="FY"&RIGHT(Assumptions!$L$19+Z7,2) -> FY43 | AA58: ="FY"&RIGHT(Assumptions!$L$19+AA7,2) -> FY44 | AB58: ="FY"&RIGHT(Assumptions!$L$19+AB7,2) -> FY45 | AC58: ="FY"&RIGHT(Assumptions!$L$19+AC7,2) -> FY46 | AD58: ="FY"&RIGHT(Assumptions!$L$19+AD7,2) -> FY47 | AE58: ="FY"&RIGHT(Assumptions!$L$19+AE7,2) -> FY48 | AF58: ="FY"&RIGHT(Assumptions!$L$19+AF7,2) -> FY49 | AG58: ="FY"&RIGHT(Assumptions!$L$19+AG7,2) -> FY50 | AH58: ="FY"&RIGHT(Assumptions!$L$19+AH7,2) -> FY51 | AI58: ="FY"&RIGHT(Assumptions!$L$19+AI7,2) -> FY52 | AJ58: ="FY"&RIGHT(Assumptions!$L$19+AJ7,2) -> FY53 | AK58: ="FY"&RIGHT(Assumptions!$L$19+AK7,2) -> FY54 | AL58: ="FY"&RIGHT(Assumptions!$L$19+AL7,2) -> FY55 | AM58: ="FY"&RIGHT(Assumptions!$L$19+AM7,2) -> FY56 | AN58: ="FY"&RIGHT(Assumptions!$L$19+AN7,2) -> FY57 | AO58: ="FY"&RIGHT(Assumptions!$L$19+AO7,2) -> FY58 | AP58: ="FY"&RIGHT(Assumptions!$L$19+AP7,2) -> FY59 | AQ58: ="FY"&RIGHT(Assumptions!$L$19+AQ7,2) -> FY60 | AR58: ="FY"&RIGHT(Assumptions!$L$19+AR7,2) -> FY61 | AS58: ="FY"&RIGHT(Assumptions!$L$19+AS7,2) -> FY62 | AT58: ="FY"&RIGHT(Assumptions!$L$19+AT7,2) -> FY63 | AU58: ="FY"&RIGHT(Assumptions!$L$19+AU7,2) -> FY64 | AV58: ="FY"&RIGHT(Assumptions!$L$19+AV7,2) -> FY65 | AW58: ="FY"&RIGHT(Assumptions!$L$19+AW7,2) -> FY66 | AX58: ="FY"&RIGHT(Assumptions!$L$19+AX7,2) -> FY67 | AY58: ="FY"&RIGHT(Assumptions!$L$19+AY7,2) -> FY68 | AZ58: ="FY"&RIGHT(Assumptions!$L$19+AZ7,2) -> FY69 | BA58: ="FY"&RIGHT(Assumptions!$L$19+BA7,2) -> FY70 | BB58: ="FY"&RIGHT(Assumptions!$L$19+BB7,2) -> FY71 | BC58: ="FY"&RIGHT(Assumptions!$L$19+BC7,2) -> FY72 | BD58: ="FY"&RIGHT(Assumptions!$L$19+BD7,2) -> FY73
D59: Direct labour | E59: =SUM(F59:J59) -> 0 | F59: =SUMIF(Input!$D$220:$BP$260,Output_tables!$D59,Input!R$220:R$260) -> 0 | G59: =SUMIF(Input!$D$220:$BP$260,Output_tables!$D59,Input!S$220:S$260) -> 0 | H59: =SUMIF(Input!$D$220:$BP$260,Output_tables!$D59,Input!T$220:T$260) -> 0 | I59: =SUMIF(Input!$D$220:$BP$260,Output_tables!$D59,Input!U$220:U$260) -> 0 | J59: =SUMIF(Input!$D$220:$BP$260,Output_tables!$D59,Input!V$220:V$260) -> 0 | K59: =SUMIF(Input!$D$220:$BP$260,Output_tables!$D59,Input!W$220:W$260) -> 0 | L59: =SUMIF(Input!$D$220:$BP$260,Output_tables!$D59,Input!X$220:X$260) -> 0 | M59: =SUMIF(Input!$D$220:$BP$260,Output_tables!$D59,Input!Y$220:Y$260) -> 0 | N59: =SUMIF(Input!$D$220:$BP$260,Output_tables!$D59,Input!Z$220:Z$260) -> 0 | O59: =SUMIF(Input!$D$220:$BP$260,Output_tables!$D59,Input!AA$220:AA$260) -> 0 | P59: =SUMIF(Input!$D$220:$BP$260,Output_tables!$D59,Input!AB$220:AB$260) -> 0 | Q59: =SUMIF(Input!$D$220:$BP$260,Output_tables!$D59,Input!AC$220:AC$260) -> 0 | R59: =SUMIF(Input!$D$220:$BP$260,Output_tables!$D59,Input!AD$220:AD$260) -> 0 | S59: =SUMIF(Input!$D$220:$BP$260,Output_tables!$D59,Input!AE$220:AE$260) -> 0 | T59: =SUMIF(Input!$D$220:$BP$260,Output_tables!$D59,Input!AF$220:AF$260) -> 0 | U59: =SUMIF(Input!$D$220:$BP$260,Output_tables!$D59,Input!AG$220:AG$260) -> 0 | V59: =SUMIF(Input!$D$220:$BP$260,Output_tables!$D59,Input!AH$220:AH$260) -> 0 | W59: =SUMIF(Input!$D$220:$BP$260,Output_tables!$D59,Input!AI$220:AI$260) -> 0 | X59: =SUMIF(Input!$D$220:$BP$260,Output_tables!$D59,Input!AJ$220:AJ$260) -> 0 | Y59: =SUMIF(Input!$D$220:$BP$260,Output_tables!$D59,Input!AK$220:AK$260) -> 0 | Z59: =SUMIF(Input!$D$220:$BP$260,Output_tables!$D59,Input!AL$220:AL$260) -> 0 | AA59: =SUMIF(Input!$D$220:$BP$260,Output_tables!$D59,Input!AM$220:AM$260) -> 0 | AB59: =SUMIF(Input!$D$220:$BP$260,Output_tables!$D59,Input!AN$220:AN$260) -> 0 | AC59: =SUMIF(Input!$D$220:$BP$260,Output_tables!$D59,Input!AO$220:AO$260) -> 0 | AD59: =SUMIF(Input!$D$220:$BP$260,Output_tables!$D59,Input!AP$220:AP$260) -> 0 | AE59: =SUMIF(Input!$D$220:$BP$260,Output_tables!$D59,Input!AQ$220:AQ$260) -> 0 | AF59: =SUMIF(Input!$D$220:$BP$260,Output_tables!$D59,Input!AR$220:AR$260) -> 0 | AG59: =SUMIF(Input!$D$220:$BP$260,Output_tables!$D59,Input!AS$220:AS$260) -> 0 | AH59: =SUMIF(Input!$D$220:$BP$260,Output_tables!$D59,Input!AT$220:AT$260) -> 0 | AI59: =SUMIF(Input!$D$220:$BP$260,Output_tables!$D59,Input!AU$220:AU$260) -> 0 | AJ59: =SUMIF(Input!$D$220:$BP$260,Output_tables!$D59,Input!AV$220:AV$260) -> 0 | AK59: =SUMIF(Input!$D$220:$BP$260,Output_tables!$D59,Input!AW$220:AW$260) -> 0 | AL59: =SUMIF(Input!$D$220:$BP$260,Output_tables!$D59,Input!AX$220:AX$260) -> 0 | AM59: =SUMIF(Input!$D$220:$BP$260,Output_tables!$D59,Input!AY$220:AY$260) -> 0 | AN59: =SUMIF(Input!$D$220:$BP$260,Output_tables!$D59,Input!AZ$220:AZ$260) -> 0 | AO59: =SUMIF(Input!$D$220:$BP$260,Output_tables!$D59,Input!BA$220:BA$260) -> 0 | AP59: =SUMIF(Input!$D$220:$BP$260,Output_tables!$D59,Input!BB$220:BB$260) -> 0 | AQ59: =SUMIF(Input!$D$220:$BP$260,Output_tables!$D59,Input!BC$220:BC$260) -> 0 | AR59: =SUMIF(Input!$D$220:$BP$260,Output_tables!$D59,Input!BD$220:BD$260) -> 0 | AS59: =SUMIF(Input!$D$220:$BP$260,Output_tables!$D59,Input!BE$220:BE$260) -> 0 | AT59: =SUMIF(Input!$D$220:$BP$260,Output_tables!$D59,Input!BF$220:BF$260) -> 0 | AU59: =SUMIF(Input!$D$220:$BP$260,Output_tables!$D59,Input!BG$220:BG$260) -> 0 | AV59: =SUMIF(Input!$D$220:$BP$260,Output_tables!$D59,Input!BH$220:BH$260) -> 0 | AW59: =SUMIF(Input!$D$220:$BP$260,Output_tables!$D59,Input!BI$220:BI$260) -> 0 | AX59: =SUMIF(Input!$D$220:$BP$260,Output_tables!$D59,Input!BJ$220:BJ$260) -> 0 | AY59: =SUMIF(Input!$D$220:$BP$260,Output_tables!$D59,Input!BK$220:BK$260) -> 0 | AZ59: =SUMIF(Input!$D$220:$BP$260,Output_tables!$D59,Input!BL$220:BL$260) -> 0 | BA59: =SUMIF(Input!$D$220:$BP$260,Output_tables!$D59,Input!BM$220:BM$260) -> 0 | BB59: =SUMIF(Input!$D$220:$BP$260,Output_tables!$D59,Input!BN$220:BN$260) -> 0 | BC59: =SUMIF(Input!$D$220:$BP$260,Output_tables!$D59,Input!BO$220:BO$260) -> 0 | BD59: =SUMIF(Input!$D$220:$BP$260,Output_tables!$D59,Input!BP$220:BP$260) -> 0
D60: Materials | E60: 0 | F60: =SUMIF(Input!$D$220:$BP$260,Output_tables!$D60,Input!R$220:R$260) -> 0 | G60: =SUMIF(Input!$D$220:$BP$260,Output_tables!$D60,Input!S$220:S$260) -> 0 | H60: =SUMIF(Input!$D$220:$BP$260,Output_tables!$D60,Input!T$220:T$260) -> 0 | I60: =SUMIF(Input!$D$220:$BP$260,Output_tables!$D60,Input!U$220:U$260) -> 0 | J60: =SUMIF(Input!$D$220:$BP$260,Output_tables!$D60,Input!V$220:V$260) -> 0 | K60: =SUMIF(Input!$D$220:$BP$260,Output_tables!$D60,Input!W$220:W$260) -> 0 | L60: =SUMIF(Input!$D$220:$BP$260,Output_tables!$D60,Input!X$220:X$260) -> 0 | M60: =SUMIF(Input!$D$220:$BP$260,Output_tables!$D60,Input!Y$220:Y$260) -> 0 | N60: =SUMIF(Input!$D$220:$BP$260,Output_tables!$D60,Input!Z$220:Z$260) -> 0 | O60: =SUMIF(Input!$D$220:$BP$260,Output_tables!$D60,Input!AA$220:AA$260) -> 0 | P60: =SUMIF(Input!$D$220:$BP$260,Output_tables!$D60,Input!AB$220:AB$260) -> 0 | Q60: =SUMIF(Input!$D$220:$BP$260,Output_tables!$D60,Input!AC$220:AC$260) -> 0 | R60: =SUMIF(Input!$D$220:$BP$260,Output_tables!$D60,Input!AD$220:AD$260) -> 0 | S60: =SUMIF(Input!$D$220:$BP$260,Output_tables!$D60,Input!AE$220:AE$260) -> 0 | T60: =SUMIF(Input!$D$220:$BP$260,Output_tables!$D60,Input!AF$220:AF$260) -> 0 | U60: =SUMIF(Input!$D$220:$BP$260,Output_tables!$D60,Input!AG$220:AG$260) -> 0 | V60: =SUMIF(Input!$D$220:$BP$260,Output_tables!$D60,Input!AH$220:AH$260) -> 0 | W60: =SUMIF(Input!$D$220:$BP$260,Output_tables!$D60,Input!AI$220:AI$260) -> 0 | X60: =SUMIF(Input!$D$220:$BP$260,Output_tables!$D60,Input!AJ$220:AJ$260) -> 0 | Y60: =SUMIF(Input!$D$220:$BP$260,Output_tables!$D60,Input!AK$220:AK$260) -> 0 | Z60: =SUMIF(Input!$D$220:$BP$260,Output_tables!$D60,Input!AL$220:AL$260) -> 0 | AA60: =SUMIF(Input!$D$220:$BP$260,Output_tables!$D60,Input!AM$220:AM$260) -> 0 | AB60: =SUMIF(Input!$D$220:$BP$260,Output_tables!$D60,Input!AN$220:AN$260) -> 0 | AC60: =SUMIF(Input!$D$220:$BP$260,Output_tables!$D60,Input!AO$220:AO$260) -> 0 | AD60: =SUMIF(Input!$D$220:$BP$260,Output_tables!$D60,Input!AP$220:AP$260) -> 0 | AE60: =SUMIF(Input!$D$220:$BP$260,Output_tables!$D60,Input!AQ$220:AQ$260) -> 0 | AF60: =SUMIF(Input!$D$220:$BP$260,Output_tables!$D60,Input!AR$220:AR$260) -> 0 | AG60: =SUMIF(Input!$D$220:$BP$260,Output_tables!$D60,Input!AS$220:AS$260) -> 0 | AH60: =SUMIF(Input!$D$220:$BP$260,Output_tables!$D60,Input!AT$220:AT$260) -> 0 | AI60: =SUMIF(Input!$D$220:$BP$260,Output_tables!$D60,Input!AU$220:AU$260) -> 0 | AJ60: =SUMIF(Input!$D$220:$BP$260,Output_tables!$D60,Input!AV$220:AV$260) -> 0 | AK60: =SUMIF(Input!$D$220:$BP$260,Output_tables!$D60,Input!AW$220:AW$260) -> 0 | AL60: =SUMIF(Input!$D$220:$BP$260,Output_tables!$D60,Input!AX$220:AX$260) -> 0 | AM60: =SUMIF(Input!$D$220:$BP$260,Output_tables!$D60,Input!AY$220:AY$260) -> 0 | AN60: =SUMIF(Input!$D$220:$BP$260,Output_tables!$D60,Input!AZ$220:AZ$260) -> 0 | AO60: =SUMIF(Input!$D$220:$BP$260,Output_tables!$D60,Input!BA$220:BA$260) -> 0 | AP60: =SUMIF(Input!$D$220:$BP$260,Output_tables!$D60,Input!BB$220:BB$260) -> 0 | AQ60: =SUMIF(Input!$D$220:$BP$260,Output_tables!$D60,Input!BC$220:BC$260) -> 0 | AR60: =SUMIF(Input!$D$220:$BP$260,Output_tables!$D60,Input!BD$220:BD$260) -> 0 | AS60: =SUMIF(Input!$D$220:$BP$260,Output_tables!$D60,Input!BE$220:BE$260) -> 0 | AT60: =SUMIF(Input!$D$220:$BP$260,Output_tables!$D60,Input!BF$220:BF$260) -> 0 | AU60: =SUMIF(Input!$D$220:$BP$260,Output_tables!$D60,Input!BG$220:BG$260) -> 0 | AV60: =SUMIF(Input!$D$220:$BP$260,Output_tables!$D60,Input!BH$220:BH$260) -> 0 | AW60: =SUMIF(Input!$D$220:$BP$260,Output_tables!$D60,Input!BI$220:BI$260) -> 0 | AX60: =SUMIF(Input!$D$220:$BP$260,Output_tables!$D60,Input!BJ$220:BJ$260) -> 0 | AY60: =SUMIF(Input!$D$220:$BP$260,Output_tables!$D60,Input!BK$220:BK$260) -> 0 | AZ60: =SUMIF(Input!$D$220:$BP$260,Output_tables!$D60,Input!BL$220:BL$260) -> 0 | BA60: =SUMIF(Input!$D$220:$BP$260,Output_tables!$D60,Input!BM$220:BM$260) -> 0 | BB60: =SUMIF(Input!$D$220:$BP$260,Output_tables!$D60,Input!BN$220:BN$260) -> 0 | BC60: =SUMIF(Input!$D$220:$BP$260,Output_tables!$D60,Input!BO$220:BO$260) -> 0 | BD60: =SUMIF(Input!$D$220:$BP$260,Output_tables!$D60,Input!BP$220:BP$260) -> 0
D61: Contracted services | E61: 0 | F61: =SUMIF(Input!$D$220:$BP$260,Output_tables!$D61,Input!R$220:R$260) -> 0 | G61: =SUMIF(Input!$D$220:$BP$260,Output_tables!$D61,Input!S$220:S$260) -> 0 | H61: =SUMIF(Input!$D$220:$BP$260,Output_tables!$D61,Input!T$220:T$260) -> 0 | I61: =SUMIF(Input!$D$220:$BP$260,Output_tables!$D61,Input!U$220:U$260) -> 0 | J61: =SUMIF(Input!$D$220:$BP$260,Output_tables!$D61,Input!V$220:V$260) -> 0 | K61: =SUMIF(Input!$D$220:$BP$260,Output_tables!$D61,Input!W$220:W$260) -> 0 | L61: =SUMIF(Input!$D$220:$BP$260,Output_tables!$D61,Input!X$220:X$260) -> 0 | M61: =SUMIF(Input!$D$220:$BP$260,Output_tables!$D61,Input!Y$220:Y$260) -> 0 | N61: =SUMIF(Input!$D$220:$BP$260,Output_tables!$D61,Input!Z$220:Z$260) -> 0 | O61: =SUMIF(Input!$D$220:$BP$260,Output_tables!$D61,Input!AA$220:AA$260) -> 0 | P61: =SUMIF(Input!$D$220:$BP$260,Output_tables!$D61,Input!AB$220:AB$260) -> 0 | Q61: =SUMIF(Input!$D$220:$BP$260,Output_tables!$D61,Input!AC$220:AC$260) -> 0 | R61: =SUMIF(Input!$D$220:$BP$260,Output_tables!$D61,Input!AD$220:AD$260) -> 0 | S61: =SUMIF(Input!$D$220:$BP$260,Output_tables!$D61,Input!AE$220:AE$260) -> 0 | T61: =SUMIF(Input!$D$220:$BP$260,Output_tables!$D61,Input!AF$220:AF$260) -> 0 | U61: =SUMIF(Input!$D$220:$BP$260,Output_tables!$D61,Input!AG$220:AG$260) -> 0 | V61: =SUMIF(Input!$D$220:$BP$260,Output_tables!$D61,Input!AH$220:AH$260) -> 0 | W61: =SUMIF(Input!$D$220:$BP$260,Output_tables!$D61,Input!AI$220:AI$260) -> 0 | X61: =SUMIF(Input!$D$220:$BP$260,Output_tables!$D61,Input!AJ$220:AJ$260) -> 0 | Y61: =SUMIF(Input!$D$220:$BP$260,Output_tables!$D61,Input!AK$220:AK$260) -> 0 | Z61: =SUMIF(Input!$D$220:$BP$260,Output_tables!$D61,Input!AL$220:AL$260) -> 0 | AA61: =SUMIF(Input!$D$220:$BP$260,Output_tables!$D61,Input!AM$220:AM$260) -> 0 | AB61: =SUMIF(Input!$D$220:$BP$260,Output_tables!$D61,Input!AN$220:AN$260) -> 0 | AC61: =SUMIF(Input!$D$220:$BP$260,Output_tables!$D61,Input!AO$220:AO$260) -> 0 | AD61: =SUMIF(Input!$D$220:$BP$260,Output_tables!$D61,Input!AP$220:AP$260) -> 0 | AE61: =SUMIF(Input!$D$220:$BP$260,Output_tables!$D61,Input!AQ$220:AQ$260) -> 0 | AF61: =SUMIF(Input!$D$220:$BP$260,Output_tables!$D61,Input!AR$220:AR$260) -> 0 | AG61: =SUMIF(Input!$D$220:$BP$260,Output_tables!$D61,Input!AS$220:AS$260) -> 0 | AH61: =SUMIF(Input!$D$220:$BP$260,Output_tables!$D61,Input!AT$220:AT$260) -> 0 | AI61: =SUMIF(Input!$D$220:$BP$260,Output_tables!$D61,Input!AU$220:AU$260) -> 0 | AJ61: =SUMIF(Input!$D$220:$BP$260,Output_tables!$D61,Input!AV$220:AV$260) -> 0 | AK61: =SUMIF(Input!$D$220:$BP$260,Output_tables!$D61,Input!AW$220:AW$260) -> 0 | AL61: =SUMIF(Input!$D$220:$BP$260,Output_tables!$D61,Input!AX$220:AX$260) -> 0 | AM61: =SUMIF(Input!$D$220:$BP$260,Output_tables!$D61,Input!AY$220:AY$260) -> 0 | AN61: =SUMIF(Input!$D$220:$BP$260,Output_tables!$D61,Input!AZ$220:AZ$260) -> 0 | AO61: =SUMIF(Input!$D$220:$BP$260,Output_tables!$D61,Input!BA$220:BA$260) -> 0 | AP61: =SUMIF(Input!$D$220:$BP$260,Output_tables!$D61,Input!BB$220:BB$260) -> 0 | AQ61: =SUMIF(Input!$D$220:$BP$260,Output_tables!$D61,Input!BC$220:BC$260) -> 0 | AR61: =SUMIF(Input!$D$220:$BP$260,Output_tables!$D61,Input!BD$220:BD$260) -> 0 | AS61: =SUMIF(Input!$D$220:$BP$260,Output_tables!$D61,Input!BE$220:BE$260) -> 0 | AT61: =SUMIF(Input!$D$220:$BP$260,Output_tables!$D61,Input!BF$220:BF$260) -> 0 | AU61: =SUMIF(Input!$D$220:$BP$260,Output_tables!$D61,Input!BG$220:BG$260) -> 0 | AV61: =SUMIF(Input!$D$220:$BP$260,Output_tables!$D61,Input!BH$220:BH$260) -> 0 | AW61: =SUMIF(Input!$D$220:$BP$260,Output_tables!$D61,Input!BI$220:BI$260) -> 0 | AX61: =SUMIF(Input!$D$220:$BP$260,Output_tables!$D61,Input!BJ$220:BJ$260) -> 0 | AY61: =SUMIF(Input!$D$220:$BP$260,Output_tables!$D61,Input!BK$220:BK$260) -> 0 | AZ61: =SUMIF(Input!$D$220:$BP$260,Output_tables!$D61,Input!BL$220:BL$260) -> 0 | BA61: =SUMIF(Input!$D$220:$BP$260,Output_tables!$D61,Input!BM$220:BM$260) -> 0 | BB61: =SUMIF(Input!$D$220:$BP$260,Output_tables!$D61,Input!BN$220:BN$260) -> 0 | BC61: =SUMIF(Input!$D$220:$BP$260,Output_tables!$D61,Input!BO$220:BO$260) -> 0 | BD61: =SUMIF(Input!$D$220:$BP$260,Output_tables!$D61,Input!BP$220:BP$260) -> 0
D62: Indirect labour / overheads | E62: 0 | F62: =SUMIF(Input!$D$220:$BP$260,Output_tables!$D62,Input!R$220:R$260) -> 0 | G62: =SUMIF(Input!$D$220:$BP$260,Output_tables!$D62,Input!S$220:S$260) -> 0 | H62: =SUMIF(Input!$D$220:$BP$260,Output_tables!$D62,Input!T$220:T$260) -> 0 | I62: =SUMIF(Input!$D$220:$BP$260,Output_tables!$D62,Input!U$220:U$260) -> 0 | J62: =SUMIF(Input!$D$220:$BP$260,Output_tables!$D62,Input!V$220:V$260) -> 0 | K62: =SUMIF(Input!$D$220:$BP$260,Output_tables!$D62,Input!W$220:W$260) -> 0 | L62: =SUMIF(Input!$D$220:$BP$260,Output_tables!$D62,Input!X$220:X$260) -> 0 | M62: =SUMIF(Input!$D$220:$BP$260,Output_tables!$D62,Input!Y$220:Y$260) -> 0 | N62: =SUMIF(Input!$D$220:$BP$260,Output_tables!$D62,Input!Z$220:Z$260) -> 0 | O62: =SUMIF(Input!$D$220:$BP$260,Output_tables!$D62,Input!AA$220:AA$260) -> 0 | P62: =SUMIF(Input!$D$220:$BP$260,Output_tables!$D62,Input!AB$220:AB$260) -> 0 | Q62: =SUMIF(Input!$D$220:$BP$260,Output_tables!$D62,Input!AC$220:AC$260) -> 0 | R62: =SUMIF(Input!$D$220:$BP$260,Output_tables!$D62,Input!AD$220:AD$260) -> 0 | S62: =SUMIF(Input!$D$220:$BP$260,Output_tables!$D62,Input!AE$220:AE$260) -> 0 | T62: =SUMIF(Input!$D$220:$BP$260,Output_tables!$D62,Input!AF$220:AF$260) -> 0 | U62: =SUMIF(Input!$D$220:$BP$260,Output_tables!$D62,Input!AG$220:AG$260) -> 0 | V62: =SUMIF(Input!$D$220:$BP$260,Output_tables!$D62,Input!AH$220:AH$260) -> 0 | W62: =SUMIF(Input!$D$220:$BP$260,Output_tables!$D62,Input!AI$220:AI$260) -> 0 | X62: =SUMIF(Input!$D$220:$BP$260,Output_tables!$D62,Input!AJ$220:AJ$260) -> 0 | Y62: =SUMIF(Input!$D$220:$BP$260,Output_tables!$D62,Input!AK$220:AK$260) -> 0 | Z62: =SUMIF(Input!$D$220:$BP$260,Output_tables!$D62,Input!AL$220:AL$260) -> 0 | AA62: =SUMIF(Input!$D$220:$BP$260,Output_tables!$D62,Input!AM$220:AM$260) -> 0 | AB62: =SUMIF(Input!$D$220:$BP$260,Output_tables!$D62,Input!AN$220:AN$260) -> 0 | AC62: =SUMIF(Input!$D$220:$BP$260,Output_tables!$D62,Input!AO$220:AO$260) -> 0 | AD62: =SUMIF(Input!$D$220:$BP$260,Output_tables!$D62,Input!AP$220:AP$260) -> 0 | AE62: =SUMIF(Input!$D$220:$BP$260,Output_tables!$D62,Input!AQ$220:AQ$260) -> 0 | AF62: =SUMIF(Input!$D$220:$BP$260,Output_tables!$D62,Input!AR$220:AR$260) -> 0 | AG62: =SUMIF(Input!$D$220:$BP$260,Output_tables!$D62,Input!AS$220:AS$260) -> 0 | AH62: =SUMIF(Input!$D$220:$BP$260,Output_tables!$D62,Input!AT$220:AT$260) -> 0 | AI62: =SUMIF(Input!$D$220:$BP$260,Output_tables!$D62,Input!AU$220:AU$260) -> 0 | AJ62: =SUMIF(Input!$D$220:$BP$260,Output_tables!$D62,Input!AV$220:AV$260) -> 0 | AK62: =SUMIF(Input!$D$220:$BP$260,Output_tables!$D62,Input!AW$220:AW$260) -> 0 | AL62: =SUMIF(Input!$D$220:$BP$260,Output_tables!$D62,Input!AX$220:AX$260) -> 0 | AM62: =SUMIF(Input!$D$220:$BP$260,Output_tables!$D62,Input!AY$220:AY$260) -> 0 | AN62: =SUMIF(Input!$D$220:$BP$260,Output_tables!$D62,Input!AZ$220:AZ$260) -> 0 | AO62: =SUMIF(Input!$D$220:$BP$260,Output_tables!$D62,Input!BA$220:BA$260) -> 0 | AP62: =SUMIF(Input!$D$220:$BP$260,Output_tables!$D62,Input!BB$220:BB$260) -> 0 | AQ62: =SUMIF(Input!$D$220:$BP$260,Output_tables!$D62,Input!BC$220:BC$260) -> 0 | AR62: =SUMIF(Input!$D$220:$BP$260,Output_tables!$D62,Input!BD$220:BD$260) -> 0 | AS62: =SUMIF(Input!$D$220:$BP$260,Output_tables!$D62,Input!BE$220:BE$260) -> 0 | AT62: =SUMIF(Input!$D$220:$BP$260,Output_tables!$D62,Input!BF$220:BF$260) -> 0 | AU62: =SUMIF(Input!$D$220:$BP$260,Output_tables!$D62,Input!BG$220:BG$260) -> 0 | AV62: =SUMIF(Input!$D$220:$BP$260,Output_tables!$D62,Input!BH$220:BH$260) -> 0 | AW62: =SUMIF(Input!$D$220:$BP$260,Output_tables!$D62,Input!BI$220:BI$260) -> 0 | AX62: =SUMIF(Input!$D$220:$BP$260,Output_tables!$D62,Input!BJ$220:BJ$260) -> 0 | AY62: =SUMIF(Input!$D$220:$BP$260,Output_tables!$D62,Input!BK$220:BK$260) -> 0 | AZ62: =SUMIF(Input!$D$220:$BP$260,Output_tables!$D62,Input!BL$220:BL$260) -> 0 | BA62: =SUMIF(Input!$D$220:$BP$260,Output_tables!$D62,Input!BM$220:BM$260) -> 0 | BB62: =SUMIF(Input!$D$220:$BP$260,Output_tables!$D62,Input!BN$220:BN$260) -> 0 | BC62: =SUMIF(Input!$D$220:$BP$260,Output_tables!$D62,Input!BO$220:BO$260) -> 0 | BD62: =SUMIF(Input!$D$220:$BP$260,Output_tables!$D62,Input!BP$220:BP$260) -> 0
D63: Other | E63: 1735532.902 | F63: =SUMIF(Input!$D$220:$BP$260,Output_tables!$D63,Input!R$220:R$260) -> 0 | G63: =SUMIF(Input!$D$220:$BP$260,Output_tables!$D63,Input!S$220:S$260) -> 0 | H63: =SUMIF(Input!$D$220:$BP$260,Output_tables!$D63,Input!T$220:T$260) -> 0 | I63: =SUMIF(Input!$D$220:$BP$260,Output_tables!$D63,Input!U$220:U$260) -> 0 | J63: =SUMIF(Input!$D$220:$BP$260,Output_tables!$D63,Input!V$220:V$260) -> 1735532.902 | K63: =SUMIF(Input!$D$220:$BP$260,Output_tables!$D63,Input!W$220:W$260) -> 2047423.47 | L63: =SUMIF(Input!$D$220:$BP$260,Output_tables!$D63,Input!X$220:X$260) -> 2051971.099 | M63: =SUMIF(Input!$D$220:$BP$260,Output_tables!$D63,Input!Y$220:Y$260) -> 2056601.902 | N63: =SUMIF(Input!$D$220:$BP$260,Output_tables!$D63,Input!Z$220:Z$260) -> 2061300.473 | O63: =SUMIF(Input!$D$220:$BP$260,Output_tables!$D63,Input!AA$220:AA$260) -> 2066067.803 | P63: =SUMIF(Input!$D$220:$BP$260,Output_tables!$D63,Input!AB$220:AB$260) -> 0 | Q63: =SUMIF(Input!$D$220:$BP$260,Output_tables!$D63,Input!AC$220:AC$260) -> 0 | R63: =SUMIF(Input!$D$220:$BP$260,Output_tables!$D63,Input!AD$220:AD$260) -> 0 | S63: =SUMIF(Input!$D$220:$BP$260,Output_tables!$D63,Input!AE$220:AE$260) -> 0 | T63: =SUMIF(Input!$D$220:$BP$260,Output_tables!$D63,Input!AF$220:AF$260) -> 0 | U63: =SUMIF(Input!$D$220:$BP$260,Output_tables!$D63,Input!AG$220:AG$260) -> 0 | V63: =SUMIF(Input!$D$220:$BP$260,Output_tables!$D63,Input!AH$220:AH$260) -> 0 | W63: =SUMIF(Input!$D$220:$BP$260,Output_tables!$D63,Input!AI$220:AI$260) -> 0 | X63: =SUMIF(Input!$D$220:$BP$260,Output_tables!$D63,Input!AJ$220:AJ$260) -> 0 | Y63: =SUMIF(Input!$D$220:$BP$260,Output_tables!$D63,Input!AK$220:AK$260) -> 0 | Z63: =SUMIF(Input!$D$220:$BP$260,Output_tables!$D63,Input!AL$220:AL$260) -> 0 | AA63: =SUMIF(Input!$D$220:$BP$260,Output_tables!$D63,Input!AM$220:AM$260) -> 0 | AB63: =SUMIF(Input!$D$220:$BP$260,Output_tables!$D63,Input!AN$220:AN$260) -> 0 | AC63: =SUMIF(Input!$D$220:$BP$260,Output_tables!$D63,Input!AO$220:AO$260) -> 0 | AD63: =SUMIF(Input!$D$220:$BP$260,Output_tables!$D63,Input!AP$220:AP$260) -> 0 | AE63: =SUMIF(Input!$D$220:$BP$260,Output_tables!$D63,Input!AQ$220:AQ$260) -> 0 | AF63: =SUMIF(Input!$D$220:$BP$260,Output_tables!$D63,Input!AR$220:AR$260) -> 0 | AG63: =SUMIF(Input!$D$220:$BP$260,Output_tables!$D63,Input!AS$220:AS$260) -> 0 | AH63: =SUMIF(Input!$D$220:$BP$260,Output_tables!$D63,Input!AT$220:AT$260) -> 0 | AI63: =SUMIF(Input!$D$220:$BP$260,Output_tables!$D63,Input!AU$220:AU$260) -> 0 | AJ63: =SUMIF(Input!$D$220:$BP$260,Output_tables!$D63,Input!AV$220:AV$260) -> 0 | AK63: =SUMIF(Input!$D$220:$BP$260,Output_tables!$D63,Input!AW$220:AW$260) -> 0 | AL63: =SUMIF(Input!$D$220:$BP$260,Output_tables!$D63,Input!AX$220:AX$260) -> 0 | AM63: =SUMIF(Input!$D$220:$BP$260,Output_tables!$D63,Input!AY$220:AY$260) -> 0 | AN63: =SUMIF(Input!$D$220:$BP$260,Output_tables!$D63,Input!AZ$220:AZ$260) -> 0 | AO63: =SUMIF(Input!$D$220:$BP$260,Output_tables!$D63,Input!BA$220:BA$260) -> 0 | AP63: =SUMIF(Input!$D$220:$BP$260,Output_tables!$D63,Input!BB$220:BB$260) -> 0 | AQ63: =SUMIF(Input!$D$220:$BP$260,Output_tables!$D63,Input!BC$220:BC$260) -> 0 | AR63: =SUMIF(Input!$D$220:$BP$260,Output_tables!$D63,Input!BD$220:BD$260) -> 0 | AS63: =SUMIF(Input!$D$220:$BP$260,Output_tables!$D63,Input!BE$220:BE$260) -> 0 | AT63: =SUMIF(Input!$D$220:$BP$260,Output_tables!$D63,Input!BF$220:BF$260) -> 0 | AU63: =SUMIF(Input!$D$220:$BP$260,Output_tables!$D63,Input!BG$220:BG$260) -> 0 | AV63: =SUMIF(Input!$D$220:$BP$260,Output_tables!$D63,Input!BH$220:BH$260) -> 0 | AW63: =SUMIF(Input!$D$220:$BP$260,Output_tables!$D63,Input!BI$220:BI$260) -> 0 | AX63: =SUMIF(Input!$D$220:$BP$260,Output_tables!$D63,Input!BJ$220:BJ$260) -> 0 | AY63: =SUMIF(Input!$D$220:$BP$260,Output_tables!$D63,Input!BK$220:BK$260) -> 0 | AZ63: =SUMIF(Input!$D$220:$BP$260,Output_tables!$D63,Input!BL$220:BL$260) -> 0 | BA63: =SUMIF(Input!$D$220:$BP$260,Output_tables!$D63,Input!BM$220:BM$260) -> 0 | BB63: =SUMIF(Input!$D$220:$BP$260,Output_tables!$D63,Input!BN$220:BN$260) -> 0 | BC63: =SUMIF(Input!$D$220:$BP$260,Output_tables!$D63,Input!BO$220:BO$260) -> 0 | BD63: =SUMIF(Input!$D$220:$BP$260,Output_tables!$D63,Input!BP$220:BP$260) -> 0
D64: Ongoing/new opex | E64: 1735532.902 | F64: =Calcs!R168 -> 0 | G64: =Calcs!S168 -> 0 | H64: =Calcs!T168 -> 0 | I64: =Calcs!U168 -> 0 | J64: =Calcs!V168 -> 1735532.902 | K64: =Calcs!W168 -> 2047423.47 | L64: =Calcs!X168 -> 2051971.099 | M64: =Calcs!Y168 -> 2056601.902 | N64: =Calcs!Z168 -> 2061300.473 | O64: =Calcs!AA168 -> 2066067.803 | P64: =Calcs!AB168 -> 0 | Q64: =Calcs!AC168 -> 0 | R64: =Calcs!AD168 -> 0 | S64: =Calcs!AE168 -> 0 | T64: =Calcs!AF168 -> 0 | U64: =Calcs!AG168 -> 0 | V64: =Calcs!AH168 -> 0 | W64: =Calcs!AI168 -> 0 | X64: =Calcs!AJ168 -> 0 | Y64: =Calcs!AK168 -> 0 | Z64: =Calcs!AL168 -> 0 | AA64: =Calcs!AM168 -> 0 | AB64: =Calcs!AN168 -> 0 | AC64: =Calcs!AO168 -> 0 | AD64: =Calcs!AP168 -> 0 | AE64: =Calcs!AQ168 -> 0 | AF64: =Calcs!AR168 -> 0 | AG64: =Calcs!AS168 -> 0 | AH64: =Calcs!AT168 -> 0 | AI64: =Calcs!AU168 -> 0 | AJ64: =Calcs!AV168 -> 0 | AK64: =Calcs!AW168 -> 0 | AL64: =Calcs!AX168 -> 0 | AM64: =Calcs!AY168 -> 0 | AN64: =Calcs!AZ168 -> 0 | AO64: =Calcs!BA168 -> 0 | AP64: =Calcs!BB168 -> 0 | AQ64: =Calcs!BC168 -> 0 | AR64: =Calcs!BD168 -> 0 | AS64: =Calcs!BE168 -> 0 | AT64: =Calcs!BF168 -> 0 | AU64: =Calcs!BG168 -> 0 | AV64: =Calcs!BH168 -> 0 | AW64: =Calcs!BI168 -> 0 | AX64: =Calcs!BJ168 -> 0 | AY64: =Calcs!BK168 -> 0 | AZ64: =Calcs!BL168 -> 0 | BA64: =Calcs!BM168 -> 0 | BB64: =Calcs!BN168 -> 0 | BC64: =Calcs!BO168 -> 0 | BD64: =Calcs!BP168 -> 0
D65: Opex investment | E65: -71478.05658 | F65: =Calcs!R331 -> 0 | G65: =Calcs!S331 -> 0 | H65: =Calcs!T331 -> 0 | I65: =Calcs!U331 -> 0 | J65: =Calcs!V331 -> -71478.05658 | K65: =Calcs!W331 -> -71478.05658 | L65: =Calcs!X331 -> -71478.05658 | M65: =Calcs!Y331 -> -71478.05658 | N65: =Calcs!Z331 -> -71478.05658 | O65: =Calcs!AA331 -> -71478.05658 | P65: =Calcs!AB331 -> 0 | Q65: =Calcs!AC331 -> 0 | R65: =Calcs!AD331 -> 0 | S65: =Calcs!AE331 -> 0 | T65: =Calcs!AF331 -> 0 | U65: =Calcs!AG331 -> 0 | V65: =Calcs!AH331 -> 0 | W65: =Calcs!AI331 -> 0 | X65: =Calcs!AJ331 -> 0 | Y65: =Calcs!AK331 -> 0 | Z65: =Calcs!AL331 -> 0 | AA65: =Calcs!AM331 -> 0 | AB65: =Calcs!AN331 -> 0 | AC65: =Calcs!AO331 -> 0 | AD65: =Calcs!AP331 -> 0 | AE65: =Calcs!AQ331 -> 0 | AF65: =Calcs!AR331 -> 0 | AG65: =Calcs!AS331 -> 0 | AH65: =Calcs!AT331 -> 0 | AI65: =Calcs!AU331 -> 0 | AJ65: =Calcs!AV331 -> 0 | AK65: =Calcs!AW331 -> 0 | AL65: =Calcs!AX331 -> 0 | AM65: =Calcs!AY331 -> 0 | AN65: =Calcs!AZ331 -> 0 | AO65: =Calcs!BA331 -> 0 | AP65: =Calcs!BB331 -> 0 | AQ65: =Calcs!BC331 -> 0 | AR65: =Calcs!BD331 -> 0 | AS65: =Calcs!BE331 -> 0 | AT65: =Calcs!BF331 -> 0 | AU65: =Calcs!BG331 -> 0 | AV65: =Calcs!BH331 -> 0 | AW65: =Calcs!BI331 -> 0 | AX65: =Calcs!BJ331 -> 0 | AY65: =Calcs!BK331 -> 0 | AZ65: =Calcs!BL331 -> 0 | BA65: =Calcs!BM331 -> 0 | BB65: =Calcs!BN331 -> 0 | BC65: =Calcs!BO331 -> 0 | BD65: =Calcs!BP331 -> 0
D66: Opex benefits | E66: 1735532.902 | F66: =SUM(Calcs!R334:R339) -> 0 | G66: =SUM(Calcs!S334:S339) -> 0 | H66: =SUM(Calcs!T334:T339) -> 0 | I66: =SUM(Calcs!U334:U339) -> 0 | J66: =SUM(Calcs!V334:V339) -> 1735532.902 | K66: =SUM(Calcs!W334:W339) -> 2047423.47 | L66: =SUM(Calcs!X334:X339) -> 2051971.099 | M66: =SUM(Calcs!Y334:Y339) -> 2056601.902 | N66: =SUM(Calcs!Z334:Z339) -> 2061300.473 | O66: =SUM(Calcs!AA334:AA339) -> 2061300.473 | P66: =SUM(Calcs!AB334:AB339) -> 0 | Q66: =SUM(Calcs!AC334:AC339) -> 0 | R66: =SUM(Calcs!AD334:AD339) -> 0 | S66: =SUM(Calcs!AE334:AE339) -> 0 | T66: =SUM(Calcs!AF334:AF339) -> 0 | U66: =SUM(Calcs!AG334:AG339) -> 0 | V66: =SUM(Calcs!AH334:AH339) -> 0 | W66: =SUM(Calcs!AI334:AI339) -> 0 | X66: =SUM(Calcs!AJ334:AJ339) -> 0 | Y66: =SUM(Calcs!AK334:AK339) -> 0 | Z66: =SUM(Calcs!AL334:AL339) -> 0 | AA66: =SUM(Calcs!AM334:AM339) -> 0 | AB66: =SUM(Calcs!AN334:AN339) -> 0 | AC66: =SUM(Calcs!AO334:AO339) -> 0 | AD66: =SUM(Calcs!AP334:AP339) -> 0 | AE66: =SUM(Calcs!AQ334:AQ339) -> 0 | AF66: =SUM(Calcs!AR334:AR339) -> 0 | AG66: =SUM(Calcs!AS334:AS339) -> 0 | AH66: =SUM(Calcs!AT334:AT339) -> 0 | AI66: =SUM(Calcs!AU334:AU339) -> 0 | AJ66: =SUM(Calcs!AV334:AV339) -> 0 | AK66: =SUM(Calcs!AW334:AW339) -> 0 | AL66: =SUM(Calcs!AX334:AX339) -> 0 | AM66: =SUM(Calcs!AY334:AY339) -> 0 | AN66: =SUM(Calcs!AZ334:AZ339) -> 0 | AO66: =SUM(Calcs!BA334:BA339) -> 0 | AP66: =SUM(Calcs!BB334:BB339) -> 0 | AQ66: =SUM(Calcs!BC334:BC339) -> 0 | AR66: =SUM(Calcs!BD334:BD339) -> 0 | AS66: =SUM(Calcs!BE334:BE339) -> 0 | AT66: =SUM(Calcs!BF334:BF339) -> 0 | AU66: =SUM(Calcs!BG334:BG339) -> 0 | AV66: =SUM(Calcs!BH334:BH339) -> 0 | AW66: =SUM(Calcs!BI334:BI339) -> 0 | AX66: =SUM(Calcs!BJ334:BJ339) -> 0 | AY66: =SUM(Calcs!BK334:BK339) -> 0 | AZ66: =SUM(Calcs!BL334:BL339) -> 0 | BA66: =SUM(Calcs!BM334:BM339) -> 0 | BB66: =SUM(Calcs!BN334:BN339) -> 0 | BC66: =SUM(Calcs!BO334:BO339) -> 0 | BD66: =SUM(Calcs!BP334:BP339) -> 0
D67: Net opex | E67: 3399587.747 | F67: =SUM(F64:F66) -> 0 | G67: 0 | H67: 0 | I67: 0 | J67: 3399587.747 | K67: 4023368.883 | L67: 4032464.142 | M67: 4041725.748 | N67: 4051122.89 | O67: 4055890.22 | P67: 0 | Q67: 0 | R67: 0 | S67: 0 | T67: 0 | U67: 0 | V67: 0 | W67: 0 | X67: 0 | Y67: 0 | Z67: 0 | AA67: 0 | AB67: 0 | AC67: 0 | AD67: 0 | AE67: 0 | AF67: 0 | AG67: 0 | AH67: 0 | AI67: 0 | AJ67: 0 | AK67: 0 | AL67: =SUM(AL64:AL66) -> 0 | AM67: 0 | AN67: 0 | AO67: 0 | AP67: 0 | AQ67: 0 | AR67: 0 | AS67: 0 | AT67: 0 | AU67: 0 | AV67: 0 | AW67: 0 | AX67: 0 | AY67: 0 | AZ67: 0 | BA67: 0 | BB67: 0 | BC67: 0 | BD67: 0

Sheet Input
A1: Ausgrid investment evaluation model
B2: =RIGHT(CELL("filename",A1),LEN(CELL("filename",A1))-FIND("]",CELL("filename",A1))) -> Input
D4: Legend | E4: Input | F4: Calculation | G4: Select | H4: Internal | I4: Assumptions | J4: Instructions | K4: Change in formula pattern | Q4: Year index | R4: ="FY"&RIGHT(Assumptions!$L$19+R68,2) -> FY23 | S4: ="FY"&RIGHT(Assumptions!$L$19+S68,2) -> FY24 | T4: ="FY"&RIGHT(Assumptions!$L$19+T68,2) -> FY25 | U4: ="FY"&RIGHT(Assumptions!$L$19+U68,2) -> FY26 | V4: ="FY"&RIGHT(Assumptions!$L$19+V68,2) -> FY27 | W4: ="FY"&RIGHT(Assumptions!$L$19+W68,2) -> FY28 | X4: ="FY"&RIGHT(Assumptions!$L$19+X68,2) -> FY29 | Y4: ="FY"&RIGHT(Assumptions!$L$19+Y68,2) -> FY30 | Z4: ="FY"&RIGHT(Assumptions!$L$19+Z68,2) -> FY31 | AA4: ="FY"&RIGHT(Assumptions!$L$19+AA68,2) -> FY32 | AB4: ="FY"&RIGHT(Assumptions!$L$19+AB68,2) -> FY33 | AC4: ="FY"&RIGHT(Assumptions!$L$19+AC68,2) -> FY34 | AD4: ="FY"&RIGHT(Assumptions!$L$19+AD68,2) -> FY35 | AE4: ="FY"&RIGHT(Assumptions!$L$19+AE68,2) -> FY36 | AF4: ="FY"&RIGHT(Assumptions!$L$19+AF68,2) -> FY37 | AG4: ="FY"&RIGHT(Assumptions!$L$19+AG68,2) -> FY38 | AH4: ="FY"&RIGHT(Assumptions!$L$19+AH68,2) -> FY39 | AI4: ="FY"&RIGHT(Assumptions!$L$19+AI68,2) -> FY40 | AJ4: ="FY"&RIGHT(Assumptions!$L$19+AJ68,2) -> FY41 | AK4: ="FY"&RIGHT(Assumptions!$L$19+AK68,2) -> FY42 | AL4: ="FY"&RIGHT(Assumptions!$L$19+AL68,2) -> FY43 | AM4: ="FY"&RIGHT(Assumptions!$L$19+AM68,2) -> FY44 | AN4: ="FY"&RIGHT(Assumptions!$L$19+AN68,2) -> FY45 | AO4: ="FY"&RIGHT(Assumptions!$L$19+AO68,2) -> FY46 | AP4: ="FY"&RIGHT(Assumptions!$L$19+AP68,2) -> FY47 | AQ4: ="FY"&RIGHT(Assumptions!$L$19+AQ68,2) -> FY48 | AR4: ="FY"&RIGHT(Assumptions!$L$19+AR68,2) -> FY49 | AS4: ="FY"&RIGHT(Assumptions!$L$19+AS68,2) -> FY50 | AT4: ="FY"&RIGHT(Assumptions!$L$19+AT68,2) -> FY51 | AU4: ="FY"&RIGHT(Assumptions!$L$19+AU68,2) -> FY52 | AV4: ="FY"&RIGHT(Assumptions!$L$19+AV68,2) -> FY53 | AW4: ="FY"&RIGHT(Assumptions!$L$19+AW68,2) -> FY54 | AX4: ="FY"&RIGHT(Assumptions!$L$19+AX68,2) -> FY55 | AY4: ="FY"&RIGHT(Assumptions!$L$19+AY68,2) -> FY56 | AZ4: ="FY"&RIGHT(Assumptions!$L$19+AZ68,2) -> FY57 | BA4: ="FY"&RIGHT(Assumptions!$L$19+BA68,2) -> FY58 | BB4: ="FY"&RIGHT(Assumptions!$L$19+BB68,2) -> FY59 | BC4: ="FY"&RIGHT(Assumptions!$L$19+BC68,2) -> FY60 | BD4: ="FY"&RIGHT(Assumptions!$L$19+BD68,2) -> FY61 | BE4: ="FY"&RIGHT(Assumptions!$L$19+BE68,2) -> FY62 | BF4: ="FY"&RIGHT(Assumptions!$L$19+BF68,2) -> FY63 | BG4: ="FY"&RIGHT(Assumptions!$L$19+BG68,2) -> FY64 | BH4: ="FY"&RIGHT(Assumptions!$L$19+BH68,2) -> FY65 | BI4: ="FY"&RIGHT(Assumptions!$L$19+BI68,2) -> FY66 | BJ4: ="FY"&RIGHT(Assumptions!$L$19+BJ68,2) -> FY67 | BK4: ="FY"&RIGHT(Assumptions!$L$19+BK68,2) -> FY68 | BL4: ="FY"&RIGHT(Assumptions!$L$19+BL68,2) -> FY69 | BM4: ="FY"&RIGHT(Assumptions!$L$19+BM68,2) -> FY70 | BN4: ="FY"&RIGHT(Assumptions!$L$19+BN68,2) -> FY71 | BO4: ="FY"&RIGHT(Assumptions!$L$19+BO68,2) -> FY72 | BP4: ="FY"&RIGHT(Assumptions!$L$19+BP68,2) -> FY73
C21: Business case author
C23: Gate approval stage | E23: Gate 2
C24: Date
C25: Name
C26: Reg ID
C27: Investment type | E27: Project
C28: Investment area | E28: Network
C29: Need date
C30: Investment driver
D32: Brief project/program description
B34: Investment overview and details
H47: Standard network project / AER category | J47: Type | K47: Asset | L47: Asset life
D49: Asset description | H49: Regulatory | J49: Distribution | K49: IT systems | L49: =IF($H$49=Assumptions!$D$48,INDEX(Assumptions!$C$55:$E$100,MATCH(Input!$K$49,Assumptions!$C$55:$C$100,0),3),INDEX(Assumptions!$C$104:$E$142,MATCH(Input!$K$49,Assumptions!$C$104:$C$142,0),3)) -> 5
D50: Manual asset life input | L50: 15
D51: Asset life used in calculations | L51: =IF(ISBLANK($L$50),$L$49,$L$50) -> 15
L53: Last year
D55: Last year of longest useful asset life option
B57: NPV inputs
C59: Capex cost
F67: Description (if required) | M67: ="FY"&RIGHT(Assumptions!$L$19+M68,2) -> FY18 | N67: ="FY"&RIGHT(Assumptions!$L$19+N68,2) -> FY19 | O67: ="FY"&RIGHT(Assumptions!$L$19+O68,2) -> FY20 | P67: ="FY"&RIGHT(Assumptions!$L$19+P68,2) -> FY21 | Q67: ="FY"&RIGHT(Assumptions!$L$19+Q68,2) -> FY22 | R67: ="FY"&RIGHT(Assumptions!$L$19+R68,2) -> FY23 | S67: ="FY"&RIGHT(Assumptions!$L$19+S68,2) -> FY24 | T67: ="FY"&RIGHT(Assumptions!$L$19+T68,2) -> FY25 | U67: ="FY"&RIGHT(Assumptions!$L$19+U68,2) -> FY26 | V67: ="FY"&RIGHT(Assumptions!$L$19+V68,2) -> FY27 | W67: ="FY"&RIGHT(Assumptions!$L$19+W68,2) -> FY28 | X67: ="FY"&RIGHT(Assumptions!$L$19+X68,2) -> FY29 | Y67: ="FY"&RIGHT(Assumptions!$L$19+Y68,2) -> FY30 | Z67: ="FY"&RIGHT(Assumptions!$L$19+Z68,2) -> FY31 | AA67: ="FY"&RIGHT(Assumptions!$L$19+AA68,2) -> FY32 | AB67: ="FY"&RIGHT(Assumptions!$L$19+AB68,2) -> FY33 | AC67: ="FY"&RIGHT(Assumptions!$L$19+AC68,2) -> FY34 | AD67: ="FY"&RIGHT(Assumptions!$L$19+AD68,2) -> FY35 | AE67: ="FY"&RIGHT(Assumptions!$L$19+AE68,2) -> FY36 | AF67: ="FY"&RIGHT(Assumptions!$L$19+AF68,2) -> FY37 | AG67: ="FY"&RIGHT(Assumptions!$L$19+AG68,2) -> FY38 | AH67: ="FY"&RIGHT(Assumptions!$L$19+AH68,2) -> FY39 | AI67: ="FY"&RIGHT(Assumptions!$L$19+AI68,2) -> FY40 | AJ67: ="FY"&RIGHT(Assumptions!$L$19+AJ68,2) -> FY41 | AK67: ="FY"&RIGHT(Assumptions!$L$19+AK68,2) -> FY42 | AL67: ="FY"&RIGHT(Assumptions!$L$19+AL68,2) -> FY43 | AM67: ="FY"&RIGHT(Assumptions!$L$19+AM68,2) -> FY44 | AN67: ="FY"&RIGHT(Assumptions!$L$19+AN68,2) -> FY45 | AO67: ="FY"&RIGHT(Assumptions!$L$19+AO68,2) -> FY46 | AP67: ="FY"&RIGHT(Assumptions!$L$19+AP68,2) -> FY47 | AQ67: ="FY"&RIGHT(Assumptions!$L$19+AQ68,2) -> FY48 | AR67: ="FY"&RIGHT(Assumptions!$L$19+AR68,2) -> FY49 | AS67: ="FY"&RIGHT(Assumptions!$L$19+AS68,2) -> FY50 | AT67: ="FY"&RIGHT(Assumptions!$L$19+AT68,2) -> FY51 | AU67: ="FY"&RIGHT(Assumptions!$L$19+AU68,2) -> FY52 | AV67: ="FY"&RIGHT(Assumptions!$L$19+AV68,2) -> FY53 | AW67: ="FY"&RIGHT(Assumptions!$L$19+AW68,2) -> FY54 | AX67: ="FY"&RIGHT(Assumptions!$L$19+AX68,2) -> FY55 | AY67: ="FY"&RIGHT(Assumptions!$L$19+AY68,2) -> FY56 | AZ67: ="FY"&RIGHT(Assumptions!$L$19+AZ68,2) -> FY57 | BA67: ="FY"&RIGHT(Assumptions!$L$19+BA68,2) -> FY58 | BB67: ="FY"&RIGHT(Assumptions!$L$19+BB68,2) -> FY59 | BC67: ="FY"&RIGHT(Assumptions!$L$19+BC68,2) -> FY60 | BD67: ="FY"&RIGHT(Assumptions!$L$19+BD68,2) -> FY61 | BE67: ="FY"&RIGHT(Assumptions!$L$19+BE68,2) -> FY62 | BF67: ="FY"&RIGHT(Assumptions!$L$19+BF68,2) -> FY63 | BG67: ="FY"&RIGHT(Assumptions!$L$19+BG68,2) -> FY64 | BH67: ="FY"&RIGHT(Assumptions!$L$19+BH68,2) -> FY65 | BI67: ="FY"&RIGHT(Assumptions!$L$19+BI68,2) -> FY66 | BJ67: ="FY"&RIGHT(Assumptions!$L$19+BJ68,2) -> FY67 | BK67: ="FY"&RIGHT(Assumptions!$L$19+BK68,2) -> FY68 | BL67: ="FY"&RIGHT(Assumptions!$L$19+BL68,2) -> FY69 | BM67: ="FY"&RIGHT(Assumptions!$L$19+BM68,2) -> FY70 | BN67: ="FY"&RIGHT(Assumptions!$L$19+BN68,2) -> FY71 | BO67: ="FY"&RIGHT(Assumptions!$L$19+BO68,2) -> FY72 | BP67: ="FY"&RIGHT(Assumptions!$L$19+BP68,2) -> FY73
F68: year index vs current year | M68: =N68-1 -> -5 | N68: -4 | O68: -3 | P68: -2 | Q68: -1 | R68: 0 | S68: =R68+1 -> 1 | T68: 2 | U68: 3 | V68: 4 | W68: 5 | X68: 6 | Y68: 7 | Z68: 8 | AA68: 9 | AB68: 10 | AC68: 11 | AD68: 12 | AE68: 13 | AF68: 14 | AG68: 15 | AH68: 16 | AI68: 17 | AJ68: 18 | AK68: 19 | AL68: 20 | AM68: 21 | AN68: 22 | AO68: 23 | AP68: 24 | AQ68: 25 | AR68: 26 | AS68: 27 | AT68: 28 | AU68: 29 | AV68: 30 | AW68: 31 | AX68: 32 | AY68: 33 | AZ68: 34 | BA68: 35 | BB68: 36 | BC68: 37 | BD68: 38 | BE68: 39 | BF68: 40 | BG68: 41 | BH68: 42 | BI68: 43 | BJ68: 44 | BK68: 45 | BL68: 46 | BM68: 47 | BN68: 48 | BO68: 49 | BP68: 50
D70: Component 1 | AB70: =SUM(AB71:AB75) -> 0 | AC70: 0 | AD70: 0 | AE70: 0 | AF70: 0 | AG70: 0 | AH70: 0 | AI70: 0 | AJ70: 0 | AK70: 0 | AL70: 0 | AM70: 0 | AN70: 0 | AO70: 0 | AP70: 0 | AQ70: 0 | AR70: 0 | AS70: 0 | AT70: 0 | AU70: 0 | AV70: 0 | AW70: 0 | AX70: 0 | AY70: 0 | AZ70: 0 | BA70: 0 | BB70: 0 | BC70: 0 | BD70: 0 | BE70: 0 | BF70: 0 | BG70: 0 | BH70: 0 | BI70: 0 | BJ70: 0 | BK70: 0 | BL70: 0 | BM70: 0 | BN70: 0 | BO70: 0 | BP70: 0
D71: Direct labour
D72: Materials
D73: Contracted services
D74: Indirect labour / overheads
D75: Other | F75: Used for QuickCalc, override if using full inputs | AB75: =QuickCalc!O22 -> 0 | AC75: =QuickCalc!P22 -> 0 | AD75: =QuickCalc!Q22 -> 0 | AE75: =QuickCalc!R22 -> 0 | AF75: =QuickCalc!S22 -> 0 | AG75: =QuickCalc!T22 -> 0 | AH75: =QuickCalc!U22 -> 0 | AI75: =QuickCalc!V22 -> 0 | AJ75: =QuickCalc!W22 -> 0 | AK75: =QuickCalc!X22 -> 0 | AL75: =QuickCalc!Y22 -> 0 | AM75: =QuickCalc!Z22 -> 0 | AN75: =QuickCalc!AA22 -> 0 | AO75: =QuickCalc!AB22 -> 0 | AP75: =QuickCalc!AC22 -> 0 | AQ75: =QuickCalc!AD22 -> 0 | AR75: =QuickCalc!AE22 -> 0 | AS75: =QuickCalc!AF22 -> 0 | AT75: =QuickCalc!AG22 -> 0 | AU75: =QuickCalc!AH22 -> 0 | AV75: =QuickCalc!AI22 -> 0 | AW75: =QuickCalc!AJ22 -> 0 | AX75: =QuickCalc!AK22 -> 0 | AY75: =QuickCalc!AL22 -> 0 | AZ75: =QuickCalc!AM22 -> 0 | BA75: =QuickCalc!AN22 -> 0 | BB75: =QuickCalc!AO22 -> 0 | BC75: =QuickCalc!AP22 -> 0 | BD75: =QuickCalc!AQ22 -> 0 | BE75: =QuickCalc!AR22 -> 0 | BF75: =QuickCalc!AS22 -> 0 | BG75: =QuickCalc!AT22 -> 0 | BH75: =QuickCalc!AU22 -> 0 | BI75: =QuickCalc!AV22 -> 0 | BJ75: =QuickCalc!AW22 -> 0 | BK75: =QuickCalc!AX22 -> 0 | BL75: =QuickCalc!AY22 -> 0 | BM75: =QuickCalc!AZ22 -> 0 | BN75: =QuickCalc!BA22 -> 0 | BO75: =QuickCalc!BB22 -> 0 | BP75: =QuickCalc!BC22 -> 0
D77: Component 2 (if required) | R77: =SUM(R78:R82) -> 0 | S77: 0 | T77: 0 | U77: 0 | V77: 0 | W77: 0 | X77: 0 | Y77: 0 | Z77: 0 | AA77: 0 | AB77: 0 | AC77: 0 | AD77: 0 | AE77: 0 | AF77: 0 | AG77: 0 | AH77: 0 | AI77: 0 | AJ77: 0 | AK77: 0 | AL77: 0 | AM77: 0 | AN77: 0 | AO77: 0 | AP77: 0 | AQ77: 0 | AR77: 0 | AS77: 0 | AT77: 0 | AU77: 0 | AV77: 0 | AW77: 0 | AX77: 0 | AY77: 0 | AZ77: 0 | BA77: 0 | BB77: 0 | BC77: 0 | BD77: 0 | BE77: 0 | BF77: 0 | BG77: 0 | BH77: 0 | BI77: 0 | BJ77: 0 | BK77: 0 | BL77: 0 | BM77: 0 | BN77: 0 | BO77: 0 | BP77: 0
D78: Direct labour
D79: Materials
D80: Contracted services
D81: Indirect labour / overheads
D82: Other
D84: Component 3 (if required) | R84: =SUM(R85:R89) -> 0 | S84: 0 | T84: 0 | U84: 0 | V84: 0 | W84: 0 | X84: 0 | Y84: 0 | Z84: 0 | AA84: 0 | AB84: 0 | AC84: 0 | AD84: 0 | AE84: 0 | AF84: 0 | AG84: 0 | AH84: 0 | AI84: 0 | AJ84: 0 | AK84: 0 | AL84: 0 | AM84: 0 | AN84: 0 | AO84: 0 | AP84: 0 | AQ84: 0 | AR84: 0 | AS84: 0 | AT84: 0 | AU84: 0 | AV84: 0 | AW84: 0 | AX84: 0 | AY84: 0 | AZ84: 0 | BA84: 0 | BB84: 0 | BC84: 0 | BD84: 0 | BE84: 0 | BF84: 0 | BG84: 0 | BH84: 0 | BI84: 0 | BJ84: 0 | BK84: 0 | BL84: 0 | BM84: 0 | BN84: 0 | BO84: 0 | BP84: 0
D85: Direct labour
D86: Materials
D87: Contracted services
D88: Indirect labour / overheads
D89: Other
D91: Component 4 (if required) | R91: =SUM(R92:R96) -> 0 | S91: 0 | T91: 0 | U91: 0 | V91: 0 | W91: 0 | X91: 0 | Y91: 0 | Z91: 0 | AA91: 0 | AB91: 0 | AC91: 0 | AD91: 0 | AE91: 0 | AF91: 0 | AG91: 0 | AH91: 0 | AI91: 0 | AJ91: 0 | AK91: 0 | AL91: 0 | AM91: 0 | AN91: 0 | AO91: 0 | AP91: 0 | AQ91: 0 | AR91: 0 | AS91: 0 | AT91: 0 | AU91: 0 | AV91: 0 | AW91: 0 | AX91: 0 | AY91: 0 | AZ91: 0 | BA91: 0 | BB91: 0 | BC91: 0 | BD91: 0 | BE91: 0 | BF91: 0 | BG91: 0 | BH91: 0 | BI91: 0 | BJ91: 0 | BK91: 0 | BL91: 0 | BM91: 0 | BN91: 0 | BO91: 0 | BP91: 0
D92: Direct labour
D93: Materials
D94: Contracted services
D95: Indirect labour / overheads
D96: Other
D98: Proceeds of sale | R98: =SUM(R99:R103) -> 0 | S98: 0 | T98: 0 | U98: 0 | V98: 0 | W98: 0 | X98: 0 | Y98: 0 | Z98: 0 | AA98: 0 | AB98: 0 | AC98: 0 | AD98: 0 | AE98: 0 | AF98: 0 | AG98: 0 | AH98: 0 | AI98: 0 | AJ98: 0 | AK98: 0 | AL98: 0 | AM98: 0 | AN98: 0 | AO98: 0 | AP98: 0 | AQ98: 0 | AR98: 0 | AS98: 0 | AT98: 0 | AU98: 0 | AV98: 0 | AW98: 0 | AX98: 0 | AY98: 0 | AZ98: 0 | BA98: 0 | BB98: 0 | BC98: 0 | BD98: 0 | BE98: 0 | BF98: 0 | BG98: 0 | BH98: 0 | BI98: 0 | BJ98: 0 | BK98: 0 | BL98: 0 | BM98: 0 | BN98: 0 | BO98: 0 | BP98: 0
D99: Direct labour
D100: Materials
D101: Contracted services
D102: Indirect labour / overheads
D103: Other
D105: Contingency
D107: Land
C109: Sunk cost
F114: Description (if required) | M114: ="FY"&RIGHT(Assumptions!$L$19+M68,2) -> FY18 | N114: ="FY"&RIGHT(Assumptions!$L$19+N68,2) -> FY19 | O114: ="FY"&RIGHT(Assumptions!$L$19+O68,2) -> FY20 | P114: ="FY"&RIGHT(Assumptions!$L$19+P68,2) -> FY21 | Q114: ="FY"&RIGHT(Assumptions!$L$19+Q68,2) -> FY22
D116: Previous capex costs excl land
C118: Future capex cost
F127: Description (if required) | R127: ="FY"&RIGHT(Assumptions!$L$19+R68,2) -> FY23 | S127: ="FY"&RIGHT(Assumptions!$L$19+S68,2) -> FY24 | T127: ="FY"&RIGHT(Assumptions!$L$19+T68,2) -> FY25 | U127: ="FY"&RIGHT(Assumptions!$L$19+U68,2) -> FY26 | V127: ="FY"&RIGHT(Assumptions!$L$19+V68,2) -> FY27 | W127: ="FY"&RIGHT(Assumptions!$L$19+W68,2) -> FY28 | X127: ="FY"&RIGHT(Assumptions!$L$19+X68,2) -> FY29 | Y127: ="FY"&RIGHT(Assumptions!$L$19+Y68,2) -> FY30 | Z127: ="FY"&RIGHT(Assumptions!$L$19+Z68,2) -> FY31 | AA127: ="FY"&RIGHT(Assumptions!$L$19+AA68,2) -> FY32 | AB127: ="FY"&RIGHT(Assumptions!$L$19+AB68,2) -> FY33 | AC127: ="FY"&RIGHT(Assumptions!$L$19+AC68,2) -> FY34 | AD127: ="FY"&RIGHT(Assumptions!$L$19+AD68,2) -> FY35 | AE127: ="FY"&RIGHT(Assumptions!$L$19+AE68,2) -> FY36 | AF127: ="FY"&RIGHT(Assumptions!$L$19+AF68,2) -> FY37 | AG127: ="FY"&RIGHT(Assumptions!$L$19+AG68,2) -> FY38 | AH127: ="FY"&RIGHT(Assumptions!$L$19+AH68,2) -> FY39 | AI127: ="FY"&RIGHT(Assumptions!$L$19+AI68,2) -> FY40 | AJ127: ="FY"&RIGHT(Assumptions!$L$19+AJ68,2) -> FY41 | AK127: ="FY"&RIGHT(Assumptions!$L$19+AK68,2) -> FY42 | AL127: ="FY"&RIGHT(Assumptions!$L$19+AL68,2) -> FY43 | AM127: ="FY"&RIGHT(Assumptions!$L$19+AM68,2) -> FY44 | AN127: ="FY"&RIGHT(Assumptions!$L$19+AN68,2) -> FY45 | AO127: ="FY"&RIGHT(Assumptions!$L$19+AO68,2) -> FY46 | AP127: ="FY"&RIGHT(Assumptions!$L$19+AP68,2) -> FY47 | AQ127: ="FY"&RIGHT(Assumptions!$L$19+AQ68,2) -> FY48 | AR127: ="FY"&RIGHT(Assumptions!$L$19+AR68,2) -> FY49 | AS127: ="FY"&RIGHT(Assumptions!$L$19+AS68,2) -> FY50 | AT127: ="FY"&RIGHT(Assumptions!$L$19+AT68,2) -> FY51 | AU127: ="FY"&RIGHT(Assumptions!$L$19+AU68,2) -> FY52 | AV127: ="FY"&RIGHT(Assumptions!$L$19+AV68,2) -> FY53 | AW127: ="FY"&RIGHT(Assumptions!$L$19+AW68,2) -> FY54 | AX127: ="FY"&RIGHT(Assumptions!$L$19+AX68,2) -> FY55 | AY127: ="FY"&RIGHT(Assumptions!$L$19+AY68,2) -> FY56 | AZ127: ="FY"&RIGHT(Assumptions!$L$19+AZ68,2) -> FY57 | BA127: ="FY"&RIGHT(Assumptions!$L$19+BA68,2) -> FY58 | BB127: ="FY"&RIGHT(Assumptions!$L$19+BB68,2) -> FY59 | BC127: ="FY"&RIGHT(Assumptions!$L$19+BC68,2) -> FY60 | BD127: ="FY"&RIGHT(Assumptions!$L$19+BD68,2) -> FY61 | BE127: ="FY"&RIGHT(Assumptions!$L$19+BE68,2) -> FY62 | BF127: ="FY"&RIGHT(Assumptions!$L$19+BF68,2) -> FY63 | BG127: ="FY"&RIGHT(Assumptions!$L$19+BG68,2) -> FY64 | BH127: ="FY"&RIGHT(Assumptions!$L$19+BH68,2) -> FY65 | BI127: ="FY"&RIGHT(Assumptions!$L$19+BI68,2) -> FY66 | BJ127: ="FY"&RIGHT(Assumptions!$L$19+BJ68,2) -> FY67 | BK127: ="FY"&RIGHT(Assumptions!$L$19+BK68,2) -> FY68 | BL127: ="FY"&RIGHT(Assumptions!$L$19+BL68,2) -> FY69 | BM127: ="FY"&RIGHT(Assumptions!$L$19+BM68,2) -> FY70 | BN127: ="FY"&RIGHT(Assumptions!$L$19+BN68,2) -> FY71 | BO127: ="FY"&RIGHT(Assumptions!$L$19+BO68,2) -> FY72 | BP127: ="FY"&RIGHT(Assumptions!$L$19+BP68,2) -> FY73
D129: Phase 1
D130: Phase 2 (if required)
D131: Phase 3 (if required)
D132: Phase 4 (if required)
D133: Phase 5 (if required) | F133: Used for QuickCalc, override if using full inputs | R133: =QuickCalc!E23 -> 0 | S133: =QuickCalc!F23 -> 0 | T133: =QuickCalc!G23 -> 0 | U133: =QuickCalc!H23 -> 0 | V133: =QuickCalc!I23 -> 0 | W133: =QuickCalc!J23 -> 0 | X133: =QuickCalc!K23 -> 0 | Y133: =QuickCalc!L23 -> 0 | Z133: =QuickCalc!M23 -> 0 | AA133: =QuickCalc!N23 -> 0 | AB133: =QuickCalc!O23 -> 0 | AC133: =QuickCalc!P23 -> 0 | AD133: =QuickCalc!Q23 -> 0 | AE133: =QuickCalc!R23 -> 0 | AF133: =QuickCalc!S23 -> 0 | AG133: =QuickCalc!T23 -> 0 | AH133: =QuickCalc!U23 -> 0 | AI133: =QuickCalc!V23 -> 0 | AJ133: =QuickCalc!W23 -> 0 | AK133: =QuickCalc!X23 -> 0 | AL133: =QuickCalc!Y23 -> 0 | AM133: =QuickCalc!Z23 -> 0 | AN133: =QuickCalc!AA23 -> 0 | AO133: =QuickCalc!AB23 -> 0 | AP133: =QuickCalc!AC23 -> 0 | AQ133: =QuickCalc!AD23 -> 0 | AR133: =QuickCalc!AE23 -> 0 | AS133: =QuickCalc!AF23 -> 0 | AT133: =QuickCalc!AG23 -> 0 | AU133: =QuickCalc!AH23 -> 0 | AV133: =QuickCalc!AI23 -> 0 | AW133: =QuickCalc!AJ23 -> 0 | AX133: =QuickCalc!AK23 -> 0 | AY133: =QuickCalc!AL23 -> 0 | AZ133: =QuickCalc!AM23 -> 0 | BA133: =QuickCalc!AN23 -> 0 | BB133: =QuickCalc!AO23 -> 0 | BC133: =QuickCalc!AP23 -> 0 | BD133: =QuickCalc!AQ23 -> 0 | BE133: =QuickCalc!AR23 -> 0 | BF133: =QuickCalc!AS23 -> 0 | BG133: =QuickCalc!AT23 -> 0 | BH133: =QuickCalc!AU23 -> 0 | BI133: =QuickCalc!AV23 -> 0 | BJ133: =QuickCalc!AW23 -> 0 | BK133: =QuickCalc!AX23 -> 0 | BL133: =QuickCalc!AY23 -> 0 | BM133: =QuickCalc!AZ23 -> 0 | BN133: =QuickCalc!BA23 -> 0 | BO133: =QuickCalc!BB23 -> 0 | BP133: =QuickCalc!BC23 -> 0
D135: Land
C137: Capex benefits
F143: Description (if required) | R143: ="FY"&RIGHT(Assumptions!$L$19+R68,2) -> FY23 | S143: ="FY"&RIGHT(Assumptions!$L$19+S68,2) -> FY24 | T143: ="FY"&RIGHT(Assumptions!$L$19+T68,2) -> FY25 | U143: ="FY"&RIGHT(Assumptions!$L$19+U68,2) -> FY26 | V143: ="FY"&RIGHT(Assumptions!$L$19+V68,2) -> FY27 | W143: ="FY"&RIGHT(Assumptions!$L$19+W68,2) -> FY28 | X143: ="FY"&RIGHT(Assumptions!$L$19+X68,2) -> FY29 | Y143: ="FY"&RIGHT(Assumptions!$L$19+Y68,2) -> FY30 | Z143: ="FY"&RIGHT(Assumptions!$L$19+Z68,2) -> FY31 | AA143: ="FY"&RIGHT(Assumptions!$L$19+AA68,2) -> FY32 | AB143: ="FY"&RIGHT(Assumptions!$L$19+AB68,2) -> FY33 | AC143: ="FY"&RIGHT(Assumptions!$L$19+AC68,2) -> FY34 | AD143: ="FY"&RIGHT(Assumptions!$L$19+AD68,2) -> FY35 | AE143: ="FY"&RIGHT(Assumptions!$L$19+AE68,2) -> FY36 | AF143: ="FY"&RIGHT(Assumptions!$L$19+AF68,2) -> FY37 | AG143: ="FY"&RIGHT(Assumptions!$L$19+AG68,2) -> FY38 | AH143: ="FY"&RIGHT(Assumptions!$L$19+AH68,2) -> FY39 | AI143: ="FY"&RIGHT(Assumptions!$L$19+AI68,2) -> FY40 | AJ143: ="FY"&RIGHT(Assumptions!$L$19+AJ68,2) -> FY41 | AK143: ="FY"&RIGHT(Assumptions!$L$19+AK68,2) -> FY42 | AL143: ="FY"&RIGHT(Assumptions!$L$19+AL68,2) -> FY43 | AM143: ="FY"&RIGHT(Assumptions!$L$19+AM68,2) -> FY44 | AN143: ="FY"&RIGHT(Assumptions!$L$19+AN68,2) -> FY45 | AO143: ="FY"&RIGHT(Assumptions!$L$19+AO68,2) -> FY46 | AP143: ="FY"&RIGHT(Assumptions!$L$19+AP68,2) -> FY47 | AQ143: ="FY"&RIGHT(Assumptions!$L$19+AQ68,2) -> FY48 | AR143: ="FY"&RIGHT(Assumptions!$L$19+AR68,2) -> FY49 | AS143: ="FY"&RIGHT(Assumptions!$L$19+AS68,2) -> FY50 | AT143: ="FY"&RIGHT(Assumptions!$L$19+AT68,2) -> FY51 | AU143: ="FY"&RIGHT(Assumptions!$L$19+AU68,2) -> FY52 | AV143: ="FY"&RIGHT(Assumptions!$L$19+AV68,2) -> FY53 | AW143: ="FY"&RIGHT(Assumptions!$L$19+AW68,2) -> FY54 | AX143: ="FY"&RIGHT(Assumptions!$L$19+AX68,2) -> FY55 | AY143: ="FY"&RIGHT(Assumptions!$L$19+AY68,2) -> FY56 | AZ143: ="FY"&RIGHT(Assumptions!$L$19+AZ68,2) -> FY57 | BA143: ="FY"&RIGHT(Assumptions!$L$19+BA68,2) -> FY58 | BB143: ="FY"&RIGHT(Assumptions!$L$19+BB68,2) -> FY59 | BC143: ="FY"&RIGHT(Assumptions!$L$19+BC68,2) -> FY60 | BD143: ="FY"&RIGHT(Assumptions!$L$19+BD68,2) -> FY61 | BE143: ="FY"&RIGHT(Assumptions!$L$19+BE68,2) -> FY62 | BF143: ="FY"&RIGHT(Assumptions!$L$19+BF68,2) -> FY63 | BG143: ="FY"&RIGHT(Assumptions!$L$19+BG68,2) -> FY64 | BH143: ="FY"&RIGHT(Assumptions!$L$19+BH68,2) -> FY65 | BI143: ="FY"&RIGHT(Assumptions!$L$19+BI68,2) -> FY66 | BJ143: ="FY"&RIGHT(Assumptions!$L$19+BJ68,2) -> FY67 | BK143: ="FY"&RIGHT(Assumptions!$L$19+BK68,2) -> FY68 | BL143: ="FY"&RIGHT(Assumptions!$L$19+BL68,2) -> FY69 | BM143: ="FY"&RIGHT(Assumptions!$L$19+BM68,2) -> FY70 | BN143: ="FY"&RIGHT(Assumptions!$L$19+BN68,2) -> FY71 | BO143: ="FY"&RIGHT(Assumptions!$L$19+BO68,2) -> FY72 | BP143: ="FY"&RIGHT(Assumptions!$L$19+BP68,2) -> FY73
D145: Benefit 1
D146: Benefit 2
D147: Benefit 3 | F147: Used for QuickCalc, override if using full inputs | R147: =QuickCalc!E24 -> 0 | S147: =QuickCalc!F24 -> 0 | T147: =QuickCalc!G24 -> 0 | U147: =QuickCalc!H24 -> 0 | V147: =QuickCalc!I24 -> 0 | X147: =QuickCalc!K24 -> 0 | Y147: =QuickCalc!L24 -> 0 | Z147: =QuickCalc!M24 -> 0 | AA147: =QuickCalc!N24 -> 0 | AB147: =QuickCalc!O24 -> 0 | AC147: =QuickCalc!P24 -> 0 | AD147: =QuickCalc!Q24 -> 0 | AE147: =QuickCalc!R24 -> 0 | AF147: =QuickCalc!S24 -> 0 | AG147: =QuickCalc!T24 -> 0 | AH147: =QuickCalc!U24 -> 0 | AI147: =QuickCalc!V24 -> 0 | AJ147: =QuickCalc!W24 -> 0 | AK147: =QuickCalc!X24 -> 0 | AL147: =QuickCalc!Y24 -> 0 | AM147: =QuickCalc!Z24 -> 0 | AN147: =QuickCalc!AA24 -> 0 | AO147: =QuickCalc!AB24 -> 0 | AP147: =QuickCalc!AC24 -> 0 | AQ147: =QuickCalc!AD24 -> 0 | AR147: =QuickCalc!AE24 -> 0 | AS147: =QuickCalc!AF24 -> 0 | AT147: =QuickCalc!AG24 -> 0 | AU147: =QuickCalc!AH24 -> 0 | AV147: =QuickCalc!AI24 -> 0 | AW147: =QuickCalc!AJ24 -> 0 | AX147: =QuickCalc!AK24 -> 0 | AY147: =QuickCalc!AL24 -> 0 | AZ147: =QuickCalc!AM24 -> 0 | BA147: =QuickCalc!AN24 -> 0 | BB147: =QuickCalc!AO24 -> 0 | BC147: =QuickCalc!AP24 -> 0 | BD147: =QuickCalc!AQ24 -> 0 | BE147: =QuickCalc!AR24 -> 0 | BF147: =QuickCalc!AS24 -> 0 | BG147: =QuickCalc!AT24 -> 0 | BH147: =QuickCalc!AU24 -> 0 | BI147: =QuickCalc!AV24 -> 0 | BJ147: =QuickCalc!AW24 -> 0 | BK147: =QuickCalc!AX24 -> 0 | BL147: =QuickCalc!AY24 -> 0 | BM147: =QuickCalc!AZ24 -> 0 | BN147: =QuickCalc!BA24 -> 0 | BO147: =QuickCalc!BB24 -> 0 | BP147: =QuickCalc!BC24 -> 0
C149: Regulated revenue - Incentive schemes
F161: Description (if required) | R161: ="FY"&RIGHT(Assumptions!$L$19+R68,2) -> FY23 | S161: ="FY"&RIGHT(Assumptions!$L$19+S68,2) -> FY24 | T161: ="FY"&RIGHT(Assumptions!$L$19+T68,2) -> FY25 | U161: ="FY"&RIGHT(Assumptions!$L$19+U68,2) -> FY26 | V161: ="FY"&RIGHT(Assumptions!$L$19+V68,2) -> FY27 | W161: ="FY"&RIGHT(Assumptions!$L$19+W68,2) -> FY28 | X161: ="FY"&RIGHT(Assumptions!$L$19+X68,2) -> FY29 | Y161: ="FY"&RIGHT(Assumptions!$L$19+Y68,2) -> FY30 | Z161: ="FY"&RIGHT(Assumptions!$L$19+Z68,2) -> FY31 | AA161: ="FY"&RIGHT(Assumptions!$L$19+AA68,2) -> FY32 | AB161: ="FY"&RIGHT(Assumptions!$L$19+AB68,2) -> FY33 | AC161: ="FY"&RIGHT(Assumptions!$L$19+AC68,2) -> FY34 | AD161: ="FY"&RIGHT(Assumptions!$L$19+AD68,2) -> FY35 | AE161: ="FY"&RIGHT(Assumptions!$L$19+AE68,2) -> FY36 | AF161: ="FY"&RIGHT(Assumptions!$L$19+AF68,2) -> FY37 | AG161: ="FY"&RIGHT(Assumptions!$L$19+AG68,2) -> FY38 | AH161: ="FY"&RIGHT(Assumptions!$L$19+AH68,2) -> FY39 | AI161: ="FY"&RIGHT(Assumptions!$L$19+AI68,2) -> FY40 | AJ161: ="FY"&RIGHT(Assumptions!$L$19+AJ68,2) -> FY41 | AK161: ="FY"&RIGHT(Assumptions!$L$19+AK68,2) -> FY42 | AL161: ="FY"&RIGHT(Assumptions!$L$19+AL68,2) -> FY43 | AM161: ="FY"&RIGHT(Assumptions!$L$19+AM68,2) -> FY44 | AN161: ="FY"&RIGHT(Assumptions!$L$19+AN68,2) -> FY45 | AO161: ="FY"&RIGHT(Assumptions!$L$19+AO68,2) -> FY46 | AP161: ="FY"&RIGHT(Assumptions!$L$19+AP68,2) -> FY47 | AQ161: ="FY"&RIGHT(Assumptions!$L$19+AQ68,2) -> FY48 | AR161: ="FY"&RIGHT(Assumptions!$L$19+AR68,2) -> FY49 | AS161: ="FY"&RIGHT(Assumptions!$L$19+AS68,2) -> FY50 | AT161: ="FY"&RIGHT(Assumptions!$L$19+AT68,2) -> FY51 | AU161: ="FY"&RIGHT(Assumptions!$L$19+AU68,2) -> FY52 | AV161: ="FY"&RIGHT(Assumptions!$L$19+AV68,2) -> FY53 | AW161: ="FY"&RIGHT(Assumptions!$L$19+AW68,2) -> FY54 | AX161: ="FY"&RIGHT(Assumptions!$L$19+AX68,2) -> FY55 | AY161: ="FY"&RIGHT(Assumptions!$L$19+AY68,2) -> FY56 | AZ161: ="FY"&RIGHT(Assumptions!$L$19+AZ68,2) -> FY57 | BA161: ="FY"&RIGHT(Assumptions!$L$19+BA68,2) -> FY58 | BB161: ="FY"&RIGHT(Assumptions!$L$19+BB68,2) -> FY59 | BC161: ="FY"&RIGHT(Assumptions!$L$19+BC68,2) -> FY60 | BD161: ="FY"&RIGHT(Assumptions!$L$19+BD68,2) -> FY61 | BE161: ="FY"&RIGHT(Assumptions!$L$19+BE68,2) -> FY62 | BF161: ="FY"&RIGHT(Assumptions!$L$19+BF68,2) -> FY63 | BG161: ="FY"&RIGHT(Assumptions!$L$19+BG68,2) -> FY64 | BH161: ="FY"&RIGHT(Assumptions!$L$19+BH68,2) -> FY65 | BI161: ="FY"&RIGHT(Assumptions!$L$19+BI68,2) -> FY66 | BJ161: ="FY"&RIGHT(Assumptions!$L$19+BJ68,2) -> FY67 | BK161: ="FY"&RIGHT(Assumptions!$L$19+BK68,2) -> FY68 | BL161: ="FY"&RIGHT(Assumptions!$L$19+BL68,2) -> FY69 | BM161: ="FY"&RIGHT(Assumptions!$L$19+BM68,2) -> FY70 | BN161: ="FY"&RIGHT(Assumptions!$L$19+BN68,2) -> FY71 | BO161: ="FY"&RIGHT(Assumptions!$L$19+BO68,2) -> FY72 | BP161: ="FY"&RIGHT(Assumptions!$L$19+BP68,2) -> FY73
D163: STPIS | F163: Used for QuickCalc, override if using full inputs | R163: =QuickCalc!E25 -> 0 | S163: =QuickCalc!F25 -> 0 | T163: =QuickCalc!G25 -> 0 | U163: =QuickCalc!H25 -> 0 | V163: =QuickCalc!I25 -> 0 | W163: =QuickCalc!J25 -> 0 | X163: =QuickCalc!K25 -> 0 | Y163: =QuickCalc!L25 -> 0 | Z163: =QuickCalc!M25 -> 0 | AA163: =QuickCalc!N25 -> 0 | AB163: =QuickCalc!O25 -> 0 | AC163: =QuickCalc!P25 -> 0 | AD163: =QuickCalc!Q25 -> 0 | AE163: =QuickCalc!R25 -> 0 | AF163: =QuickCalc!S25 -> 0 | AG163: =QuickCalc!T25 -> 0 | AH163: =QuickCalc!U25 -> 0 | AI163: =QuickCalc!V25 -> 0 | AJ163: =QuickCalc!W25 -> 0 | AK163: =QuickCalc!X25 -> 0 | AL163: =QuickCalc!Y25 -> 0 | AM163: =QuickCalc!Z25 -> 0 | AN163: =QuickCalc!AA25 -> 0 | AO163: =QuickCalc!AB25 -> 0 | AP163: =QuickCalc!AC25 -> 0 | AQ163: =QuickCalc!AD25 -> 0 | AR163: =QuickCalc!AE25 -> 0 | AS163: =QuickCalc!AF25 -> 0 | AT163: =QuickCalc!AG25 -> 0 | AU163: =QuickCalc!AH25 -> 0 | AV163: =QuickCalc!AI25 -> 0 | AW163: =QuickCalc!AJ25 -> 0 | AX163: =QuickCalc!AK25 -> 0 | AY163: =QuickCalc!AL25 -> 0 | AZ163: =QuickCalc!AM25 -> 0 | BA163: =QuickCalc!AN25 -> 0 | BB163: =QuickCalc!AO25 -> 0 | BC163: =QuickCalc!AP25 -> 0 | BD163: =QuickCalc!AQ25 -> 0 | BE163: =QuickCalc!AR25 -> 0 | BF163: =QuickCalc!AS25 -> 0 | BG163: =QuickCalc!AT25 -> 0 | BH163: =QuickCalc!AU25 -> 0 | BI163: =QuickCalc!AV25 -> 0 | BJ163: =QuickCalc!AW25 -> 0 | BK163: =QuickCalc!AX25 -> 0 | BL163: =QuickCalc!AY25 -> 0 | BM163: =QuickCalc!AZ25 -> 0 | BN163: =QuickCalc!BA25 -> 0 | BO163: =QuickCalc!BB25 -> 0 | BP163: =QuickCalc!BC25 -> 0
D164: DMIS | K164: DMIS incentive % | L164: 0.5
C166: Regulated revenue - ACS revenue
F173: Description (if required) | R173: ="FY"&RIGHT(Assumptions!$L$19+R68,2) -> FY23 | S173: ="FY"&RIGHT(Assumptions!$L$19+S68,2) -> FY24 | T173: ="FY"&RIGHT(Assumptions!$L$19+T68,2) -> FY25 | U173: ="FY"&RIGHT(Assumptions!$L$19+U68,2) -> FY26 | V173: ="FY"&RIGHT(Assumptions!$L$19+V68,2) -> FY27 | W173: ="FY"&RIGHT(Assumptions!$L$19+W68,2) -> FY28 | X173: ="FY"&RIGHT(Assumptions!$L$19+X68,2) -> FY29 | Y173: ="FY"&RIGHT(Assumptions!$L$19+Y68,2) -> FY30 | Z173: ="FY"&RIGHT(Assumptions!$L$19+Z68,2) -> FY31 | AA173: ="FY"&RIGHT(Assumptions!$L$19+AA68,2) -> FY32 | AB173: ="FY"&RIGHT(Assumptions!$L$19+AB68,2) -> FY33 | AC173: ="FY"&RIGHT(Assumptions!$L$19+AC68,2) -> FY34 | AD173: ="FY"&RIGHT(Assumptions!$L$19+AD68,2) -> FY35 | AE173: ="FY"&RIGHT(Assumptions!$L$19+AE68,2) -> FY36 | AF173: ="FY"&RIGHT(Assumptions!$L$19+AF68,2) -> FY37 | AG173: ="FY"&RIGHT(Assumptions!$L$19+AG68,2) -> FY38 | AH173: ="FY"&RIGHT(Assumptions!$L$19+AH68,2) -> FY39 | AI173: ="FY"&RIGHT(Assumptions!$L$19+AI68,2) -> FY40 | AJ173: ="FY"&RIGHT(Assumptions!$L$19+AJ68,2) -> FY41 | AK173: ="FY"&RIGHT(Assumptions!$L$19+AK68,2) -> FY42 | AL173: ="FY"&RIGHT(Assumptions!$L$19+AL68,2) -> FY43 | AM173: ="FY"&RIGHT(Assumptions!$L$19+AM68,2) -> FY44 | AN173: ="FY"&RIGHT(Assumptions!$L$19+AN68,2) -> FY45 | AO173: ="FY"&RIGHT(Assumptions!$L$19+AO68,2) -> FY46 | AP173: ="FY"&RIGHT(Assumptions!$L$19+AP68,2) -> FY47 | AQ173: ="FY"&RIGHT(Assumptions!$L$19+AQ68,2) -> FY48 | AR173: ="FY"&RIGHT(Assumptions!$L$19+AR68,2) -> FY49 | AS173: ="FY"&RIGHT(Assumptions!$L$19+AS68,2) -> FY50 | AT173: ="FY"&RIGHT(Assumptions!$L$19+AT68,2) -> FY51 | AU173: ="FY"&RIGHT(Assumptions!$L$19+AU68,2) -> FY52 | AV173: ="FY"&RIGHT(Assumptions!$L$19+AV68,2) -> FY53 | AW173: ="FY"&RIGHT(Assumptions!$L$19+AW68,2) -> FY54 | AX173: ="FY"&RIGHT(Assumptions!$L$19+AX68,2) -> FY55 | AY173: ="FY"&RIGHT(Assumptions!$L$19+AY68,2) -> FY56 | AZ173: ="FY"&RIGHT(Assumptions!$L$19+AZ68,2) -> FY57 | BA173: ="FY"&RIGHT(Assumptions!$L$19+BA68,2) -> FY58 | BB173: ="FY"&RIGHT(Assumptions!$L$19+BB68,2) -> FY59 | BC173: ="FY"&RIGHT(Assumptions!$L$19+BC68,2) -> FY60 | BD173: ="FY"&RIGHT(Assumptions!$L$19+BD68,2) -> FY61 | BE173: ="FY"&RIGHT(Assumptions!$L$19+BE68,2) -> FY62 | BF173: ="FY"&RIGHT(Assumptions!$L$19+BF68,2) -> FY63 | BG173: ="FY"&RIGHT(Assumptions!$L$19+BG68,2) -> FY64 | BH173: ="FY"&RIGHT(Assumptions!$L$19+BH68,2) -> FY65 | BI173: ="FY"&RIGHT(Assumptions!$L$19+BI68,2) -> FY66 | BJ173: ="FY"&RIGHT(Assumptions!$L$19+BJ68,2) -> FY67 | BK173: ="FY"&RIGHT(Assumptions!$L$19+BK68,2) -> FY68 | BL173: ="FY"&RIGHT(Assumptions!$L$19+BL68,2) -> FY69 | BM173: ="FY"&RIGHT(Assumptions!$L$19+BM68,2) -> FY70 | BN173: ="FY"&RIGHT(Assumptions!$L$19+BN68,2) -> FY71 | BO173: ="FY"&RIGHT(Assumptions!$L$19+BO68,2) -> FY72 | BP173: ="FY"&RIGHT(Assumptions!$L$19+BP68,2) -> FY73
D175: ACS revenue | F175: Used for QuickCalc, override if using full inputs | R175: =QuickCalc!E26 -> 0 | S175: =QuickCalc!F26 -> 0 | T175: =QuickCalc!G26 -> 0 | U175: =QuickCalc!H26 -> 0 | V175: =QuickCalc!I26 -> 0 | W175: =QuickCalc!J26 -> 0 | X175: =QuickCalc!K26 -> 0 | Y175: =QuickCalc!L26 -> 0 | Z175: =QuickCalc!M26 -> 0 | AA175: =QuickCalc!N26 -> 0 | AB175: =QuickCalc!O26 -> 0 | AC175: =QuickCalc!P26 -> 0 | AD175: =QuickCalc!Q26 -> 0 | AE175: =QuickCalc!R26 -> 0 | AF175: =QuickCalc!S26 -> 0 | AG175: =QuickCalc!T26 -> 0 | AH175: =QuickCalc!U26 -> 0 | AI175: =QuickCalc!V26 -> 0 | AJ175: =QuickCalc!W26 -> 0 | AK175: =QuickCalc!X26 -> 0 | AL175: =QuickCalc!Y26 -> 0 | AM175: =QuickCalc!Z26 -> 0 | AN175: =QuickCalc!AA26 -> 0 | AO175: =QuickCalc!AB26 -> 0 | AP175: =QuickCalc!AC26 -> 0 | AQ175: =QuickCalc!AD26 -> 0 | AR175: =QuickCalc!AE26 -> 0 | AS175: =QuickCalc!AF26 -> 0 | AT175: =QuickCalc!AG26 -> 0 | AU175: =QuickCalc!AH26 -> 0 | AV175: =QuickCalc!AI26 -> 0 | AW175: =QuickCalc!AJ26 -> 0 | AX175: =QuickCalc!AK26 -> 0 | AY175: =QuickCalc!AL26 -> 0 | AZ175: =QuickCalc!AM26 -> 0 | BA175: =QuickCalc!AN26 -> 0 | BB175: =QuickCalc!AO26 -> 0 | BC175: =QuickCalc!AP26 -> 0 | BD175: =QuickCalc!AQ26 -> 0 | BE175: =QuickCalc!AR26 -> 0 | BF175: =QuickCalc!AS26 -> 0 | BG175: =QuickCalc!AT26 -> 0 | BH175: =QuickCalc!AU26 -> 0 | BI175: =QuickCalc!AV26 -> 0 | BJ175: =QuickCalc!AW26 -> 0 | BK175: =QuickCalc!AX26 -> 0 | BL175: =QuickCalc!AY26 -> 0 | BM175: =QuickCalc!AZ26 -> 0 | BN175: =QuickCalc!BA26 -> 0 | BO175: =QuickCalc!BB26 -> 0 | BP175: =QuickCalc!BC26 -> 0
C177: Unregulated revenue
F184: Description (if required) | R184: ="FY"&RIGHT(Assumptions!$L$19+R68,2) -> FY23 | S184: ="FY"&RIGHT(Assumptions!$L$19+S68,2) -> FY24 | T184: ="FY"&RIGHT(Assumptions!$L$19+T68,2) -> FY25 | U184: ="FY"&RIGHT(Assumptions!$L$19+U68,2) -> FY26 | V184: ="FY"&RIGHT(Assumptions!$L$19+V68,2) -> FY27 | W184: ="FY"&RIGHT(Assumptions!$L$19+W68,2) -> FY28 | X184: ="FY"&RIGHT(Assumptions!$L$19+X68,2) -> FY29 | Y184: ="FY"&RIGHT(Assumptions!$L$19+Y68,2) -> FY30 | Z184: ="FY"&RIGHT(Assumptions!$L$19+Z68,2) -> FY31 | AA184: ="FY"&RIGHT(Assumptions!$L$19+AA68,2) -> FY32 | AB184: ="FY"&RIGHT(Assumptions!$L$19+AB68,2) -> FY33 | AC184: ="FY"&RIGHT(Assumptions!$L$19+AC68,2) -> FY34 | AD184: ="FY"&RIGHT(Assumptions!$L$19+AD68,2) -> FY35 | AE184: ="FY"&RIGHT(Assumptions!$L$19+AE68,2) -> FY36 | AF184: ="FY"&RIGHT(Assumptions!$L$19+AF68,2) -> FY37 | AG184: ="FY"&RIGHT(Assumptions!$L$19+AG68,2) -> FY38 | AH184: ="FY"&RIGHT(Assumptions!$L$19+AH68,2) -> FY39 | AI184: ="FY"&RIGHT(Assumptions!$L$19+AI68,2) -> FY40 | AJ184: ="FY"&RIGHT(Assumptions!$L$19+AJ68,2) -> FY41 | AK184: ="FY"&RIGHT(Assumptions!$L$19+AK68,2) -> FY42 | AL184: ="FY"&RIGHT(Assumptions!$L$19+AL68,2) -> FY43 | AM184: ="FY"&RIGHT(Assumptions!$L$19+AM68,2) -> FY44 | AN184: ="FY"&RIGHT(Assumptions!$L$19+AN68,2) -> FY45 | AO184: ="FY"&RIGHT(Assumptions!$L$19+AO68,2) -> FY46 | AP184: ="FY"&RIGHT(Assumptions!$L$19+AP68,2) -> FY47 | AQ184: ="FY"&RIGHT(Assumptions!$L$19+AQ68,2) -> FY48 | AR184: ="FY"&RIGHT(Assumptions!$L$19+AR68,2) -> FY49 | AS184: ="FY"&RIGHT(Assumptions!$L$19+AS68,2) -> FY50 | AT184: ="FY"&RIGHT(Assumptions!$L$19+AT68,2) -> FY51 | AU184: ="FY"&RIGHT(Assumptions!$L$19+AU68,2) -> FY52 | AV184: ="FY"&RIGHT(Assumptions!$L$19+AV68,2) -> FY53 | AW184: ="FY"&RIGHT(Assumptions!$L$19+AW68,2) -> FY54 | AX184: ="FY"&RIGHT(Assumptions!$L$19+AX68,2) -> FY55 | AY184: ="FY"&RIGHT(Assumptions!$L$19+AY68,2) -> FY56 | AZ184: ="FY"&RIGHT(Assumptions!$L$19+AZ68,2) -> FY57 | BA184: ="FY"&RIGHT(Assumptions!$L$19+BA68,2) -> FY58 | BB184: ="FY"&RIGHT(Assumptions!$L$19+BB68,2) -> FY59 | BC184: ="FY"&RIGHT(Assumptions!$L$19+BC68,2) -> FY60 | BD184: ="FY"&RIGHT(Assumptions!$L$19+BD68,2) -> FY61 | BE184: ="FY"&RIGHT(Assumptions!$L$19+BE68,2) -> FY62 | BF184: ="FY"&RIGHT(Assumptions!$L$19+BF68,2) -> FY63 | BG184: ="FY"&RIGHT(Assumptions!$L$19+BG68,2) -> FY64 | BH184: ="FY"&RIGHT(Assumptions!$L$19+BH68,2) -> FY65 | BI184: ="FY"&RIGHT(Assumptions!$L$19+BI68,2) -> FY66 | BJ184: ="FY"&RIGHT(Assumptions!$L$19+BJ68,2) -> FY67 | BK184: ="FY"&RIGHT(Assumptions!$L$19+BK68,2) -> FY68 | BL184: ="FY"&RIGHT(Assumptions!$L$19+BL68,2) -> FY69 | BM184: ="FY"&RIGHT(Assumptions!$L$19+BM68,2) -> FY70 | BN184: ="FY"&RIGHT(Assumptions!$L$19+BN68,2) -> FY71 | BO184: ="FY"&RIGHT(Assumptions!$L$19+BO68,2) -> FY72 | BP184: ="FY"&RIGHT(Assumptions!$L$19+BP68,2) -> FY73
D186: Unregulatory revenue subject to SAG? | L186: Yes
D187: Unregulated revenue | F187: Used for QuickCalc, override if using full inputs | R187: =QuickCalc!E27 -> 0 | S187: =QuickCalc!F27 -> 0 | T187: =QuickCalc!G27 -> 0 | U187: =QuickCalc!H27 -> 0 | V187: =QuickCalc!I27 -> 0 | W187: =QuickCalc!J27 -> 0 | X187: =QuickCalc!K27 -> 0 | Y187: =QuickCalc!L27 -> 0 | Z187: =QuickCalc!M27 -> 0 | AA187: =QuickCalc!N27 -> 0 | AB187: =QuickCalc!O27 -> 0 | AC187: =QuickCalc!P27 -> 0 | AD187: =QuickCalc!Q27 -> 0 | AE187: =QuickCalc!R27 -> 0 | AF187: =QuickCalc!S27 -> 0 | AG187: =QuickCalc!T27 -> 0 | AH187: =QuickCalc!U27 -> 0 | AI187: =QuickCalc!V27 -> 0 | AJ187: =QuickCalc!W27 -> 0 | AK187: =QuickCalc!X27 -> 0 | AL187: =QuickCalc!Y27 -> 0 | AM187: =QuickCalc!Z27 -> 0 | AN187: =QuickCalc!AA27 -> 0 | AO187: =QuickCalc!AB27 -> 0 | AP187: =QuickCalc!AC27 -> 0 | AQ187: =QuickCalc!AD27 -> 0 | AR187: =QuickCalc!AE27 -> 0 | AS187: =QuickCalc!AF27 -> 0 | AT187: =QuickCalc!AG27 -> 0 | AU187: =QuickCalc!AH27 -> 0 | AV187: =QuickCalc!AI27 -> 0 | AW187: =QuickCalc!AJ27 -> 0 | AX187: =QuickCalc!AK27 -> 0 | AY187: =QuickCalc!AL27 -> 0 | AZ187: =QuickCalc!AM27 -> 0 | BA187: =QuickCalc!AN27 -> 0 | BB187: =QuickCalc!AO27 -> 0 | BC187: =QuickCalc!AP27 -> 0 | BD187: =QuickCalc!AQ27 -> 0 | BE187: =QuickCalc!AR27 -> 0 | BF187: =QuickCalc!AS27 -> 0 | BG187: =QuickCalc!AT27 -> 0 | BH187: =QuickCalc!AU27 -> 0 | BI187: =QuickCalc!AV27 -> 0 | BJ187: =QuickCalc!AW27 -> 0 | BK187: =QuickCalc!AX27 -> 0 | BL187: =QuickCalc!AY27 -> 0 | BM187: =QuickCalc!AZ27 -> 0 | BN187: =QuickCalc!BA27 -> 0 | BO187: =QuickCalc!BB27 -> 0 | BP187: =QuickCalc!BC27 -> 0
C189: Opex investment
F195: Description (if required) | R195: ="FY"&RIGHT(Assumptions!$L$19+R68,2) -> FY23 | S195: ="FY"&RIGHT(Assumptions!$L$19+S68,2) -> FY24 | T195: ="FY"&RIGHT(Assumptions!$L$19+T68,2) -> FY25 | U195: ="FY"&RIGHT(Assumptions!$L$19+U68,2) -> FY26 | V195: ="FY"&RIGHT(Assumptions!$L$19+V68,2) -> FY27 | W195: ="FY"&RIGHT(Assumptions!$L$19+W68,2) -> FY28 | X195: ="FY"&RIGHT(Assumptions!$L$19+X68,2) -> FY29 | Y195: ="FY"&RIGHT(Assumptions!$L$19+Y68,2) -> FY30 | Z195: ="FY"&RIGHT(Assumptions!$L$19+Z68,2) -> FY31 | AA195: ="FY"&RIGHT(Assumptions!$L$19+AA68,2) -> FY32 | AB195: ="FY"&RIGHT(Assumptions!$L$19+AB68,2) -> FY33 | AC195: ="FY"&RIGHT(Assumptions!$L$19+AC68,2) -> FY34 | AD195: ="FY"&RIGHT(Assumptions!$L$19+AD68,2) -> FY35 | AE195: ="FY"&RIGHT(Assumptions!$L$19+AE68,2) -> FY36 | AF195: ="FY"&RIGHT(Assumptions!$L$19+AF68,2) -> FY37 | AG195: ="FY"&RIGHT(Assumptions!$L$19+AG68,2) -> FY38 | AH195: ="FY"&RIGHT(Assumptions!$L$19+AH68,2) -> FY39 | AI195: ="FY"&RIGHT(Assumptions!$L$19+AI68,2) -> FY40 | AJ195: ="FY"&RIGHT(Assumptions!$L$19+AJ68,2) -> FY41 | AK195: ="FY"&RIGHT(Assumptions!$L$19+AK68,2) -> FY42 | AL195: ="FY"&RIGHT(Assumptions!$L$19+AL68,2) -> FY43 | AM195: ="FY"&RIGHT(Assumptions!$L$19+AM68,2) -> FY44 | AN195: ="FY"&RIGHT(Assumptions!$L$19+AN68,2) -> FY45 | AO195: ="FY"&RIGHT(Assumptions!$L$19+AO68,2) -> FY46 | AP195: ="FY"&RIGHT(Assumptions!$L$19+AP68,2) -> FY47 | AQ195: ="FY"&RIGHT(Assumptions!$L$19+AQ68,2) -> FY48 | AR195: ="FY"&RIGHT(Assumptions!$L$19+AR68,2) -> FY49 | AS195: ="FY"&RIGHT(Assumptions!$L$19+AS68,2) -> FY50 | AT195: ="FY"&RIGHT(Assumptions!$L$19+AT68,2) -> FY51 | AU195: ="FY"&RIGHT(Assumptions!$L$19+AU68,2) -> FY52 | AV195: ="FY"&RIGHT(Assumptions!$L$19+AV68,2) -> FY53 | AW195: ="FY"&RIGHT(Assumptions!$L$19+AW68,2) -> FY54 | AX195: ="FY"&RIGHT(Assumptions!$L$19+AX68,2) -> FY55 | AY195: ="FY"&RIGHT(Assumptions!$L$19+AY68,2) -> FY56 | AZ195: ="FY"&RIGHT(Assumptions!$L$19+AZ68,2) -> FY57 | BA195: ="FY"&RIGHT(Assumptions!$L$19+BA68,2) -> FY58 | BB195: ="FY"&RIGHT(Assumptions!$L$19+BB68,2) -> FY59 | BC195: ="FY"&RIGHT(Assumptions!$L$19+BC68,2) -> FY60 | BD195: ="FY"&RIGHT(Assumptions!$L$19+BD68,2) -> FY61 | BE195: ="FY"&RIGHT(Assumptions!$L$19+BE68,2) -> FY62 | BF195: ="FY"&RIGHT(Assumptions!$L$19+BF68,2) -> FY63 | BG195: ="FY"&RIGHT(Assumptions!$L$19+BG68,2) -> FY64 | BH195: ="FY"&RIGHT(Assumptions!$L$19+BH68,2) -> FY65 | BI195: ="FY"&RIGHT(Assumptions!$L$19+BI68,2) -> FY66 | BJ195: ="FY"&RIGHT(Assumptions!$L$19+BJ68,2) -> FY67 | BK195: ="FY"&RIGHT(Assumptions!$L$19+BK68,2) -> FY68 | BL195: ="FY"&RIGHT(Assumptions!$L$19+BL68,2) -> FY69 | BM195: ="FY"&RIGHT(Assumptions!$L$19+BM68,2) -> FY70 | BN195: ="FY"&RIGHT(Assumptions!$L$19+BN68,2) -> FY71 | BO195: ="FY"&RIGHT(Assumptions!$L$19+BO68,2) -> FY72 | BP195: ="FY"&RIGHT(Assumptions!$L$19+BP68,2) -> FY73
D197: Shareholder/customer switch | F197: See note above - Shareholder = 1, Customer = 0 | R197: 0 | S197: 0 | T197: 0 | U197: 0 | V197: 0 | W197: 0 | X197: 0 | Y197: 0 | Z197: 0 | AA197: 0 | AB197: 0 | AC197: 0 | AD197: 0 | AE197: 0 | AF197: 0 | AG197: 0 | AH197: 0 | AI197: 0 | AJ197: 0 | AK197: 0 | AL197: 0 | AM197: 0 | AN197: 0 | AO197: 0 | AP197: 0 | AQ197: 0 | AR197: 0 | AS197: 0 | AT197: 0 | AU197: 0 | AV197: 0 | AW197: 0 | AX197: 0 | AY197: 0 | AZ197: 0 | BA197: 0 | BB197: 0 | BC197: 0 | BD197: 0 | BE197: 0 | BF197: 0 | BG197: 0 | BH197: 0 | BI197: 0 | BJ197: 0 | BK197: 0 | BL197: 0 | BM197: 0 | BN197: 0 | BO197: 0 | BP197: 0
D199: Component 1
D200: Component 2
D201: Component 3 | F201: Used for QuickCalc, override if using full inputs | R201: =QuickCalc!E28 -> 0 | S201: =QuickCalc!F28 -> 0 | T201: =QuickCalc!G28 -> 0 | U201: =QuickCalc!H28 -> 0 | V201: =QuickCalc!I28 -> -340371.698 | W201: =QuickCalc!J28 -> -340371.698 | X201: =QuickCalc!K28 -> -340371.698 | Y201: =QuickCalc!L28 -> -340371.698 | Z201: =QuickCalc!M28 -> -340371.698 | AA201: =QuickCalc!N28 -> -340371.698 | AB201: =QuickCalc!O28 -> 0 | AC201: =QuickCalc!P28 -> 0 | AD201: =QuickCalc!Q28 -> 0 | AE201: =QuickCalc!R28 -> 0 | AF201: =QuickCalc!S28 -> 0 | AG201: =QuickCalc!T28 -> 0 | AH201: =QuickCalc!U28 -> 0 | AI201: =QuickCalc!V28 -> 0 | AJ201: =QuickCalc!W28 -> 0 | AK201: =QuickCalc!X28 -> 0 | AL201: =QuickCalc!Y28 -> 0 | AM201: =QuickCalc!Z28 -> 0 | AN201: =QuickCalc!AA28 -> 0 | AO201: =QuickCalc!AB28 -> 0 | AP201: =QuickCalc!AC28 -> 0 | AQ201: =QuickCalc!AD28 -> 0 | AR201: =QuickCalc!AE28 -> 0 | AS201: =QuickCalc!AF28 -> 0 | AT201: =QuickCalc!AG28 -> 0 | AU201: =QuickCalc!AH28 -> 0 | AV201: =QuickCalc!AI28 -> 0 | AW201: =QuickCalc!AJ28 -> 0 | AX201: =QuickCalc!AK28 -> 0 | AY201: =QuickCalc!AL28 -> 0 | AZ201: =QuickCalc!AM28 -> 0 | BA201: =QuickCalc!AN28 -> 0 | BB201: =QuickCalc!AO28 -> 0 | BC201: =QuickCalc!AP28 -> 0 | BD201: =QuickCalc!AQ28 -> 0 | BE201: =QuickCalc!AR28 -> 0 | BF201: =QuickCalc!AS28 -> 0 | BG201: =QuickCalc!AT28 -> 0 | BH201: =QuickCalc!AU28 -> 0 | BI201: =QuickCalc!AV28 -> 0 | BJ201: =QuickCalc!AW28 -> 0 | BK201: =QuickCalc!AX28 -> 0 | BL201: =QuickCalc!AY28 -> 0 | BM201: =QuickCalc!AZ28 -> 0 | BN201: =QuickCalc!BA28 -> 0 | BO201: =QuickCalc!BB28 -> 0 | BP201: =QuickCalc!BC28 -> 0
C203: Ongoing new opex
F216: Description (if required) | R216: ="FY"&RIGHT(Assumptions!$L$19+R68,2) -> FY23 | S216: ="FY"&RIGHT(Assumptions!$L$19+S68,2) -> FY24 | T216: ="FY"&RIGHT(Assumptions!$L$19+T68,2) -> FY25 | U216: ="FY"&RIGHT(Assumptions!$L$19+U68,2) -> FY26 | V216: ="FY"&RIGHT(Assumptions!$L$19+V68,2) -> FY27 | W216: ="FY"&RIGHT(Assumptions!$L$19+W68,2) -> FY28 | X216: ="FY"&RIGHT(Assumptions!$L$19+X68,2) -> FY29 | Y216: ="FY"&RIGHT(Assumptions!$L$19+Y68,2) -> FY30 | Z216: ="FY"&RIGHT(Assumptions!$L$19+Z68,2) -> FY31 | AA216: ="FY"&RIGHT(Assumptions!$L$19+AA68,2) -> FY32 | AB216: ="FY"&RIGHT(Assumptions!$L$19+AB68,2) -> FY33 | AC216: ="FY"&RIGHT(Assumptions!$L$19+AC68,2) -> FY34 | AD216: ="FY"&RIGHT(Assumptions!$L$19+AD68,2) -> FY35 | AE216: ="FY"&RIGHT(Assumptions!$L$19+AE68,2) -> FY36 | AF216: ="FY"&RIGHT(Assumptions!$L$19+AF68,2) -> FY37 | AG216: ="FY"&RIGHT(Assumptions!$L$19+AG68,2) -> FY38 | AH216: ="FY"&RIGHT(Assumptions!$L$19+AH68,2) -> FY39 | AI216: ="FY"&RIGHT(Assumptions!$L$19+AI68,2) -> FY40 | AJ216: ="FY"&RIGHT(Assumptions!$L$19+AJ68,2) -> FY41 | AK216: ="FY"&RIGHT(Assumptions!$L$19+AK68,2) -> FY42 | AL216: ="FY"&RIGHT(Assumptions!$L$19+AL68,2) -> FY43 | AM216: ="FY"&RIGHT(Assumptions!$L$19+AM68,2) -> FY44 | AN216: ="FY"&RIGHT(Assumptions!$L$19+AN68,2) -> FY45 | AO216: ="FY"&RIGHT(Assumptions!$L$19+AO68,2) -> FY46 | AP216: ="FY"&RIGHT(Assumptions!$L$19+AP68,2) -> FY47 | AQ216: ="FY"&RIGHT(Assumptions!$L$19+AQ68,2) -> FY48 | AR216: ="FY"&RIGHT(Assumptions!$L$19+AR68,2) -> FY49 | AS216: ="FY"&RIGHT(Assumptions!$L$19+AS68,2) -> FY50 | AT216: ="FY"&RIGHT(Assumptions!$L$19+AT68,2) -> FY51 | AU216: ="FY"&RIGHT(Assumptions!$L$19+AU68,2) -> FY52 | AV216: ="FY"&RIGHT(Assumptions!$L$19+AV68,2) -> FY53 | AW216: ="FY"&RIGHT(Assumptions!$L$19+AW68,2) -> FY54 | AX216: ="FY"&RIGHT(Assumptions!$L$19+AX68,2) -> FY55 | AY216: ="FY"&RIGHT(Assumptions!$L$19+AY68,2) -> FY56 | AZ216: ="FY"&RIGHT(Assumptions!$L$19+AZ68,2) -> FY57 | BA216: ="FY"&RIGHT(Assumptions!$L$19+BA68,2) -> FY58 | BB216: ="FY"&RIGHT(Assumptions!$L$19+BB68,2) -> FY59 | BC216: ="FY"&RIGHT(Assumptions!$L$19+BC68,2) -> FY60 | BD216: ="FY"&RIGHT(Assumptions!$L$19+BD68,2) -> FY61 | BE216: ="FY"&RIGHT(Assumptions!$L$19+BE68,2) -> FY62 | BF216: ="FY"&RIGHT(Assumptions!$L$19+BF68,2) -> FY63 | BG216: ="FY"&RIGHT(Assumptions!$L$19+BG68,2) -> FY64 | BH216: ="FY"&RIGHT(Assumptions!$L$19+BH68,2) -> FY65 | BI216: ="FY"&RIGHT(Assumptions!$L$19+BI68,2) -> FY66 | BJ216: ="FY"&RIGHT(Assumptions!$L$19+BJ68,2) -> FY67 | BK216: ="FY"&RIGHT(Assumptions!$L$19+BK68,2) -> FY68 | BL216: ="FY"&RIGHT(Assumptions!$L$19+BL68,2) -> FY69 | BM216: ="FY"&RIGHT(Assumptions!$L$19+BM68,2) -> FY70 | BN216: ="FY"&RIGHT(Assumptions!$L$19+BN68,2) -> FY71 | BO216: ="FY"&RIGHT(Assumptions!$L$19+BO68,2) -> FY72 | BP216: ="FY"&RIGHT(Assumptions!$L$19+BP68,2) -> FY73
D218: EBSS years of customer benefits | F218: 50 | G218: Leave as 50 unless there is a specific reason to curtail opex cost/benefit
D220: Repairs & maintenance (Planned & unplanned) | R220: =SUM(R221:R225) -> 0 | S220: 0 | T220: 0 | U220: 0 | V220: 0 | W220: 0 | X220: 0 | Y220: 0 | Z220: 0 | AA220: 0 | AB220: 0 | AC220: 0 | AD220: 0 | AE220: 0 | AF220: 0 | AG220: 0 | AH220: 0 | AI220: 0 | AJ220: 0 | AK220: 0 | AL220: 0 | AM220: 0 | AN220: 0 | AO220: 0 | AP220: 0 | AQ220: 0 | AR220: 0 | AS220: 0 | AT220: 0 | AU220: 0 | AV220: 0 | AW220: 0 | AX220: =SUM(AX221:AX225) -> 0 | AY220: 0 | AZ220: 0 | BA220: 0 | BB220: 0 | BC220: 0 | BD220: 0 | BE220: 0 | BF220: 0 | BG220: 0 | BH220: 0 | BI220: 0 | BJ220: 0 | BK220: 0 | BL220: 0 | BM220: 0 | BN220: 0 | BO220: 0 | BP220: 0
D221: Direct labour
D222: Materials
D223: Contracted services
D224: Indirect labour / overheads
D225: Other
D227: Demand management opex | R227: =SUM(R228:R232) -> 0 | S227: 0 | T227: 0 | U227: 0 | V227: 0 | W227: 0 | X227: 0 | Y227: 0 | Z227: 0 | AA227: 0 | AB227: 0 | AC227: 0 | AD227: 0 | AE227: 0 | AF227: 0 | AG227: 0 | AH227: 0 | AI227: 0 | AJ227: 0 | AK227: 0 | AL227: 0 | AM227: 0 | AN227: 0 | AO227: 0 | AP227: 0 | AQ227: 0 | AR227: 0 | AS227: 0 | AT227: 0 | AU227: 0 | AV227: 0 | AW227: 0 | AX227: 0 | AY227: 0 | AZ227: 0 | BA227: 0 | BB227: 0 | BC227: 0 | BD227: 0 | BE227: 0 | BF227: 0 | BG227: 0 | BH227: 0 | BI227: 0 | BJ227: 0 | BK227: 0 | BL227: 0 | BM227: 0 | BN227: 0 | BO227: 0 | BP227: 0
D228: Direct labour
D229: Materials
D230: Contracted services
D231: Indirect labour / overheads
D232: Other
D234: Opex benefit 1 | R234: =SUM(R235:R239) -> 0 | S234: 0 | T234: 0 | U234: 0 | V234: 0 | W234: 0 | X234: 0 | Y234: 0 | Z234: 0 | AA234: 0 | AB234: 0 | AC234: 0 | AD234: 0 | AE234: 0 | AF234: 0 | AG234: 0 | AH234: 0 | AI234: 0 | AJ234: 0 | AK234: 0 | AL234: 0 | AM234: 0 | AN234: 0 | AO234: 0 | AP234: 0 | AQ234: 0 | AR234: 0 | AS234: 0 | AT234: 0 | AU234: 0 | AV234: 0 | AW234: 0 | AX234: 0 | AY234: 0 | AZ234: 0 | BA234: 0 | BB234: 0 | BC234: 0 | BD234: 0 | BE234: 0 | BF234: 0 | BG234: 0 | BH234: 0 | BI234: 0 | BJ234: 0 | BK234: 0 | BL234: 0 | BM234: 0 | BN234: 0 | BO234: 0 | BP234: 0
D235: Direct labour
D236: Materials
D237: Contracted services
D238: Indirect labour / overheads
D239: Other
D241: Opex cost 1 | R241: =SUM(R242:R246) -> 0 | S241: 0 | T241: 0 | U241: 0 | V241: 0 | W241: 0 | X241: 0 | Y241: 0 | Z241: 0 | AA241: 0 | AB241: 0 | AC241: 0 | AD241: 0 | AE241: 0 | AF241: 0 | AG241: 0 | AH241: 0 | AI241: 0 | AJ241: 0 | AK241: 0 | AL241: 0 | AM241: 0 | AN241: 0 | AO241: 0 | AP241: 0 | AQ241: 0 | AR241: 0 | AS241: 0 | AT241: 0 | AU241: 0 | AV241: 0 | AW241: 0 | AX241: 0 | AY241: 0 | AZ241: 0 | BA241: 0 | BB241: 0 | BC241: 0 | BD241: 0 | BE241: 0 | BF241: 0 | BG241: 0 | BH241: 0 | BI241: 0 | BJ241: 0 | BK241: 0 | BL241: 0 | BM241: 0 | BN241: 0 | BO241: 0 | BP241: 0
D242: Direct labour
D243: Materials
D244: Contracted services
D245: Indirect labour / overheads
D246: Other
D248: Component 3 (if required) | R248: =SUM(R249:R253) -> 0 | S248: 0 | T248: 0 | U248: 0 | V248: 0 | W248: 0 | X248: 0 | Y248: 0 | Z248: 0 | AA248: 0 | AB248: 0 | AC248: 0 | AD248: 0 | AE248: 0 | AF248: 0 | AG248: 0 | AH248: 0 | AI248: 0 | AJ248: 0 | AK248: 0 | AL248: 0 | AM248: 0 | AN248: 0 | AO248: 0 | AP248: 0 | AQ248: 0 | AR248: 0 | AS248: 0 | AT248: 0 | AU248: 0 | AV248: 0 | AW248: 0 | AX248: 0 | AY248: 0 | AZ248: 0 | BA248: 0 | BB248: 0 | BC248: 0 | BD248: 0 | BE248: 0 | BF248: 0 | BG248: 0 | BH248: 0 | BI248: 0 | BJ248: 0 | BK248: 0 | BL248: 0 | BM248: 0 | BN248: 0 | BO248: 0 | BP248: 0
D249: Direct labour
D250: Materials
D251: Contracted services
D252: Indirect labour / overheads
D253: Other
D255: Component 4 (if required) | R255: =SUM(R256:R260) -> 0 | S255: 0 | T255: 0 | U255: 0 | V255: 1735532.902 | W255: 2047423.47 | X255: 2051971.099 | Y255: 2056601.902 | Z255: 2061300.473 | AA255: 2066067.803 | AB255: =SUM(AB256:AB260) -> 0 | AC255: 0 | AD255: 0 | AE255: 0 | AF255: 0 | AG255: 0 | AH255: 0 | AI255: 0 | AJ255: 0 | AK255: 0 | AL255: 0 | AM255: 0 | AN255: 0 | AO255: 0 | AP255: 0 | AQ255: 0 | AR255: 0 | AS255: 0 | AT255: 0 | AU255: 0 | AV255: 0 | AW255: 0 | AX255: 0 | AY255: 0 | AZ255: 0 | BA255: 0 | BB255: 0 | BC255: 0 | BD255: 0 | BE255: 0 | BF255: 0 | BG255: 0 | BH255: 0 | BI255: 0 | BJ255: 0 | BK255: 0 | BL255: 0 | BM255: 0 | BN255: 0 | BO255: 0 | BP255: 0
D256: Direct labour
D257: Materials
D258: Contracted services
D259: Indirect labour / overheads
D260: Other | F260: Used for QuickCalc, override if using full inputs | R260: =QuickCalc!E29 -> 0 | S260: =QuickCalc!F29 -> 0 | T260: =QuickCalc!G29 -> 0 | U260: =QuickCalc!H29 -> 0 | V260: =QuickCalc!I29 -> 1735532.902 | W260: =QuickCalc!J29 -> 2047423.47 | X260: =QuickCalc!K29 -> 2051971.099 | Y260: =QuickCalc!L29 -> 2056601.902 | Z260: =QuickCalc!M29 -> 2061300.473 | AA260: =QuickCalc!N29 -> 2066067.803 | AB260: =QuickCalc!O29 -> 0 | AC260: =QuickCalc!P29 -> 0 | AD260: =QuickCalc!Q29 -> 0 | AE260: =QuickCalc!R29 -> 0 | AF260: =QuickCalc!S29 -> 0 | AG260: =QuickCalc!T29 -> 0 | AH260: =QuickCalc!U29 -> 0 | AI260: =QuickCalc!V29 -> 0 | AJ260: =QuickCalc!W29 -> 0 | AK260: =QuickCalc!X29 -> 0 | AL260: =QuickCalc!Y29 -> 0 | AM260: =QuickCalc!Z29 -> 0 | AN260: =QuickCalc!AA29 -> 0 | AO260: =QuickCalc!AB29 -> 0 | AP260: =QuickCalc!AC29 -> 0 | AQ260: =QuickCalc!AD29 -> 0 | AR260: =QuickCalc!AE29 -> 0 | AS260: =QuickCalc!AF29 -> 0 | AT260: =QuickCalc!AG29 -> 0 | AU260: =QuickCalc!AH29 -> 0 | AV260: =QuickCalc!AI29 -> 0 | AW260: =QuickCalc!AJ29 -> 0 | AX260: =QuickCalc!AK29 -> 0 | AY260: =QuickCalc!AL29 -> 0 | AZ260: =QuickCalc!AM29 -> 0 | BA260: =QuickCalc!AN29 -> 0 | BB260: =QuickCalc!AO29 -> 0 | BC260: =QuickCalc!AP29 -> 0 | BD260: =QuickCalc!AQ29 -> 0 | BE260: =QuickCalc!AR29 -> 0 | BF260: =QuickCalc!AS29 -> 0 | BG260: =QuickCalc!AT29 -> 0 | BH260: =QuickCalc!AU29 -> 0 | BI260: =QuickCalc!AV29 -> 0 | BJ260: =QuickCalc!AW29 -> 0 | BK260: =QuickCalc!AX29 -> 0 | BL260: =QuickCalc!AY29 -> 0 | BM260: =QuickCalc!AZ29 -> 0 | BN260: =QuickCalc!BA29 -> 0 | BO260: =QuickCalc!BB29 -> 0 | BP260: =QuickCalc!BC29 -> 0
C262: Probabilistic cost & benefits
F276: Description (if required) | R276: ="FY"&RIGHT(Assumptions!$L$19+R68,2) -> FY23 | S276: ="FY"&RIGHT(Assumptions!$L$19+S68,2) -> FY24 | T276: ="FY"&RIGHT(Assumptions!$L$19+T68,2) -> FY25 | U276: ="FY"&RIGHT(Assumptions!$L$19+U68,2) -> FY26 | V276: ="FY"&RIGHT(Assumptions!$L$19+V68,2) -> FY27 | W276: ="FY"&RIGHT(Assumptions!$L$19+W68,2) -> FY28 | X276: ="FY"&RIGHT(Assumptions!$L$19+X68,2) -> FY29 | Y276: ="FY"&RIGHT(Assumptions!$L$19+Y68,2) -> FY30 | Z276: ="FY"&RIGHT(Assumptions!$L$19+Z68,2) -> FY31 | AA276: ="FY"&RIGHT(Assumptions!$L$19+AA68,2) -> FY32 | AB276: ="FY"&RIGHT(Assumptions!$L$19+AB68,2) -> FY33 | AC276: ="FY"&RIGHT(Assumptions!$L$19+AC68,2) -> FY34 | AD276: ="FY"&RIGHT(Assumptions!$L$19+AD68,2) -> FY35 | AE276: ="FY"&RIGHT(Assumptions!$L$19+AE68,2) -> FY36 | AF276: ="FY"&RIGHT(Assumptions!$L$19+AF68,2) -> FY37 | AG276: ="FY"&RIGHT(Assumptions!$L$19+AG68,2) -> FY38 | AH276: ="FY"&RIGHT(Assumptions!$L$19+AH68,2) -> FY39 | AI276: ="FY"&RIGHT(Assumptions!$L$19+AI68,2) -> FY40 | AJ276: ="FY"&RIGHT(Assumptions!$L$19+AJ68,2) -> FY41 | AK276: ="FY"&RIGHT(Assumptions!$L$19+AK68,2) -> FY42 | AL276: ="FY"&RIGHT(Assumptions!$L$19+AL68,2) -> FY43 | AM276: ="FY"&RIGHT(Assumptions!$L$19+AM68,2) -> FY44 | AN276: ="FY"&RIGHT(Assumptions!$L$19+AN68,2) -> FY45 | AO276: ="FY"&RIGHT(Assumptions!$L$19+AO68,2) -> FY46 | AP276: ="FY"&RIGHT(Assumptions!$L$19+AP68,2) -> FY47 | AQ276: ="FY"&RIGHT(Assumptions!$L$19+AQ68,2) -> FY48 | AR276: ="FY"&RIGHT(Assumptions!$L$19+AR68,2) -> FY49 | AS276: ="FY"&RIGHT(Assumptions!$L$19+AS68,2) -> FY50 | AT276: ="FY"&RIGHT(Assumptions!$L$19+AT68,2) -> FY51 | AU276: ="FY"&RIGHT(Assumptions!$L$19+AU68,2) -> FY52 | AV276: ="FY"&RIGHT(Assumptions!$L$19+AV68,2) -> FY53 | AW276: ="FY"&RIGHT(Assumptions!$L$19+AW68,2) -> FY54 | AX276: ="FY"&RIGHT(Assumptions!$L$19+AX68,2) -> FY55 | AY276: ="FY"&RIGHT(Assumptions!$L$19+AY68,2) -> FY56 | AZ276: ="FY"&RIGHT(Assumptions!$L$19+AZ68,2) -> FY57 | BA276: ="FY"&RIGHT(Assumptions!$L$19+BA68,2) -> FY58 | BB276: ="FY"&RIGHT(Assumptions!$L$19+BB68,2) -> FY59 | BC276: ="FY"&RIGHT(Assumptions!$L$19+BC68,2) -> FY60 | BD276: ="FY"&RIGHT(Assumptions!$L$19+BD68,2) -> FY61 | BE276: ="FY"&RIGHT(Assumptions!$L$19+BE68,2) -> FY62 | BF276: ="FY"&RIGHT(Assumptions!$L$19+BF68,2) -> FY63 | BG276: ="FY"&RIGHT(Assumptions!$L$19+BG68,2) -> FY64 | BH276: ="FY"&RIGHT(Assumptions!$L$19+BH68,2) -> FY65 | BI276: ="FY"&RIGHT(Assumptions!$L$19+BI68,2) -> FY66 | BJ276: ="FY"&RIGHT(Assumptions!$L$19+BJ68,2) -> FY67 | BK276: ="FY"&RIGHT(Assumptions!$L$19+BK68,2) -> FY68 | BL276: ="FY"&RIGHT(Assumptions!$L$19+BL68,2) -> FY69 | BM276: ="FY"&RIGHT(Assumptions!$L$19+BM68,2) -> FY70 | BN276: ="FY"&RIGHT(Assumptions!$L$19+BN68,2) -> FY71 | BO276: ="FY"&RIGHT(Assumptions!$L$19+BO68,2) -> FY72 | BP276: ="FY"&RIGHT(Assumptions!$L$19+BP68,2) -> FY73
D278: Safety risk | F278: Used for QuickCalc, override if using full inputs | R278: =QuickCalc!E31 -> 0 | S278: =QuickCalc!F31 -> 0 | T278: =QuickCalc!G31 -> 0 | U278: =QuickCalc!H31 -> 0 | V278: =QuickCalc!I31 -> 0 | W278: =QuickCalc!J31 -> 493295.4545 | X278: =QuickCalc!K31 -> 493295.4545 | Y278: =QuickCalc!L31 -> 493295.4545 | Z278: =QuickCalc!M31 -> 493295.4545 | AA278: =QuickCalc!N31 -> 493295.4545 | AB278: =QuickCalc!O31 -> 0 | AC278: =QuickCalc!P31 -> 0 | AD278: =QuickCalc!Q31 -> 0 | AE278: =QuickCalc!R31 -> 0 | AF278: =QuickCalc!S31 -> 0 | AG278: =QuickCalc!T31 -> 0 | AH278: =QuickCalc!U31 -> 0 | AI278: =QuickCalc!V31 -> 0 | AJ278: =QuickCalc!W31 -> 0 | AK278: =QuickCalc!X31 -> 0 | AL278: =QuickCalc!Y31 -> 0 | AM278: =QuickCalc!Z31 -> 0 | AN278: =QuickCalc!AA31 -> 0 | AO278: =QuickCalc!AB31 -> 0 | AP278: =QuickCalc!AC31 -> 0 | AQ278: =QuickCalc!AD31 -> 0 | AR278: =QuickCalc!AE31 -> 0 | AS278: =QuickCalc!AF31 -> 0 | AT278: =QuickCalc!AG31 -> 0 | AU278: =QuickCalc!AH31 -> 0 | AV278: =QuickCalc!AI31 -> 0 | AW278: =QuickCalc!AJ31 -> 0 | AX278: =QuickCalc!AK31 -> 0 | AY278: =QuickCalc!AL31 -> 0 | AZ278: =QuickCalc!AM31 -> 0 | BA278: =QuickCalc!AN31 -> 0 | BB278: =QuickCalc!AO31 -> 0 | BC278: =QuickCalc!AP31 -> 0 | BD278: =QuickCalc!AQ31 -> 0 | BE278: =QuickCalc!AR31 -> 0 | BF278: =QuickCalc!AS31 -> 0 | BG278: =QuickCalc!AT31 -> 0 | BH278: =QuickCalc!AU31 -> 0 | BI278: =QuickCalc!AV31 -> 0 | BJ278: =QuickCalc!AW31 -> 0 | BK278: =QuickCalc!AX31 -> 0 | BL278: =QuickCalc!AY31 -> 0 | BM278: =QuickCalc!AZ31 -> 0 | BN278: =QuickCalc!BA31 -> 0 | BO278: =QuickCalc!BB31 -> 0 | BP278: =QuickCalc!BC31 -> 0
D279: Fire risk | F279: Used for QuickCalc, override if using full inputs | R279: =QuickCalc!E32 -> 0 | S279: =QuickCalc!F32 -> 0 | T279: =QuickCalc!G32 -> 0 | U279: =QuickCalc!H32 -> 0 | V279: =QuickCalc!I32 -> 0 | W279: =QuickCalc!J32 -> 0 | X279: =QuickCalc!K32 -> 0 | Y279: =QuickCalc!L32 -> 0 | Z279: =QuickCalc!M32 -> 0 | AA279: =QuickCalc!N32 -> 0 | AB279: =QuickCalc!O32 -> 0 | AC279: =QuickCalc!P32 -> 0 | AD279: =QuickCalc!Q32 -> 0 | AE279: =QuickCalc!R32 -> 0 | AF279: =QuickCalc!S32 -> 0 | AG279: =QuickCalc!T32 -> 0 | AH279: =QuickCalc!U32 -> 0 | AI279: =QuickCalc!V32 -> 0 | AJ279: =QuickCalc!W32 -> 0 | AK279: =QuickCalc!X32 -> 0 | AL279: =QuickCalc!Y32 -> 0 | AM279: =QuickCalc!Z32 -> 0 | AN279: =QuickCalc!AA32 -> 0 | AO279: =QuickCalc!AB32 -> 0 | AP279: =QuickCalc!AC32 -> 0 | AQ279: =QuickCalc!AD32 -> 0 | AR279: =QuickCalc!AE32 -> 0 | AS279: =QuickCalc!AF32 -> 0 | AT279: =QuickCalc!AG32 -> 0 | AU279: =QuickCalc!AH32 -> 0 | AV279: =QuickCalc!AI32 -> 0 | AW279: =QuickCalc!AJ32 -> 0 | AX279: =QuickCalc!AK32 -> 0 | AY279: =QuickCalc!AL32 -> 0 | AZ279: =QuickCalc!AM32 -> 0 | BA279: =QuickCalc!AN32 -> 0 | BB279: =QuickCalc!AO32 -> 0 | BC279: =QuickCalc!AP32 -> 0 | BD279: =QuickCalc!AQ32 -> 0 | BE279: =QuickCalc!AR32 -> 0 | BF279: =QuickCalc!AS32 -> 0 | BG279: =QuickCalc!AT32 -> 0 | BH279: =QuickCalc!AU32 -> 0 | BI279: =QuickCalc!AV32 -> 0 | BJ279: =QuickCalc!AW32 -> 0 | BK279: =QuickCalc!AX32 -> 0 | BL279: =QuickCalc!AY32 -> 0 | BM279: =QuickCalc!AZ32 -> 0 | BN279: =QuickCalc!BA32 -> 0 | BO279: =QuickCalc!BB32 -> 0 | BP279: =QuickCalc!BC32 -> 0
D280: Environment risk | F280: Used for QuickCalc, override if using full inputs | R280: =QuickCalc!E33 -> 0 | S280: =QuickCalc!F33 -> 0 | T280: =QuickCalc!G33 -> 0 | U280: =QuickCalc!H33 -> 0 | V280: =QuickCalc!I33 -> 0 | W280: =QuickCalc!J33 -> 2647.619048 | X280: =QuickCalc!K33 -> 2647.619048 | Y280: =QuickCalc!L33 -> 2647.619048 | Z280: =QuickCalc!M33 -> 2647.619048 | AA280: =QuickCalc!N33 -> 2647.619048 | AB280: =QuickCalc!O33 -> 0 | AC280: =QuickCalc!P33 -> 0 | AD280: =QuickCalc!Q33 -> 0 | AE280: =QuickCalc!R33 -> 0 | AF280: =QuickCalc!S33 -> 0 | AG280: =QuickCalc!T33 -> 0 | AH280: =QuickCalc!U33 -> 0 | AI280: =QuickCalc!V33 -> 0 | AJ280: =QuickCalc!W33 -> 0 | AK280: =QuickCalc!X33 -> 0 | AL280: =QuickCalc!Y33 -> 0 | AM280: =QuickCalc!Z33 -> 0 | AN280: =QuickCalc!AA33 -> 0 | AO280: =QuickCalc!AB33 -> 0 | AP280: =QuickCalc!AC33 -> 0 | AQ280: =QuickCalc!AD33 -> 0 | AR280: =QuickCalc!AE33 -> 0 | AS280: =QuickCalc!AF33 -> 0 | AT280: =QuickCalc!AG33 -> 0 | AU280: =QuickCalc!AH33 -> 0 | AV280: =QuickCalc!AI33 -> 0 | AW280: =QuickCalc!AJ33 -> 0 | AX280: =QuickCalc!AK33 -> 0 | AY280: =QuickCalc!AL33 -> 0 | AZ280: =QuickCalc!AM33 -> 0 | BA280: =QuickCalc!AN33 -> 0 | BB280: =QuickCalc!AO33 -> 0 | BC280: =QuickCalc!AP33 -> 0 | BD280: =QuickCalc!AQ33 -> 0 | BE280: =QuickCalc!AR33 -> 0 | BF280: =QuickCalc!AS33 -> 0 | BG280: =QuickCalc!AT33 -> 0 | BH280: =QuickCalc!AU33 -> 0 | BI280: =QuickCalc!AV33 -> 0 | BJ280: =QuickCalc!AW33 -> 0 | BK280: =QuickCalc!AX33 -> 0 | BL280: =QuickCalc!AY33 -> 0 | BM280: =QuickCalc!AZ33 -> 0 | BN280: =QuickCalc!BA33 -> 0 | BO280: =QuickCalc!BB33 -> 0 | BP280: =QuickCalc!BC33 -> 0
D281: Network asset failure EUE | F281: Used for QuickCalc, override if using full inputs | R281: =QuickCalc!E34 -> 0 | S281: =QuickCalc!F34 -> 0 | T281: =QuickCalc!G34 -> 0 | U281: =QuickCalc!H34 -> 0 | V281: =QuickCalc!I34 -> 0 | W281: =QuickCalc!J34 -> 0 | X281: =QuickCalc!K34 -> 0 | Y281: =QuickCalc!L34 -> 0 | Z281: =QuickCalc!M34 -> 0 | AA281: =QuickCalc!N34 -> 0 | AB281: =QuickCalc!O34 -> 0 | AC281: =QuickCalc!P34 -> 0 | AD281: =QuickCalc!Q34 -> 0 | AE281: =QuickCalc!R34 -> 0 | AF281: =QuickCalc!S34 -> 0 | AG281: =QuickCalc!T34 -> 0 | AH281: =QuickCalc!U34 -> 0 | AI281: =QuickCalc!V34 -> 0 | AJ281: =QuickCalc!W34 -> 0 | AK281: =QuickCalc!X34 -> 0 | AL281: =QuickCalc!Y34 -> 0 | AM281: =QuickCalc!Z34 -> 0 | AN281: =QuickCalc!AA34 -> 0 | AO281: =QuickCalc!AB34 -> 0 | AP281: =QuickCalc!AC34 -> 0 | AQ281: =QuickCalc!AD34 -> 0 | AR281: =QuickCalc!AE34 -> 0 | AS281: =QuickCalc!AF34 -> 0 | AT281: =QuickCalc!AG34 -> 0 | AU281: =QuickCalc!AH34 -> 0 | AV281: =QuickCalc!AI34 -> 0 | AW281: =QuickCalc!AJ34 -> 0 | AX281: =QuickCalc!AK34 -> 0 | AY281: =QuickCalc!AL34 -> 0 | AZ281: =QuickCalc!AM34 -> 0 | BA281: =QuickCalc!AN34 -> 0 | BB281: =QuickCalc!AO34 -> 0 | BC281: =QuickCalc!AP34 -> 0 | BD281: =QuickCalc!AQ34 -> 0 | BE281: =QuickCalc!AR34 -> 0 | BF281: =QuickCalc!AS34 -> 0 | BG281: =QuickCalc!AT34 -> 0 | BH281: =QuickCalc!AU34 -> 0 | BI281: =QuickCalc!AV34 -> 0 | BJ281: =QuickCalc!AW34 -> 0 | BK281: =QuickCalc!AX34 -> 0 | BL281: =QuickCalc!AY34 -> 0 | BM281: =QuickCalc!AZ34 -> 0 | BN281: =QuickCalc!BA34 -> 0 | BO281: =QuickCalc!BB34 -> 0 | BP281: =QuickCalc!BC34 -> 0
D282: Reactive replacement cost | F282: Used for QuickCalc, override if using full inputs | R282: =QuickCalc!E35 -> 0 | S282: =QuickCalc!F35 -> 0 | T282: =QuickCalc!G35 -> 0 | U282: =QuickCalc!H35 -> 0 | V282: =QuickCalc!I35 -> 0 | W282: =QuickCalc!J35 -> 0 | X282: =QuickCalc!K35 -> 0 | Y282: =QuickCalc!L35 -> 0 | Z282: =QuickCalc!M35 -> 0 | AA282: =QuickCalc!N35 -> 0 | AB282: =QuickCalc!O35 -> 0 | AC282: =QuickCalc!P35 -> 0 | AD282: =QuickCalc!Q35 -> 0 | AE282: =QuickCalc!R35 -> 0 | AF282: =QuickCalc!S35 -> 0 | AG282: =QuickCalc!T35 -> 0 | AH282: =QuickCalc!U35 -> 0 | AI282: =QuickCalc!V35 -> 0 | AJ282: =QuickCalc!W35 -> 0 | AK282: =QuickCalc!X35 -> 0 | AL282: =QuickCalc!Y35 -> 0 | AM282: =QuickCalc!Z35 -> 0 | AN282: =QuickCalc!AA35 -> 0 | AO282: =QuickCalc!AB35 -> 0 | AP282: =QuickCalc!AC35 -> 0 | AQ282: =QuickCalc!AD35 -> 0 | AR282: =QuickCalc!AE35 -> 0 | AS282: =QuickCalc!AF35 -> 0 | AT282: =QuickCalc!AG35 -> 0 | AU282: =QuickCalc!AH35 -> 0 | AV282: =QuickCalc!AI35 -> 0 | AW282: =QuickCalc!AJ35 -> 0 | AX282: =QuickCalc!AK35 -> 0 | AY282: =QuickCalc!AL35 -> 0 | AZ282: =QuickCalc!AM35 -> 0 | BA282: =QuickCalc!AN35 -> 0 | BB282: =QuickCalc!AO35 -> 0 | BC282: =QuickCalc!AP35 -> 0 | BD282: =QuickCalc!AQ35 -> 0 | BE282: =QuickCalc!AR35 -> 0 | BF282: =QuickCalc!AS35 -> 0 | BG282: =QuickCalc!AT35 -> 0 | BH282: =QuickCalc!AU35 -> 0 | BI282: =QuickCalc!AV35 -> 0 | BJ282: =QuickCalc!AW35 -> 0 | BK282: =QuickCalc!AX35 -> 0 | BL282: =QuickCalc!AY35 -> 0 | BM282: =QuickCalc!AZ35 -> 0 | BN282: =QuickCalc!BA35 -> 0 | BO282: =QuickCalc!BB35 -> 0 | BP282: =QuickCalc!BC35 -> 0
D283: 3rd party property damage risk | F283: Used for QuickCalc, override if using full inputs | R283: =QuickCalc!E36 -> 0 | S283: =QuickCalc!F36 -> 0 | T283: =QuickCalc!G36 -> 0 | U283: =QuickCalc!H36 -> 0 | V283: =QuickCalc!I36 -> 0 | W283: =QuickCalc!J36 -> 0 | X283: =QuickCalc!K36 -> 0 | Y283: =QuickCalc!L36 -> 0 | Z283: =QuickCalc!M36 -> 0 | AA283: =QuickCalc!N36 -> 0 | AB283: =QuickCalc!O36 -> 0 | AC283: =QuickCalc!P36 -> 0 | AD283: =QuickCalc!Q36 -> 0 | AE283: =QuickCalc!R36 -> 0 | AF283: =QuickCalc!S36 -> 0 | AG283: =QuickCalc!T36 -> 0 | AH283: =QuickCalc!U36 -> 0 | AI283: =QuickCalc!V36 -> 0 | AJ283: =QuickCalc!W36 -> 0 | AK283: =QuickCalc!X36 -> 0 | AL283: =QuickCalc!Y36 -> 0 | AM283: =QuickCalc!Z36 -> 0 | AN283: =QuickCalc!AA36 -> 0 | AO283: =QuickCalc!AB36 -> 0 | AP283: =QuickCalc!AC36 -> 0 | AQ283: =QuickCalc!AD36 -> 0 | AR283: =QuickCalc!AE36 -> 0 | AS283: =QuickCalc!AF36 -> 0 | AT283: =QuickCalc!AG36 -> 0 | AU283: =QuickCalc!AH36 -> 0 | AV283: =QuickCalc!AI36 -> 0 | AW283: =QuickCalc!AJ36 -> 0 | AX283: =QuickCalc!AK36 -> 0 | AY283: =QuickCalc!AL36 -> 0 | AZ283: =QuickCalc!AM36 -> 0 | BA283: =QuickCalc!AN36 -> 0 | BB283: =QuickCalc!AO36 -> 0 | BC283: =QuickCalc!AP36 -> 0 | BD283: =QuickCalc!AQ36 -> 0 | BE283: =QuickCalc!AR36 -> 0 | BF283: =QuickCalc!AS36 -> 0 | BG283: =QuickCalc!AT36 -> 0 | BH283: =QuickCalc!AU36 -> 0 | BI283: =QuickCalc!AV36 -> 0 | BJ283: =QuickCalc!AW36 -> 0 | BK283: =QuickCalc!AX36 -> 0 | BL283: =QuickCalc!AY36 -> 0 | BM283: =QuickCalc!AZ36 -> 0 | BN283: =QuickCalc!BA36 -> 0 | BO283: =QuickCalc!BB36 -> 0 | BP283: =QuickCalc!BC36 -> 0
D284: Construction EUE risk | F284: Used for QuickCalc, override if using full inputs | R284: =QuickCalc!E37 -> 0 | S284: =QuickCalc!F37 -> 0 | T284: =QuickCalc!G37 -> 0 | U284: =QuickCalc!H37 -> 0 | V284: =QuickCalc!I37 -> 0 | W284: =QuickCalc!J37 -> 0 | X284: =QuickCalc!K37 -> 0 | Y284: =QuickCalc!L37 -> 0 | Z284: =QuickCalc!M37 -> 0 | AA284: =QuickCalc!N37 -> 0 | AB284: =QuickCalc!O37 -> 0 | AC284: =QuickCalc!P37 -> 0 | AD284: =QuickCalc!Q37 -> 0 | AE284: =QuickCalc!R37 -> 0 | AF284: =QuickCalc!S37 -> 0 | AG284: =QuickCalc!T37 -> 0 | AH284: =QuickCalc!U37 -> 0 | AI284: =QuickCalc!V37 -> 0 | AJ284: =QuickCalc!W37 -> 0 | AK284: =QuickCalc!X37 -> 0 | AL284: =QuickCalc!Y37 -> 0 | AM284: =QuickCalc!Z37 -> 0 | AN284: =QuickCalc!AA37 -> 0 | AO284: =QuickCalc!AB37 -> 0 | AP284: =QuickCalc!AC37 -> 0 | AQ284: =QuickCalc!AD37 -> 0 | AR284: =QuickCalc!AE37 -> 0 | AS284: =QuickCalc!AF37 -> 0 | AT284: =QuickCalc!AG37 -> 0 | AU284: =QuickCalc!AH37 -> 0 | AV284: =QuickCalc!AI37 -> 0 | AW284: =QuickCalc!AJ37 -> 0 | AX284: =QuickCalc!AK37 -> 0 | AY284: =QuickCalc!AL37 -> 0 | AZ284: =QuickCalc!AM37 -> 0 | BA284: =QuickCalc!AN37 -> 0 | BB284: =QuickCalc!AO37 -> 0 | BC284: =QuickCalc!AP37 -> 0 | BD284: =QuickCalc!AQ37 -> 0 | BE284: =QuickCalc!AR37 -> 0 | BF284: =QuickCalc!AS37 -> 0 | BG284: =QuickCalc!AT37 -> 0 | BH284: =QuickCalc!AU37 -> 0 | BI284: =QuickCalc!AV37 -> 0 | BJ284: =QuickCalc!AW37 -> 0 | BK284: =QuickCalc!AX37 -> 0 | BL284: =QuickCalc!AY37 -> 0 | BM284: =QuickCalc!AZ37 -> 0 | BN284: =QuickCalc!BA37 -> 0 | BO284: =QuickCalc!BB37 -> 0 | BP284: =QuickCalc!BC37 -> 0
D285: Carbon emissions | F285: Used for QuickCalc, override if using full inputs | R285: =QuickCalc!E38 -> 0 | S285: =QuickCalc!F38 -> 0 | T285: =QuickCalc!G38 -> 0 | U285: =QuickCalc!H38 -> 0 | V285: =QuickCalc!I38 -> 0 | W285: =QuickCalc!J38 -> 0 | X285: =QuickCalc!K38 -> 0 | Y285: =QuickCalc!L38 -> 0 | Z285: =QuickCalc!M38 -> 0 | AA285: =QuickCalc!N38 -> 0 | AB285: =QuickCalc!O38 -> 0 | AC285: =QuickCalc!P38 -> 0 | AD285: =QuickCalc!Q38 -> 0 | AE285: =QuickCalc!R38 -> 0 | AF285: =QuickCalc!S38 -> 0 | AG285: =QuickCalc!T38 -> 0 | AH285: =QuickCalc!U38 -> 0 | AI285: =QuickCalc!V38 -> 0 | AJ285: =QuickCalc!W38 -> 0 | AK285: =QuickCalc!X38 -> 0 | AL285: =QuickCalc!Y38 -> 0 | AM285: =QuickCalc!Z38 -> 0 | AN285: =QuickCalc!AA38 -> 0 | AO285: =QuickCalc!AB38 -> 0 | AP285: =QuickCalc!AC38 -> 0 | AQ285: =QuickCalc!AD38 -> 0 | AR285: =QuickCalc!AE38 -> 0 | AS285: =QuickCalc!AF38 -> 0 | AT285: =QuickCalc!AG38 -> 0 | AU285: =QuickCalc!AH38 -> 0 | AV285: =QuickCalc!AI38 -> 0 | AW285: =QuickCalc!AJ38 -> 0 | AX285: =QuickCalc!AK38 -> 0 | AY285: =QuickCalc!AL38 -> 0 | AZ285: =QuickCalc!AM38 -> 0 | BA285: =QuickCalc!AN38 -> 0 | BB285: =QuickCalc!AO38 -> 0 | BC285: =QuickCalc!AP38 -> 0 | BD285: =QuickCalc!AQ38 -> 0 | BE285: =QuickCalc!AR38 -> 0 | BF285: =QuickCalc!AS38 -> 0 | BG285: =QuickCalc!AT38 -> 0 | BH285: =QuickCalc!AU38 -> 0 | BI285: =QuickCalc!AV38 -> 0 | BJ285: =QuickCalc!AW38 -> 0 | BK285: =QuickCalc!AX38 -> 0 | BL285: =QuickCalc!AY38 -> 0 | BM285: =QuickCalc!AZ38 -> 0 | BN285: =QuickCalc!BA38 -> 0 | BO285: =QuickCalc!BB38 -> 0 | BP285: =QuickCalc!BC38 -> 0
D286: Protective security risk
D287: Cost to respond to crisis | F287: Used for QuickCalc, override if using full inputs | R287: =QuickCalc!E40 -> 0 | S287: =QuickCalc!F40 -> 0 | T287: =QuickCalc!G40 -> 0 | U287: =QuickCalc!H40 -> 0 | V287: =QuickCalc!I40 -> 0 | W287: =QuickCalc!J40 -> 0 | X287: =QuickCalc!K40 -> 0 | Y287: =QuickCalc!L40 -> 0 | Z287: =QuickCalc!M40 -> 0 | AA287: =QuickCalc!N40 -> 0 | AB287: =QuickCalc!O40 -> 0 | AC287: =QuickCalc!P40 -> 0 | AD287: =QuickCalc!Q40 -> 0 | AE287: =QuickCalc!R40 -> 0 | AF287: =QuickCalc!S40 -> 0 | AG287: =QuickCalc!T40 -> 0 | AH287: =QuickCalc!U40 -> 0 | AI287: =QuickCalc!V40 -> 0 | AJ287: =QuickCalc!W40 -> 0 | AK287: =QuickCalc!X40 -> 0 | AL287: =QuickCalc!Y40 -> 0 | AM287: =QuickCalc!Z40 -> 0 | AN287: =QuickCalc!AA40 -> 0 | AO287: =QuickCalc!AB40 -> 0 | AP287: =QuickCalc!AC40 -> 0 | AQ287: =QuickCalc!AD40 -> 0 | AR287: =QuickCalc!AE40 -> 0 | AS287: =QuickCalc!AF40 -> 0 | AT287: =QuickCalc!AG40 -> 0 | AU287: =QuickCalc!AH40 -> 0 | AV287: =QuickCalc!AI40 -> 0 | AW287: =QuickCalc!AJ40 -> 0 | AX287: =QuickCalc!AK40 -> 0 | AY287: =QuickCalc!AL40 -> 0 | AZ287: =QuickCalc!AM40 -> 0 | BA287: =QuickCalc!AN40 -> 0 | BB287: =QuickCalc!AO40 -> 0 | BC287: =QuickCalc!AP40 -> 0 | BD287: =QuickCalc!AQ40 -> 0 | BE287: =QuickCalc!AR40 -> 0 | BF287: =QuickCalc!AS40 -> 0 | BG287: =QuickCalc!AT40 -> 0 | BH287: =QuickCalc!AU40 -> 0 | BI287: =QuickCalc!AV40 -> 0 | BJ287: =QuickCalc!AW40 -> 0 | BK287: =QuickCalc!AX40 -> 0 | BL287: =QuickCalc!AY40 -> 0 | BM287: =QuickCalc!AZ40 -> 0 | BN287: =QuickCalc!BA40 -> 0 | BO287: =QuickCalc!BB40 -> 0 | BP287: =QuickCalc!BC40 -> 0
D288: Loss productive time
D289: Additional capex completed without additional labour cost | F289: Used for QuickCalc, override if using full inputs | R289: =QuickCalc!E42 -> 0 | S289: =QuickCalc!F42 -> 0 | T289: =QuickCalc!G42 -> 0 | U289: =QuickCalc!H42 -> 0 | V289: =QuickCalc!I42 -> 0 | W289: =QuickCalc!J42 -> 0 | X289: =QuickCalc!K42 -> 0 | Y289: =QuickCalc!L42 -> 0 | Z289: =QuickCalc!M42 -> 0 | AA289: =QuickCalc!N42 -> 0 | AB289: =QuickCalc!O42 -> 0 | AC289: =QuickCalc!P42 -> 0 | AD289: =QuickCalc!Q42 -> 0 | AE289: =QuickCalc!R42 -> 0 | AF289: =QuickCalc!S42 -> 0 | AG289: =QuickCalc!T42 -> 0 | AH289: =QuickCalc!U42 -> 0 | AI289: =QuickCalc!V42 -> 0 | AJ289: =QuickCalc!W42 -> 0 | AK289: =QuickCalc!X42 -> 0 | AL289: =QuickCalc!Y42 -> 0 | AM289: =QuickCalc!Z42 -> 0 | AN289: =QuickCalc!AA42 -> 0 | AO289: =QuickCalc!AB42 -> 0 | AP289: =QuickCalc!AC42 -> 0 | AQ289: =QuickCalc!AD42 -> 0 | AR289: =QuickCalc!AE42 -> 0 | AS289: =QuickCalc!AF42 -> 0 | AT289: =QuickCalc!AG42 -> 0 | AU289: =QuickCalc!AH42 -> 0 | AV289: =QuickCalc!AI42 -> 0 | AW289: =QuickCalc!AJ42 -> 0 | AX289: =QuickCalc!AK42 -> 0 | AY289: =QuickCalc!AL42 -> 0 | AZ289: =QuickCalc!AM42 -> 0 | BA289: =QuickCalc!AN42 -> 0 | BB289: =QuickCalc!AO42 -> 0 | BC289: =QuickCalc!AP42 -> 0 | BD289: =QuickCalc!AQ42 -> 0 | BE289: =QuickCalc!AR42 -> 0 | BF289: =QuickCalc!AS42 -> 0 | BG289: =QuickCalc!AT42 -> 0 | BH289: =QuickCalc!AU42 -> 0 | BI289: =QuickCalc!AV42 -> 0 | BJ289: =QuickCalc!AW42 -> 0 | BK289: =QuickCalc!AX42 -> 0 | BL289: =QuickCalc!AY42 -> 0 | BM289: =QuickCalc!AZ42 -> 0 | BN289: =QuickCalc!BA42 -> 0 | BO289: =QuickCalc!BB42 -> 0 | BP289: =QuickCalc!BC42 -> 0
D290: Decrease in opex costs | F290: Used for QuickCalc, override if using full inputs | R290: =QuickCalc!E43 -> 0 | S290: =QuickCalc!F43 -> 0 | T290: =QuickCalc!G43 -> 0 | U290: =QuickCalc!H43 -> 0 | V290: =QuickCalc!I43 -> 0 | W290: =QuickCalc!J43 -> 0 | X290: =QuickCalc!K43 -> 0 | Y290: =QuickCalc!L43 -> 0 | Z290: =QuickCalc!M43 -> 0 | AA290: =QuickCalc!N43 -> 0 | AB290: =QuickCalc!O43 -> 0 | AC290: =QuickCalc!P43 -> 0 | AD290: =QuickCalc!Q43 -> 0 | AE290: =QuickCalc!R43 -> 0 | AF290: =QuickCalc!S43 -> 0 | AG290: =QuickCalc!T43 -> 0 | AH290: =QuickCalc!U43 -> 0 | AI290: =QuickCalc!V43 -> 0 | AJ290: =QuickCalc!W43 -> 0 | AK290: =QuickCalc!X43 -> 0 | AL290: =QuickCalc!Y43 -> 0 | AM290: =QuickCalc!Z43 -> 0 | AN290: =QuickCalc!AA43 -> 0 | AO290: =QuickCalc!AB43 -> 0 | AP290: =QuickCalc!AC43 -> 0 | AQ290: =QuickCalc!AD43 -> 0 | AR290: =QuickCalc!AE43 -> 0 | AS290: =QuickCalc!AF43 -> 0 | AT290: =QuickCalc!AG43 -> 0 | AU290: =QuickCalc!AH43 -> 0 | AV290: =QuickCalc!AI43 -> 0 | AW290: =QuickCalc!AJ43 -> 0 | AX290: =QuickCalc!AK43 -> 0 | AY290: =QuickCalc!AL43 -> 0 | AZ290: =QuickCalc!AM43 -> 0 | BA290: =QuickCalc!AN43 -> 0 | BB290: =QuickCalc!AO43 -> 0 | BC290: =QuickCalc!AP43 -> 0 | BD290: =QuickCalc!AQ43 -> 0 | BE290: =QuickCalc!AR43 -> 0 | BF290: =QuickCalc!AS43 -> 0 | BG290: =QuickCalc!AT43 -> 0 | BH290: =QuickCalc!AU43 -> 0 | BI290: =QuickCalc!AV43 -> 0 | BJ290: =QuickCalc!AW43 -> 0 | BK290: =QuickCalc!AX43 -> 0 | BL290: =QuickCalc!AY43 -> 0 | BM290: =QuickCalc!AZ43 -> 0 | BN290: =QuickCalc!BA43 -> 0 | BO290: =QuickCalc!BB43 -> 0 | BP290: =QuickCalc!BC43 -> 0
D291: Fines and penalties | F291: Used for QuickCalc, override if using full inputs | R291: =QuickCalc!E44 -> 0 | S291: =QuickCalc!F44 -> 0 | T291: =QuickCalc!G44 -> 0 | U291: =QuickCalc!H44 -> 0 | V291: =QuickCalc!I44 -> 0 | W291: =QuickCalc!J44 -> 0 | X291: =QuickCalc!K44 -> 0 | Y291: =QuickCalc!L44 -> 0 | Z291: =QuickCalc!M44 -> 0 | AA291: =QuickCalc!N44 -> 0 | AB291: =QuickCalc!O44 -> 0 | AC291: =QuickCalc!P44 -> 0 | AD291: =QuickCalc!Q44 -> 0 | AE291: =QuickCalc!R44 -> 0 | AF291: =QuickCalc!S44 -> 0 | AG291: =QuickCalc!T44 -> 0 | AH291: =QuickCalc!U44 -> 0 | AI291: =QuickCalc!V44 -> 0 | AJ291: =QuickCalc!W44 -> 0 | AK291: =QuickCalc!X44 -> 0 | AL291: =QuickCalc!Y44 -> 0 | AM291: =QuickCalc!Z44 -> 0 | AN291: =QuickCalc!AA44 -> 0 | AO291: =QuickCalc!AB44 -> 0 | AP291: =QuickCalc!AC44 -> 0 | AQ291: =QuickCalc!AD44 -> 0 | AR291: =QuickCalc!AE44 -> 0 | AS291: =QuickCalc!AF44 -> 0 | AT291: =QuickCalc!AG44 -> 0 | AU291: =QuickCalc!AH44 -> 0 | AV291: =QuickCalc!AI44 -> 0 | AW291: =QuickCalc!AJ44 -> 0 | AX291: =QuickCalc!AK44 -> 0 | AY291: =QuickCalc!AL44 -> 0 | AZ291: =QuickCalc!AM44 -> 0 | BA291: =QuickCalc!AN44 -> 0 | BB291: =QuickCalc!AO44 -> 0 | BC291: =QuickCalc!AP44 -> 0 | BD291: =QuickCalc!AQ44 -> 0 | BE291: =QuickCalc!AR44 -> 0 | BF291: =QuickCalc!AS44 -> 0 | BG291: =QuickCalc!AT44 -> 0 | BH291: =QuickCalc!AU44 -> 0 | BI291: =QuickCalc!AV44 -> 0 | BJ291: =QuickCalc!AW44 -> 0 | BK291: =QuickCalc!AX44 -> 0 | BL291: =QuickCalc!AY44 -> 0 | BM291: =QuickCalc!AZ44 -> 0 | BN291: =QuickCalc!BA44 -> 0 | BO291: =QuickCalc!BB44 -> 0 | BP291: =QuickCalc!BC44 -> 0
D292: Damage / theft of assets | F292: Used for QuickCalc, override if using full inputs | R292: =QuickCalc!E45 -> 0 | S292: =QuickCalc!F45 -> 0 | T292: =QuickCalc!G45 -> 0 | U292: =QuickCalc!H45 -> 0 | V292: =QuickCalc!I45 -> 0 | W292: =QuickCalc!J45 -> 0 | X292: =QuickCalc!K45 -> 0 | Y292: =QuickCalc!L45 -> 0 | Z292: =QuickCalc!M45 -> 0 | AA292: =QuickCalc!N45 -> 0 | AB292: =QuickCalc!O45 -> 0 | AC292: =QuickCalc!P45 -> 0 | AD292: =QuickCalc!Q45 -> 0 | AE292: =QuickCalc!R45 -> 0 | AF292: =QuickCalc!S45 -> 0 | AG292: =QuickCalc!T45 -> 0 | AH292: =QuickCalc!U45 -> 0 | AI292: =QuickCalc!V45 -> 0 | AJ292: =QuickCalc!W45 -> 0 | AK292: =QuickCalc!X45 -> 0 | AL292: =QuickCalc!Y45 -> 0 | AM292: =QuickCalc!Z45 -> 0 | AN292: =QuickCalc!AA45 -> 0 | AO292: =QuickCalc!AB45 -> 0 | AP292: =QuickCalc!AC45 -> 0 | AQ292: =QuickCalc!AD45 -> 0 | AR292: =QuickCalc!AE45 -> 0 | AS292: =QuickCalc!AF45 -> 0 | AT292: =QuickCalc!AG45 -> 0 | AU292: =QuickCalc!AH45 -> 0 | AV292: =QuickCalc!AI45 -> 0 | AW292: =QuickCalc!AJ45 -> 0 | AX292: =QuickCalc!AK45 -> 0 | AY292: =QuickCalc!AL45 -> 0 | AZ292: =QuickCalc!AM45 -> 0 | BA292: =QuickCalc!AN45 -> 0 | BB292: =QuickCalc!AO45 -> 0 | BC292: =QuickCalc!AP45 -> 0 | BD292: =QuickCalc!AQ45 -> 0 | BE292: =QuickCalc!AR45 -> 0 | BF292: =QuickCalc!AS45 -> 0 | BG292: =QuickCalc!AT45 -> 0 | BH292: =QuickCalc!AU45 -> 0 | BI292: =QuickCalc!AV45 -> 0 | BJ292: =QuickCalc!AW45 -> 0 | BK292: =QuickCalc!AX45 -> 0 | BL292: =QuickCalc!AY45 -> 0 | BM292: =QuickCalc!AZ45 -> 0 | BN292: =QuickCalc!BA45 -> 0 | BO292: =QuickCalc!BB45 -> 0 | BP292: =QuickCalc!BC45 -> 0
D293: Loss of data | F293: Used for QuickCalc, override if using full inputs | R293: =QuickCalc!E46 -> 0 | S293: =QuickCalc!F46 -> 0 | T293: =QuickCalc!G46 -> 0 | U293: =QuickCalc!H46 -> 0 | V293: =QuickCalc!I46 -> 0 | W293: =QuickCalc!J46 -> 0 | X293: =QuickCalc!K46 -> 0 | Y293: =QuickCalc!L46 -> 0 | Z293: =QuickCalc!M46 -> 0 | AA293: =QuickCalc!N46 -> 0 | AB293: =QuickCalc!O46 -> 0 | AC293: =QuickCalc!P46 -> 0 | AD293: =QuickCalc!Q46 -> 0 | AE293: =QuickCalc!R46 -> 0 | AF293: =QuickCalc!S46 -> 0 | AG293: =QuickCalc!T46 -> 0 | AH293: =QuickCalc!U46 -> 0 | AI293: =QuickCalc!V46 -> 0 | AJ293: =QuickCalc!W46 -> 0 | AK293: =QuickCalc!X46 -> 0 | AL293: =QuickCalc!Y46 -> 0 | AM293: =QuickCalc!Z46 -> 0 | AN293: =QuickCalc!AA46 -> 0 | AO293: =QuickCalc!AB46 -> 0 | AP293: =QuickCalc!AC46 -> 0 | AQ293: =QuickCalc!AD46 -> 0 | AR293: =QuickCalc!AE46 -> 0 | AS293: =QuickCalc!AF46 -> 0 | AT293: =QuickCalc!AG46 -> 0 | AU293: =QuickCalc!AH46 -> 0 | AV293: =QuickCalc!AI46 -> 0 | AW293: =QuickCalc!AJ46 -> 0 | AX293: =QuickCalc!AK46 -> 0 | AY293: =QuickCalc!AL46 -> 0 | AZ293: =QuickCalc!AM46 -> 0 | BA293: =QuickCalc!AN46 -> 0 | BB293: =QuickCalc!AO46 -> 0 | BC293: =QuickCalc!AP46 -> 0 | BD293: =QuickCalc!AQ46 -> 0 | BE293: =QuickCalc!AR46 -> 0 | BF293: =QuickCalc!AS46 -> 0 | BG293: =QuickCalc!AT46 -> 0 | BH293: =QuickCalc!AU46 -> 0 | BI293: =QuickCalc!AV46 -> 0 | BJ293: =QuickCalc!AW46 -> 0 | BK293: =QuickCalc!AX46 -> 0 | BL293: =QuickCalc!AY46 -> 0 | BM293: =QuickCalc!AZ46 -> 0 | BN293: =QuickCalc!BA46 -> 0 | BO293: =QuickCalc!BB46 -> 0 | BP293: =QuickCalc!BC46 -> 0
D294: ICT/OT hardware or software failure risk
D295: Cost of manual intervention | F295: Used for QuickCalc, override if using full inputs | R295: =QuickCalc!E48 -> 0 | S295: =QuickCalc!F48 -> 0 | T295: =QuickCalc!G48 -> 0 | U295: =QuickCalc!H48 -> 0 | V295: =QuickCalc!I48 -> 0 | W295: =QuickCalc!J48 -> 0 | X295: =QuickCalc!K48 -> 0 | Y295: =QuickCalc!L48 -> 0 | Z295: =QuickCalc!M48 -> 0 | AA295: =QuickCalc!N48 -> 0 | AB295: =QuickCalc!O48 -> 0 | AC295: =QuickCalc!P48 -> 0 | AD295: =QuickCalc!Q48 -> 0 | AE295: =QuickCalc!R48 -> 0 | AF295: =QuickCalc!S48 -> 0 | AG295: =QuickCalc!T48 -> 0 | AH295: =QuickCalc!U48 -> 0 | AI295: =QuickCalc!V48 -> 0 | AJ295: =QuickCalc!W48 -> 0 | AK295: =QuickCalc!X48 -> 0 | AL295: =QuickCalc!Y48 -> 0 | AM295: =QuickCalc!Z48 -> 0 | AN295: =QuickCalc!AA48 -> 0 | AO295: =QuickCalc!AB48 -> 0 | AP295: =QuickCalc!AC48 -> 0 | AQ295: =QuickCalc!AD48 -> 0 | AR295: =QuickCalc!AE48 -> 0 | AS295: =QuickCalc!AF48 -> 0 | AT295: =QuickCalc!AG48 -> 0 | AU295: =QuickCalc!AH48 -> 0 | AV295: =QuickCalc!AI48 -> 0 | AW295: =QuickCalc!AJ48 -> 0 | AX295: =QuickCalc!AK48 -> 0 | AY295: =QuickCalc!AL48 -> 0 | AZ295: =QuickCalc!AM48 -> 0 | BA295: =QuickCalc!AN48 -> 0 | BB295: =QuickCalc!AO48 -> 0 | BC295: =QuickCalc!AP48 -> 0 | BD295: =QuickCalc!AQ48 -> 0 | BE295: =QuickCalc!AR48 -> 0 | BF295: =QuickCalc!AS48 -> 0 | BG295: =QuickCalc!AT48 -> 0 | BH295: =QuickCalc!AU48 -> 0 | BI295: =QuickCalc!AV48 -> 0 | BJ295: =QuickCalc!AW48 -> 0 | BK295: =QuickCalc!AX48 -> 0 | BL295: =QuickCalc!AY48 -> 0 | BM295: =QuickCalc!AZ48 -> 0 | BN295: =QuickCalc!BA48 -> 0 | BO295: =QuickCalc!BB48 -> 0 | BP295: =QuickCalc!BC48 -> 0
D296: Loss productive time
D297: Additional capex completed without additional labour cost | F297: Used for QuickCalc, override if using full inputs | R297: =QuickCalc!E50 -> 0 | S297: =QuickCalc!F50 -> 0 | T297: =QuickCalc!G50 -> 0 | U297: =QuickCalc!H50 -> 0 | V297: =QuickCalc!I50 -> 0 | W297: =QuickCalc!J50 -> 0 | X297: =QuickCalc!K50 -> 0 | Y297: =QuickCalc!L50 -> 0 | Z297: =QuickCalc!M50 -> 0 | AA297: =QuickCalc!N50 -> 0 | AB297: =QuickCalc!O50 -> 0 | AC297: =QuickCalc!P50 -> 0 | AD297: =QuickCalc!Q50 -> 0 | AE297: =QuickCalc!R50 -> 0 | AF297: =QuickCalc!S50 -> 0 | AG297: =QuickCalc!T50 -> 0 | AH297: =QuickCalc!U50 -> 0 | AI297: =QuickCalc!V50 -> 0 | AJ297: =QuickCalc!W50 -> 0 | AK297: =QuickCalc!X50 -> 0 | AL297: =QuickCalc!Y50 -> 0 | AM297: =QuickCalc!Z50 -> 0 | AN297: =QuickCalc!AA50 -> 0 | AO297: =QuickCalc!AB50 -> 0 | AP297: =QuickCalc!AC50 -> 0 | AQ297: =QuickCalc!AD50 -> 0 | AR297: =QuickCalc!AE50 -> 0 | AS297: =QuickCalc!AF50 -> 0 | AT297: =QuickCalc!AG50 -> 0 | AU297: =QuickCalc!AH50 -> 0 | AV297: =QuickCalc!AI50 -> 0 | AW297: =QuickCalc!AJ50 -> 0 | AX297: =QuickCalc!AK50 -> 0 | AY297: =QuickCalc!AL50 -> 0 | AZ297: =QuickCalc!AM50 -> 0 | BA297: =QuickCalc!AN50 -> 0 | BB297: =QuickCalc!AO50 -> 0 | BC297: =QuickCalc!AP50 -> 0 | BD297: =QuickCalc!AQ50 -> 0 | BE297: =QuickCalc!AR50 -> 0 | BF297: =QuickCalc!AS50 -> 0 | BG297: =QuickCalc!AT50 -> 0 | BH297: =QuickCalc!AU50 -> 0 | BI297: =QuickCalc!AV50 -> 0 | BJ297: =QuickCalc!AW50 -> 0 | BK297: =QuickCalc!AX50 -> 0 | BL297: =QuickCalc!AY50 -> 0 | BM297: =QuickCalc!AZ50 -> 0 | BN297: =QuickCalc!BA50 -> 0 | BO297: =QuickCalc!BB50 -> 0 | BP297: =QuickCalc!BC50 -> 0
D298: Decrease in opex costs | F298: Used for QuickCalc, override if using full inputs | R298: =QuickCalc!E51 -> 0 | S298: =QuickCalc!F51 -> 0 | T298: =QuickCalc!G51 -> 0 | U298: =QuickCalc!H51 -> 0 | V298: =QuickCalc!I51 -> 0 | W298: =QuickCalc!J51 -> 0 | X298: =QuickCalc!K51 -> 0 | Y298: =QuickCalc!L51 -> 0 | Z298: =QuickCalc!M51 -> 0 | AA298: =QuickCalc!N51 -> 0 | AB298: =QuickCalc!O51 -> 0 | AC298: =QuickCalc!P51 -> 0 | AD298: =QuickCalc!Q51 -> 0 | AE298: =QuickCalc!R51 -> 0 | AF298: =QuickCalc!S51 -> 0 | AG298: =QuickCalc!T51 -> 0 | AH298: =QuickCalc!U51 -> 0 | AI298: =QuickCalc!V51 -> 0 | AJ298: =QuickCalc!W51 -> 0 | AK298: =QuickCalc!X51 -> 0 | AL298: =QuickCalc!Y51 -> 0 | AM298: =QuickCalc!Z51 -> 0 | AN298: =QuickCalc!AA51 -> 0 | AO298: =QuickCalc!AB51 -> 0 | AP298: =QuickCalc!AC51 -> 0 | AQ298: =QuickCalc!AD51 -> 0 | AR298: =QuickCalc!AE51 -> 0 | AS298: =QuickCalc!AF51 -> 0 | AT298: =QuickCalc!AG51 -> 0 | AU298: =QuickCalc!AH51 -> 0 | AV298: =QuickCalc!AI51 -> 0 | AW298: =QuickCalc!AJ51 -> 0 | AX298: =QuickCalc!AK51 -> 0 | AY298: =QuickCalc!AL51 -> 0 | AZ298: =QuickCalc!AM51 -> 0 | BA298: =QuickCalc!AN51 -> 0 | BB298: =QuickCalc!AO51 -> 0 | BC298: =QuickCalc!AP51 -> 0 | BD298: =QuickCalc!AQ51 -> 0 | BE298: =QuickCalc!AR51 -> 0 | BF298: =QuickCalc!AS51 -> 0 | BG298: =QuickCalc!AT51 -> 0 | BH298: =QuickCalc!AU51 -> 0 | BI298: =QuickCalc!AV51 -> 0 | BJ298: =QuickCalc!AW51 -> 0 | BK298: =QuickCalc!AX51 -> 0 | BL298: =QuickCalc!AY51 -> 0 | BM298: =QuickCalc!AZ51 -> 0 | BN298: =QuickCalc!BA51 -> 0 | BO298: =QuickCalc!BB51 -> 0 | BP298: =QuickCalc!BC51 -> 0
D299: Safety risk | F299: Used for QuickCalc, override if using full inputs | R299: =QuickCalc!E52 -> 0 | S299: =QuickCalc!F52 -> 0 | T299: =QuickCalc!G52 -> 0 | U299: =QuickCalc!H52 -> 0 | V299: =QuickCalc!I52 -> 0 | W299: =QuickCalc!J52 -> 0 | X299: =QuickCalc!K52 -> 0 | Y299: =QuickCalc!L52 -> 0 | Z299: =QuickCalc!M52 -> 0 | AA299: =QuickCalc!N52 -> 0 | AB299: =QuickCalc!O52 -> 0 | AC299: =QuickCalc!P52 -> 0 | AD299: =QuickCalc!Q52 -> 0 | AE299: =QuickCalc!R52 -> 0 | AF299: =QuickCalc!S52 -> 0 | AG299: =QuickCalc!T52 -> 0 | AH299: =QuickCalc!U52 -> 0 | AI299: =QuickCalc!V52 -> 0 | AJ299: =QuickCalc!W52 -> 0 | AK299: =QuickCalc!X52 -> 0 | AL299: =QuickCalc!Y52 -> 0 | AM299: =QuickCalc!Z52 -> 0 | AN299: =QuickCalc!AA52 -> 0 | AO299: =QuickCalc!AB52 -> 0 | AP299: =QuickCalc!AC52 -> 0 | AQ299: =QuickCalc!AD52 -> 0 | AR299: =QuickCalc!AE52 -> 0 | AS299: =QuickCalc!AF52 -> 0 | AT299: =QuickCalc!AG52 -> 0 | AU299: =QuickCalc!AH52 -> 0 | AV299: =QuickCalc!AI52 -> 0 | AW299: =QuickCalc!AJ52 -> 0 | AX299: =QuickCalc!AK52 -> 0 | AY299: =QuickCalc!AL52 -> 0 | AZ299: =QuickCalc!AM52 -> 0 | BA299: =QuickCalc!AN52 -> 0 | BB299: =QuickCalc!AO52 -> 0 | BC299: =QuickCalc!AP52 -> 0 | BD299: =QuickCalc!AQ52 -> 0 | BE299: =QuickCalc!AR52 -> 0 | BF299: =QuickCalc!AS52 -> 0 | BG299: =QuickCalc!AT52 -> 0 | BH299: =QuickCalc!AU52 -> 0 | BI299: =QuickCalc!AV52 -> 0 | BJ299: =QuickCalc!AW52 -> 0 | BK299: =QuickCalc!AX52 -> 0 | BL299: =QuickCalc!AY52 -> 0 | BM299: =QuickCalc!AZ52 -> 0 | BN299: =QuickCalc!BA52 -> 0 | BO299: =QuickCalc!BB52 -> 0 | BP299: =QuickCalc!BC52 -> 0
D300: Employee engagement
D301: Additional capex completed without additional labour cost | F301: Used for QuickCalc, override if using full inputs | R301: =QuickCalc!E54 -> 0 | S301: =QuickCalc!F54 -> 0 | T301: =QuickCalc!G54 -> 0 | U301: =QuickCalc!H54 -> 0 | V301: =QuickCalc!I54 -> 0 | W301: =QuickCalc!J54 -> 0 | X301: =QuickCalc!K54 -> 0 | Y301: =QuickCalc!L54 -> 0 | Z301: =QuickCalc!M54 -> 0 | AA301: =QuickCalc!N54 -> 0 | AB301: =QuickCalc!O54 -> 0 | AC301: =QuickCalc!P54 -> 0 | AD301: =QuickCalc!Q54 -> 0 | AE301: =QuickCalc!R54 -> 0 | AF301: =QuickCalc!S54 -> 0 | AG301: =QuickCalc!T54 -> 0 | AH301: =QuickCalc!U54 -> 0 | AI301: =QuickCalc!V54 -> 0 | AJ301: =QuickCalc!W54 -> 0 | AK301: =QuickCalc!X54 -> 0 | AL301: =QuickCalc!Y54 -> 0 | AM301: =QuickCalc!Z54 -> 0 | AN301: =QuickCalc!AA54 -> 0 | AO301: =QuickCalc!AB54 -> 0 | AP301: =QuickCalc!AC54 -> 0 | AQ301: =QuickCalc!AD54 -> 0 | AR301: =QuickCalc!AE54 -> 0 | AS301: =QuickCalc!AF54 -> 0 | AT301: =QuickCalc!AG54 -> 0 | AU301: =QuickCalc!AH54 -> 0 | AV301: =QuickCalc!AI54 -> 0 | AW301: =QuickCalc!AJ54 -> 0 | AX301: =QuickCalc!AK54 -> 0 | AY301: =QuickCalc!AL54 -> 0 | AZ301: =QuickCalc!AM54 -> 0 | BA301: =QuickCalc!AN54 -> 0 | BB301: =QuickCalc!AO54 -> 0 | BC301: =QuickCalc!AP54 -> 0 | BD301: =QuickCalc!AQ54 -> 0 | BE301: =QuickCalc!AR54 -> 0 | BF301: =QuickCalc!AS54 -> 0 | BG301: =QuickCalc!AT54 -> 0 | BH301: =QuickCalc!AU54 -> 0 | BI301: =QuickCalc!AV54 -> 0 | BJ301: =QuickCalc!AW54 -> 0 | BK301: =QuickCalc!AX54 -> 0 | BL301: =QuickCalc!AY54 -> 0 | BM301: =QuickCalc!AZ54 -> 0 | BN301: =QuickCalc!BA54 -> 0 | BO301: =QuickCalc!BB54 -> 0 | BP301: =QuickCalc!BC54 -> 0
D302: Decrease in opex costs | F302: Used for QuickCalc, override if using full inputs | R302: =QuickCalc!E55 -> 0 | S302: =QuickCalc!F55 -> 0 | T302: =QuickCalc!G55 -> 0 | U302: =QuickCalc!H55 -> 0 | V302: =QuickCalc!I55 -> 0 | W302: =QuickCalc!J55 -> 0 | X302: =QuickCalc!K55 -> 0 | Y302: =QuickCalc!L55 -> 0 | Z302: =QuickCalc!M55 -> 0 | AA302: =QuickCalc!N55 -> 0 | AB302: =QuickCalc!O55 -> 0 | AC302: =QuickCalc!P55 -> 0 | AD302: =QuickCalc!Q55 -> 0 | AE302: =QuickCalc!R55 -> 0 | AF302: =QuickCalc!S55 -> 0 | AG302: =QuickCalc!T55 -> 0 | AH302: =QuickCalc!U55 -> 0 | AI302: =QuickCalc!V55 -> 0 | AJ302: =QuickCalc!W55 -> 0 | AK302: =QuickCalc!X55 -> 0 | AL302: =QuickCalc!Y55 -> 0 | AM302: =QuickCalc!Z55 -> 0 | AN302: =QuickCalc!AA55 -> 0 | AO302: =QuickCalc!AB55 -> 0 | AP302: =QuickCalc!AC55 -> 0 | AQ302: =QuickCalc!AD55 -> 0 | AR302: =QuickCalc!AE55 -> 0 | AS302: =QuickCalc!AF55 -> 0 | AT302: =QuickCalc!AG55 -> 0 | AU302: =QuickCalc!AH55 -> 0 | AV302: =QuickCalc!AI55 -> 0 | AW302: =QuickCalc!AJ55 -> 0 | AX302: =QuickCalc!AK55 -> 0 | AY302: =QuickCalc!AL55 -> 0 | AZ302: =QuickCalc!AM55 -> 0 | BA302: =QuickCalc!AN55 -> 0 | BB302: =QuickCalc!AO55 -> 0 | BC302: =QuickCalc!AP55 -> 0 | BD302: =QuickCalc!AQ55 -> 0 | BE302: =QuickCalc!AR55 -> 0 | BF302: =QuickCalc!AS55 -> 0 | BG302: =QuickCalc!AT55 -> 0 | BH302: =QuickCalc!AU55 -> 0 | BI302: =QuickCalc!AV55 -> 0 | BJ302: =QuickCalc!AW55 -> 0 | BK302: =QuickCalc!AX55 -> 0 | BL302: =QuickCalc!AY55 -> 0 | BM302: =QuickCalc!AZ55 -> 0 | BN302: =QuickCalc!BA55 -> 0 | BO302: =QuickCalc!BB55 -> 0 | BP302: =QuickCalc!BC55 -> 0
D303: Customer value | F303: Used for QuickCalc, override if using full inputs | R303: =QuickCalc!E56 -> 0 | S303: =QuickCalc!F56 -> 0 | T303: =QuickCalc!G56 -> 0 | U303: =QuickCalc!H56 -> 0 | V303: =QuickCalc!I56 -> 0 | W303: =QuickCalc!J56 -> 0 | X303: =QuickCalc!K56 -> 0 | Y303: =QuickCalc!L56 -> 0 | Z303: =QuickCalc!M56 -> 0 | AA303: =QuickCalc!N56 -> 0 | AB303: =QuickCalc!O56 -> 0 | AC303: =QuickCalc!P56 -> 0 | AD303: =QuickCalc!Q56 -> 0 | AE303: =QuickCalc!R56 -> 0 | AF303: =QuickCalc!S56 -> 0 | AG303: =QuickCalc!T56 -> 0 | AH303: =QuickCalc!U56 -> 0 | AI303: =QuickCalc!V56 -> 0 | AJ303: =QuickCalc!W56 -> 0 | AK303: =QuickCalc!X56 -> 0 | AL303: =QuickCalc!Y56 -> 0 | AM303: =QuickCalc!Z56 -> 0 | AN303: =QuickCalc!AA56 -> 0 | AO303: =QuickCalc!AB56 -> 0 | AP303: =QuickCalc!AC56 -> 0 | AQ303: =QuickCalc!AD56 -> 0 | AR303: =QuickCalc!AE56 -> 0 | AS303: =QuickCalc!AF56 -> 0 | AT303: =QuickCalc!AG56 -> 0 | AU303: =QuickCalc!AH56 -> 0 | AV303: =QuickCalc!AI56 -> 0 | AW303: =QuickCalc!AJ56 -> 0 | AX303: =QuickCalc!AK56 -> 0 | AY303: =QuickCalc!AL56 -> 0 | AZ303: =QuickCalc!AM56 -> 0 | BA303: =QuickCalc!AN56 -> 0 | BB303: =QuickCalc!AO56 -> 0 | BC303: =QuickCalc!AP56 -> 0 | BD303: =QuickCalc!AQ56 -> 0 | BE303: =QuickCalc!AR56 -> 0 | BF303: =QuickCalc!AS56 -> 0 | BG303: =QuickCalc!AT56 -> 0 | BH303: =QuickCalc!AU56 -> 0 | BI303: =QuickCalc!AV56 -> 0 | BJ303: =QuickCalc!AW56 -> 0 | BK303: =QuickCalc!AX56 -> 0 | BL303: =QuickCalc!AY56 -> 0 | BM303: =QuickCalc!AZ56 -> 0 | BN303: =QuickCalc!BA56 -> 0 | BO303: =QuickCalc!BB56 -> 0 | BP303: =QuickCalc!BC56 -> 0

Sheet Output_charts
A1: Ausgrid investment evaluation model
B2: =RIGHT(CELL("filename",A1),LEN(CELL("filename",A1))-FIND("]",CELL("filename",A1))) -> Output_charts
D4: Legend | E4: Input | F4: Calculation | G4: Select | H4: Internal | I4: Assumptions | J4: Instructions | K4: Change in formula pattern
AH6: Error checks
AH7: =IF(-SUM(Calcs!$L$58,Calcs!$L$39)-SUM(Calcs!$L$85,Calcs!$L$91)>0,"Ok","Check") -> Check | AI7: Total depreciation < Total capex excl land + Total future capex excl land
AH8: =IF(MAX(Calcs!R33:BP38,Calcs!R40:BP40,Calcs!R53:BP57,Calcs!R59:BP59)<=0,"Ok","Check") -> Ok | AI8: All capex & future capex negative. Check if positive cash flow is correct
AH9: =IF(AND(T56="Ok",T60="Ok",AN105="Ok",AN145="Ok",AN183="Ok",AN220="Ok",AN254="Ok",AN295="Ok"),"Ok","Check") -> Ok | AI9: Checks all NPV table checks (Investment NPV perspective summary tables and tables behind graphs in NPV graphing)
E13: Shareholder | F13: Customer | H13: EBSS switch | I13: CESS switch | P13: Switch | Q13: Last year | U13: Switch
D14: WACC | E14: Low | F14: Low | H14: TRUE | I14: FALSE | O14: Use longest useful asset life valuation period | P14: Off | Q14: =IF($P$14="On",Input!$L$55,"End of model") -> End of model | R14: =IF(P14="On","If this is 0, there is no year input in the Input sheet","") ->  | T14: Automatic STPIS / customer calculation | U14: No
D15: Avg WACC | E15: =Assumptions!$J$33 -> 0.0344 | F15: =Assumptions!$J$39 -> 0.0344
B17: Summary for prioritisation
D19: IRR | E19: IRR | F19: IRR | H19: VIR | I19: VIR | J19: Market NPV | K19: Market NPV | L19: Cust. NPV | M19: Cust. NPV | N19: Cust. NPV | O19: Shar. NPV | P19: Shar. NPV | Q19: Shar. NPV | R19: Investment | S19: Investment | T19: Investment | U19: Investment
D20: Market | E20: Customer | F20: Shareholder | H20: w/ prob. | I20: w/o prob. | J20: w/ prob. | K20: w/o prob. | L20: Total | M20: Probabilistic | N20: Other | O20: Total | P20: Probabilistic | Q20: Other | R20: Total | S20: Capex | T20: Future | U20: Opex
D22: =Calcs!$E$15 ->  | E22: =Calcs!$F$15 ->  | F22: =Calcs!$G$15 ->  | H22: =$J$22/-$R$22 -> 1.4975189 | I22: =$K$22/-$R$22 -> 1.448354161 | J22: =$L$22+$O$22 -> 59675696.08 | K22: =$N$22+$Q$22 -> 57716495.43 | L22: =Calcs!$K$448 -> 33250745.41 | M22: =SUM(Calcs!$K$421:$K$446) -> 1959200.647 | N22: =$L$22-$M$22 -> 31291544.76 | O22: =Calcs!$K$369 -> 26424950.67 | P22: =SUM(Calcs!$K$342:$K$367) -> 0 | Q22: =$O$22-$P$22 -> 26424950.67 | R22: =$S$22+$T$22+$U$22 -> -39849711.47 | S22: =Calcs!$K$304 -> -39504907 | T22: =Calcs!$K$309 -> 0 | U22: =Calcs!$K$331 -> -344804.4694
C24: Additional investment cost breakdown
D29: Investment breakdown over time | J29: ="FY"&RIGHT(Assumptions!$L$19+J377,2) -> FY23 | K29: ="FY"&RIGHT(Assumptions!$L$19+K377,2) -> FY24 | L29: ="FY"&RIGHT(Assumptions!$L$19+L377,2) -> FY25 | M29: ="FY"&RIGHT(Assumptions!$L$19+M377,2) -> FY26 | N29: ="FY"&RIGHT(Assumptions!$L$19+N377,2) -> FY27 | O29: ="FY"&RIGHT(Assumptions!$L$19+O377,2) -> FY28 | P29: ="FY"&RIGHT(Assumptions!$L$19+P377,2) -> FY29 | Q29: ="FY"&RIGHT(Assumptions!$L$19+Q377,2) -> FY30 | R29: ="FY"&RIGHT(Assumptions!$L$19+R377,2) -> FY31 | S29: ="FY"&RIGHT(Assumptions!$L$19+S377,2) -> FY32 | T29: ="FY"&RIGHT(Assumptions!$L$19+T377,2) -> FY33 | U29: ="FY"&RIGHT(Assumptions!$L$19+U377,2) -> FY34 | V29: ="FY"&RIGHT(Assumptions!$L$19+V377,2) -> FY35 | W29: ="FY"&RIGHT(Assumptions!$L$19+W377,2) -> FY36 | X29: ="FY"&RIGHT(Assumptions!$L$19+X377,2) -> FY37 | Y29: ="FY"&RIGHT(Assumptions!$L$19+Y377,2) -> FY38 | Z29: ="FY"&RIGHT(Assumptions!$L$19+Z377,2) -> FY39 | AA29: ="FY"&RIGHT(Assumptions!$L$19+AA377,2) -> FY40 | AB29: ="FY"&RIGHT(Assumptions!$L$19+AB377,2) -> FY41 | AC29: ="FY"&RIGHT(Assumptions!$L$19+AC377,2) -> FY42 | AD29: ="FY"&RIGHT(Assumptions!$L$19+AD377,2) -> FY43 | AE29: ="FY"&RIGHT(Assumptions!$L$19+AE377,2) -> FY44 | AF29: ="FY"&RIGHT(Assumptions!$L$19+AF377,2) -> FY45 | AG29: ="FY"&RIGHT(Assumptions!$L$19+AG377,2) -> FY46 | AH29: ="FY"&RIGHT(Assumptions!$L$19+AH377,2) -> FY47 | AI29: ="FY"&RIGHT(Assumptions!$L$19+AI377,2) -> FY48 | AJ29: ="FY"&RIGHT(Assumptions!$L$19+AJ377,2) -> FY49 | AK29: ="FY"&RIGHT(Assumptions!$L$19+AK377,2) -> FY50 | AL29: ="FY"&RIGHT(Assumptions!$L$19+AL377,2) -> FY51 | AM29: ="FY"&RIGHT(Assumptions!$L$19+AM377,2) -> FY52 | AN29: ="FY"&RIGHT(Assumptions!$L$19+AN377,2) -> FY53 | AO29: ="FY"&RIGHT(Assumptions!$L$19+AO377,2) -> FY54 | AP29: ="FY"&RIGHT(Assumptions!$L$19+AP377,2) -> FY55 | AQ29: ="FY"&RIGHT(Assumptions!$L$19+AQ377,2) -> FY56 | AR29: ="FY"&RIGHT(Assumptions!$L$19+AR377,2) -> FY57 | AS29: ="FY"&RIGHT(Assumptions!$L$19+AS377,2) -> FY58 | AT29: ="FY"&RIGHT(Assumptions!$L$19+AT377,2) -> FY59 | AU29: ="FY"&RIGHT(Assumptions!$L$19+AU377,2) -> FY60 | AV29: ="FY"&RIGHT(Assumptions!$L$19+AV377,2) -> FY61 | AW29: ="FY"&RIGHT(Assumptions!$L$19+AW377,2) -> FY62 | AX29: ="FY"&RIGHT(Assumptions!$L$19+AX377,2) -> FY63 | AY29: ="FY"&RIGHT(Assumptions!$L$19+AY377,2) -> FY64 | AZ29: ="FY"&RIGHT(Assumptions!$L$19+AZ377,2) -> FY65 | BA29: ="FY"&RIGHT(Assumptions!$L$19+BA377,2) -> FY66 | BB29: ="FY"&RIGHT(Assumptions!$L$19+BB377,2) -> FY67 | BC29: ="FY"&RIGHT(Assumptions!$L$19+BC377,2) -> FY68 | BD29: ="FY"&RIGHT(Assumptions!$L$19+BD377,2) -> FY69 | BE29: ="FY"&RIGHT(Assumptions!$L$19+BE377,2) -> FY70 | BF29: ="FY"&RIGHT(Assumptions!$L$19+BF377,2) -> FY71 | BG29: ="FY"&RIGHT(Assumptions!$L$19+BG377,2) -> FY72 | BH29: ="FY"&RIGHT(Assumptions!$L$19+BH377,2) -> FY73
D31: Capex cost excl Land | T31: =SUM(T32:T36) -> 0 | U31: 0 | V31: 0 | W31: 0 | X31: 0 | Y31: 0 | Z31: 0 | AA31: 0 | AB31: 0 | AC31: 0 | AD31: 0 | AE31: 0 | AF31: 0 | AG31: 0 | AH31: 0 | AI31: 0 | AJ31: 0 | AK31: 0 | AL31: 0 | AM31: 0 | AN31: 0 | AO31: 0 | AP31: 0 | AQ31: 0 | AR31: 0 | AS31: 0 | AT31: 0 | AU31: 0 | AV31: 0 | AW31: 0 | AX31: 0 | AY31: 0 | AZ31: 0 | BA31: 0 | BB31: 0 | BC31: 0 | BD31: 0 | BE31: 0 | BF31: 0 | BG31: 0 | BH31: =SUM(BH32:BH36) -> 0
D32: Direct labour | I32: =SUM(J32:BH32) -> 0 | J32: =SUMIF(Input!$D$67:$D$108,Output_charts!$D32,Input!R$67:R$108) -> 0 | K32: =SUMIF(Input!$D$67:$D$108,Output_charts!$D32,Input!S$67:S$108) -> 0 | L32: =SUMIF(Input!$D$67:$D$108,Output_charts!$D32,Input!T$67:T$108) -> 0 | M32: =SUMIF(Input!$D$67:$D$108,Output_charts!$D32,Input!U$67:U$108) -> 0 | N32: =SUMIF(Input!$D$67:$D$108,Output_charts!$D32,Input!V$67:V$108) -> 0 | O32: =SUMIF(Input!$D$67:$D$108,Output_charts!$D32,Input!W$67:W$108) -> 0 | P32: =SUMIF(Input!$D$67:$D$108,Output_charts!$D32,Input!X$67:X$108) -> 0 | Q32: =SUMIF(Input!$D$67:$D$108,Output_charts!$D32,Input!Y$67:Y$108) -> 0 | R32: =SUMIF(Input!$D$67:$D$108,Output_charts!$D32,Input!Z$67:Z$108) -> 0 | S32: =SUMIF(Input!$D$67:$D$108,Output_charts!$D32,Input!AA$67:AA$108) -> 0 | T32: =SUMIF(Input!$D$67:$D$108,Output_charts!$D32,Input!AB$67:AB$108) -> 0 | U32: =SUMIF(Input!$D$67:$D$108,Output_charts!$D32,Input!AC$67:AC$108) -> 0 | V32: =SUMIF(Input!$D$67:$D$108,Output_charts!$D32,Input!AD$67:AD$108) -> 0 | W32: =SUMIF(Input!$D$67:$D$108,Output_charts!$D32,Input!AE$67:AE$108) -> 0 | X32: =SUMIF(Input!$D$67:$D$108,Output_charts!$D32,Input!AF$67:AF$108) -> 0 | Y32: =SUMIF(Input!$D$67:$D$108,Output_charts!$D32,Input!AG$67:AG$108) -> 0 | Z32: =SUMIF(Input!$D$67:$D$108,Output_charts!$D32,Input!AH$67:AH$108) -> 0 | AA32: =SUMIF(Input!$D$67:$D$108,Output_charts!$D32,Input!AI$67:AI$108) -> 0 | AB32: =SUMIF(Input!$D$67:$D$108,Output_charts!$D32,Input!AJ$67:AJ$108) -> 0 | AC32: =SUMIF(Input!$D$67:$D$108,Output_charts!$D32,Input!AK$67:AK$108) -> 0 | AD32: =SUMIF(Input!$D$67:$D$108,Output_charts!$D32,Input!AL$67:AL$108) -> 0 | AE32: =SUMIF(Input!$D$67:$D$108,Output_charts!$D32,Input!AM$67:AM$108) -> 0 | AF32: =SUMIF(Input!$D$67:$D$108,Output_charts!$D32,Input!AN$67:AN$108) -> 0 | AG32: =SUMIF(Input!$D$67:$D$108,Output_charts!$D32,Input!AO$67:AO$108) -> 0 | AH32: =SUMIF(Input!$D$67:$D$108,Output_charts!$D32,Input!AP$67:AP$108) -> 0 | AI32: =SUMIF(Input!$D$67:$D$108,Output_charts!$D32,Input!AQ$67:AQ$108) -> 0 | AJ32: =SUMIF(Input!$D$67:$D$108,Output_charts!$D32,Input!AR$67:AR$108) -> 0 | AK32: =SUMIF(Input!$D$67:$D$108,Output_charts!$D32,Input!AS$67:AS$108) -> 0 | AL32: =SUMIF(Input!$D$67:$D$108,Output_charts!$D32,Input!AT$67:AT$108) -> 0 | AM32: =SUMIF(Input!$D$67:$D$108,Output_charts!$D32,Input!AU$67:AU$108) -> 0 | AN32: =SUMIF(Input!$D$67:$D$108,Output_charts!$D32,Input!AV$67:AV$108) -> 0 | AO32: =SUMIF(Input!$D$67:$D$108,Output_charts!$D32,Input!AW$67:AW$108) -> 0 | AP32: =SUMIF(Input!$D$67:$D$108,Output_charts!$D32,Input!AX$67:AX$108) -> 0 | AQ32: =SUMIF(Input!$D$67:$D$108,Output_charts!$D32,Input!AY$67:AY$108) -> 0 | AR32: =SUMIF(Input!$D$67:$D$108,Output_charts!$D32,Input!AZ$67:AZ$108) -> 0 | AS32: =SUMIF(Input!$D$67:$D$108,Output_charts!$D32,Input!BA$67:BA$108) -> 0 | AT32: =SUMIF(Input!$D$67:$D$108,Output_charts!$D32,Input!BB$67:BB$108) -> 0 | AU32: =SUMIF(Input!$D$67:$D$108,Output_charts!$D32,Input!BC$67:BC$108) -> 0 | AV32: =SUMIF(Input!$D$67:$D$108,Output_charts!$D32,Input!BD$67:BD$108) -> 0 | AW32: =SUMIF(Input!$D$67:$D$108,Output_charts!$D32,Input!BE$67:BE$108) -> 0 | AX32: =SUMIF(Input!$D$67:$D$108,Output_charts!$D32,Input!BF$67:BF$108) -> 0 | AY32: =SUMIF(Input!$D$67:$D$108,Output_charts!$D32,Input!BG$67:BG$108) -> 0 | AZ32: =SUMIF(Input!$D$67:$D$108,Output_charts!$D32,Input!BH$67:BH$108) -> 0 | BA32: =SUMIF(Input!$D$67:$D$108,Output_charts!$D32,Input!BI$67:BI$108) -> 0 | BB32: =SUMIF(Input!$D$67:$D$108,Output_charts!$D32,Input!BJ$67:BJ$108) -> 0 | BC32: =SUMIF(Input!$D$67:$D$108,Output_charts!$D32,Input!BK$67:BK$108) -> 0 | BD32: =SUMIF(Input!$D$67:$D$108,Output_charts!$D32,Input!BL$67:BL$108) -> 0 | BE32: =SUMIF(Input!$D$67:$D$108,Output_charts!$D32,Input!BM$67:BM$108) -> 0 | BF32: =SUMIF(Input!$D$67:$D$108,Output_charts!$D32,Input!BN$67:BN$108) -> 0 | BG32: =SUMIF(Input!$D$67:$D$108,Output_charts!$D32,Input!BO$67:BO$108) -> 0 | BH32: =SUMIF(Input!$D$67:$D$108,Output_charts!$D32,Input!BP$67:BP$108) -> 0
D33: Materials | I33: 0 | J33: =SUMIF(Input!$D$67:$D$108,Output_charts!$D33,Input!R$67:R$108) -> 0 | K33: =SUMIF(Input!$D$67:$D$108,Output_charts!$D33,Input!S$67:S$108) -> 0 | L33: =SUMIF(Input!$D$67:$D$108,Output_charts!$D33,Input!T$67:T$108) -> 0 | M33: =SUMIF(Input!$D$67:$D$108,Output_charts!$D33,Input!U$67:U$108) -> 0 | N33: =SUMIF(Input!$D$67:$D$108,Output_charts!$D33,Input!V$67:V$108) -> 0 | O33: =SUMIF(Input!$D$67:$D$108,Output_charts!$D33,Input!W$67:W$108) -> 0 | P33: =SUMIF(Input!$D$67:$D$108,Output_charts!$D33,Input!X$67:X$108) -> 0 | Q33: =SUMIF(Input!$D$67:$D$108,Output_charts!$D33,Input!Y$67:Y$108) -> 0 | R33: =SUMIF(Input!$D$67:$D$108,Output_charts!$D33,Input!Z$67:Z$108) -> 0 | S33: =SUMIF(Input!$D$67:$D$108,Output_charts!$D33,Input!AA$67:AA$108) -> 0 | T33: =SUMIF(Input!$D$67:$D$108,Output_charts!$D33,Input!AB$67:AB$108) -> 0 | U33: =SUMIF(Input!$D$67:$D$108,Output_charts!$D33,Input!AC$67:AC$108) -> 0 | V33: =SUMIF(Input!$D$67:$D$108,Output_charts!$D33,Input!AD$67:AD$108) -> 0 | W33: =SUMIF(Input!$D$67:$D$108,Output_charts!$D33,Input!AE$67:AE$108) -> 0 | X33: =SUMIF(Input!$D$67:$D$108,Output_charts!$D33,Input!AF$67:AF$108) -> 0 | Y33: =SUMIF(Input!$D$67:$D$108,Output_charts!$D33,Input!AG$67:AG$108) -> 0 | Z33: =SUMIF(Input!$D$67:$D$108,Output_charts!$D33,Input!AH$67:AH$108) -> 0 | AA33: =SUMIF(Input!$D$67:$D$108,Output_charts!$D33,Input!AI$67:AI$108) -> 0 | AB33: =SUMIF(Input!$D$67:$D$108,Output_charts!$D33,Input!AJ$67:AJ$108) -> 0 | AC33: =SUMIF(Input!$D$67:$D$108,Output_charts!$D33,Input!AK$67:AK$108) -> 0 | AD33: =SUMIF(Input!$D$67:$D$108,Output_charts!$D33,Input!AL$67:AL$108) -> 0 | AE33: =SUMIF(Input!$D$67:$D$108,Output_charts!$D33,Input!AM$67:AM$108) -> 0 | AF33: =SUMIF(Input!$D$67:$D$108,Output_charts!$D33,Input!AN$67:AN$108) -> 0 | AG33: =SUMIF(Input!$D$67:$D$108,Output_charts!$D33,Input!AO$67:AO$108) -> 0 | AH33: =SUMIF(Input!$D$67:$D$108,Output_charts!$D33,Input!AP$67:AP$108) -> 0 | AI33: =SUMIF(Input!$D$67:$D$108,Output_charts!$D33,Input!AQ$67:AQ$108) -> 0 | AJ33: =SUMIF(Input!$D$67:$D$108,Output_charts!$D33,Input!AR$67:AR$108) -> 0 | AK33: =SUMIF(Input!$D$67:$D$108,Output_charts!$D33,Input!AS$67:AS$108) -> 0 | AL33: =SUMIF(Input!$D$67:$D$108,Output_charts!$D33,Input!AT$67:AT$108) -> 0 | AM33: =SUMIF(Input!$D$67:$D$108,Output_charts!$D33,Input!AU$67:AU$108) -> 0 | AN33: =SUMIF(Input!$D$67:$D$108,Output_charts!$D33,Input!AV$67:AV$108) -> 0 | AO33: =SUMIF(Input!$D$67:$D$108,Output_charts!$D33,Input!AW$67:AW$108) -> 0 | AP33: =SUMIF(Input!$D$67:$D$108,Output_charts!$D33,Input!AX$67:AX$108) -> 0 | AQ33: =SUMIF(Input!$D$67:$D$108,Output_charts!$D33,Input!AY$67:AY$108) -> 0 | AR33: =SUMIF(Input!$D$67:$D$108,Output_charts!$D33,Input!AZ$67:AZ$108) -> 0 | AS33: =SUMIF(Input!$D$67:$D$108,Output_charts!$D33,Input!BA$67:BA$108) -> 0 | AT33: =SUMIF(Input!$D$67:$D$108,Output_charts!$D33,Input!BB$67:BB$108) -> 0 | AU33: =SUMIF(Input!$D$67:$D$108,Output_charts!$D33,Input!BC$67:BC$108) -> 0 | AV33: =SUMIF(Input!$D$67:$D$108,Output_charts!$D33,Input!BD$67:BD$108) -> 0 | AW33: =SUMIF(Input!$D$67:$D$108,Output_charts!$D33,Input!BE$67:BE$108) -> 0 | AX33: =SUMIF(Input!$D$67:$D$108,Output_charts!$D33,Input!BF$67:BF$108) -> 0 | AY33: =SUMIF(Input!$D$67:$D$108,Output_charts!$D33,Input!BG$67:BG$108) -> 0 | AZ33: =SUMIF(Input!$D$67:$D$108,Output_charts!$D33,Input!BH$67:BH$108) -> 0 | BA33: =SUMIF(Input!$D$67:$D$108,Output_charts!$D33,Input!BI$67:BI$108) -> 0 | BB33: =SUMIF(Input!$D$67:$D$108,Output_charts!$D33,Input!BJ$67:BJ$108) -> 0 | BC33: =SUMIF(Input!$D$67:$D$108,Output_charts!$D33,Input!BK$67:BK$108) -> 0 | BD33: =SUMIF(Input!$D$67:$D$108,Output_charts!$D33,Input!BL$67:BL$108) -> 0 | BE33: =SUMIF(Input!$D$67:$D$108,Output_charts!$D33,Input!BM$67:BM$108) -> 0 | BF33: =SUMIF(Input!$D$67:$D$108,Output_charts!$D33,Input!BN$67:BN$108) -> 0 | BG33: =SUMIF(Input!$D$67:$D$108,Output_charts!$D33,Input!BO$67:BO$108) -> 0 | BH33: =SUMIF(Input!$D$67:$D$108,Output_charts!$D33,Input!BP$67:BP$108) -> 0
D34: Contracted services | I34: 0 | J34: =SUMIF(Input!$D$67:$D$108,Output_charts!$D34,Input!R$67:R$108) -> 0 | K34: =SUMIF(Input!$D$67:$D$108,Output_charts!$D34,Input!S$67:S$108) -> 0 | L34: =SUMIF(Input!$D$67:$D$108,Output_charts!$D34,Input!T$67:T$108) -> 0 | M34: =SUMIF(Input!$D$67:$D$108,Output_charts!$D34,Input!U$67:U$108) -> 0 | N34: =SUMIF(Input!$D$67:$D$108,Output_charts!$D34,Input!V$67:V$108) -> 0 | O34: =SUMIF(Input!$D$67:$D$108,Output_charts!$D34,Input!W$67:W$108) -> 0 | P34: =SUMIF(Input!$D$67:$D$108,Output_charts!$D34,Input!X$67:X$108) -> 0 | Q34: =SUMIF(Input!$D$67:$D$108,Output_charts!$D34,Input!Y$67:Y$108) -> 0 | R34: =SUMIF(Input!$D$67:$D$108,Output_charts!$D34,Input!Z$67:Z$108) -> 0 | S34: =SUMIF(Input!$D$67:$D$108,Output_charts!$D34,Input!AA$67:AA$108) -> 0 | T34: =SUMIF(Input!$D$67:$D$108,Output_charts!$D34,Input!AB$67:AB$108) -> 0 | U34: =SUMIF(Input!$D$67:$D$108,Output_charts!$D34,Input!AC$67:AC$108) -> 0 | V34: =SUMIF(Input!$D$67:$D$108,Output_charts!$D34,Input!AD$67:AD$108) -> 0 | W34: =SUMIF(Input!$D$67:$D$108,Output_charts!$D34,Input!AE$67:AE$108) -> 0 | X34: =SUMIF(Input!$D$67:$D$108,Output_charts!$D34,Input!AF$67:AF$108) -> 0 | Y34: =SUMIF(Input!$D$67:$D$108,Output_charts!$D34,Input!AG$67:AG$108) -> 0 | Z34: =SUMIF(Input!$D$67:$D$108,Output_charts!$D34,Input!AH$67:AH$108) -> 0 | AA34: =SUMIF(Input!$D$67:$D$108,Output_charts!$D34,Input!AI$67:AI$108) -> 0 | AB34: =SUMIF(Input!$D$67:$D$108,Output_charts!$D34,Input!AJ$67:AJ$108) -> 0 | AC34: =SUMIF(Input!$D$67:$D$108,Output_charts!$D34,Input!AK$67:AK$108) -> 0 | AD34: =SUMIF(Input!$D$67:$D$108,Output_charts!$D34,Input!AL$67:AL$108) -> 0 | AE34: =SUMIF(Input!$D$67:$D$108,Output_charts!$D34,Input!AM$67:AM$108) -> 0 | AF34: =SUMIF(Input!$D$67:$D$108,Output_charts!$D34,Input!AN$67:AN$108) -> 0 | AG34: =SUMIF(Input!$D$67:$D$108,Output_charts!$D34,Input!AO$67:AO$108) -> 0 | AH34: =SUMIF(Input!$D$67:$D$108,Output_charts!$D34,Input!AP$67:AP$108) -> 0 | AI34: =SUMIF(Input!$D$67:$D$108,Output_charts!$D34,Input!AQ$67:AQ$108) -> 0 | AJ34: =SUMIF(Input!$D$67:$D$108,Output_charts!$D34,Input!AR$67:AR$108) -> 0 | AK34: =SUMIF(Input!$D$67:$D$108,Output_charts!$D34,Input!AS$67:AS$108) -> 0 | AL34: =SUMIF(Input!$D$67:$D$108,Output_charts!$D34,Input!AT$67:AT$108) -> 0 | AM34: =SUMIF(Input!$D$67:$D$108,Output_charts!$D34,Input!AU$67:AU$108) -> 0 | AN34: =SUMIF(Input!$D$67:$D$108,Output_charts!$D34,Input!AV$67:AV$108) -> 0 | AO34: =SUMIF(Input!$D$67:$D$108,Output_charts!$D34,Input!AW$67:AW$108) -> 0 | AP34: =SUMIF(Input!$D$67:$D$108,Output_charts!$D34,Input!AX$67:AX$108) -> 0 | AQ34: =SUMIF(Input!$D$67:$D$108,Output_charts!$D34,Input!AY$67:AY$108) -> 0 | AR34: =SUMIF(Input!$D$67:$D$108,Output_charts!$D34,Input!AZ$67:AZ$108) -> 0 | AS34: =SUMIF(Input!$D$67:$D$108,Output_charts!$D34,Input!BA$67:BA$108) -> 0 | AT34: =SUMIF(Input!$D$67:$D$108,Output_charts!$D34,Input!BB$67:BB$108) -> 0 | AU34: =SUMIF(Input!$D$67:$D$108,Output_charts!$D34,Input!BC$67:BC$108) -> 0 | AV34: =SUMIF(Input!$D$67:$D$108,Output_charts!$D34,Input!BD$67:BD$108) -> 0 | AW34: =SUMIF(Input!$D$67:$D$108,Output_charts!$D34,Input!BE$67:BE$108) -> 0 | AX34: =SUMIF(Input!$D$67:$D$108,Output_charts!$D34,Input!BF$67:BF$108) -> 0 | AY34: =SUMIF(Input!$D$67:$D$108,Output_charts!$D34,Input!BG$67:BG$108) -> 0 | AZ34: =SUMIF(Input!$D$67:$D$108,Output_charts!$D34,Input!BH$67:BH$108) -> 0 | BA34: =SUMIF(Input!$D$67:$D$108,Output_charts!$D34,Input!BI$67:BI$108) -> 0 | BB34: =SUMIF(Input!$D$67:$D$108,Output_charts!$D34,Input!BJ$67:BJ$108) -> 0 | BC34: =SUMIF(Input!$D$67:$D$108,Output_charts!$D34,Input!BK$67:BK$108) -> 0 | BD34: =SUMIF(Input!$D$67:$D$108,Output_charts!$D34,Input!BL$67:BL$108) -> 0 | BE34: =SUMIF(Input!$D$67:$D$108,Output_charts!$D34,Input!BM$67:BM$108) -> 0 | BF34: =SUMIF(Input!$D$67:$D$108,Output_charts!$D34,Input!BN$67:BN$108) -> 0 | BG34: =SUMIF(Input!$D$67:$D$108,Output_charts!$D34,Input!BO$67:BO$108) -> 0 | BH34: =SUMIF(Input!$D$67:$D$108,Output_charts!$D34,Input!BP$67:BP$108) -> 0
D35: Indirect labour / overheads | I35: 0 | J35: =SUMIF(Input!$D$67:$D$108,Output_charts!$D35,Input!R$67:R$108) -> 0 | K35: =SUMIF(Input!$D$67:$D$108,Output_charts!$D35,Input!S$67:S$108) -> 0 | L35: =SUMIF(Input!$D$67:$D$108,Output_charts!$D35,Input!T$67:T$108) -> 0 | M35: =SUMIF(Input!$D$67:$D$108,Output_charts!$D35,Input!U$67:U$108) -> 0 | N35: =SUMIF(Input!$D$67:$D$108,Output_charts!$D35,Input!V$67:V$108) -> 0 | O35: =SUMIF(Input!$D$67:$D$108,Output_charts!$D35,Input!W$67:W$108) -> 0 | P35: =SUMIF(Input!$D$67:$D$108,Output_charts!$D35,Input!X$67:X$108) -> 0 | Q35: =SUMIF(Input!$D$67:$D$108,Output_charts!$D35,Input!Y$67:Y$108) -> 0 | R35: =SUMIF(Input!$D$67:$D$108,Output_charts!$D35,Input!Z$67:Z$108) -> 0 | S35: =SUMIF(Input!$D$67:$D$108,Output_charts!$D35,Input!AA$67:AA$108) -> 0 | T35: =SUMIF(Input!$D$67:$D$108,Output_charts!$D35,Input!AB$67:AB$108) -> 0 | U35: =SUMIF(Input!$D$67:$D$108,Output_charts!$D35,Input!AC$67:AC$108) -> 0 | V35: =SUMIF(Input!$D$67:$D$108,Output_charts!$D35,Input!AD$67:AD$108) -> 0 | W35: =SUMIF(Input!$D$67:$D$108,Output_charts!$D35,Input!AE$67:AE$108) -> 0 | X35: =SUMIF(Input!$D$67:$D$108,Output_charts!$D35,Input!AF$67:AF$108) -> 0 | Y35: =SUMIF(Input!$D$67:$D$108,Output_charts!$D35,Input!AG$67:AG$108) -> 0 | Z35: =SUMIF(Input!$D$67:$D$108,Output_charts!$D35,Input!AH$67:AH$108) -> 0 | AA35: =SUMIF(Input!$D$67:$D$108,Output_charts!$D35,Input!AI$67:AI$108) -> 0 | AB35: =SUMIF(Input!$D$67:$D$108,Output_charts!$D35,Input!AJ$67:AJ$108) -> 0 | AC35: =SUMIF(Input!$D$67:$D$108,Output_charts!$D35,Input!AK$67:AK$108) -> 0 | AD35: =SUMIF(Input!$D$67:$D$108,Output_charts!$D35,Input!AL$67:AL$108) -> 0 | AE35: =SUMIF(Input!$D$67:$D$108,Output_charts!$D35,Input!AM$67:AM$108) -> 0 | AF35: =SUMIF(Input!$D$67:$D$108,Output_charts!$D35,Input!AN$67:AN$108) -> 0 | AG35: =SUMIF(Input!$D$67:$D$108,Output_charts!$D35,Input!AO$67:AO$108) -> 0 | AH35: =SUMIF(Input!$D$67:$D$108,Output_charts!$D35,Input!AP$67:AP$108) -> 0 | AI35: =SUMIF(Input!$D$67:$D$108,Output_charts!$D35,Input!AQ$67:AQ$108) -> 0 | AJ35: =SUMIF(Input!$D$67:$D$108,Output_charts!$D35,Input!AR$67:AR$108) -> 0 | AK35: =SUMIF(Input!$D$67:$D$108,Output_charts!$D35,Input!AS$67:AS$108) -> 0 | AL35: =SUMIF(Input!$D$67:$D$108,Output_charts!$D35,Input!AT$67:AT$108) -> 0 | AM35: =SUMIF(Input!$D$67:$D$108,Output_charts!$D35,Input!AU$67:AU$108) -> 0 | AN35: =SUMIF(Input!$D$67:$D$108,Output_charts!$D35,Input!AV$67:AV$108) -> 0 | AO35: =SUMIF(Input!$D$67:$D$108,Output_charts!$D35,Input!AW$67:AW$108) -> 0 | AP35: =SUMIF(Input!$D$67:$D$108,Output_charts!$D35,Input!AX$67:AX$108) -> 0 | AQ35: =SUMIF(Input!$D$67:$D$108,Output_charts!$D35,Input!AY$67:AY$108) -> 0 | AR35: =SUMIF(Input!$D$67:$D$108,Output_charts!$D35,Input!AZ$67:AZ$108) -> 0 | AS35: =SUMIF(Input!$D$67:$D$108,Output_charts!$D35,Input!BA$67:BA$108) -> 0 | AT35: =SUMIF(Input!$D$67:$D$108,Output_charts!$D35,Input!BB$67:BB$108) -> 0 | AU35: =SUMIF(Input!$D$67:$D$108,Output_charts!$D35,Input!BC$67:BC$108) -> 0 | AV35: =SUMIF(Input!$D$67:$D$108,Output_charts!$D35,Input!BD$67:BD$108) -> 0 | AW35: =SUMIF(Input!$D$67:$D$108,Output_charts!$D35,Input!BE$67:BE$108) -> 0 | AX35: =SUMIF(Input!$D$67:$D$108,Output_charts!$D35,Input!BF$67:BF$108) -> 0 | AY35: =SUMIF(Input!$D$67:$D$108,Output_charts!$D35,Input!BG$67:BG$108) -> 0 | AZ35: =SUMIF(Input!$D$67:$D$108,Output_charts!$D35,Input!BH$67:BH$108) -> 0 | BA35: =SUMIF(Input!$D$67:$D$108,Output_charts!$D35,Input!BI$67:BI$108) -> 0 | BB35: =SUMIF(Input!$D$67:$D$108,Output_charts!$D35,Input!BJ$67:BJ$108) -> 0 | BC35: =SUMIF(Input!$D$67:$D$108,Output_charts!$D35,Input!BK$67:BK$108) -> 0 | BD35: =SUMIF(Input!$D$67:$D$108,Output_charts!$D35,Input!BL$67:BL$108) -> 0 | BE35: =SUMIF(Input!$D$67:$D$108,Output_charts!$D35,Input!BM$67:BM$108) -> 0 | BF35: =SUMIF(Input!$D$67:$D$108,Output_charts!$D35,Input!BN$67:BN$108) -> 0 | BG35: =SUMIF(Input!$D$67:$D$108,Output_charts!$D35,Input!BO$67:BO$108) -> 0 | BH35: =SUMIF(Input!$D$67:$D$108,Output_charts!$D35,Input!BP$67:BP$108) -> 0
